{"text_format":"1","workbook":"xlsx","n_sheets":3,"sheets":["Instructions","FundSplits","ActiveFunds"],"not_rendered":{"charts":0,"images":0,"macros":1,"external_links":0,"defined_names":30,"comments":0,"pivot_tables":0},"unopened":[],"bounds":{"document_bytes":16777216,"sheet_cells":100000,"rows_first":2000,"rows_last":500,"rows_between":2000,"halvings":0,"cell_chars":16384,"cell_head_chars":4096},"cells_cut":0,"cells_raw":0,"read":"whole","date_system":"1900"}

{"sheet":"Instructions","index":0,"n_rows":11,"n_cols":2,"rows_kept":11,"cut":false,"hidden":false,"merged":[[22,0,22,1],[4,0,4,1],[6,0,6,1],[0,0,0,1],[1,0,1,1],[2,0,2,1],[3,0,3,1]]}
["2025 - 27 Central Service Fund Split Form"]
["This is your agency proposal of fund source impacts when central services increase or decrease funding for your agency."]
["Please complete and submit this form in excel along with your other agency documentation in the Agency Budget System (ABS). "]
["Fund splits in this form are the fund splits from the Enacted 2024 Supplemental Budget CSM"]
["Program and Subprogram detail is required for certain agencies. These columns will be blank if this detail isn't required."]
[]
["Steps to complete the form"]
["Step 1","On the Fund Split tab, filter on your agency by using the dropdown option"]
["Step 2","Review fund splits for each service"]
["Step 3","Update columns I - S where appropriate - Each column must equal 100%"]
["Step 4","Send updated fund split information to your assigned budget advisor and cc the central service model budget advisor."]

{"sheet":"FundSplits","index":1,"n_rows":380,"n_cols":19,"rows_kept":380,"cut":false,"hidden":false,"merged":[]}
[1,{"$f":"LEFT(VLOOKUP(A1,ActiveFunds!$H$4:$I$150,2,0),3)","v":"011"},null,{"$f":"VLOOKUP(A1,ActiveFunds!$H$4:$I$150,2,0)","v":"011-House of Representatives           "},null,"Central Service Fund Splits"]
[null,"DuplicateCheck"]
[]
[]
[{"$f":"LEFT(F5,3)","v":""},{"$f":"TRIM(LEFT(G5,3))","v":""},{"$f":"TRIM(LEFT(H5,4))","v":""},{"$f":"LEFT(I5,3)","v":""},{"$f":"MID(I5,5,1)","v":""},null,null,{"$f":"_xlfn.SINGLE(IF(AND(LEFT(F9,3)=\"300\",LEFT(G9,3)=\"030\"),ActiveFunds!#REF!,IF(AND(LEFT(F9,3)=\"300\",LEFT(G101,3)=\"040\"),ActiveFunds!#REF!,\"\")))","v":""},null,"All Columns by Agency must equal 100%"]
["Agency Code","Program Code","Subprogram Code","Account","AppType","Agency","Program","Subprogram (DSHS P030 & P040)","Account and Approp Title","Auditor","AttGen","OAH","Facilities & Services Only","WaTech","Debt Services ","Workers' Comp","All Other","Risk Mgmt Division","Self Insurance"]
[null,null,null,null,null,"Percent Totals (only applies when one agency chosen)",null,null,null,{"$f":"IF(AgyChoice=1,\"\",SUM(J8:J979))","v":""},"","","","","","","","",""]
["011","","","001","1","011-House of Representatives",null,null,"001-1 General Fund-State",1,1,1,1,1,1,1,1,1,1]
["012","","","001","1","012-Senate",null,null,"001-1 General Fund-State",1,1,1,1,1,1,1,1,1,1]
["013","","","108","1","013-Joint Transportation Committee",null,null,"108-1 Motor Vehicle Account-State",1,1,1,1,1,1,1,1,1,1]
["014","","","553","1","014-Jt Leg Audit & Review Committee",null,null,"553-1 Performance Audits of Govt Acct-State",1,1,1,1,1,1,1,1,1,1]
["020","","","553","1","020-LEAP Committee",null,null,"553-1 Performance Audits of Govt Acct-State",1,1,1,1,1,1,1,1,1,1]
["035","","","600","1","035-Office of the State Actuary",null,null,"600-1 Dept of Retirement Systems Expense-State",1,1,1,1,1,1,1,1,1,1]
["036","","","001","1","036-State Legislative Labor Relations",null,null,"001-1 General Fund-State",1,1,1,1,1,1,1,1,1,1]
["037","","","001","1","037-Office of Legislative Support Svcs",null,null,"001-1 General Fund-State",1,1,1,1,1,1,1,1,1,1]
["038","","","001","1","038-Joint Legislative Systems Comm",null,null,"001-1 General Fund-State",1,1,1,1,1,1,1,1,1,1]
["040","","","001","1","040-Statute Law Committee",null,null,"001-1 General Fund-State",0.8,0.8,0.8,0.8,0.8,0.8,0.8,0.8,0.8,0.8]
["040","","","197","6","040-Statute Law Committee",null,null,"197-6 Statute Law Committee Publications-Non-Appropriated",0.2,0.2,0.2,0.2,0.2,0.2,0.2,0.2,0.2,0.2]
["045","","","001","1","045-Supreme Court",null,null,"001-1 General Fund-State",1,1,1,1,1,1,1,1,1,1]
["048","","","001","1","048-Court of Appeals",null,null,"001-1 General Fund-State",1,1,1,1,1,1,1,1,1,1]
["050","","","001","1","050-Commission on Judicial Conduct",null,null,"001-1 General Fund-State",1,1,1,1,1,1,1,1,1,1]
["055","","","001","1","055-Administrative Office of the Courts",null,null,"001-1 General Fund-State",1,1,1,1,1,1,1,1,1,1]
["056","","","001","1","056-Office of Public Defense",null,null,"001-1 General Fund-State",1,1,1,1,1,1,1,1,1,1]
["057","","","001","1","057-Office of Civil Legal Aid",null,null,"001-1 General Fund-State",1,1,1,1,1,1,1,1,1,1]
["075","","","001","1","075-Office of the Governor",null,null,"001-1 General Fund-State",1,1,1,1,1,1,1,1,1,1]
["080","","","001","1","080-Office of the Lieutenant Governor",null,null,"001-1 General Fund-State",1,1,1,1,1,1,1,1,1,1]
["082","","","001","1","082-Public Disclosure Commission",null,null,"001-1 General Fund-State",1,1,1,1,1,1,1,1,1,1]
["083","","","26H","1","083-Washington State Leadership Board",null,null,"26H-1 WA St Leadership Board-State",1,1,1,1,1,1,1,1,1,1]
["085","","","001","1","085-Office of the Secretary of State",null,null,"001-1 General Fund-State",0.56999999999999995,0.56999999999999995,0.56999999999999995,0.56999999999999995,0.56999999999999995,0.56999999999999995,0.56999999999999995,0.56999999999999995,0.56999999999999995,0.56999999999999995]
["085","","","006","1","085-Office of the Secretary of State",null,null,"006-1 Public Records Effic/Presrv/Access-State",0.08,0.08,0.08,0.08,0.08,0.08,0.08,0.08,0.08,0.08]
["085","","","14E","1","085-Office of the Secretary of State",null,null,"14E-1 WA State Heritage Center Account-State",0.11,0.11,0.11,0.11,0.11,0.11,0.11,0.11,0.11,0.11]
["085","","","407","6","085-Office of the Secretary of State",null,null,"407-6 Secretary of State's Revolving Acct-Non-Appropriated",0.15,0.15,0.15,0.15,0.15,0.15,0.15,0.15,0.15,0.15]
["085","","","441","1","085-Office of the Secretary of State",null,null,"441-1 Local Government Archives Account-State",0.09,0.09,0.09,0.09,0.09,0.09,0.09,0.09,0.09,0.09]
["086","","","001","1","086-Governor's Office of Indian Affairs",null,null,"001-1 General Fund-State",1,1,1,1,1,1,1,1,1,1]
["087","","","001","1","087-Asian-Pacific-American Affrs",null,null,"001-1 General Fund-State",1,1,1,1,1,1,1,1,1,1]
["090","","","404","1","090-Office of the State Treasurer",null,null,"404-1 State Treasurer's Service Account-State",1,1,1,1,1,1,1,1,1,1]
["095","","","001","1","095-Office of the State Auditor",null,null,"001-1 General Fund-State",0,0.01,0,0.01,0,0,0.01,0,0.01,0.01]
["095","","","413","6","095-Office of the State Auditor",null,null,"413-6 Municipal Revolving Account-Non-Appropriated",0.6,0.54,0.6,0.22,0.6,0.6,0.62,0.6,0.6,0.6]
["095","","","483","1","095-Office of the State Auditor",null,null,"483-1 Auditing Services Revolving Acct-State",0.13,0.17,0.13,0.35,0.13,0.13,0.13,0.13,0.13,0.13]
["095","","","553","1","095-Office of the State Auditor",null,null,"553-1 Performance Audits of Govt Acct-State",0.02,0.03,0.02,0.02,0.02,0.02,0.03,0.02,0.02,0.02]
["095","","","553","6","095-Office of the State Auditor",null,null,"553-6 Performance Audits of Govt Acct-Non-Appropriated",0.25,0.24,0.25,0.4,0.25,0.25,0.21,0.25,0.24,0.24]
["099","","","001","1","099-Comm Salaries for Elected Officials",null,null,"001-1 General Fund-State",1,1,1,1,1,1,1,1,1,1]
["100","","","001","1","100-Office of the Attorney General",null,null,"001-1 General Fund-State",9.5200000000000007E-2,9.5200000000000007E-2,0,9.5200000000000007E-2,9.5200000000000007E-2,9.5200000000000007E-2,9.5200000000000007E-2,9.5200000000000007E-2,9.5200000000000007E-2,9.5200000000000007E-2]
["100","","","111","1","100-Office of the Attorney General",null,null,"111-1 Public Service Revolving Account-State",1.24E-2,1.24E-2,0,1.24E-2,1.24E-2,1.24E-2,1.24E-2,1.24E-2,1.24E-2,1.24E-2]
["100","","","12F","6","100-Office of the Attorney General",null,null,"12F-6 Manufactured/Mobile Home Dispute-Non-Appropriated",3.3E-3,3.3E-3,0.1148,3.3E-3,3.3E-3,3.3E-3,3.3E-3,3.3E-3,3.3E-3,3.3E-3]
["100","","","154","1","100-Office of the Attorney General",null,null,"154-1 New Motor Vehicle Arbitration Acct-State",5.1000000000000004E-3,5.1000000000000004E-3,0,5.1000000000000004E-3,5.1000000000000004E-3,5.1000000000000004E-3,5.1000000000000004E-3,5.1000000000000004E-3,5.1000000000000004E-3,5.1000000000000004E-3]
["100","","","17L","6","100-Office of the Attorney General",null,null,"17L-6 Foreclosure Fairness Account-Non-Appropriated",8.0000000000000004E-4,8.0000000000000004E-4,0,8.0000000000000004E-4,8.0000000000000004E-4,8.0000000000000004E-4,8.0000000000000004E-4,8.0000000000000004E-4,8.0000000000000004E-4,8.0000000000000004E-4]
["100","","","405","1","100-Office of the Attorney General",null,null,"405-1 Legal Services Revolving Account-State",0.86939999999999995,0.86939999999999995,0.88519999999999999,0.86939999999999995,0.86939999999999995,0.86939999999999995,0.86939999999999995,0.86939999999999995,0.86939999999999995,0.86939999999999995]
["100","","","424","6","100-Office of the Attorney General",null,null,"424-6 Anti-Trust Revolving Account-Non-Appropriated",1.01E-2,1.01E-2,0,1.01E-2,1.01E-2,1.01E-2,1.01E-2,1.01E-2,1.01E-2,1.01E-2]
["100","","","441","1","100-Office of the Attorney General",null,null,"441-1 Local Government Archives Account-State",3.0000000000000001E-3,3.0000000000000001E-3,0,3.0000000000000001E-3,3.0000000000000001E-3,3.0000000000000001E-3,3.0000000000000001E-3,3.0000000000000001E-3,3.0000000000000001E-3,3.0000000000000001E-3]
["100","","","828","1","100-Office of the Attorney General",null,null,"828-1 Tobacco Prevention and Control Acct-State",8.0000000000000004E-4,8.0000000000000004E-4,0,8.0000000000000004E-4,8.0000000000000004E-4,8.0000000000000004E-4,8.0000000000000004E-4,8.0000000000000004E-4,8.0000000000000004E-4,8.0000000000000004E-4]
["101","","","001","1","101-Caseload Forecast Council",null,null,"001-1 General Fund-State",1,1,1,1,1,1,1,1,1,1]
["102","","","300","6","102-Dept of Financial Institutions",null,null,"300-6 Financial Services Regulation Acct-Non-Appropriated",1,1,1,1,1,1,1,1,1,1]
["103","ADM","","001","1","103-Department of Commerce","ADM-Program Support",null,"001-1 General Fund-State",0.35920000000000002,0.35920000000000002,0.35920000000000002,0.35920000000000002,0.35920000000000002,0.35920000000000002,0.35920000000000002,0.35920000000000002,0.35920000000000002,0.35920000000000002]
["103","ADM","","001","2","103-Department of Commerce","ADM-Program Support",null,"001-2 General Fund-Federal",0.2732,0.2732,0.2732,0.2732,0.2732,0.2732,0.2732,0.2732,0.2732,0.2732]
["103","ADM","","001","7","103-Department of Commerce","ADM-Program Support",null,"001-7 General Fund-Private/Local",9.8500000000000004E-2,9.8500000000000004E-2,9.8500000000000004E-2,9.8500000000000004E-2,9.8500000000000004E-2,9.8500000000000004E-2,9.8500000000000004E-2,9.8500000000000004E-2,9.8500000000000004E-2,9.8500000000000004E-2]
["103","ADM","","001","8","103-Department of Commerce","ADM-Program Support",null,"001-8 General Fund-Federal ARRA",0,0,0,0,0,0,0,0,0,0]
["103","ADM","","04R","1","103-Department of Commerce","ADM-Program Support",null,"04R-1 Drinking Water Assistance Account-State",0,0,0,0,0,0,0,0,0,0]
["103","ADM","","058","1","103-Department of Commerce","ADM-Program Support",null,"058-1 Public Works Assistance Account-State",5.2200000000000003E-2,5.2200000000000003E-2,5.2200000000000003E-2,5.2200000000000003E-2,5.2200000000000003E-2,5.2200000000000003E-2,5.2200000000000003E-2,5.2200000000000003E-2,5.2200000000000003E-2,5.2200000000000003E-2]
["103","ADM","","05R","1","103-Department of Commerce","ADM-Program Support",null,"05R-1 Drinking Water Assist Admin Acct-State",6.4999999999999997E-3,6.4999999999999997E-3,6.4999999999999997E-3,6.4999999999999997E-3,6.4999999999999997E-3,6.4999999999999997E-3,6.4999999999999997E-3,6.4999999999999997E-3,6.4999999999999997E-3,6.4999999999999997E-3]
["103","ADM","","06K","1","103-Department of Commerce","ADM-Program Support",null,"06K-1 Lead Paint Account-State",3.2000000000000002E-3,3.2000000000000002E-3,3.2000000000000002E-3,3.2000000000000002E-3,3.2000000000000002E-3,3.2000000000000002E-3,3.2000000000000002E-3,3.2000000000000002E-3,3.2000000000000002E-3,3.2000000000000002E-3]
["103","ADM","","10B","1","103-Department of Commerce","ADM-Program Support",null,"10B-1 Home Security Fund Account-State",6.2E-2,6.2E-2,6.2E-2,6.2E-2,6.2E-2,6.2E-2,6.2E-2,6.2E-2,6.2E-2,6.2E-2]
["103","ADM","","12C","1","103-Department of Commerce","ADM-Program Support",null,"12C-1 Affordable Housing For All-State",1.0200000000000001E-2,1.0200000000000001E-2,1.0200000000000001E-2,1.0200000000000001E-2,1.0200000000000001E-2,1.0200000000000001E-2,1.0200000000000001E-2,1.0200000000000001E-2,1.0200000000000001E-2,1.0200000000000001E-2]
["103","ADM","","150","1","103-Department of Commerce","ADM-Program Support",null,"150-1 Low-Income Weath/Struct Rehab Asst-State",4.7000000000000002E-3,4.7000000000000002E-3,4.7000000000000002E-3,4.7000000000000002E-3,4.7000000000000002E-3,4.7000000000000002E-3,4.7000000000000002E-3,4.7000000000000002E-3,4.7000000000000002E-3,4.7000000000000002E-3]
["103","ADM","","15A","6","103-Department of Commerce","ADM-Program Support",null,"15A-6 Transitional Housing Oper & Rent-Non-Appropriated",0,0,0,0,0,0,0,0,0,0]
["103","ADM","","174","1","103-Department of Commerce","ADM-Program Support",null,"174-1 Local Toxics Control Account-State",0,0,0,0,0,0,0,0,0,0]
["103","ADM","","17L","6","103-Department of Commerce","ADM-Program Support",null,"17L-6 Foreclosure Fairness Account-Non-Appropriated",1.0699999999999999E-2,1.0699999999999999E-2,1.0699999999999999E-2,1.0699999999999999E-2,1.0699999999999999E-2,1.0699999999999999E-2,1.0699999999999999E-2,1.0699999999999999E-2,1.0699999999999999E-2,1.0699999999999999E-2]
["103","ADM","","205","6","103-Department of Commerce","ADM-Program Support",null,"205-6 Mobile Home Park Relocation Account-Non-Appropriated",3.3999999999999998E-3,3.3999999999999998E-3,3.3999999999999998E-3,3.3999999999999998E-3,3.3999999999999998E-3,3.3999999999999998E-3,3.3999999999999998E-3,3.3999999999999998E-3,3.3999999999999998E-3,3.3999999999999998E-3]
["103","ADM","","263","1","103-Department of Commerce","ADM-Program Support",null,"263-1 Community/Economic Development Fee-State",2.1700000000000001E-2,2.1700000000000001E-2,2.1700000000000001E-2,2.1700000000000001E-2,2.1700000000000001E-2,2.1700000000000001E-2,2.1700000000000001E-2,2.1700000000000001E-2,2.1700000000000001E-2,2.1700000000000001E-2]
["103","ADM","","501","1","103-Department of Commerce","ADM-Program Support",null,"501-1 Liquor Revolving Account-State",1.1999999999999999E-3,1.1999999999999999E-3,1.1999999999999999E-3,1.1999999999999999E-3,1.1999999999999999E-3,1.1999999999999999E-3,1.1999999999999999E-3,1.1999999999999999E-3,1.1999999999999999E-3,1.1999999999999999E-3]
["103","ADM","","532","1","103-Department of Commerce","ADM-Program Support",null,"532-1 Washington Housing Trust Account-State",7.7499999999999999E-2,7.7499999999999999E-2,7.7499999999999999E-2,7.7499999999999999E-2,7.7499999999999999E-2,7.7499999999999999E-2,7.7499999999999999E-2,7.7499999999999999E-2,7.7499999999999999E-2,7.7499999999999999E-2]
["103","ADM","","887","1","103-Department of Commerce","ADM-Program Support",null,"887-1 Public Facility Const Loan Revolv-State",1.5800000000000002E-2,1.5800000000000002E-2,1.5800000000000002E-2,1.5800000000000002E-2,1.5800000000000002E-2,1.5800000000000002E-2,1.5800000000000002E-2,1.5800000000000002E-2,1.5800000000000002E-2,1.5800000000000002E-2]
["104","","","001","1","104-Economic & Revenue Forecast Council",null,null,"001-1 General Fund-State",1,1,1,1,1,1,1,1,1,1]
["105","","","001","1","105-Office of Financial Management",null,null,"001-1 General Fund-State",0.27,0.35,0.27,1,0.27,0.27,0.27,0.27,0.27,0.27]
["105","","","415","1","105-Office of Financial Management",null,null,"415-1 Personnel Service Account-State",0.1,0.1,0.1,0,0.1,0.1,0.1,0.1,0.1,0.1]
["105","","","419","1","105-Office of Financial Management",null,null,"419-1 Data Processing Revolving Account-State",0,0,0,0,0,0,0,0,0,0]
["105","","","436","6","105-Office of Financial Management",null,null,"436-6 OFM Labor Relations Service Acct-Non-Appropriated",7.0000000000000007E-2,0.55000000000000004,7.0000000000000007E-2,0,7.0000000000000007E-2,7.0000000000000007E-2,7.0000000000000007E-2,7.0000000000000007E-2,7.0000000000000007E-2,7.0000000000000007E-2]
["105","","","468","1","105-Office of Financial Management",null,null,"468-1 OFM Central Services-State",0.17,0,0.17,0,0.17,0.17,0.17,0.17,0.17,0.17]
["105","","","472","6","105-Office of Financial Management",null,null,"472-6 Statewide IT Systems M&O Rev Acct-Non-Appropriated",0.39,0,0.39,0,0.39,0.39,0.39,0.39,0.39,0.39]
["107","OTH","","001","1","107-WA State Health Care Authority","OTH-Health Care Auth-Other",null,"001-1 General Fund-State",0.38,0.434,0.52,0.38,0.38,0.9,0.38,0.38,0.38,0.38]
["107","OTH","","001","2","107-WA State Health Care Authority","OTH-Health Care Auth-Other",null,"001-2 General Fund-Federal",0.49399999999999999,0.35799999999999998,0.47,0.49399999999999999,0.49399999999999999,0,0.49399999999999999,0.49399999999999999,0.49399999999999999,0.49399999999999999]
["107","PEB","","418","1","107-WA State Health Care Authority","PEB-Health Care Auth-Employee Benefits",null,"418-1 St Health Care Authority Admin Acct-State",7.2999999999999995E-2,0.13400000000000001,0.01,7.2999999999999995E-2,7.2999999999999995E-2,0.1,7.2999999999999995E-2,7.2999999999999995E-2,7.2999999999999995E-2,7.2999999999999995E-2]
["107","SEB","","492","1","107-WA State Health Care Authority","SEB-School Employee Benefits Board",null,"492-1 School Employees' Insurance Account",5.2999999999999999E-2,7.3999999999999996E-2,0,5.2999999999999999E-2,5.2999999999999999E-2,0,5.2999999999999999E-2,5.2999999999999999E-2,5.2999999999999999E-2,5.2999999999999999E-2]
["110","","","484","1","110-Office of Administrative Hearings",null,null,"484-1 Administrative Hearings Revolving-State",1,1,1,1,1,1,1,1,1,1]
["116","","","578","1","116-State Lottery Commission",null,null,"578-1 Lottery Administrative Account-State",1,1,1,1,1,1,1,1,1,1]
["117","","","884","6","117-Washington State Gambling Comm",null,null,"884-6 Gambling Revolving Account-",1,1,1,1,1,1,1,1,1,1]
["118","","","001","1","118-WA State Comm on Hispanic Affairs",null,null,"001-1 General Fund-State",1,1,1,1,1,1,1,1,1,1]
["119","","","001","1","119-African-American Affairs Comm",null,null,"001-1 General Fund-State",1,1,1,1,1,1,1,1,1,1]
["120","","","001","1","120-Human Rights Commission",null,null,"001-1 General Fund-State",1,1,1,1,1,1,1,1,1,1]
["124","","","600","1","124-Department of Retirement Systems",null,null,"600-1 Dept of Retirement Systems Expense-State",0.95799999999999996,0.124,0,0.95799999999999996,0.95799999999999996,0.95799999999999996,0.95799999999999996,0.95799999999999996,0.95799999999999996,0.95799999999999996]
["124","","","874","6","124-Department of Retirement Systems",null,null,"874-6 OASI Revolving Account-Non-Appropriated",5.0000000000000001E-3,1E-3,0,5.0000000000000001E-3,5.0000000000000001E-3,5.0000000000000001E-3,5.0000000000000001E-3,5.0000000000000001E-3,5.0000000000000001E-3,5.0000000000000001E-3]
["124","","","888","6","124-Department of Retirement Systems",null,null,"888-6 Deferred Compensation Admin Account-Non-Appropriated",3.6999999999999998E-2,2.3E-2,0,3.6999999999999998E-2,3.6999999999999998E-2,3.6999999999999998E-2,3.6999999999999998E-2,3.6999999999999998E-2,3.6999999999999998E-2,3.6999999999999998E-2]
["124","","","Non","B","124-Department of Retirement Systems",null,null,"Non Budgeted Fund",0,0.85199999999999998,1,0,0,0,0,0,0,0]
["126","","","031","1","126-State Investment Board",null,null,"031-1 State Investment Board Expense Acct-State",1,1,1,1,1,1,1,1,1,1]
["140","","","001","1","140-Department of Revenue",null,null,"001-1 General Fund-State",0.89400000000000002,0.89400000000000002,0.89400000000000002,0.89400000000000002,0.89400000000000002,0.89400000000000002,0.89400000000000002,0.89400000000000002,0.89400000000000002,0.89400000000000002]
["140","","","02W","1","140-Department of Revenue",null,null,"02W-1 Timber Tax Distribution Account-State",2.1999999999999999E-2,2.1999999999999999E-2,2.1999999999999999E-2,2.1999999999999999E-2,2.1999999999999999E-2,2.1999999999999999E-2,2.1999999999999999E-2,2.1999999999999999E-2,2.1999999999999999E-2,2.1999999999999999E-2]
["140","","","03N","1","140-Department of Revenue",null,null,"03N-1 Business License Account-State",5.3999999999999999E-2,5.3999999999999999E-2,5.3999999999999999E-2,5.3999999999999999E-2,5.3999999999999999E-2,5.3999999999999999E-2,5.3999999999999999E-2,5.3999999999999999E-2,5.3999999999999999E-2,5.3999999999999999E-2]
["140","","","196","6","140-Department of Revenue",null,null,"196-6 Unclaimed Personal Property Account-Non-",0.03,0.03,0.03,0.03,0.03,0.03,0.03,0.03,0.03,0.03]
["142","","","001","1","142-Board of Tax Appeals",null,null,"001-1 General Fund-State",1,1,1,1,1,1,1,1,1,1]
["147","","","453","1","147-Minority & Women's Business Enterp",null,null,"453-1 OMWBE Enterprises Account-State",1,1,1,1,1,1,1,1,1,1]
["160","","","138","1","160-Office of Insurance Commissioner",null,null,"138-1 Insurance Commissioner's Regulatory Account-State",0.95799999999999996,0.95799999999999996,0.95799999999999996,0.95799999999999996,0.95799999999999996,0.95799999999999996,0.95799999999999996,0.95799999999999996,0.95799999999999996,0.95799999999999996]
["160","","","24P","1","160-Office of Insurance Commissioner",null,null,"24P-1 Insurance Commissioner's Fraud Account-State",4.2000000000000003E-2,4.2000000000000003E-2,4.2000000000000003E-2,4.2000000000000003E-2,4.2000000000000003E-2,4.2000000000000003E-2,4.2000000000000003E-2,4.2000000000000003E-2,4.2000000000000003E-2,4.2000000000000003E-2]
["163","","","458","1","163-Consolidated Technology Services",null,null,"458-1 Consolidated Tech Services Rev Acct-State",0.22,0.22,0.22,0.22,0.22,0.22,0.22,0.22,0.22,0.22]
["163","","","458","6","163-Consolidated Technology Services",null,null,"458-6 Consolidated Tech Services Rev Acct-Non-Appropriated",0.78,0.78,0.78,0.78,0.78,0.78,0.78,0.78,0.78,0.78]
["165","","","02J","1","165-State Board of Accountancy",null,null,"02J-1 Certified Public Accountants' Acct-State",1,1,1,1,1,1,1,1,1,1]
["166","","","024","1","166-Bd of Reg Prof Eng & Land Surveyors",null,null,"024-1 Profess Engineers' - State",1,1,1,1,1,1,1,1,1,1]
["167","","","02K","1","167-Forensic Investigations Council",null,null,"02K-1 Death Investigations Account-State",1,1,1,1,1,1,1,1,1,1]
["179","","","045","6","179-Dept of Enterprise Services",null,null,"045-6 State Vehicle Parking Account-Non-Appropriated",8.9999999999999993E-3,0,8.0000000000000002E-3,2E-3,8.9999999999999993E-3,0,8.0000000000000002E-3,8.0000000000000002E-3,8.0000000000000002E-3,8.0000000000000002E-3]
["179","","","084","1","179-Dept of Enterprise Services",null,null,"084-1 Building Code Council Account-State",0.01,8.2000000000000003E-2,7.0000000000000001E-3,2E-3,8.0000000000000002E-3,0,7.0000000000000001E-3,7.0000000000000001E-3,7.0000000000000001E-3,7.0000000000000001E-3]
["179","","","422","6","179-Dept of Enterprise Services",null,null,"422-6 Enterprise Services Account-Non-Appropriated",0.94599999999999995,0.89600000000000002,0.95799999999999996,0.98899999999999999,0.95399999999999996,1,0.95799999999999996,0.95799999999999996,0.95799999999999996,0.95799999999999996]
["179","","","546","6","179-Dept of Enterprise Services",null,null,"546-6 Risk Management Administration Acct-Non-Appropriated",3.5000000000000003E-2,2.1999999999999999E-2,2.7E-2,7.0000000000000001E-3,2.9000000000000001E-2,0,2.7E-2,2.7E-2,2.7E-2,2.7E-2]
["185","","","169","6","185-Washington Horse Racing Commission",null,null,"169-6 Horse Racing Commission Op Account-Non Appropriated",1,1,1,1,1,1,1,1,1,1]
["190","","","608","1","190-Bd of Industrial Insurance Appeals",null,null,"608-1 Accident Account-State",0.5,0.5,0.5,0.5,0.5,0.5,0.5,0.5,0.5,0.5]
["190","","","609","1","190-Bd of Industrial Insurance Appeals",null,null,"609-1 Medical Aid Account-State",0.5,0.5,0.5,0.5,0.5,0.5,0.5,0.5,0.5,0.5]
["195","","","001","1","195-Liquor and Cannabis Board",null,null,"001-1 General Fund-State",0.01,0.01,0.01,0.01,0.01,0.01,0.01,0.01,0.01,0.01]
["195","","","315","1","195-Liquor and Cannabis Board",null,null,"315-1 Dedicated Marijuana Account-State",0.24,0.24,0.24,0.24,0.24,0.24,0.24,0.24,0.24,0.24]
["195","","","501","1","195-Liquor and Cannabis Board",null,null,"501-1 Liquor Revolving Account-State",0.75,0.75,0.75,0.75,0.75,0.75,0.75,0.75,0.75,0.75]
["205","","","025","1","205-Board of Pilotage Commissioners",null,null,"025-1 Pilotage Account-State",1,1,1,1,1,1,1,1,1,1]
["215","","","111","1","215-Utilities and Transportation Comm",null,null,"111-1 Public Service Revolving Account-State",0.91,0.91,0.91,0.91,0.91,0.91,0.91,0.91,0.91,0.91]
["215","","","297","1","215-Utilities and Transportation Comm",null,null,"297-1 Pipeline Safety-State",0.09,0.09,0.09,0.09,0.09,0.09,0.09,0.09,0.09,0.09]
["220","","","204","1","220-Board for Volunteer Firefighters",null,null,"204-1 Vol Firefight/Resv Officer Admin-State",1,1,1,1,1,1,1,1,1,1]
["225","","","001","1","225-Washington State Patrol",null,null,"001-1 General Fund-State",0.27,0.27,0.27,0.27,0.27,0.27,0.27,0.27,0.27,0.27]
["225","","","081","1","225-Washington State Patrol",null,null,"081-1 State Patrol Highway Account-State",0.73,0.73,0.73,0.73,0.73,0.73,0.73,0.73,0.73,0.73]
["227","","","001","1","227-Criminal Justice Training Comm",null,null,"001-1 General Fund-State",1,1,1,1,1,1,1,1,1,1]
["228","","","106","1","228-WA Traffic Safety Commission",null,null,"106-1 Highway Safety Account-State",1,1,1,1,0.5,1,0.15,0.5,1,1]
["228","","","106","2","228-WA Traffic Safety Commission",null,null,"106-2 Highway Safety Account-Federal",0,0,0,0,0.5,0,0.85,0.5,0,0]
["229","","","001","1","229-Office of Independent Investigations",null,null,"001-1 General Fund-State",1,1,1,1,1,1,1,1,1,1]
["235","","","001","1","235-Department of Labor and Industries",null,null,"001-1 General Fund-State",3.0000000000000001E-3,2E-3,0,0,6.0000000000000001E-3,0,1E-3,4.0000000000000001E-3,0,0]
["235","","","095","1","235-Department of Labor and Industries",null,null,"095-1 Electrical License Account-State",3.0000000000000001E-3,1.2E-2,0.152,2.5000000000000001E-2,2.4E-2,0.13769999999999999,0.17399999999999999,1.2999999999999999E-2,0,0]
["235","","","21V","1","235-Department of Labor and Industries",null,null,"21V-1 Construction Registration Inspection Account",2E-3,0.01,0.111,1.7999999999999999E-2,1.2999999999999999E-2,5.3699999999999998E-2,7.2999999999999995E-2,5.8999999999999997E-2,0,0]
["235","","","234","1","235-Department of Labor and Industries",null,null,"234-1 Public Works Administration Acct-State",0,5.0000000000000001E-3,3.9E-2,6.0000000000000001E-3,6.0000000000000001E-3,4.7999999999999996E-3,6.0000000000000001E-3,2E-3,0,0]
["235","","","608","1","235-Department of Labor and Industries",null,null,"608-1 Accident Account-State",0.51400000000000001,0.53800000000000003,0.41399999999999998,0.51800000000000002,0.48799999999999999,0.44969999999999999,0.41899999999999998,0.41699999999999998,0.5,0.5]
["235","","","609","1","235-Department of Labor and Industries",null,null,"609-1 Medical Aid Account-State",0.47799999999999998,0.432,0.255,0.42799999999999999,0.46100000000000002,0.33660000000000001,0.30599999999999999,0.5,0.5,0.5]
["235","","","885","1","235-Department of Labor and Industries",null,null,"885-1 Plumbing Certificate Account-State",0,1E-3,1.0999999999999999E-2,2E-3,1E-3,4.4999999999999997E-3,6.0000000000000001E-3,2E-3,0,0]
["235","","","892","1","235-Department of Labor and Industries",null,null,"892-1 Pressure Systems Safety Account-State",0,0,1.7999999999999999E-2,3.0000000000000001E-3,1E-3,1.2999999999999999E-2,1.4999999999999999E-2,3.0000000000000001E-3,0,0]
["240","","","001","1","240-Department of Licensing",null,null,"001-1 General Fund-State",0,7.6E-3,0,2E-3,8.8000000000000005E-3,8.8000000000000005E-3,0,1.03E-2,2E-3,2E-3]
["240","","","003","1","240-Department of Licensing",null,null,"003-1 Architects' License Account-State",0,4.1999999999999997E-3,0,0,2E-3,2E-3,0,2.8999999999999998E-3,0,0]
["240","","","024","1","240-Department of Licensing",null,null,"024-1 Professional Engineers' Account-State",0,0,0,0,0,0,0,0,0,0]
["240","","","026","1","240-Department of Licensing",null,null,"026-1 Real Estate Commission Account-State",2.0799999999999999E-2,4.5999999999999999E-2,0.187,2.3599999999999999E-2,2.01E-2,2.01E-2,0,3.2000000000000001E-2,2.3599999999999999E-2,2.3599999999999999E-2]
["240","","","04E","1","240-Department of Licensing",null,null,"04E-1 Uniform Commercial Code Account-State",0,6.7999999999999996E-3,0,2E-3,1.7000000000000001E-2,1.7000000000000001E-2,3.5700000000000003E-2,7.6E-3,2E-3,2E-3]
["240","","","06G","1","240-Department of Licensing",null,null,"06G-1 Real Estate Appraiser Comm Acct-State",0,7.7000000000000002E-3,7.0000000000000001E-3,2E-3,2E-3,2E-3,0,5.4999999999999997E-3,2E-3,2E-3]
["240","","","06L","1","240-Department of Licensing",null,null,"06L-1 Business & Professions Account-State",5.0599999999999999E-2,7.4999999999999997E-2,7.1999999999999995E-2,6.3700000000000007E-2,3.6999999999999998E-2,3.6999999999999998E-2,0.1071,9.7299999999999998E-2,6.3700000000000007E-2,6.3700000000000007E-2]
["240","","","082","1","240-Department of Licensing",null,null,"082-1 Motorcycle Safety Education Account-State",0,0,0,2E-3,2E-3,2E-3,0,6.0000000000000001E-3,2E-3,2E-3]
["240","","","104","1","240-Department of Licensing",null,null,"104-1 State Wildlife Account-State",0,0,0,0,1.9E-3,1.9E-3,0,1.1999999999999999E-3,0,0]
["240","","","106","1","240-Department of Licensing",null,null,"106-1 Highway Safety Account-State",0.82440000000000002,0.55720000000000003,0.36299999999999999,0.73250000000000004,0.44450000000000001,0.44450000000000001,0.60719999999999996,0.58599999999999997,0.73250000000000004,0.73250000000000004]
["240","","","108","1","240-Department of Licensing",null,null,"108-1 Motor Vehicle Account-State",0.1042,0.26919999999999999,0.34300000000000003,0.17019999999999999,0.37609999999999999,0.37609999999999999,0.25,0.2424,0.17019999999999999,0.17019999999999999]
["240","","","14V","1","240-Department of Licensing",null,null,"14V-1 Ignition Interlock Device Revolving-State",0,0,0,0,3.7000000000000002E-3,3.7000000000000002E-3,0,1E-3,0,0]
["240","","","15V","6","240-Department of Licensing",null,null,"15V-6 Funeral and Cemetery Account-Non-Appropriated",0,2.1100000000000001E-2,8.9999999999999993E-3,2E-3,2E-3,2E-3,0,4.7000000000000002E-3,2E-3,2E-3]
["240","","","16B","6","240-Department of Licensing",null,null,"16B-6 Landscape Architects' License Acct-Non-Appropriated",0,1.6999999999999999E-3,0,0,0,0,0,0,0,0]
["240","","","16M","6","240-Department of Licensing",null,null,"16M-6 Appraisal Management Company Acct-Non-Appropriated",0,8.0000000000000004E-4,1.9E-2,0,0,0,0,0,0,0]
["240","","","201","1","240-Department of Licensing",null,null,"201-1 DOL Services Account-State",0,0,0,0,8.2000000000000003E-2,8.2000000000000003E-2,0,1.1999999999999999E-3,0,0]
["240","","","298","6","240-Department of Licensing",null,null,"298-6 Geologists' Account-Non-Appropriated",0,2.7000000000000001E-3,0,0,8.9999999999999998E-4,8.9999999999999998E-4,0,1.9E-3,0,0]
["245","","","001","1","245-Military Department",null,null,"001-1 General Fund-State",1,1,1,1,1,1,1,1,1,1]
["275","","","001","1","275-Public Employment Relations Comm",null,null,"001-1 General Fund-State",0.51339999999999997,0.51339999999999997,0.51339999999999997,0.51339999999999997,0.51339999999999997,0.51339999999999997,0.51339999999999997,0.51339999999999997,0.51339999999999997,0.51339999999999997]
["275","","","415","1","275-Public Employment Relations Comm",null,null,"415-1 Personnel Service Account-State",0.42059999999999997,0.42059999999999997,0.42059999999999997,0.42059999999999997,0.42059999999999997,0.42059999999999997,0.42059999999999997,0.42059999999999997,0.42059999999999997,0.42059999999999997]
["275","","","455","1","275-Public Employment Relations Comm",null,null,"455-1 Higher Education Personnel Services-State",6.6000000000000003E-2,6.6000000000000003E-2,6.6000000000000003E-2,6.6000000000000003E-2,6.6000000000000003E-2,6.6000000000000003E-2,6.6000000000000003E-2,6.6000000000000003E-2,6.6000000000000003E-2,6.6000000000000003E-2]
["300","145","","001","1","300-Dept of Social and Health Services","145-Payments to Other Agencies",null,"001-1 General Fund-State",0.67300000000000004,0.71799999999999997,0.4,0.73599999999999999,0.64100000000000001,1,0.94899999999999995,0.68799999999999994,0.67800000000000005,0.71899999999999997]
["300","145","","001","2","300-Dept of Social and Health Services","145-Payments to Other Agencies",null,"001-2 General Fund-Federal",0.32700000000000001,0.28199999999999997,0.6,0.26400000000000001,0.35899999999999999,0,5.0999999999999997E-2,0.312,0.32200000000000001,0.28100000000000003]
["303","","","001","1","303-Department of Health",null,null,"001-1 General Fund-State",0.17,0.16,8.2000000000000003E-2,0.11799999999999999,0.17,0.3,0.25700000000000001,0.17,0.17,0.17]
["303","","","001","2","303-Department of Health",null,null,"001-2 General Fund-Federal",0.45,0.01,0.05,0.157,0.45,0,0.26500000000000001,0.45,0.45,0.45]
["303","","","001","7","303-Department of Health",null,null,"001-7 General Fund-Private/Local",0.2,0.11,0.09,0.115,0.2,0.38700000000000001,0.14199999999999999,0.2,0.2,0.2]
["303","","","02G","1","303-Department of Health",null,null,"02G-1 Health Professions Account-State",0.13,0.72,0.76800000000000002,0.58299999999999996,0.13,0.31,0.18099999999999999,0.13,0.13,0.13]
["303","","","03R","1","303-Department of Health",null,null,"03R-1 Safe Drinking Water Account-State",0.01,0,0.01,1.2E-2,0.01,3.0000000000000001E-3,1.4999999999999999E-2,0.01,0.01,0.01]
["303","","","04R","2","303-Department of Health",null,null,"04R-2 Drinking Water Assistance Account-Federal",0.04,0,0,1.4999999999999999E-2,0.04,0,0.114,0.04,0.04,0.04]
["303","","","15M","1","303-Department of Health",null,null,"15M-1 Biotoxin Account-State",0,0,0,0,0,0,1.0999999999999999E-2,0,0,0]
["303","","","23P","1","303-Department of Health",null,null,"23P-1 Model Toxics Oper - State          ",0,0,0,0,0,0,1.4999999999999999E-2,0,0,0]
["305","035","","001","7","305-Department of Veterans' Affairs","035-Institutional Services",null,"001-7 General Fund-Private/Local",0.18740000000000001,0.18740000000000001,0.18740000000000001,0,0.18740000000000001,0,0.17610000000000001,0.18740000000000001,0.18739999999999998,0.23620000000000002]
["305","010","","001","1","305-Department of Veterans' Affairs","010-Headquarters",null,"001-1 General Fund-State",8.3500000000000005E-2,8.3000000000000004E-2,8.3500000000000005E-2,0.372,8.3500000000000005E-2,0.35,2E-3,8.3500000000000005E-2,2.2599999999999999E-2,1.38E-2]
["305","020","","001","1","305-Department of Veterans' Affairs","020-Field Services",null,"001-1 General Fund-State",0.15509999999999999,0.15409999999999999,0.15509999999999999,0.628,0.15509999999999999,0.65,1.35E-2,0.15509999999999999,4.1900000000000007E-2,2.5699999999999997E-2]
["305","035","","001","1","305-Department of Veterans' Affairs","035-Institutional Services",null,"001-1 General Fund-State",0,0,0,0,0,0,0.20480000000000001,0,0,0]
["305","020","","001","2","305-Department of Veterans' Affairs","020-Field Services",null,"001-2 General Fund-Federal",0,0,0,0,0,0,3.8999999999999998E-3,0,0,0]
["305","035","","001","2","305-Department of Veterans' Affairs","035-Institutional Services",null,"001-2 General Fund-Federal",0.57399999999999995,0.57550000000000001,0.57399999999999995,0,0.57399999999999995,0,0.59279999999999999,0.57399999999999995,0.74809999999999999,0.72430000000000005]
["305","020","","001","7","305-Department of Veterans' Affairs","020-Field Services",null,"001-7 General Fund-Private/Local",0,0,0,0,0,0,3.0999999999999999E-3,0,0,0]
["305","020","","08V","6","305-Department of Veterans' Affairs","020-Field Services",null,"08V-6 Stewardship Account",0,0,0,0,0,0,3.0999999999999999E-3,0,0,0]
["305","020","","11V","7","305-Department of Veterans' Affairs","020-Field Services",null,"11V-7 Veterans Estate Mgmt Program",0,0,0,0,0,0,6.9999999999999999E-4,0,0,0]
["307","010","","001","1","307-Dept of Children, Youth and Families","010-Children & Family Services",null,"001-1 General Fund-State",0,0,0,0,0,0,0.2135,0,0,0]
["307","010","","001","2","307-Dept of Children, Youth and Families","010-Children & Family Services",null,"001-2 General Fund-Federal",0,0,0,0,0,0,0.11550000000000001,0,0,0]
["307","020","","001","1","307-Dept of Children, Youth and Families","020-Juvenile Rehabilitation",null,"001-1 General Fund-State",0,0,0,0,0,0,0.53220000000000001,0,0,0]
["307","020","","001","2","307-Dept of Children, Youth and Families","020-Juvenile Rehabilitation",null,"001-2 General Fund-Federal",0,0,0,0,0,0,0,0,0,0]
["307","030","","001","1","307-Dept of Children, Youth and Families","030-Early Learning",null,"001-1 General Fund-State",0,0,0,0,0,0,3.2300000000000002E-2,0,0,0]
["307","030","","001","2","307-Dept of Children, Youth and Families","030-Early Learning",null,"001-2 General Fund-Federal",0,0,0,0,0,0,3.0700000000000002E-2,0,0,0]
["307","090","","001","1","307-Dept of Children, Youth and Families","090-Program Support      ",null,"001-1 General Fund-State",0.6744,0.80020000000000002,0.69430000000000003,0.69579999999999997,0.78859999999999997,1,4.8000000000000001E-2,0.72389999999999999,0.69579999999999997,0.77890000000000004]
["307","090","","001","2","307-Dept of Children, Youth and Families","090-Program Support      ",null,"001-2 General Fund-Federal",0.3256,0.19980000000000001,0.30570000000000003,0.30420000000000003,0.2114,0,2.7799999999999998E-2,0.27610000000000001,0.30420000000000003,0.22109999999999999]
["310","200","","001","1","310-Department of Corrections","200-Correctional Operations",null,"001-1 General Fund-State",0,0,0,0,0,0,0.63090000000000002,0,0,0]
["310","300","","001","1","310-Department of Corrections","300-Community Supervision",null,"001-1 General Fund-State",0,0,0,0,0,0,0.12909999999999999,0,0,0]
["310","400","","001","1","310-Department of Corrections","400-Correctional Industries",null,"001-1 General Fund-State",0,0,0,0,0,0,9.5999999999999992E-3,0,0,0]
["310","500","","001","1","310-Department of Corrections","500-Healthcare Services",null,"001-1 General Fund-State",0,0,0,0,0,0,0.1963,0,0,0]
["310","600","","001","1","310-Department of Corrections","600-Interagency Payments",null,"001-1 General Fund-State",1,1,1,1,1,1,0,1,1,1]
["310","700","","001","1","310-Department of Corrections","700-Offender Change",null,"001-1 General Fund-State",0,0,0,0,0,0,1.06E-2,0,0,0]
["310","200","","11K","1","310-Department of Corrections","200-Correctional Operations",null,"11K-1 Washington Auto Theft Prevention-State",0,0,0,0,0,0,0,0,0,0]
["310","300","","206","6","310-Department of Corrections","300-Community Supervision",null,"206-6 Cost of Supervision Account-Non-Appropriated",0,0,0,0,0,0,1E-4,0,0,0]
["310","100","","001","1","310-Department of Corrections","100-Administration & Support Services",null,"001-1 General Fund-State",0,0,0,0,0,0,2.3400000000000001E-2,0,0,0]
["315","","","001","1","315-Dept of Services for the Blind",null,null,"001-1 General Fund-State",1,1,1,1,1,1,1,1,1,1]
["340","PCA","","001","1","340-Student Achievement Council","PCA-Policy Coordination & Administration",null,"001-1 General Fund-State",0.49199999999999999,0.49199999999999999,0.49199999999999999,0.49199999999999999,0.49199999999999999,0.503,0.49199999999999999,0.49199999999999999,0.49199999999999999,0.49199999999999999]
["340","SFA","","001","1","340-Student Achievement Council","SFA-Student Finanical Aid",null,"001-1 General Fund-State",3.2000000000000001E-2,3.2000000000000001E-2,3.2000000000000001E-2,3.2000000000000001E-2,3.2000000000000001E-2,0.106,3.2000000000000001E-2,3.2000000000000001E-2,3.2000000000000001E-2,3.2000000000000001E-2]
["340","PCA","","001","2","340-Student Achievement Council","PCA-Policy Coordination & Administration",null,"001-2 General Fund-Federal",0.01,0.01,0.01,0.01,0.01,0,0.01,0.01,0.01,0.01]
["340","SFA","","001","2","340-Student Achievement Council","SFA-Student Finanical Aid",null,"001-2 General Fund-Federal",7.4999999999999997E-2,7.4999999999999997E-2,7.4999999999999997E-2,7.4999999999999997E-2,7.4999999999999997E-2,0,7.4999999999999997E-2,7.4999999999999997E-2,7.4999999999999997E-2,7.4999999999999997E-2]
["340","SFA","","17R","1","340-Student Achievement Council","SFA-Student Finanical Aid",null,"17R-1 Aerospace Training Student Loan Acc-State",3.0000000000000001E-3,3.0000000000000001E-3,3.0000000000000001E-3,3.0000000000000001E-3,3.0000000000000001E-3,3.0000000000000001E-3,3.0000000000000001E-3,3.0000000000000001E-3,3.0000000000000001E-3,3.0000000000000001E-3]
["340","SFA","","24J","1","340-Student Achievement Council","SFA-Student Finanical Aid",null,"24J-1 Workforce Education Investment Account - State",1.9E-2,1.9E-2,1.9E-2,1.9E-2,1.9E-2,1.9E-2,1.9E-2,1.9E-2,1.9E-2,1.9E-2]
["340","SFA","","463","6","340-Student Achievement Council","SFA-Student Finanical Aid",null,"463-6 Washington College Savings Program Account",3.7999999999999999E-2,3.7999999999999999E-2,3.7999999999999999E-2,3.7999999999999999E-2,3.7999999999999999E-2,3.7999999999999999E-2,3.7999999999999999E-2,3.7999999999999999E-2,3.7999999999999999E-2,3.7999999999999999E-2]
["340","SFA","","496","6","340-Student Achievement Council","SFA-Student Finanical Aid",null,"496-6 Future Teachers Condtnl Scholarship-Non-Appropriated",3.4000000000000002E-2,3.4000000000000002E-2,3.4000000000000002E-2,3.4000000000000002E-2,3.4000000000000002E-2,3.4000000000000002E-2,3.4000000000000002E-2,3.4000000000000002E-2,3.4000000000000002E-2,3.4000000000000002E-2]
["340","SFA","","747","6","340-Student Achievement Council","SFA-Student Finanical Aid",null,"747-6 Health Prof Loan Repay/Scholar Prog-Non-Appropriated",1.7000000000000001E-2,1.7000000000000001E-2,1.7000000000000001E-2,1.7000000000000001E-2,1.7000000000000001E-2,1.7000000000000001E-2,1.7000000000000001E-2,1.7000000000000001E-2,1.7000000000000001E-2,1.7000000000000001E-2]
["340","SFA","","788","6","340-Student Achievement Council","SFA-Student Finanical Aid",null,"788-6 Adv College Tuition Payment Pgm-Non-Appropriated",0.28000000000000003,0.28000000000000003,0.28000000000000003,0.28000000000000003,0.28000000000000003,0.28000000000000003,0.28000000000000003,0.28000000000000003,0.28000000000000003,0.28000000000000003]
["341","","","548","6","341-LEOFF 2 Retirement Board",null,null,"548-6 LEOFF Plan 2 Expense Fund-Non-Appropriated",1,1,1,1,1,1,1,1,1,1]
["350","010","","001","1","350-Public Schools","010-OSPI & Statewide Programs",null,"001-1 General Fund-State",1,1,1,1,1,1,1,1,1,1]
["351","","","001","1","351-State School for the Blind",null,null,"001-1 General Fund-State",1,1,1,1,1,1,1,1,1,1]
["353","","","001","1","353-Childhood Deafness & Hearing Loss",null,null,"001-1 General Fund-State",1,1,1,1,1,1,1,1,1,1]
["354","","","001","1","354-Workforce Trng & Educ Coord Board",null,null,"001-1 General Fund-State",0.59,0.59,0.59,0.59,0.59,0.92,0.59,0.59,0.59,0.59]
["354","","","001","2","354-Workforce Trng & Educ Coord Board",null,null,"001-2 General Fund-Federal",0.33,0.33,0.33,0.33,0.33,0,0.33,0.33,0.33,0.33]
["354","","","503","6","354-Workforce Trng & Educ Coord Board",null,null,"503-6 Tuition Recovery Trust Fund-Non-Appropriated",0.08,0.08,0.08,0.08,0.08,0.08,0.08,0.08,0.08,0.08]
["355","","","001","1","355-Archaeology & Historic Preservation",null,null,"001-1 General Fund-State",1,1,1,1,1,1,1,1,1,1]
["359","","","19L","1","359-Washington Charter School Comm",null,null,"19L-1 Charter School Oversight Account-State",1,1,1,1,1,1,1,1,1,1]
["360","","","001","1","360-University of Washington",null,null,"001-1 General Fund-State",0.41,0.41,0.41,0.41,0.41,0.41,0.41,0.41,0.41,0.41]
["360","","","149","6","360-University of Washington",null,null,"149-6 Inst of Hi Ed-Operating Fees Acct-Non-Appropriated",0.59,0.59,0.59,0.59,0.59,0.59,0.59,0.59,0.59,0.59]
["365","","","001","1","365-Washington State University",null,null,"001-1 General Fund-State",0.54,0.54,0.54,0.54,0.54,0.54,0.54,0.54,0.54,0.54]
["365","","","149","6","365-Washington State University",null,null,"149-6 Inst of Hi Ed-Operating Fees Acct-Non-Appropriated",0.46,0.46,0.46,0.46,0.46,0.46,0.46,0.46,0.46,0.46]
["370","","","001","1","370-Eastern Washington University",null,null,"001-1 General Fund-State",0.56999999999999995,0.56999999999999995,0.56999999999999995,0.56999999999999995,0.56999999999999995,0.56999999999999995,0.56999999999999995,0.56999999999999995,0.56999999999999995,0.56999999999999995]
["370","","","149","6","370-Eastern Washington University",null,null,"149-6 Inst of Hi Ed-Operating Fees Acct-Non-Appropriated",0.43,0.43,0.43,0.43,0.43,0.43,0.43,0.43,0.43,0.43]
["375","","","001","1","375-Central Washington University",null,null,"001-1 General Fund-State",0.57999999999999996,0.57999999999999996,0.57999999999999996,0.57999999999999996,0.57999999999999996,0.57999999999999996,0.57999999999999996,0.57999999999999996,0.57999999999999996,0.57999999999999996]
["375","","","149","6","375-Central Washington University",null,null,"149-6 Inst of Hi Ed-Operating Fees Acct-Non-Appropriated",0.42,0.42,0.42,0.42,0.42,0.42,0.42,0.42,0.42,0.42]
["376","","","001","1","376-The Evergreen State College",null,null,"001-1 General Fund-State",0.85,0.85,0.85,0.85,0.85,0.85,0.85,0.85,0.85,0.85]
["376","","","149","6","376-The Evergreen State College",null,null,"149-6 Inst of Hi Ed-Operating Fees Acct-Non-Appropriated",0.15,0.15,0.15,0.15,0.15,0.15,0.15,0.15,0.15,0.15]
["380","","","001","1","380-Western Washington University",null,null,"001-1 General Fund-State",0.49,0.49,0.49,0.49,0.49,0.49,0.49,0.49,0.49,0.49]
["380","","","149","6","380-Western Washington University",null,null,"149-6 Inst of Hi Ed-Operating Fees Acct-Non-Appropriated",0.51,0.51,0.51,0.51,0.51,0.51,0.51,0.51,0.51,0.51]
["387","","","001","1","387-Washington State Arts Commission",null,null,"001-1 General Fund-State",1,1,1,1,1,1,1,1,1,1]
["390","","","001","1","390-Washington State Historical Society",null,null,"001-1 General Fund-State",1,1,1,1,1,1,1,1,1,1]
["390","","","184","6","390-Washington State Historical Society",null,null,"184-6 Local Museum Acct-Wa St Hist Soc-Non-Appropriated",0,0,0,0,0,0,0,0,0,0]
["395","","","001","1","395-East Wash State Historical Society",null,null,"001-1 General Fund-State",1,1,1,1,1,1,1,1,1,1]
["405","P0C","","09H","1","405-Department of Transportation","P0C-Program P - Preservation - Capital",null,"09H-1 Transportation Partnership Account-State",0,0,0,0,0,0,3.5000000000000001E-3,0,0,0]
["405","I00","","108","1","405-Department of Transportation","I00-Program I - Improvements - Capital",null,"108-1 Motor Vehicle Account-State",0,0,0,0,0,0,2.01E-2,0,0,0]
["405","K00","","108","1","405-Department of Transportation","K00-Program K - Public Private Partnerships - Operating",null,"108-1 Motor Vehicle Account-State",0,0,0,0,0,0,3.4228728342841787E-4,0,0,0]
["405","M00","","108","1","405-Department of Transportation","M00-Program M - Highway Maintenance",null,"108-1 Motor Vehicle Account-State",0,0,0,0,0,0,0.2346,0,0,0]
["405","P0C","","108","1","405-Department of Transportation","P0C-Program P - Preservation - Capital",null,"108-1 Motor Vehicle Account-State",0,0,0,0,0,0,8.6199999999999999E-2,0,0,0]
["405","Q00","","108","1","405-Department of Transportation","Q00-Program Q - Traffic Operations",null,"108-1 Motor Vehicle Account-State",0,0,0,0,0,0,3.9199999999999999E-2,0,0,0]
["405","S00","","108","1","405-Department of Transportation","S00-Program S - Transp Management & Support",null,"108-1 Motor Vehicle Account-State",0,0,0,0,0,0,2.4400000000000002E-2,0,0,0]
["405","T00","","108","1","405-Department of Transportation","T00-Program T - Transportation Planning, Data and Research - Op",null,"108-1 Motor Vehicle Account-State",0,0,0,0,0,0,2.4199999999999999E-2,0,0,0]
["405","U00","","108","1","405-Department of Transportation","U00-Program U - Charges from Other Agencies",null,"108-1 Motor Vehicle Account-State",0.92,0.92,0.92,0.92,0.92,0.92,0,0.92,0.92,0.92]
["405","Z00","","108","1","405-Department of Transportation","Z00-Program Z - Local Programs - Operating",null,"108-1 Motor Vehicle Account-State",0,0,0,0,0,0,6.4999999999999997E-3,0,0,0]
["405","X00","","109","1","405-Department of Transportation","X00-Program X - Washington State Ferries - Operating",null,"109-1 Puget Sound Ferry Operations Acct-State",0,0,0,0,0,0,0.23719999999999999,0,0,0]
["405","M00","","16J","1","405-Department of Transportation","M00-Program M - Highway Maintenance",null,"16J-1 SR 520 Corridor Account-State",0,0,0,0,0,0,2.5999999999999999E-3,0,0,0]
["405","P0C","","20H","1","405-Department of Transportation","P0C-Program P - Preservation - Capital",null,"20H-1 Connecting Washington Account-State",0,0,0,0,0,0,3.4200000000000001E-2,0,0,0]
["405","W0C","","20H","1","405-Department of Transportation","W0C-Program W - Wa State Ferries-Construction - Capital",null,"20H-1 Connecting Washington Account-State",0,0,0,0,0,0,2.2200000000000001E-2,0,0,0]
["405","U00","","218","1","405-Department of Transportation","U00-Program U - Charges from Other Agencies",null,"218-1 Multimodal Transportation Account-State",0.08,0.08,0.08,0.08,0.08,0.08,0,0.08,0.08,0.08]
["405","V00","","218","1","405-Department of Transportation","V00-Program V - Public Transportation",null,"218-1 Multimodal Transportation Account-State",0,0,0,0,0,0,6.6E-3,0,0,0]
["405","Y00","","218","1","405-Department of Transportation","Y00-Program Y - Rail - Operating",null,"218-1 Multimodal Transportation Account-State",0,0,0,0,0,0,3.5999999999999999E-3,0,0,0]
["405","I00","","09H","1","405-Department of Transportation","I00-Program I - Improvements - Capital",null,"09H-1 Transportation Partnership Account-State",0,0,0,0,0,0,2.12E-2,0,0,0]
["405","H00","","108","1","405-Department of Transportation","H00-Program H - Program Delivery Management & Support",null,"108-1 Motor Vehicle Account-State",0,0,0,0,0,0,3.3799999999999997E-2,0,0,0]
["405","I00","","20H","1","405-Department of Transportation","I00-Program I - Improvements - Capital",null,"20H-1 Connecting Washington Account-State",0,0,0,0,0,0,0.1409,0,0,0]
["405","I00","","595","1","405-Department of Transportation","I00-Program I - Improvements - Capital",null,"595-1 I-405 Express Toll Lanes Operations-State",0,0,0,0,0,0,2.7000000000000001E-3,0,0,0]
["405","B00","","16J","1","405-Department of Transportation","B00-Program B - Toll Operations & Maintenance",null,"16J-1 SR 520 Corridor Account-State",0,0,0,0,0,0,1.9E-3,0,0,0]
["405","B00","","511","1","405-Department of Transportation","B00-Program B - Toll Operations & Maintenance",null,"511-1 Tacoma Narrows Toll Bridge Account-State",0,0,0,0,0,0,2.3E-3,0,0,0]
["405","B00","","595","1","405-Department of Transportation","B00-Program B - Toll Operations & Maintenance",null,"595-1 I-405 Express Toll Lanes Operations-State",0,0,0,0,0,0,3.5000000000000001E-3,0,0,0]
["405","C00","","108","1","405-Department of Transportation","C00-Program C - Information Technology",null,"108-1 Motor Vehicle Account-State",0,0,0,0,0,0,3.1300000000000001E-2,0,0,0]
["405","C00","","218","1","405-Department of Transportation","C00-Program C - Information Technology",null,"218-1 Multimodal Transportation Account-State",0,0,0,0,0,0,1.5E-3,0,0,0]
["405","D00","","108","1","405-Department of Transportation","D00-Program D - Facilities - Operating",null,"108-1 Motor Vehicle Account-State",0,0,0,0,0,0,1.3899999999999999E-2,0,0,0]
["405","F00","","039","1","405-Department of Transportation","F00-Program F - Aviation",null,"039-1 Aeronautics Account-State",0,0,0,0,0,0,1.6000000000000001E-3,0,0,0]
["406","010","","108","1","406-County Road Administration Board","010-Operating",null,"108-1 Motor Vehicle Account-State",1,1,1,1,1,1,1,1,1,1]
["407","010","","144","1","407-Transportation Improvement Board","010-Operating",null,"144-1 Transportation Improvement Account-State",1,1,1,1,1,1,1,1,1,1]
["410","","","108","1","410-Transportation Commission",null,null,"108-1 Motor Vehicle Account-State",1,1,1,1,1,1,1,1,1,1]
["411","010","","09E","1","411-Freight Mobility Strategic Invest","010-Operating",null,"09E-1 Freight Mobility Investment Account",1,1,1,1,1,1,1,1,1,1]
["411","010","","108","1","411-Freight Mobility Strategic Invest","010-Operating",null,"108-1 Motor Vehicle Account-State",0,0,0,0,0,0,0,0,0,0]
["460","","","001","1","460-Columbia River Gorge Commission",null,null,"001-1 General Fund-State",0.5,0.5,0.5,0.5,0.5,0.5,0.5,0.5,0.5,1]
["460","","","001","7","460-Columbia River Gorge Commission",null,null,"001-7 General Fund-Private/Local",0.5,0.5,0.5,0.5,0.5,0.5,0.5,0.5,0.5,0]
["461","","","001","1","461-Department of Ecology",null,null,"001-1 General Fund-State",0.126,0.28999999999999998,0.126,0.126,0.126,0.126,0.126,0.126,0.126,0.126]
["461","","","027","1","461-Department of Ecology",null,null,"027-1 Reclamation Account-State",7.0000000000000001E-3,1.6E-2,7.0000000000000001E-3,7.0000000000000001E-3,7.0000000000000001E-3,7.0000000000000001E-3,7.0000000000000001E-3,7.0000000000000001E-3,7.0000000000000001E-3,7.0000000000000001E-3]
["461","","","02P","1","461-Department of Ecology",null,null,"02P-1 Flood Control Assistance Account-State",5.0000000000000001E-3,0,5.0000000000000001E-3,5.0000000000000001E-3,5.0000000000000001E-3,5.0000000000000001E-3,5.0000000000000001E-3,5.0000000000000001E-3,5.0000000000000001E-3,5.0000000000000001E-3]
["461","","","044","1","461-Department of Ecology",null,null,"044-1 Waste Reduct/Recycle/Litter Control-State",3.4000000000000002E-2,0.01,3.4000000000000002E-2,3.4000000000000002E-2,3.4000000000000002E-2,3.4000000000000002E-2,3.4000000000000002E-2,3.4000000000000002E-2,3.4000000000000002E-2,3.4000000000000002E-2]
["461","","","163","1","461-Department of Ecology",null,null,"163-1 Worker/Comm Right to Know",4.0000000000000001E-3,0,4.0000000000000001E-3,4.0000000000000001E-3,4.0000000000000001E-3,4.0000000000000001E-3,4.0000000000000001E-3,4.0000000000000001E-3,4.0000000000000001E-3,4.0000000000000001E-3]
["461","","","176","1","461-Department of Ecology",null,null,"176-1 Water Quality Permit Account-State",0.111,0.106,0.111,0.111,0.111,0.111,0.111,0.111,0.111,0.111]
["461","","","182","1","461-Department of Ecology",null,null,"182-1 Underground Storage Tank Account-State",0.01,1.4999999999999999E-2,0.01,0.01,0.01,0.01,0.01,0.01,0.01,0.01]
["461","","","199","1","461-Department of Ecology",null,null,"199-1 Biosolids Permit Account-State",6.0000000000000001E-3,0,6.0000000000000001E-3,6.0000000000000001E-3,6.0000000000000001E-3,6.0000000000000001E-3,6.0000000000000001E-3,6.0000000000000001E-3,6.0000000000000001E-3,6.0000000000000001E-3]
["461","","","207","1","461-Department of Ecology",null,null,"207-1 Hazardous Waste Assistance Account-State",1.7999999999999999E-2,1.2999999999999999E-2,1.7999999999999999E-2,1.7999999999999999E-2,1.7999999999999999E-2,1.7999999999999999E-2,1.7999999999999999E-2,1.7999999999999999E-2,1.7999999999999999E-2,1.7999999999999999E-2]
["461","","","20R","1","461-Department of Ecology",null,null,"20R-1 Radioactive Mixed Waste Account-State",4.9000000000000002E-2,7.2999999999999995E-2,4.9000000000000002E-2,4.9000000000000002E-2,4.9000000000000002E-2,4.9000000000000002E-2,4.9000000000000002E-2,4.9000000000000002E-2,4.9000000000000002E-2,4.9000000000000002E-2]
["461","","","216","1","461-Department of Ecology",null,null,"216-1 Air Pollution Control Account-State",7.0000000000000001E-3,1.2999999999999999E-2,7.0000000000000001E-3,7.0000000000000001E-3,7.0000000000000001E-3,7.0000000000000001E-3,7.0000000000000001E-3,7.0000000000000001E-3,7.0000000000000001E-3,7.0000000000000001E-3]
["461","","","217","1","461-Department of Ecology",null,null,"217-1 Oil Spill Prevention Account-State",1.4E-2,5.0000000000000001E-3,1.4E-2,1.4E-2,1.4E-2,1.4E-2,1.4E-2,1.4E-2,1.4E-2,1.4E-2]
["461","","","219","1","461-Department of Ecology",null,null,"219-1 Air Operating Permit Account-State",0.01,0.01,0.01,0.01,0.01,0.01,0.01,0.01,0.01,0.01]
["461","","","23P","1","461-Department of Ecology",null,null,"23P-1 Model Toxics Control Operating Account-State",0.54700000000000004,0.42599999999999999,0.54700000000000004,0.54700000000000004,0.54700000000000004,0.54700000000000004,0.54700000000000004,0.54700000000000004,0.54700000000000004,0.54700000000000004]
["461","","","25T","1","461-Department of Ecology",null,null,"25T-1 Refrigerant Emission Management Account-State",5.0000000000000001E-3,0,5.0000000000000001E-3,5.0000000000000001E-3,5.0000000000000001E-3,5.0000000000000001E-3,5.0000000000000001E-3,5.0000000000000001E-3,5.0000000000000001E-3,5.0000000000000001E-3]
["461","","","26B","1","461-Department of Ecology",null,null,"26B-1 Climate Investment Account-State",3.4000000000000002E-2,1.2999999999999999E-2,3.4000000000000002E-2,3.4000000000000002E-2,3.4000000000000002E-2,3.4000000000000002E-2,3.4000000000000002E-2,3.4000000000000002E-2,3.4000000000000002E-2,3.4000000000000002E-2]
["461","","","564","1","461-Department of Ecology",null,null,"564-1 Water Pollution Ctrl Revl Admin-State",1.2999999999999999E-2,0.01,1.2999999999999999E-2,1.2999999999999999E-2,1.2999999999999999E-2,1.2999999999999999E-2,1.2999999999999999E-2,1.2999999999999999E-2,1.2999999999999999E-2,1.2999999999999999E-2]
["462","","","544","1","462-WA Pollution Liab Insurance Program",null,null,"544-1 Pollution Liab Insurance Prog Trus-State",0.7,0.7,0.7,0.7,0.7,1,0.72,0.7,0.7,0.7]
["462","","","545","6","462-WA Pollution Liab Insurance Program",null,null,"545-6 Heating Oil Pollution Liab Trust-Non-Approp",0.3,0.3,0.3,0.3,0.3,0,0.28000000000000003,0.3,0.3,0.3]
["463","","","001","1","463-Energy Facility Site Eval Council",null,null,"001-1 General Fund-State",1,1,1,1,1,1,1,1,1,1]
["465","","","269","1","465-State Parks and Recreation Comm",null,null,"269-1 Parks Renewal & Stewardship Acct-State",0.65200000000000002,0.65200000000000002,0.65200000000000002,0.65200000000000002,0.65200000000000002,0.65200000000000002,0.65200000000000002,0.65200000000000002,0.65200000000000002,0.65200000000000002]
["465","","","001","1","465-State Parks and Recreation Comm",null,null,"001-1 General Fund-State",0.34799999999999998,0.34799999999999998,0.34799999999999998,0.34799999999999998,0.34799999999999998,0.34799999999999998,0.34799999999999998,0.34799999999999998,0.34799999999999998,0.34799999999999998]
["467","","","001","1","467-Rec and Conservation Funding Board",null,null,"001-1 General Fund-State",0.4,0.4,0.4,0.4,0.4,0.4,0.4,0.4,0.4,0.4]
["467","","","267","1","467-Rec and Conservation Funding Board",null,null,"267-1 Recreation Resources Account-State",0.6,0.6,0.6,0.6,0.6,0.6,0.6,0.6,0.6,0.6]
["468","","","001","1","468-Environ & Land Use Hearings Office",null,null,"001-1 General Fund-State",1,1,1,1,1,1,1,1,1,1]
["471","","","001","1","471-State Conservation Commission",null,null,"001-1 General Fund-State",1,1,1,1,1,1,1,1,1,1]
["477","","","001","1","477-Dept of Fish and Wildlife",null,null,"001-1 General Fund-State",1,1,1,1,1,1,1,1,1,1]
["478","","","001","1","478-Puget Sound Partnership",null,null,"001-1 General Fund-State",0.64,0.64,0.64,0.64,0.64,0.91,0.64,0.64,0.64,0.64]
["478","","","001","2","478-Puget Sound Partnership",null,null,"001-2 General Fund-Federal",0.27,0.27,0.27,0.27,0.27,0,0.27,0.27,0.27,0.27]
["478","","","02R","1","478-Puget Sound Partnership",null,null,"02R-1 Aquatic Lands Enhancement Account-State",0.04,0.04,0.04,0.04,0.04,0.04,0.04,0.04,0.04,0.04]
["478","","","23P","1","478-Puget Sound Partnership",null,null,"23P-1 Model Toxics Oper - State",0.05,0.05,0.05,0.05,0.05,0.05,0.05,0.05,0.05,0.05]
["490","","","001","1","490-DNR",null,null,"001-1 General Fund-State",0.26240000000000002,0.25919999999999999,0.26240000000000002,0.2722,0.26240000000000002,0.2722,0.89849999999999997,0.26240000000000002,0.26240000000000002,0.89854963983727776]
["490","","","001","2","490-DNR",null,null,"001-2 General Fund-Federal",0,1.0500000000000001E-2,0,1.9199999999999998E-2,0,1.9199999999999998E-2,0,0,0,0]
["490","","","014","1","490-DNR",null,null,"014-1 Forest Development Account",9.7699999999999995E-2,9.6000000000000002E-2,9.7699999999999995E-2,9.7199999999999995E-2,9.7699999999999995E-2,9.7199999999999995E-2,8.8999999999999999E-3,9.7699999999999995E-2,9.7699999999999995E-2,8.9329593908564313E-3]
["490","","","01B","1","490-DNR",null,null,"01B-1 ORV & Non-Highway Vehicle Account",1.61E-2,1.54E-2,1.61E-2,1.4E-2,1.61E-2,1.4E-2,1.9E-3,1.61E-2,1.61E-2,1.9144805474490489E-3]
["490","","","02A","1","490-DNR",null,null,"02A-1 Surveys and Maps Account",5.7999999999999996E-3,5.8999999999999999E-3,5.7999999999999996E-3,1.8E-3,5.7999999999999996E-3,1.8E-3,2.0000000000000001E-4,5.7999999999999996E-3,5.7999999999999996E-3,2.4893379772460822E-4]
["490","","","02R","1","490-DNR",null,null,"02R-1 Aquatic Lands Enhancement Account",3.2099999999999997E-2,2.24E-2,3.2099999999999997E-2,3.15E-2,3.2099999999999997E-2,3.15E-2,6.8999999999999999E-3,3.2099999999999997E-2,3.2099999999999997E-2,6.9201029439629495E-3]
["490","","","041","1","490-DNR",null,null,"041-1 Resource Management Cost Account",0.23280000000000001,0.22650000000000001,0.23280000000000001,0.28599999999999998,0.23280000000000001,0.28599999999999998,1.95E-2,0.23280000000000001,0.23280000000000001,1.9518633892379331E-2]
["490","","","04H","1","490-DNR",null,null,"04H-1 Surface Mining Reclamation Account",0.01,1.03E-2,0.01,3.4700000000000002E-2,0.01,3.4700000000000002E-2,4.0000000000000002E-4,0.01,0.01,4.0462435162797144E-4]
["490","","","05H","1","490-DNR",null,null,"05H-1 Disaster Response Account",1.0999999999999999E-2,1.1299999999999999E-2,1.0999999999999999E-2,6.1999999999999998E-3,1.0999999999999999E-2,6.1999999999999998E-3,5.7000000000000002E-3,1.0999999999999999E-2,1.0999999999999999E-2,5.6673072506031943E-3]
["490","","","087","6","490-DNR",null,null,"087-6 Park Land Trust Revolving Account",1.35E-2,1.2200000000000001E-2,1.35E-2,1.5299999999999999E-2,1.35E-2,1.5299999999999999E-2,7.9000000000000008E-3,1.35E-2,1.35E-2,7.8619452508179102E-3]
["490","","","11H","1","490-DNR",null,null,"11H-1 Forest and Fish Support Account",4.4999999999999997E-3,4.7000000000000002E-3,4.4999999999999997E-3,7.7999999999999996E-3,4.4999999999999997E-3,7.7999999999999996E-3,8.9999999999999998E-4,4.4999999999999997E-3,4.4999999999999997E-3,8.9949789796366162E-4]
["490","","","167","1","490-DNR",null,null,"167-1 Natural Resources Conservation Areas Stewardship Account ",1E-4,1E-4,1E-4,2.9999999999999997E-4,1E-4,2.9999999999999997E-4,0,1E-4,1E-4,0]
["490","","","190","6","490-DNR",null,null,"190-6 Forest Fire Protection Assessment ",5.5599999999999997E-2,5.7000000000000002E-2,5.5599999999999997E-2,2.98E-2,5.5599999999999997E-2,2.98E-2,1.72E-2,5.5599999999999997E-2,5.5599999999999997E-2,1.718070925601729E-2]
["490","","","193","6","490-DNR",null,null,"193-6 State Forest Nursery Revolving Account",1.72E-2,1.72E-2,1.72E-2,0,1.72E-2,0,1.8800000000000001E-2,1.72E-2,1.72E-2,1.8754295925826284E-2]
["490","","","198","6","490-DNR",null,null,"198-6 Access Road Revolving Account",5.4300000000000001E-2,5.45E-2,5.4300000000000001E-2,4.4699999999999997E-2,5.4300000000000001E-2,4.4699999999999997E-2,9.9000000000000008E-3,5.4300000000000001E-2,5.4300000000000001E-2,9.8872056154674284E-3]
["490","","","19C","1","490-DNR",null,null,"19C-1 Forest Practices Application Account",3.3999999999999998E-3,3.5000000000000001E-3,3.3999999999999998E-3,2.0999999999999999E-3,3.3999999999999998E-3,2.0999999999999999E-3,2.0000000000000001E-4,3.3999999999999998E-3,3.3999999999999998E-3,2.2327051960866924E-4]
["490","","","216","1","490-DNR",null,null,"216-1 Air Pollution Control Account",6.9999999999999999E-4,6.9999999999999999E-4,6.9999999999999999E-4,8.9999999999999998E-4,6.9999999999999999E-4,8.9999999999999998E-4,0,6.9999999999999999E-4,6.9999999999999999E-4,0]
["490","","","21Q","6","490-DNR",null,null,"21Q-6 Forest Health Revolving Account",4.3400000000000001E-2,4.3499999999999997E-2,4.3400000000000001E-2,2.8299999999999999E-2,4.3400000000000001E-2,2.8299999999999999E-2,1.8E-3,4.3400000000000001E-2,4.3400000000000001E-2,1.8315026148741794E-3]
["490","","","22P","6","490-DNR",null,null,"22P-6 Natural Resources Federal Lands Revolving Account",0,1.03E-2,0,5.4000000000000003E-3,0,5.4000000000000003E-3,0,0,0,0]
["490","","","23P","1","490-DNR",null,null,"23P-1 Model Toxics Control Operating Account",6.9999999999999999E-4,6.9999999999999999E-4,6.9999999999999999E-4,1E-3,6.9999999999999999E-4,1E-3,5.9999999999999995E-4,6.9999999999999999E-4,6.9999999999999999E-4,5.9624349489364927E-4]
["490","","","25P","1","490-DNR",null,null,"25P-1 Wildfire Response, Forest Restoration & Community Resilience",0.129,0.1285,0.129,9.1800000000000007E-2,0.129,9.1800000000000007E-2,0,0.129,0.129,0]
["490","","","268","1","490-DNR",null,null,"268-1 NOVA Program Account",1.9E-3,1.9E-3,1.9E-3,1.8E-3,1.9E-3,1.8E-3,1E-4,1.9E-3,1.9E-3,5.1754277533810298E-5]
["490","","","513","1","490-DNR",null,null,"513-1 Derelict Vessel Removal Account",1.1999999999999999E-3,1.1999999999999999E-3,1.1999999999999999E-3,2.5999999999999999E-3,1.1999999999999999E-3,2.5999999999999999E-3,1E-4,1.1999999999999999E-3,1.1999999999999999E-3,9.5381850330906586E-5]
["490","","","830","1","490-DNR",null,null,"830-1 Agricultural College Trust Management Account",6.6E-3,6.4999999999999997E-3,6.6E-3,5.4000000000000003E-3,6.6E-3,5.4000000000000003E-3,5.0000000000000001E-4,6.6E-3,6.6E-3,4.6151128478496954E-4]
["495","","","001","1","495-Department of Agriculture",null,null,"001-1 General Fund-State",0.33,0.33,0.33,0.18,0.18,0.33,0.18,0.33,0.18,0.18]
["495","","","001","2","495-Department of Agriculture",null,null,"001-2 General Fund-Federal",0,0,0,0.15,0.15,0,0.15,0,0.15,0.15]
["495","","","02R","1","495-Department of Agriculture",null,null,"02R-1 Aquatic Lands Enhancement Account-State",0.02,0.02,0.02,0.02,0.02,0.02,0.02,0.02,0.02,0.02]
["495","","","108","1","495-Department of Agriculture",null,null,"108-1 Motor Vehicle Account-State",0.01,0.01,0.01,0.01,0.01,0.01,0.01,0.01,0.01,0.01]
["495","","","126","6","495-Department of Agriculture",null,null,"126-6 Agricultural Local Account-Non-Appropriated",0.3,0.3,0.3,0.3,0.3,0.3,0.3,0.3,0.3,0.3]
["495","","","128","6","495-Department of Agriculture",null,null,"128-6 Grain Inspection Revolving Acct-Non-Appropriated",0.12,0.12,0.12,0.12,0.12,0.12,0.12,0.12,0.12,0.12]
["495","","","131","6","495-Department of Agriculture",null,null,"131-6 Fair Account-Non-Appropriated",0,0,0,0,0,0,0,0,0,0]
["495","","","176","1","495-Department of Agriculture",null,null,"176-1 Water Quality Permit Account-State",0,0,0,0,0,0,0,0,0,0]
["495","","","23P","1","495-Department of Agriculture",null,null,"23P-1 Model Toxics Oper - State",0.03,0.03,0.03,0.03,0.03,0.03,0.03,0.03,0.03,0.03]
["495","","","516","6","495-Department of Agriculture",null,null,"516-6 Fruit and Vegetable Inspection Acct-Non-Appropriated",0.19,0.19,0.19,0.19,0.19,0.19,0.19,0.19,0.19,0.19]
["540","","","001","2","540-Employment Security Department",null,null,"001-2 General Fund-Federal",8.9499999999999996E-2,0,0,8.9499999999999996E-2,8.9499999999999996E-2,8.9499999999999996E-2,8.9499999999999996E-2,8.9499999999999996E-2,8.9499999999999996E-2,8.9499999999999996E-2]
["540","","","001","7","540-Employment Security Department",null,null,"001-7 General Fund-Private/Local",2.2100000000000002E-2,0,0,2.2100000000000002E-2,2.2100000000000002E-2,2.2100000000000002E-2,2.2100000000000002E-2,2.2100000000000002E-2,2.2100000000000002E-2,2.2100000000000002E-2]
["540","","","119","2","540-Employment Security Department",null,null,"119-2 Unemployment Compensation Admin-Federal",0.58199999999999996,0.65,0.98,0.58199999999999996,0.58199999999999996,0.58199999999999996,0.58199999999999996,0.58199999999999996,0.58199999999999996,0.58199999999999996]
["540","","","120","1","540-Employment Security Department",null,null,"120-1 Administrative Contingency Account-State",6.0000000000000001E-3,0,0,6.0000000000000001E-3,6.0000000000000001E-3,6.0000000000000001E-3,6.0000000000000001E-3,6.0000000000000001E-3,6.0000000000000001E-3,6.0000000000000001E-3]
["540","","","134","1","540-Employment Security Department",null,null,"134-1 Employment Services Administrative-State",5.74E-2,0,0,5.74E-2,5.74E-2,5.74E-2,5.74E-2,5.74E-2,5.74E-2,5.74E-2]
["540","","","16L","6","540-Employment Security Department",null,null,"16L-6 Accessible Communities Account-Non-Appropriated",1E-4,0,0,1E-4,1E-4,1E-4,1E-4,1E-4,1E-4,1E-4]
["540","","","22F","1","540-Employment Security Department",null,null,"22F-1 PFML",0.2009,0.35,0.02,0.2009,0.2009,0.2009,0.2009,0.2009,0.2009,0.2009]
["540","","","24J","1","540-Employment Security Department",null,null,"24J-1 CCL",8.9999999999999998E-4,0,0,8.9999999999999998E-4,8.9999999999999998E-4,8.9999999999999998E-4,8.9999999999999998E-4,8.9999999999999998E-4,8.9999999999999998E-4,8.9999999999999998E-4]
["540","","","447","6","540-Employment Security Department",null,null,"447-6 IT DR Coop",0,0,0,0,0,0,0,0,0,0]
["540","","","567","1","540-Employment Security Department",null,null,"567-1 LTCSS",4.1099999999999998E-2,0,0,4.1099999999999998E-2,4.1099999999999998E-2,4.1099999999999998E-2,4.1099999999999998E-2,4.1099999999999998E-2,4.1099999999999998E-2,4.1099999999999998E-2]
["541","","","001","2","541-ESD  PFM",null,null,"001-2 General Fund-Federal",0,0,0,0,0,0,0,0,0,0]
["541","","","001","7","541-ESD  PFM",null,null,"001-7 General Fund-Private/Local",0,0,0,0,0,0,0,0,0,0]
["541","","","119","2","541-ESD  PFM",null,null,"119-2 Unemployment Compensation Admin-Federal",0,0,0,0,0,0,0,0,0,0]
["541","","","120","1","541-ESD  PFM",null,null,"120-1 Administrative Contingency Account-State",0,0,0,0,0,0,0,0,0,0]
["541","","","134","1","541-ESD  PFM",null,null,"134-1 Employment Services Administrative-State",0,0,0,0,0,0,0,0,0,0]
["541","","","16L","6","541-ESD  PFM",null,null,"16L-6 Accessible Communities Account-Non-Appropriated",0,0,0,0,0,0,0,0,0,0]
["541","","","22F","1","541-ESD  PFM",null,null,"22F-1 PFML",1,1,1,1,1,1,1,1,1,1]
["541","","","24J","1","541-ESD  PFM",null,null,"24J-1 CCL",0,0,0,0,0,0,0,0,0,0]
["541","","","447","6","541-ESD  PFM",null,null,"447-6 IT DR Coop",0,0,0,0,0,0,0,0,0,0]
["541","","","567","1","541-ESD  PFM",null,null,"567-1 LTCSS",0,0,0,0,0,0,0,0,0,0]
["542","","","001","2","542-ESD  LTC",null,null,"001-2 General Fund-Federal",0,0,0,0,0,0,0,0,0,0]
["542","","","001","7","542-ESD  LTC",null,null,"001-7 General Fund-Private/Local",0,0,0,0,0,0,0,0,0,0]
["542","","","119","2","542-ESD  LTC",null,null,"119-2 Unemployment Compensation Admin-Federal",0,0,0,0,0,0,0,0,0,0]
["542","","","120","1","542-ESD  LTC",null,null,"120-1 Administrative Contingency Account-State",0,0,0,0,0,0,0,0,0,0]
["542","","","134","1","542-ESD  LTC",null,null,"134-1 Employment Services Administrative-State",0,0,0,0,0,0,0,0,0,0]
["542","","","16L","6","542-ESD  LTC",null,null,"16L-6 Accessible Communities Account-Non-Appropriated",0,0,0,0,0,0,0,0,0,0]
["542","","","22F","1","542-ESD  LTC",null,null,"22F-1 PFML",0,0,0,0,0,0,0,0,0,0]
["542","","","24J","1","542-ESD  LTC",null,null,"24J-1 CCL",0,0,0,0,0,0,0,0,0,0]
["542","","","447","6","542-ESD  LTC",null,null,"447-6 IT DR Coop",0,0,0,0,0,0,0,0,0,0]
["542","","","567","1","542-ESD  LTC",null,null,"567-1 LTCSS",1,1,1,1,1,1,1,1,1,1]
["543","","","001","2","543-ESD  UI",null,null,"001-2 General Fund-Federal",0,0,0,0,0,0,0,0,0,0]
["543","","","001","7","543-ESD  UI",null,null,"001-7 General Fund-Private/Local",0,0,0,0,0,0,0,0,0,0]
["543","","","119","2","543-ESD  UI",null,null,"119-2 Unemployment Compensation Admin-Federal",1,1,1,1,1,1,1,1,1,1]
["543","","","120","1","543-ESD  UI",null,null,"120-1 Administrative Contingency Account-State",0,0,0,0,0,0,0,0,0,0]
["543","","","134","1","543-ESD  UI",null,null,"134-1 Employment Services Administrative-State",0,0,0,0,0,0,0,0,0,0]
["543","","","16L","6","543-ESD  UI",null,null,"16L-6 Accessible Communities Account-Non-Appropriated",0,0,0,0,0,0,0,0,0,0]
["543","","","22F","1","543-ESD  UI",null,null,"22F-1 PFML",0,0,0,0,0,0,0,0,0,0]
["543","","","24J","1","543-ESD  UI",null,null,"24J-1 CCL",0,0,0,0,0,0,0,0,0,0]
["543","","","447","6","543-ESD  UI",null,null,"447-6 IT DR Coop",0,0,0,0,0,0,0,0,0,0]
["543","","","567","1","543-ESD  UI",null,null,"567-1 LTCSS",0,0,0,0,0,0,0,0,0,0]
["544","",null,"001","2","540-Employment Security Department",null,null,"001-2 General Fund-Federal",8.9499999999999996E-2,0,0,8.9499999999999996E-2,8.9499999999999996E-2,8.9499999999999996E-2,8.9499999999999996E-2,8.9499999999999996E-2,8.9499999999999996E-2,8.9499999999999996E-2]
["544","",null,"001","7","540-Employment Security Department",null,null,"001-7 General Fund-Private/Local",2.2100000000000002E-2,0,0,2.2100000000000002E-2,2.2100000000000002E-2,2.2100000000000002E-2,2.2100000000000002E-2,2.2100000000000002E-2,2.2100000000000002E-2,2.2100000000000002E-2]
["544","",null,"119","2","540-Employment Security Department",null,null,"119-2 Unemployment Compensation Admin-Federal",0.58199999999999996,0.65,0.98,0.58199999999999996,0.58199999999999996,0.58199999999999996,0.58199999999999996,0.58199999999999996,0.58199999999999996,0.58199999999999996]
["544","",null,"120","1","540-Employment Security Department",null,null,"120-1 Administrative Contingency Account-State",6.0000000000000001E-3,0,0,6.0000000000000001E-3,6.0000000000000001E-3,6.0000000000000001E-3,6.0000000000000001E-3,6.0000000000000001E-3,6.0000000000000001E-3,6.0000000000000001E-3]
["544","",null,"134","1","540-Employment Security Department",null,null,"134-1 Employment Services Administrative-State",5.74E-2,0,0,5.74E-2,5.74E-2,5.74E-2,5.74E-2,5.74E-2,5.74E-2,5.74E-2]
["544","",null,"16L","6","540-Employment Security Department",null,null,"16L-6 Accessible Communities Account-Non-Appropriated",1E-4,0,0,1E-4,1E-4,1E-4,1E-4,1E-4,1E-4,1E-4]
["544","",null,"22F","1","540-Employment Security Department",null,null,"22F-1 PFML",0.2009,0.35,0.02,0.2009,0.2009,0.2009,0.2009,0.2009,0.2009,0.2009]
["544","",null,"24J","1","540-Employment Security Department",null,null,"24J-1 CCL",8.9999999999999998E-4,0,0,8.9999999999999998E-4,8.9999999999999998E-4,8.9999999999999998E-4,8.9999999999999998E-4,8.9999999999999998E-4,8.9999999999999998E-4,8.9999999999999998E-4]
["544","",null,"447","6","540-Employment Security Department",null,null,"447-6 IT DR Coop",0,0,0,0,0,0,0,0,0,0]
["544","",null,"567","1","540-Employment Security Department",null,null,"567-1 LTCSS",4.1099999999999998E-2,0,0,4.1099999999999998E-2,4.1099999999999998E-2,4.1099999999999998E-2,4.1099999999999998E-2,4.1099999999999998E-2,4.1099999999999998E-2,4.1099999999999998E-2]
["699","","","001","1","699-Community/Technical College System",null,null,"001-1 General Fund-State",0.75,0.75,0.75,0.75,0.75,0.75,0.75,0.75,0.75,0.75]
["699","","","149","6","699-Community/Technical College System",null,null,"149-6 Inst of Hi Ed-Operating Fees Acct-Non-Appropriated",0.25,0.25,0.25,0.25,0.25,0.25,0.25,0.25,0.25,0.25]

{"sheet":"ActiveFunds","index":2,"n_rows":863,"n_cols":28,"rows_kept":863,"cut":false,"hidden":true,"merged":[]}
[null,null,null,null,null,null,null,null,null,null,{"$f":"COUNTIF(AgencyFund,Agency)","v":0},null,null,"",{"$f":"IF(pgmcheck=1,OFFSET(AgencyProgram,MATCH((AgyCode),AgencyProgram,0)-1,4,COUNTIF(AgencyProgram,AgyCode)),PgmList)","v":{"$error":"#VALUE!"}},null,null,null,"IF(AgyChoice=1,FundList,OFFSET(AgencyFund,MATCH((Agency),AgencyFund,0)-1,1,COUNTIF(AgencyFund,Agency)))"]
[null,null,"AgencyFund Table",null,null,null,null,null,"distinct agency list",null,null,"Distinct Fund List",null,null,"Programcheck",null,{"$f":"IFERROR(INDEX($N$4:$N$67,MATCH(AgyCode,Table_clallam_Titles_Entity[Agency],0)),0)","v":0},null,{"$f":"IF(pgmcheck=1,OFFSET(AgencyProgram,MATCH((AgyCode),AgencyProgram,0)-1,4,COUNTIF(AgencyProgram,AgyCode)),OFFSET(pgmcheck,0,1))","v":0},{"$f":"IF(pgmcheck=1,OFFSET(AgencyProgram,MATCH((AgyCode),AgencyProgram,0)-1,4,COUNTIF(AgencyProgram,AgyCode)),PgmList)","v":{"$error":"#VALUE!"}},null,null,null,"DSHS SubProgList for 030 and 040"]
[null,null,"Agency","Fund","Column1",null,null,null,"Agency",null,null,"Fund",null,null,"Agency","ProgramCode","BudgetType","SummFlag","ProgramTitle60","Program2",null,null,null,"agency","Program","Subprogram","Title35","(No column name)"]
[1,{"$f":"LEFT(Table_clallam_Oversight_ActiveFunds[[#This Row],[Agency]],3)","v":"011"},"011-House of Reps","001-1 General Fund-State",{"$f":"LEFT(Table_clallam_Oversight_ActiveFunds[[#This Row],[Fund]],5)","v":"001-1"},null,{"$f":"LEFT(I4,3)","v":"011"},1,"011-House of Representatives           ",{"$f":"LEFT(I4,3)","v":"011"},{"$f":"MID(L4,1,5)","v":"001-0"},"001-0 General Fund-Fed Grnt",null,1,"103","ADM","O","0","Program Support                    ","ADM-Program Support     ",null,1,{"$f":"X4&Y4","v":"300030"},"300","030","2000","State Facility Services            ","2000-State Facility Svcs "]
[1,{"$f":"LEFT(Table_clallam_Oversight_ActiveFunds[[#This Row],[Agency]],3)","v":"011"},"011-House of Reps","108-1 Motor Vehicle Acct-State",{"$f":"LEFT(Table_clallam_Oversight_ActiveFunds[[#This Row],[Fund]],5)","v":"108-1"},null,{"$f":"LEFT(I5,3)","v":"012"},2,"012-Senate                             ","012",{"$f":"MID(L5,1,5)","v":"001-1"},"001-1 General Fund-State",null,1,"103","CSH","O","0","Community Services and Housing     ","CSH-Comm Svcs & Housing ",null,1,{"$f":"X5&Y5","v":"300040"},"300","040","1000","Community Services                 ","1000-Community Services  "]
[1,{"$f":"LEFT(Table_clallam_Oversight_ActiveFunds[[#This Row],[Agency]],3)","v":"012"},"012-Senate","001-1 General Fund-State",{"$f":"LEFT(Table_clallam_Oversight_ActiveFunds[[#This Row],[Fund]],5)","v":"001-1"},null,"013",3,"013-Joint Transportation Committee     ","013","001-2","001-2 General Fund-Federal",null,1,"103","EDC","O","0","Econ Development & Competitiveness ","EDC-Econ Dev & Compet   ",null,1,"300040","300","040","2000","Residential Habilitation Services  ","2000-Resid Habilitation  "]
[1,{"$f":"LEFT(Table_clallam_Oversight_ActiveFunds[[#This Row],[Agency]],3)","v":"012"},"012-Senate","108-1 Motor Vehicle Acct-State",{"$f":"LEFT(Table_clallam_Oversight_ActiveFunds[[#This Row],[Fund]],5)","v":"108-1"},null,"014",4,"014-Jt Leg Audit & Review Committee    ","014","001-7","001-7 General Fund-Local",null,1,"103","ENG","O","0","Energy and Innovation              ","ENG-Energy & Innovation ",null,1,"300040","300","040","8000","Special Projects                   ","8000-Special Projects    "]
[1,{"$f":"LEFT(Table_clallam_Oversight_ActiveFunds[[#This Row],[Agency]],3)","v":"013"},"013-Jt Trans Committee","108-1 Motor Vehicle Acct-State",{"$f":"LEFT(Table_clallam_Oversight_ActiveFunds[[#This Row],[Fund]],5)","v":"108-1"},null,"020",5,"020-LEAP Committee                     ","020","001-A","001-A General Fund-Fam Supt",null,1,"103","LOC","O","0","Local Government                   ","LOC-Local Government    ",null,1,"300040","300","040","9000","Program Support                    ","9000-Program Support     "]
[1,{"$f":"LEFT(Table_clallam_Oversight_ActiveFunds[[#This Row],[Agency]],3)","v":"013"},"013-Jt Trans Committee","218-1 Multimodal Acct-State",{"$f":"LEFT(Table_clallam_Oversight_ActiveFunds[[#This Row],[Fund]],5)","v":"218-1"},null,"035",6,"035-Office of the State Actuary        ","035","001-C","001-C General Fund-Medicaid",null,1,"107","CBH","O","0","Community Behavioral Health        ","CBH-Comm Behavior Hlth  "]
[1,{"$f":"LEFT(Table_clallam_Oversight_ActiveFunds[[#This Row],[Agency]],3)","v":"014"},"014-Leg Audit & Review","001-1 General Fund-State",{"$f":"LEFT(Table_clallam_Oversight_ActiveFunds[[#This Row],[Fund]],5)","v":"001-1"},null,"036",7,"036-State Legislative Labor Relations  ","036","001-D","001-D General Fund-TANF",null,1,"107","HBE","O","0","Health Benefit Exchange            ","HBE-Health Benefit Exch "]
[1,{"$f":"LEFT(Table_clallam_Oversight_ActiveFunds[[#This Row],[Agency]],3)","v":"014"},"014-Leg Audit & Review","553-1 Perf Audits of Govt-State",{"$f":"LEFT(Table_clallam_Oversight_ActiveFunds[[#This Row],[Fund]],5)","v":"553-1"},null,"037",8,"037-Office of Legislative Support Svcs ","037","001-H","001-H General Fund-ARPA",null,1,"107","OTH","O","0","Other                              ","OTH-Other               "]
[1,{"$f":"LEFT(Table_clallam_Oversight_ActiveFunds[[#This Row],[Agency]],3)","v":"014"},"014-Leg Audit & Review","099-1 PS Cap Construction-State",{"$f":"LEFT(Table_clallam_Oversight_ActiveFunds[[#This Row],[Fund]],5)","v":"099-1"},null,"038",9,"038-Joint Legislative Systems Comm     ","038","001-W","001-W General Fund-Oth COVID",null,1,"107","PEB","O","0","Employee Benefits                  ","PEB-Employee Benefits   "]
[1,{"$f":"LEFT(Table_clallam_Oversight_ActiveFunds[[#This Row],[Agency]],3)","v":"014"},"014-Leg Audit & Review","218-1 Multimodal Acct-State",{"$f":"LEFT(Table_clallam_Oversight_ActiveFunds[[#This Row],[Fund]],5)","v":"218-1"},null,"040",10,"040-Statute Law Committee              ","040","001-X","001-X General Fund-CRF App",null,1,"107","SEB","O","0","School Employee Benefits Board     ","SEB-Schl Empl Benefits  "]
[1,{"$f":"LEFT(Table_clallam_Oversight_ActiveFunds[[#This Row],[Agency]],3)","v":"020"},"020-LEAP Committee","553-1 Perf Audits of Govt-State",{"$f":"LEFT(Table_clallam_Oversight_ActiveFunds[[#This Row],[Fund]],5)","v":"553-1"},null,"045",11,"045-Supreme Court                      ","045","001-Y","001-Y General Fund-Oth UAR",null,1,"225","90C","O","0","Capital                            ","90C-Capital             "]
[1,{"$f":"LEFT(Table_clallam_Oversight_ActiveFunds[[#This Row],[Agency]],3)","v":"020"},"020-LEAP Committee","108-1 Motor Vehicle Acct-State",{"$f":"LEFT(Table_clallam_Oversight_ActiveFunds[[#This Row],[Fund]],5)","v":"108-1"},null,"048",12,"048-Court of Appeals                   ","048","001-Z","001-Z General Fund-CRRSA",null,1,"225","OPR","O","0","Operating                          ","OPR-Operating           "]
[1,{"$f":"LEFT(Table_clallam_Oversight_ActiveFunds[[#This Row],[Agency]],3)","v":"035"},"035-State Actuary","001-1 General Fund-State",{"$f":"LEFT(Table_clallam_Oversight_ActiveFunds[[#This Row],[Fund]],5)","v":"001-1"},null,"050",13,"050-Commission on Judicial Conduct     ","050","002-1","002-1 Hospital Data Collec-State",null,1,"300","030","O","0","Mental Health                      ","030-Mental Health       "]
[1,{"$f":"LEFT(Table_clallam_Oversight_ActiveFunds[[#This Row],[Agency]],3)","v":"035"},"035-State Actuary","418-1 St Hlth Care Admn Ac-State",{"$f":"LEFT(Table_clallam_Oversight_ActiveFunds[[#This Row],[Fund]],5)","v":"418-1"},null,"055",14,"055-Administrative Office of the Courts","055","003-1","003-1 Architects' License-State",null,1,"300","040","O","0","Developmental Disabilities         ","040-Develop Disabilities"]
[1,{"$f":"LEFT(Table_clallam_Oversight_ActiveFunds[[#This Row],[Agency]],3)","v":"035"},"035-State Actuary","492-1 School Employees' In-State",{"$f":"LEFT(Table_clallam_Oversight_ActiveFunds[[#This Row],[Fund]],5)","v":"492-1"},null,"056",15,"056-Office of Public Defense           ","056","006-1","006-1 Public Records Effic-State",null,1,"300","050","O","0","Long-Term Care                     ","050-Long-Term Care      "]
[1,{"$f":"LEFT(Table_clallam_Oversight_ActiveFunds[[#This Row],[Agency]],3)","v":"035"},"035-State Actuary","600-1 Retirmnt Sys Expense-State",{"$f":"LEFT(Table_clallam_Oversight_ActiveFunds[[#This Row],[Fund]],5)","v":"600-1"},null,"057",16,"057-Office of Civil Legal Aid          ","057","007-1","007-1 Winter Recreation-State",null,1,"300","060","O","0","Economic Services Administration   ","060-Economic Svcs Admin "]
[1,{"$f":"LEFT(Table_clallam_Oversight_ActiveFunds[[#This Row],[Agency]],3)","v":"036"},"036-St Leg Labor Rel","001-1 General Fund-State",{"$f":"LEFT(Table_clallam_Oversight_ActiveFunds[[#This Row],[Fund]],5)","v":"001-1"},null,"075",17,"075-Office of the Governor             ","075","014-1","014-1 Forest Development-State",null,1,"300","100","O","0","Vocational Rehabilitation          ","100-Vocational Rehab    "]
[1,{"$f":"LEFT(Table_clallam_Oversight_ActiveFunds[[#This Row],[Agency]],3)","v":"037"},"037-Leg Support Services","001-1 General Fund-State",{"$f":"LEFT(Table_clallam_Oversight_ActiveFunds[[#This Row],[Fund]],5)","v":"001-1"},null,"080",18,"080-Office of the Lieutenant Governor  ","080","018-1","018-1 Millersylvania Park-State",null,1,"300","110","O","0","Administration/Support Svcs        ","110-Admin/Suppt Svcs    "]
[1,{"$f":"LEFT(Table_clallam_Oversight_ActiveFunds[[#This Row],[Agency]],3)","v":"037"},"037-Leg Support Services","442-6 Leg Gift Center Acct-Non-Appr",{"$f":"LEFT(Table_clallam_Oversight_ActiveFunds[[#This Row],[Fund]],5)","v":"442-6"},null,"082",19,"082-Public Disclosure Commission       ","082","01B-1","01B-1 ORV/NonHiwy Veh Acct-State",null,1,"300","135","O","0","Special Commitment Center          ","135-Special Commitment  "]
[1,{"$f":"LEFT(Table_clallam_Oversight_ActiveFunds[[#This Row],[Agency]],3)","v":"038"},"038-Joint Leg Syst Comm","001-1 General Fund-State",{"$f":"LEFT(Table_clallam_Oversight_ActiveFunds[[#This Row],[Fund]],5)","v":"001-1"},null,"083",20,"083-Washington State Leadership Board  ","083","01F-6","01F-6 Crime Victims Compen-Non-Appr",null,1,"300","145","O","0","Payments to Other Agencies         ","145-Payments to Othr Agy"]
[1,{"$f":"LEFT(Table_clallam_Oversight_ActiveFunds[[#This Row],[Agency]],3)","v":"040"},"040-Statute Law Comm","001-1 General Fund-State",{"$f":"LEFT(Table_clallam_Oversight_ActiveFunds[[#This Row],[Fund]],5)","v":"001-1"},null,"085",21,"085-Office of the Secretary of State   ","085","01M-1","01M-1 Snowmobile Account-State",null,1,"305","010","O","0","Headquarters                       ","010-Headquarters        "]
[1,{"$f":"LEFT(Table_clallam_Oversight_ActiveFunds[[#This Row],[Agency]],3)","v":"040"},"040-Statute Law Comm","197-6 Statute Law Comm Pub-Non-Appr",{"$f":"LEFT(Table_clallam_Oversight_ActiveFunds[[#This Row],[Fund]],5)","v":"197-6"},null,"086",22,"086-Governor's Office of Indian Affairs","086","024-1","024-1 Profess Engineers'-State",null,1,"305","020","O","0","Field Services                     ","020-Field Services      "]
[1,{"$f":"LEFT(Table_clallam_Oversight_ActiveFunds[[#This Row],[Agency]],3)","v":"045"},"045-Supreme Court","001-1 General Fund-State",{"$f":"LEFT(Table_clallam_Oversight_ActiveFunds[[#This Row],[Fund]],5)","v":"001-1"},null,"087",23,"087-Asian-Pacific-American Affrs       ","087","025-1","025-1 Pilotage Account-State",null,1,"305","035","O","0","State Veterans Homes               ","035-State Vets Homes    "]
[1,{"$f":"LEFT(Table_clallam_Oversight_ActiveFunds[[#This Row],[Agency]],3)","v":"046"},"046-State Law Library","001-1 General Fund-State",{"$f":"LEFT(Table_clallam_Oversight_ActiveFunds[[#This Row],[Fund]],5)","v":"001-1"},null,"090",24,"090-Office of the State Treasurer      ","090","026-1","026-1 Real Estate Cmsn-State",null,1,"305","045","O","0","Veteran's Cemetery Services        ","045-Vets Cemetery Servs "]
[1,{"$f":"LEFT(Table_clallam_Oversight_ActiveFunds[[#This Row],[Agency]],3)","v":"048"},"048-Court of Appeals","001-1 General Fund-State",{"$f":"LEFT(Table_clallam_Oversight_ActiveFunds[[#This Row],[Fund]],5)","v":"001-1"},null,"095",25,"095-Office of the State Auditor        ","095","027-1","027-1 Reclamation Acct-State",null,1,"307","010","O","0","Children and Families Services     ","010-Children & Families "]
[1,{"$f":"LEFT(Table_clallam_Oversight_ActiveFunds[[#This Row],[Agency]],3)","v":"050"},"050-Judicial Conduct","001-1 General Fund-State",{"$f":"LEFT(Table_clallam_Oversight_ActiveFunds[[#This Row],[Fund]],5)","v":"001-1"},null,"099",26,"099-Comm Salaries for Elected Officials","099","02A-1","02A-1 Surveys & Maps Acct-State",null,1,"307","020","O","0","Juvenile Rehabilitation            ","020-Juvenile Rehab      "]
[1,{"$f":"LEFT(Table_clallam_Oversight_ActiveFunds[[#This Row],[Agency]],3)","v":"055"},"055-Admin Office Courts","001-1 General Fund-State",{"$f":"LEFT(Table_clallam_Oversight_ActiveFunds[[#This Row],[Fund]],5)","v":"001-1"},null,"100",27,"100-Office of the Attorney General     ","100","02G-1","02G-1 Health Prfessns Acct-State",null,1,"307","030","O","0","Early Learning                     ","030-Early Learning      "]
[1,{"$f":"LEFT(Table_clallam_Oversight_ActiveFunds[[#This Row],[Agency]],3)","v":"055"},"055-Admin Office Courts","001-2 General Fund-Federal",{"$f":"LEFT(Table_clallam_Oversight_ActiveFunds[[#This Row],[Fund]],5)","v":"001-2"},null,"101",28,"101-Caseload Forecast Council          ","101","02H-6","02H-6 Business Enterprises-Non-Appr",null,1,"307","090","O","0","Program Support                    ","090-Program Support     "]
[1,{"$f":"LEFT(Table_clallam_Oversight_ActiveFunds[[#This Row],[Agency]],3)","v":"055"},"055-Admin Office Courts","001-7 General Fund-Local",{"$f":"LEFT(Table_clallam_Oversight_ActiveFunds[[#This Row],[Fund]],5)","v":"001-7"},null,"102",29,"102-Dept of Financial Institutions     ","102","02J-1","02J-1 CPA Account-State",null,1,"310","100","O","0","Admin & Support Services           ","100-Admin & Suppt Svcs  "]
[1,{"$f":"LEFT(Table_clallam_Oversight_ActiveFunds[[#This Row],[Agency]],3)","v":"055"},"055-Admin Office Courts","001-X General Fund-CRF App",{"$f":"LEFT(Table_clallam_Oversight_ActiveFunds[[#This Row],[Fund]],5)","v":"001-X"},null,"103",30,"103-Department of Commerce             ","103","02K-1","02K-1 Death Investigations-State",null,1,"310","200","O","0","Correctional Operations            ","200-Correctional Oper   "]
[1,{"$f":"LEFT(Table_clallam_Oversight_ActiveFunds[[#This Row],[Agency]],3)","v":"055"},"055-Admin Office Courts","16A-1 Judicial Stabil Trst-State",{"$f":"LEFT(Table_clallam_Oversight_ActiveFunds[[#This Row],[Fund]],5)","v":"16A-1"},null,"104",31,"104-Economic & Revenue Forecast Council","104","02M-1","02M-1 Essential Rail Asst-State",null,1,"310","300","O","0","Community Supervision              ","300-Community Supervsn  "]
[1,{"$f":"LEFT(Table_clallam_Oversight_ActiveFunds[[#This Row],[Agency]],3)","v":"055"},"055-Admin Office Courts","543-1 Judicial Info System-State",{"$f":"LEFT(Table_clallam_Oversight_ActiveFunds[[#This Row],[Fund]],5)","v":"543-1"},null,"105",32,"105-Office of Financial Management     ","105","02P-1","02P-1 Flood Control Assist-State",null,1,"310","400","O","0","Correctional Industries            ","400-Correctional Indust "]
[1,{"$f":"LEFT(Table_clallam_Oversight_ActiveFunds[[#This Row],[Agency]],3)","v":"056"},"056-Public Defense","001-1 General Fund-State",{"$f":"LEFT(Table_clallam_Oversight_ActiveFunds[[#This Row],[Fund]],5)","v":"001-1"},null,"107",33,"107-WA State Health Care Authority     ",{"$f":"LEFT(I36,3)","v":"107"},"02R-1","02R-1 Aquatic Lands Acct-State",null,1,"310","500","O","0","Health Care Services               ","500-Health Care Services"]
[1,{"$f":"LEFT(Table_clallam_Oversight_ActiveFunds[[#This Row],[Agency]],3)","v":"056"},"056-Public Defense","001-2 General Fund-Federal",{"$f":"LEFT(Table_clallam_Oversight_ActiveFunds[[#This Row],[Fund]],5)","v":"001-2"},null,"110",34,"110-Office of Administrative Hearings  ","110","02W-1","02W-1 Timber Tax Distr Act-State",null,1,"310","600","O","0","Interagency Payments               ","600-Interagency Payments"]
[1,{"$f":"LEFT(Table_clallam_Oversight_ActiveFunds[[#This Row],[Agency]],3)","v":"056"},"056-Public Defense","001-7 General Fund-Local",{"$f":"LEFT(Table_clallam_Oversight_ActiveFunds[[#This Row],[Fund]],5)","v":"001-7"},null,"116",35,"116-State Lottery Commission           ","116","030-6","030-6 Land Cont Forst Fire-Non-Appr",null,1,"310","700","O","0","Offender Change                    ","700-Offender Change     "]
[1,{"$f":"LEFT(Table_clallam_Oversight_ActiveFunds[[#This Row],[Agency]],3)","v":"056"},"056-Public Defense","16A-1 Judicial Stabil Trst-State",{"$f":"LEFT(Table_clallam_Oversight_ActiveFunds[[#This Row],[Fund]],5)","v":"16A-1"},null,"117",36,"117-Washington State Gambling Comm     ","117","031-1","031-1 Invest Bd Expense Ac-State",null,1,"340","PCA","O","0","Policy & Research Coordination     ","PCA-Policy & Research   "]
[1,{"$f":"LEFT(Table_clallam_Oversight_ActiveFunds[[#This Row],[Agency]],3)","v":"057"},"057-Civil Legal Aid","001-1 General Fund-State",{"$f":"LEFT(Table_clallam_Oversight_ActiveFunds[[#This Row],[Fund]],5)","v":"001-1"},null,"118",37,"118-WA State Comm on Hispanic Affairs  ","118","032-1","032-1 Emergency Water Proj-State",null,1,"340","SFA","O","0","Student Financial Assistance       ","SFA-Student Fin Assist  "]
[1,{"$f":"LEFT(Table_clallam_Oversight_ActiveFunds[[#This Row],[Agency]],3)","v":"057"},"057-Civil Legal Aid","001-2 General Fund-Federal",{"$f":"LEFT(Table_clallam_Oversight_ActiveFunds[[#This Row],[Fund]],5)","v":"001-2"},null,"119",38,"119-African-American Affairs Comm      ","119","039-1","039-1 Aeronautics-State",null,1,"350","010","O","0","OSPI & Statewide Programs          ","010-OSPI/Statewide Pgms "]
[1,{"$f":"LEFT(Table_clallam_Oversight_ActiveFunds[[#This Row],[Agency]],3)","v":"057"},"057-Civil Legal Aid","16A-1 Judicial Stabil Trst-State",{"$f":"LEFT(Table_clallam_Oversight_ActiveFunds[[#This Row],[Fund]],5)","v":"16A-1"},null,"120",39,"120-Human Rights Commission            ","120","039-2","039-2 Aeronautics-Federal",null,1,"405","B00","O","0","Pgm B - Toll Op & Maint - Op       ","B00-B - Toll Operations "]
[1,{"$f":"LEFT(Table_clallam_Oversight_ActiveFunds[[#This Row],[Agency]],3)","v":"057"},"057-Civil Legal Aid","17L-6 Foreclosure Fairness-Non-Appr",{"$f":"LEFT(Table_clallam_Oversight_ActiveFunds[[#This Row],[Fund]],5)","v":"17L-6"},null,"124",40,"124-Department of Retirement Systems   ","124","039-7","039-7 Aeronautics-Local",null,1,"405","C00","O","0","Pgm C - Information Technology     ","C00-C - Info Technology "]
[1,{"$f":"LEFT(Table_clallam_Oversight_ActiveFunds[[#This Row],[Agency]],3)","v":"075"},"075-Governor","001-1 General Fund-State",{"$f":"LEFT(Table_clallam_Oversight_ActiveFunds[[#This Row],[Fund]],5)","v":"001-1"},null,"126",41,"126-State Investment Board             ","126","03B-1","03B-1 Asbestos Account-State",null,1,"405","D00","O","0","Pgm D - Facilities - Op            ","D00-D - Facilities-Op   "]
[1,{"$f":"LEFT(Table_clallam_Oversight_ActiveFunds[[#This Row],[Agency]],3)","v":"075"},"075-Governor","09R-1 Econ Dev Strat R A-State",{"$f":"LEFT(Table_clallam_Oversight_ActiveFunds[[#This Row],[Fund]],5)","v":"09R-1"},null,"140",42,"140-Department of Revenue              ","140","03C-1","03C-1 Emer Med/Trauma Care-State",null,1,"405","D0C","O","0","Pgm D - Facilities - Cap           ","D0C-D - Facilities-Cap  "]
[1,{"$f":"LEFT(Table_clallam_Oversight_ActiveFunds[[#This Row],[Agency]],3)","v":"075"},"075-Governor","26B-1 Climate Investment-State",{"$f":"LEFT(Table_clallam_Oversight_ActiveFunds[[#This Row],[Fund]],5)","v":"26B-1"},null,"142",43,"142-Board of Tax Appeals               ","142","03F-1","03F-1 911 Account-State",null,1,"405","E00","O","0","Pgm E - Transpo Equipment Fund     ","E00-E - Transp Equip Fnd"]
[1,{"$f":"LEFT(Table_clallam_Oversight_ActiveFunds[[#This Row],[Agency]],3)","v":"075"},"075-Governor","081-1 WSP Highway Account-State",{"$f":"LEFT(Table_clallam_Oversight_ActiveFunds[[#This Row],[Fund]],5)","v":"081-1"},null,"147",44,"147-Minority & Women's Business Enterp ","147","03L-1","03L-1 Cnty Criminal Justic-State",null,1,"405","F00","O","0","Pgm F - Aviation                   ","F00-F - Aviation        "]
[1,{"$f":"LEFT(Table_clallam_Oversight_ActiveFunds[[#This Row],[Agency]],3)","v":"076"},"076-Spec Approps to Gov","001-1 General Fund-State",{"$f":"LEFT(Table_clallam_Oversight_ActiveFunds[[#This Row],[Fund]],5)","v":"001-1"},null,"160",45,"160-Office of Insurance Commissioner   ","160","03M-1","03M-1 Munic Criminal Justi-State",null,1,"405","H00","O","0","Pgm H - Pgm Delivery Mgmt & Suppt  ","H00-H - Pgm Del Mgmt/Sup"]
[1,{"$f":"LEFT(Table_clallam_Oversight_ActiveFunds[[#This Row],[Agency]],3)","v":"076"},"076-Spec Approps to Gov","001-2 General Fund-Federal",{"$f":"LEFT(Table_clallam_Oversight_ActiveFunds[[#This Row],[Fund]],5)","v":"001-2"},null,"163",46,"163-Consolidated Technology Services   ","163","03N-1","03N-1 Business License-State",null,1,"405","I0C","O","0","Pgm I - Improvements               ","I0C-I - Improvements    "]
[1,{"$f":"LEFT(Table_clallam_Oversight_ActiveFunds[[#This Row],[Agency]],3)","v":"076"},"076-Spec Approps to Gov","001-7 General Fund-Local",{"$f":"LEFT(Table_clallam_Oversight_ActiveFunds[[#This Row],[Fund]],5)","v":"001-7"},null,"165",47,"165-State Board of Accountancy         ","165","03P-1","03P-1 Fire Svcs Trust Acct-State",null,1,"405","K00","O","0","Pgm K - Public/Private Part - Op   ","K00-K - Pub/Pvt Part-Op "]
[1,{"$f":"LEFT(Table_clallam_Oversight_ActiveFunds[[#This Row],[Agency]],3)","v":"076"},"076-Spec Approps to Gov","001-A General Fund-Fam Supt",{"$f":"LEFT(Table_clallam_Oversight_ActiveFunds[[#This Row],[Fund]],5)","v":"001-A"},null,"166",48,"166-Bd of Reg Prof Eng & Land Surveyors","166","03R-1","03R-1 Safe Drink Wtr Acct-State",null,1,"405","M00","O","0","Pgm M - Highway Maintenance        ","M00-M - Hwy Maintenance "]
[1,{"$f":"LEFT(Table_clallam_Oversight_ActiveFunds[[#This Row],[Agency]],3)","v":"076"},"076-Spec Approps to Gov","001-C General Fund-Medicaid",{"$f":"LEFT(Table_clallam_Oversight_ActiveFunds[[#This Row],[Fund]],5)","v":"001-C"},null,"167",49,"167-Forensic Investigations Council    ","167","041-1","041-1 Res Mgmt Cost Acct-State",null,1,"405","P0C","O","0","Pgm P - Preservation               ","P0C-P - Preservation    "]
[1,{"$f":"LEFT(Table_clallam_Oversight_ActiveFunds[[#This Row],[Agency]],3)","v":"076"},"076-Spec Approps to Gov","001-H General Fund-ARPA",{"$f":"LEFT(Table_clallam_Oversight_ActiveFunds[[#This Row],[Fund]],5)","v":"001-H"},null,"179",50,"179-Dept of Enterprise Services        ","179","042-1","042-1 C E P and R I Acct-State",null,1,"405","Q00","O","0","Pgm Q - Transportation Ops - Op    ","Q00-Q - Transpo Ops-Op  "]
[1,{"$f":"LEFT(Table_clallam_Oversight_ActiveFunds[[#This Row],[Agency]],3)","v":"076"},"076-Spec Approps to Gov","001-X General Fund-CRF App",{"$f":"LEFT(Table_clallam_Oversight_ActiveFunds[[#This Row],[Fund]],5)","v":"001-X"},null,"185",51,"185-Washington Horse Racing Commission ","185","044-1","044-1 Waste Reduct/Recycle-State",null,1,"405","Q0C","O","0","Pgm Q - Transportation Ops - Cap   ","Q0C-Q - Transpo Ops-Cap "]
[1,{"$f":"LEFT(Table_clallam_Oversight_ActiveFunds[[#This Row],[Agency]],3)","v":"076"},"076-Spec Approps to Gov","006-1 Public Records Effic-State",{"$f":"LEFT(Table_clallam_Oversight_ActiveFunds[[#This Row],[Fund]],5)","v":"006-1"},null,"190",52,"190-Bd of Industrial Insurance Appeals ","190","045-1","045-1 State Veh Park Acct-State",null,1,"405","S00","O","0","Pgm S - Transportation Management  ","S00-S - Transpo Mgmt    "]
[1,{"$f":"LEFT(Table_clallam_Oversight_ActiveFunds[[#This Row],[Agency]],3)","v":"076"},"076-Spec Approps to Gov","02G-1 Health Prfessns Acct-State",{"$f":"LEFT(Table_clallam_Oversight_ActiveFunds[[#This Row],[Fund]],5)","v":"02G-1"},null,"195",53,"195-Liquor and Cannabis Board          ","195","045-6","045-6 State Veh Park Acct-Non-Appr",null,1,"405","T00","O","0","Pgm T - Transpo Plan, Data & Resch ","T00-T - Tran Pl,Data,Res"]
[1,{"$f":"LEFT(Table_clallam_Oversight_ActiveFunds[[#This Row],[Agency]],3)","v":"076"},"076-Spec Approps to Gov","202-1 Med Test Site Licen-State",{"$f":"LEFT(Table_clallam_Oversight_ActiveFunds[[#This Row],[Fund]],5)","v":"202-1"},null,"205",54,"205-Board of Pilotage Commissioners    ","205","048-1","048-1 Marine Fuel Tax Refu-State",null,1,"405","U00","O","0","Pgm U - Charges from Other Agys    ","U00-U - Chgs Othr Agency"]
[1,{"$f":"LEFT(Table_clallam_Oversight_ActiveFunds[[#This Row],[Agency]],3)","v":"076"},"076-Spec Approps to Gov","24B-1 Found Pub Hlth Svc-State",{"$f":"LEFT(Table_clallam_Oversight_ActiveFunds[[#This Row],[Fund]],5)","v":"24B-1"},null,"215",55,"215-Utilities and Transportation Comm  ","215","04E-1","04E-1 Uniform Commer Code-State",null,1,"405","V00","O","0","Pgm V - Public Transportation      ","V00-V - Public Transport"]
[1,{"$f":"LEFT(Table_clallam_Oversight_ActiveFunds[[#This Row],[Agency]],3)","v":"076"},"076-Spec Approps to Gov","24J-1 Workforce Ed Invest-State",{"$f":"LEFT(Table_clallam_Oversight_ActiveFunds[[#This Row],[Fund]],5)","v":"24J-1"},null,"220",56,"220-Board for Volunteer Firefighters   ","220","04F-1","04F-1 Real Est Ed Pgm Acct-State",null,1,"405","W0C","O","0","Pgm W - WA State Ferries - Cap     ","W0C-W - WA Ferries-Cap  "]
[1,{"$f":"LEFT(Table_clallam_Oversight_ActiveFunds[[#This Row],[Agency]],3)","v":"076"},"076-Spec Approps to Gov","441-1 Local Gov Archives-State",{"$f":"LEFT(Table_clallam_Oversight_ActiveFunds[[#This Row],[Fund]],5)","v":"441-1"},null,"225",57,"225-Washington State Patrol            ","225","04H-1","04H-1 Surface Mining Recl-State",null,1,"405","X00","O","0","Pgm X - WA State Ferries - Op      ","X00-X - WA St Ferries-Op"]
[1,{"$f":"LEFT(Table_clallam_Oversight_ActiveFunds[[#This Row],[Agency]],3)","v":"076"},"076-Spec Approps to Gov","447-6 Info Tech Invest Rev-Non-Appr",{"$f":"LEFT(Table_clallam_Oversight_ActiveFunds[[#This Row],[Fund]],5)","v":"447-6"},null,"227",58,"227-Criminal Justice Training Comm     ","227","04M-1","04M-1 Recreatnl Fish Enhan-State",null,1,"405","Y00","O","0","Pgm Y - Rail - Op                  ","Y00-Y - Rail-Op         "]
[1,{"$f":"LEFT(Table_clallam_Oversight_ActiveFunds[[#This Row],[Agency]],3)","v":"076"},"076-Spec Approps to Gov","706-2 COVID Fiscal Recover-Federal",{"$f":"LEFT(Table_clallam_Oversight_ActiveFunds[[#This Row],[Fund]],5)","v":"706-2"},null,"228",59,"228-WA Traffic Safety Commission       ","228","04R-2","04R-2 Drinking Water Assis-Federal",null,1,"405","Y0C","O","0","Pgm Y - Rail - Cap                 ","Y0C-Y - Rail-Cap        "]
[1,{"$f":"LEFT(Table_clallam_Oversight_ActiveFunds[[#This Row],[Agency]],3)","v":"076"},"076-Spec Approps to Gov","706-2 COVID Fiscal Recover-Federal",{"$f":"LEFT(Table_clallam_Oversight_ActiveFunds[[#This Row],[Fund]],5)","v":"706-2"},null,"229",60,"229-Independent Investigations         ","229","04V-1","04V-1 Veh License Fraud-State",null,1,"405","Z00","O","0","Pgm Z - Local Programs - Op        ","Z00-Z - Local Pgms-Op   "]
[1,{"$f":"LEFT(Table_clallam_Oversight_ActiveFunds[[#This Row],[Agency]],3)","v":"080"},"080-Lieutenant Governor","001-1 General Fund-State",{"$f":"LEFT(Table_clallam_Oversight_ActiveFunds[[#This Row],[Fund]],5)","v":"001-1"},null,"235",61,"235-Department of Labor and Industries ","235","04W-1","04W-1 Water Works Op Cert-State",null,1,"405","Z0C","O","0","Pgm Z - Local Programs - Cap       ","Z0C-Z - Local Pgms-Cap  "]
[1,{"$f":"LEFT(Table_clallam_Oversight_ActiveFunds[[#This Row],[Agency]],3)","v":"080"},"080-Lieutenant Governor","001-7 General Fund-Local",{"$f":"LEFT(Table_clallam_Oversight_ActiveFunds[[#This Row],[Fund]],5)","v":"001-7"},null,"240",62,"240-Department of Licensing            ","240","058-1","058-1 Public Works Assist-State",null,1,"406","010","O","0","Operating                          ","010-Operating           "]
[1,{"$f":"LEFT(Table_clallam_Oversight_ActiveFunds[[#This Row],[Agency]],3)","v":"080"},"080-Lieutenant Governor","07L-6 Leg Int Trade Acct-Non-Appr",{"$f":"LEFT(Table_clallam_Oversight_ActiveFunds[[#This Row],[Fund]],5)","v":"07L-6"},null,"245",63,"245-Military Department                ","245","05C-1","05C-1 Crim Justice Treatmt-State",null,1,"406","01C","O","0","Capital                            ","01C-Capital             "]
[1,{"$f":"LEFT(Table_clallam_Oversight_ActiveFunds[[#This Row],[Agency]],3)","v":"082"},"082-Public Disclosure","001-1 General Fund-State",{"$f":"LEFT(Table_clallam_Oversight_ActiveFunds[[#This Row],[Fund]],5)","v":"001-1"},null,"275",64,"275-Public Employment Relations Comm   ","275","05H-1","05H-1 Disaster Response-State",null,1,"407","010","O","0","Operating                          ","010-Operating           "]
[1,{"$f":"LEFT(Table_clallam_Oversight_ActiveFunds[[#This Row],[Agency]],3)","v":"082"},"082-Public Disclosure","22W-1 Publc Disclsr Transp-State",{"$f":"LEFT(Table_clallam_Oversight_ActiveFunds[[#This Row],[Fund]],5)","v":"22W-1"},null,"300",65,"300-Dept of Social and Health Services ",{"$f":"LEFT(I68,3)","v":"300"},"05H-2","05H-2 Disaster Response-Federal",null,1,"407","01C","O","0","Capital                            ","01C-Capital             "]
[1,{"$f":"LEFT(Table_clallam_Oversight_ActiveFunds[[#This Row],[Agency]],3)","v":"083"},"083-WA St Leadership Bd","26H-1 WA Leader Board-State",{"$f":"LEFT(Table_clallam_Oversight_ActiveFunds[[#This Row],[Fund]],5)","v":"26H-1"},null,{"$f":"LEFT(I69,3)","v":"303"},66,"303-Department of Health               ","303",{"$f":"MID(L69,1,5)","v":"05R-1"},"05R-1 Drinking Water Asst-State",null,1,"411","010","O","0","Operating                          ","010-Operating           "]
[1,{"$f":"LEFT(Table_clallam_Oversight_ActiveFunds[[#This Row],[Agency]],3)","v":"083"},"083-WA St Leadership Bd","26J-6 WA Leader Brd Sp Lic-Non-Appr",{"$f":"LEFT(Table_clallam_Oversight_ActiveFunds[[#This Row],[Fund]],5)","v":"26J-6"},null,"305",67,"305-Department of Veterans' Affairs    ","305","05W-1","05W-1 St Drought Prepare-State",null,1]
[1,{"$f":"LEFT(Table_clallam_Oversight_ActiveFunds[[#This Row],[Agency]],3)","v":"085"},"085-Secretary of State","001-1 General Fund-State",{"$f":"LEFT(Table_clallam_Oversight_ActiveFunds[[#This Row],[Fund]],5)","v":"001-1"},null,"307",68,"307-Children, Youth, and Families      ","307","060-1","060-1 Comm/Tech Cap Proj A-State",null,1]
[1,{"$f":"LEFT(Table_clallam_Oversight_ActiveFunds[[#This Row],[Agency]],3)","v":"085"},"085-Secretary of State","001-2 General Fund-Federal",{"$f":"LEFT(Table_clallam_Oversight_ActiveFunds[[#This Row],[Fund]],5)","v":"001-2"},null,"310",69,"310-Department of Corrections          ","310","062-1","062-1 WSU Building Account-State",null,1]
[1,{"$f":"LEFT(Table_clallam_Oversight_ActiveFunds[[#This Row],[Agency]],3)","v":"085"},"085-Secretary of State","001-H General Fund-ARPA",{"$f":"LEFT(Table_clallam_Oversight_ActiveFunds[[#This Row],[Fund]],5)","v":"001-H"},null,"315",70,"315-Dept of Services for the Blind     ","315","063-1","063-1 CWU Capital Projects-State",null,1]
[1,{"$f":"LEFT(Table_clallam_Oversight_ActiveFunds[[#This Row],[Agency]],3)","v":"085"},"085-Secretary of State","006-1 Public Records Effic-State",{"$f":"LEFT(Table_clallam_Oversight_ActiveFunds[[#This Row],[Fund]],5)","v":"006-1"},null,"340",71,"340-Student Achievement Council        ","340","064-1","064-1 UW Building Account-State",null,1]
[1,{"$f":"LEFT(Table_clallam_Oversight_ActiveFunds[[#This Row],[Agency]],3)","v":"085"},"085-Secretary of State","06H-6 WA St Legacy Proj-Non-Appr",{"$f":"LEFT(Table_clallam_Oversight_ActiveFunds[[#This Row],[Fund]],5)","v":"06H-6"},null,"341",72,"341-LEOFF 2 Retirement Board           ","341","065-1","065-1 WWU Capital Projects-State",null,1]
[1,{"$f":"LEFT(Table_clallam_Oversight_ActiveFunds[[#This Row],[Agency]],3)","v":"085"},"085-Secretary of State","12M-1 Charitable Org Ed-State",{"$f":"LEFT(Table_clallam_Oversight_ActiveFunds[[#This Row],[Fund]],5)","v":"12M-1"},null,"350",73,"350-Public Schools                     ","350","066-1","066-1 TESC Capital Project-State",null,1]
[1,{"$f":"LEFT(Table_clallam_Oversight_ActiveFunds[[#This Row],[Agency]],3)","v":"085"},"085-Secretary of State","14E-1 WA St Library Ops-State",{"$f":"LEFT(Table_clallam_Oversight_ActiveFunds[[#This Row],[Fund]],5)","v":"14E-1"},null,"351",74,"351-State School for the Blind         ","351","06A-1","06A-1 Salmon Recovery Acct-State",null,1]
[1,{"$f":"LEFT(Table_clallam_Oversight_ActiveFunds[[#This Row],[Agency]],3)","v":"085"},"085-Secretary of State","14E-6 WA St Library Ops-Non-Appr",{"$f":"LEFT(Table_clallam_Oversight_ActiveFunds[[#This Row],[Fund]],5)","v":"14E-6"},null,"353",75,"353-Deaf and Hard of Hearing Youth     ","353","06G-1","06G-1 Real Est App C Acct-State",null,1]
[1,{"$f":"LEFT(Table_clallam_Oversight_ActiveFunds[[#This Row],[Agency]],3)","v":"085"},"085-Secretary of State","407-6 Secretary State Rev-Non-Appr",{"$f":"LEFT(Table_clallam_Oversight_ActiveFunds[[#This Row],[Fund]],5)","v":"407-6"},null,"354",76,"354-Workforce Trng & Educ Coord Board  ","354","06H-6","06H-6 WA St Legacy Proj-Non-Appr"]
[1,{"$f":"LEFT(Table_clallam_Oversight_ActiveFunds[[#This Row],[Agency]],3)","v":"085"},"085-Secretary of State","415-1 Personnel Svc Acct-State",{"$f":"LEFT(Table_clallam_Oversight_ActiveFunds[[#This Row],[Fund]],5)","v":"415-1"},null,"355",77,"355-Archaeology & Historic Preservation","355","06J-6","06J-6 Securities Pros Acct-Non-Appr"]
[1,{"$f":"LEFT(Table_clallam_Oversight_ActiveFunds[[#This Row],[Agency]],3)","v":"085"},"085-Secretary of State","441-1 Local Gov Archives-State",{"$f":"LEFT(Table_clallam_Oversight_ActiveFunds[[#This Row],[Fund]],5)","v":"441-1"},null,"359",78,"359-Charter School Commission          ","359","06K-1","06K-1 Lead Paint Account-State"]
[1,{"$f":"LEFT(Table_clallam_Oversight_ActiveFunds[[#This Row],[Agency]],3)","v":"085"},"085-Secretary of State","470-6 Imaging Account-Non-Appr",{"$f":"LEFT(Table_clallam_Oversight_ActiveFunds[[#This Row],[Fund]],5)","v":"470-6"},null,"360",79,"360-University of Washington           ","360","06L-1","06L-1 Business Professions-State"]
[1,{"$f":"LEFT(Table_clallam_Oversight_ActiveFunds[[#This Row],[Agency]],3)","v":"085"},"085-Secretary of State","549-2 Election Account-Federal",{"$f":"LEFT(Table_clallam_Oversight_ActiveFunds[[#This Row],[Fund]],5)","v":"549-2"},null,"365",80,"365-Washington State University        ","365","06R-1","06R-1 Real Estate Research-State"]
[1,{"$f":"LEFT(Table_clallam_Oversight_ActiveFunds[[#This Row],[Agency]],3)","v":"085"},"085-Secretary of State","706-2 COVID Fiscal Recover-Federal",{"$f":"LEFT(Table_clallam_Oversight_ActiveFunds[[#This Row],[Fund]],5)","v":"706-2"},null,"370",81,"370-Eastern Washington University      ","370","06T-1","06T-1 License Plate T Acct-State"]
[1,{"$f":"LEFT(Table_clallam_Oversight_ActiveFunds[[#This Row],[Agency]],3)","v":"086"},"086-Indian Affairs","001-1 General Fund-State",{"$f":"LEFT(Table_clallam_Oversight_ActiveFunds[[#This Row],[Fund]],5)","v":"001-1"},null,"375",82,"375-Central Washington University      ","375","071-1","071-1 Warm Water Game Fish-State"]
[1,{"$f":"LEFT(Table_clallam_Oversight_ActiveFunds[[#This Row],[Agency]],3)","v":"087"},"087-Asian-Pac-Amer Affr","001-1 General Fund-State",{"$f":"LEFT(Table_clallam_Oversight_ActiveFunds[[#This Row],[Fund]],5)","v":"001-1"},null,"376",83,"376-The Evergreen State College        ","376","072-1","072-1 Improv-Water Supply - State"]
[1,{"$f":"LEFT(Table_clallam_Oversight_ActiveFunds[[#This Row],[Agency]],3)","v":"090"},"090-State Treasurer","001-1 General Fund-State",{"$f":"LEFT(Table_clallam_Oversight_ActiveFunds[[#This Row],[Fund]],5)","v":"001-1"},null,"380",84,"380-Western Washington University      ","380","07A-6","07A-6 M L Fraud Pros Acct-Non-Appr"]
[1,{"$f":"LEFT(Table_clallam_Oversight_ActiveFunds[[#This Row],[Agency]],3)","v":"090"},"090-State Treasurer","404-1 Treasurer's Service-State",{"$f":"LEFT(Table_clallam_Oversight_ActiveFunds[[#This Row],[Fund]],5)","v":"404-1"},null,"387",85,"387-Washington State Arts Commission   ","387","07E-1","07E-1 Con Harv Rev Account-State"]
[1,{"$f":"LEFT(Table_clallam_Oversight_ActiveFunds[[#This Row],[Agency]],3)","v":"091"},"091-Redistricting Comm","001-1 General Fund-State",{"$f":"LEFT(Table_clallam_Oversight_ActiveFunds[[#This Row],[Fund]],5)","v":"001-1"},null,"390",86,"390-Washington State Historical Society","390","07E-6","07E-6 Con Harv Rev Account-Non-Appr"]
[1,{"$f":"LEFT(Table_clallam_Oversight_ActiveFunds[[#This Row],[Agency]],3)","v":"095"},"095-State Auditor","001-1 General Fund-State",{"$f":"LEFT(Table_clallam_Oversight_ActiveFunds[[#This Row],[Fund]],5)","v":"001-1"},null,"395",87,"395-East Wash State Historical Society ","395","07L-6","07L-6 Leg Int Trade Acct-Non-Appr"]
[1,{"$f":"LEFT(Table_clallam_Oversight_ActiveFunds[[#This Row],[Agency]],3)","v":"095"},"095-State Auditor","413-6 Municipal Revolving-Non-Appr",{"$f":"LEFT(Table_clallam_Oversight_ActiveFunds[[#This Row],[Fund]],5)","v":"413-6"},null,"405",88,"405-Department of Transportation       ","405","07V-6","07V-6 Fish & Wild E Reward-Non-Appr"]
[1,{"$f":"LEFT(Table_clallam_Oversight_ActiveFunds[[#This Row],[Agency]],3)","v":"095"},"095-State Auditor","483-1 Auditing Svcs Revolv-State",{"$f":"LEFT(Table_clallam_Oversight_ActiveFunds[[#This Row],[Fund]],5)","v":"483-1"},null,"406",89,"406-County Road Administration Board   ","406","07W-1","07W-1 Domestic Violence P-State"]
[1,{"$f":"LEFT(Table_clallam_Oversight_ActiveFunds[[#This Row],[Agency]],3)","v":"095"},"095-State Auditor","553-1 Perf Audits of Govt-State",{"$f":"LEFT(Table_clallam_Oversight_ActiveFunds[[#This Row],[Fund]],5)","v":"553-1"},null,"407",90,"407-Transportation Improvement Board   ","407","080-1","080-1 Grade Crossing Acct-State"]
[1,{"$f":"LEFT(Table_clallam_Oversight_ActiveFunds[[#This Row],[Agency]],3)","v":"095"},"095-State Auditor","553-6 Perf Audits of Govt-Non-Appr",{"$f":"LEFT(Table_clallam_Oversight_ActiveFunds[[#This Row],[Fund]],5)","v":"553-6"},null,"410",91,"410-Transportation Commission          ","410","081-1","081-1 WSP Highway Account-State"]
[1,{"$f":"LEFT(Table_clallam_Oversight_ActiveFunds[[#This Row],[Agency]],3)","v":"099"},"099-Sal Elected Official","001-1 General Fund-State",{"$f":"LEFT(Table_clallam_Oversight_ActiveFunds[[#This Row],[Fund]],5)","v":"001-1"},null,"411",92,"411-Freight Mobility Strategic Invest  ","411","081-2","081-2 WSP Highway Account-Federal"]
[1,{"$f":"LEFT(Table_clallam_Oversight_ActiveFunds[[#This Row],[Agency]],3)","v":"100"},"100-Attorney General","001-1 General Fund-State",{"$f":"LEFT(Table_clallam_Oversight_ActiveFunds[[#This Row],[Fund]],5)","v":"001-1"},null,"460",93,"460-Columbia River Gorge Commission    ","460","081-7","081-7 WSP Highway Account-Local"]
[1,{"$f":"LEFT(Table_clallam_Oversight_ActiveFunds[[#This Row],[Agency]],3)","v":"100"},"100-Attorney General","001-2 General Fund-Federal",{"$f":"LEFT(Table_clallam_Oversight_ActiveFunds[[#This Row],[Fund]],5)","v":"001-2"},null,"461",94,"461-Department of Ecology              ","461","082-1","082-1 Motorcycle Safety Ed-State"]
[1,{"$f":"LEFT(Table_clallam_Oversight_ActiveFunds[[#This Row],[Agency]],3)","v":"100"},"100-Attorney General","001-Y General Fund-Oth UAR",{"$f":"LEFT(Table_clallam_Oversight_ActiveFunds[[#This Row],[Fund]],5)","v":"001-Y"},null,"462",95,"462-WA Pollution Liab Insurance Program","462","084-1","084-1 Building Code Cncl-State"]
[1,{"$f":"LEFT(Table_clallam_Oversight_ActiveFunds[[#This Row],[Agency]],3)","v":"100"},"100-Attorney General","111-1 Public Srvc Revlv-State",{"$f":"LEFT(Table_clallam_Oversight_ActiveFunds[[#This Row],[Fund]],5)","v":"111-1"},null,"463",96,"463-Energy Facility Site Eval Council  ","463","086-1","086-1 Fire Serv Trng Acct-State"]
[1,{"$f":"LEFT(Table_clallam_Oversight_ActiveFunds[[#This Row],[Agency]],3)","v":"100"},"100-Attorney General","12F-6 Manf/Mob Hme Disp-Non-Appr",{"$f":"LEFT(Table_clallam_Oversight_ActiveFunds[[#This Row],[Fund]],5)","v":"12F-6"},null,"465",97,"465-State Parks and Recreation Comm    ",{"$f":"LEFT(I100,3)","v":"465"},"087-6","087-6 Park Land Trust Rvlg-Non-Appr"]
[1,{"$f":"LEFT(Table_clallam_Oversight_ActiveFunds[[#This Row],[Agency]],3)","v":"100"},"100-Attorney General","141-6 Fed Narcotics Forfet-Non-Appr",{"$f":"LEFT(Table_clallam_Oversight_ActiveFunds[[#This Row],[Fund]],5)","v":"141-6"},null,"467",98,"467-Recreation and Conservation Office ","467","08A-1","08A-1 Education Legacy T A-State"]
[1,{"$f":"LEFT(Table_clallam_Oversight_ActiveFunds[[#This Row],[Agency]],3)","v":"100"},"100-Attorney General","154-1 Motor Vehcle Arbitrn-State",{"$f":"LEFT(Table_clallam_Oversight_ActiveFunds[[#This Row],[Fund]],5)","v":"154-1"},null,"468",99,"468-Environ & Land Use Hearings Office ","468","08G-6","08G-6 Flexible Spend Admin-Non-Appr"]
[1,{"$f":"LEFT(Table_clallam_Oversight_ActiveFunds[[#This Row],[Agency]],3)","v":"100"},"100-Attorney General","17L-6 Foreclosure Fairness-Non-Appr",{"$f":"LEFT(Table_clallam_Oversight_ActiveFunds[[#This Row],[Fund]],5)","v":"17L-6"},null,"471",100,"471-State Conservation Commission      ","471","08H-1","08H-1 Military Rent and L-State"]
[1,{"$f":"LEFT(Table_clallam_Oversight_ActiveFunds[[#This Row],[Agency]],3)","v":"100"},"100-Attorney General","19A-1 Medicaid Fraud Pnlty-State",{"$f":"LEFT(Table_clallam_Oversight_ActiveFunds[[#This Row],[Fund]],5)","v":"19A-1"},null,"477",101,"477-Dept of Fish and Wildlife          ","477","08J-6","08J-6 Prescrip Drug Cons A-Non-Appr"]
[1,{"$f":"LEFT(Table_clallam_Oversight_ActiveFunds[[#This Row],[Agency]],3)","v":"100"},"100-Attorney General","19P-1 Child Rescue Fund-State",{"$f":"LEFT(Table_clallam_Oversight_ActiveFunds[[#This Row],[Fund]],5)","v":"19P-1"},null,"478",102,"478-Puget Sound Partnership            ","478","08K-1","08K-1 Problem Gambling Acc-State"]
[1,{"$f":"LEFT(Table_clallam_Oversight_ActiveFunds[[#This Row],[Agency]],3)","v":"100"},"100-Attorney General","25V-6 Charitable Assets Pr-Non-Appr",{"$f":"LEFT(Table_clallam_Oversight_ActiveFunds[[#This Row],[Fund]],5)","v":"25V-6"},null,"490",103,"490-Department of Natural Resources    ","490","08M-1","08M-1 Small City Pave/Side-State"]
[1,{"$f":"LEFT(Table_clallam_Oversight_ActiveFunds[[#This Row],[Agency]],3)","v":"100"},"100-Attorney General","405-1 Legal Serv Rev Acct-State",{"$f":"LEFT(Table_clallam_Oversight_ActiveFunds[[#This Row],[Fund]],5)","v":"405-1"},null,"495",104,"495-Department of Agriculture          ","495","08P-6","08P-6 State Parks Ed Enh-Non-Appr"]
[1,{"$f":"LEFT(Table_clallam_Oversight_ActiveFunds[[#This Row],[Agency]],3)","v":"100"},"100-Attorney General","424-6 Anti-Trust Revolving - Non-Appr",{"$f":"LEFT(Table_clallam_Oversight_ActiveFunds[[#This Row],[Fund]],5)","v":"424-6"},null,"540",105,"540-Employment Security Department     ","540","08R-1","08R-1 Waste Tire Removal A-State"]
[1,{"$f":"LEFT(Table_clallam_Oversight_ActiveFunds[[#This Row],[Agency]],3)","v":"100"},"100-Attorney General","441-1 Local Gov Archives-State",{"$f":"LEFT(Table_clallam_Oversight_ActiveFunds[[#This Row],[Fund]],5)","v":"441-1"},null,"699",106,"699-Community/Technical College System ","699","08V-6","08V-6 Veterans Stewardship-Non-Appr"]
[1,{"$f":"LEFT(Table_clallam_Oversight_ActiveFunds[[#This Row],[Agency]],3)","v":"100"},"100-Attorney General","828-1 Tobacco Prev/Ctl-State",{"$f":"LEFT(Table_clallam_Oversight_ActiveFunds[[#This Row],[Fund]],5)","v":"828-1"},null,"",107,null,"","094-1","094-1 Trans Infrastructure-State"]
[1,{"$f":"LEFT(Table_clallam_Oversight_ActiveFunds[[#This Row],[Agency]],3)","v":"101"},"101-Caseload Forecast","001-1 General Fund-State",{"$f":"LEFT(Table_clallam_Oversight_ActiveFunds[[#This Row],[Fund]],5)","v":"001-1"},null,"",108,null,"","095-1","095-1 Electrical License-State"]
[1,{"$f":"LEFT(Table_clallam_Oversight_ActiveFunds[[#This Row],[Agency]],3)","v":"101"},"101-Caseload Forecast","24J-1 Workforce Ed Invest-State",{"$f":"LEFT(Table_clallam_Oversight_ActiveFunds[[#This Row],[Fund]],5)","v":"24J-1"},null,"",109,null,"","096-1","096-1 Hwy Infrastructure-State"]
[1,{"$f":"LEFT(Table_clallam_Oversight_ActiveFunds[[#This Row],[Agency]],3)","v":"102"},"102-Financial Inst Dept","06J-6 Securities Pros Acct-Non-Appr",{"$f":"LEFT(Table_clallam_Oversight_ActiveFunds[[#This Row],[Fund]],5)","v":"06J-6"},null,"",110,null,null,"096-2","096-2 Hwy Infrastructure-Federal"]
[1,{"$f":"LEFT(Table_clallam_Oversight_ActiveFunds[[#This Row],[Agency]],3)","v":"102"},"102-Financial Inst Dept","07A-6 M L Fraud Pros Acct-Non-Appr",{"$f":"LEFT(Table_clallam_Oversight_ActiveFunds[[#This Row],[Fund]],5)","v":"07A-6"},null,"",null,null,null,"097-1","097-1 R V Account-State"]
[1,{"$f":"LEFT(Table_clallam_Oversight_ActiveFunds[[#This Row],[Agency]],3)","v":"102"},"102-Financial Inst Dept","300-6 Financial Svcs Regul-Non-Appr",{"$f":"LEFT(Table_clallam_Oversight_ActiveFunds[[#This Row],[Fund]],5)","v":"300-6"},null,"",null,null,null,"098-1","098-1 EW Pheas Enh Acct-State"]
[1,{"$f":"LEFT(Table_clallam_Oversight_ActiveFunds[[#This Row],[Agency]],3)","v":"103"},"103-Dept Commerce","001-1 General Fund-State",{"$f":"LEFT(Table_clallam_Oversight_ActiveFunds[[#This Row],[Fund]],5)","v":"001-1"},null,"",null,null,null,"099-1","099-1 PS Cap Construction-State"]
[1,{"$f":"LEFT(Table_clallam_Oversight_ActiveFunds[[#This Row],[Agency]],3)","v":"103"},"103-Dept Commerce","001-2 General Fund-Federal",{"$f":"LEFT(Table_clallam_Oversight_ActiveFunds[[#This Row],[Fund]],5)","v":"001-2"},null,"",null,null,null,"099-2","099-2 PS Cap Construction-Federal"]
[1,{"$f":"LEFT(Table_clallam_Oversight_ActiveFunds[[#This Row],[Agency]],3)","v":"103"},"103-Dept Commerce","001-7 General Fund-Local",{"$f":"LEFT(Table_clallam_Oversight_ActiveFunds[[#This Row],[Fund]],5)","v":"001-7"},null,"",null,null,null,"099-7","099-7 PS Cap Construction-Local"]
[1,{"$f":"LEFT(Table_clallam_Oversight_ActiveFunds[[#This Row],[Agency]],3)","v":"103"},"103-Dept Commerce","001-H General Fund-ARPA",{"$f":"LEFT(Table_clallam_Oversight_ActiveFunds[[#This Row],[Fund]],5)","v":"001-H"},null,"",null,null,null,"09B-6","09B-6 Boating Safety Ed C-Non-Appr"]
[1,{"$f":"LEFT(Table_clallam_Oversight_ActiveFunds[[#This Row],[Agency]],3)","v":"103"},"103-Dept Commerce","001-X General Fund-CRF App",{"$f":"LEFT(Table_clallam_Oversight_ActiveFunds[[#This Row],[Fund]],5)","v":"001-X"},null,"",null,null,null,"09E-1","09E-1 Freight Mobil Inv A-State"]
[1,{"$f":"LEFT(Table_clallam_Oversight_ActiveFunds[[#This Row],[Agency]],3)","v":"103"},"103-Dept Commerce","001-Z General Fund-CRRSA",{"$f":"LEFT(Table_clallam_Oversight_ActiveFunds[[#This Row],[Fund]],5)","v":"001-Z"},null,"",null,null,null,"09H-1","09H-1 Transpo Partner Acct-State"]
[1,{"$f":"LEFT(Table_clallam_Oversight_ActiveFunds[[#This Row],[Agency]],3)","v":"103"},"103-Dept Commerce","058-1 Public Works Assist-State",{"$f":"LEFT(Table_clallam_Oversight_ActiveFunds[[#This Row],[Fund]],5)","v":"058-1"},null,"",null,null,null,"09H-T","09H-T Transpo Partner Acct-Bonds"]
[1,{"$f":"LEFT(Table_clallam_Oversight_ActiveFunds[[#This Row],[Agency]],3)","v":"103"},"103-Dept Commerce","06K-1 Lead Paint Account-State",{"$f":"LEFT(Table_clallam_Oversight_ActiveFunds[[#This Row],[Fund]],5)","v":"06K-1"},null,"",null,null,null,"09J-6","09J-6 WA Coast Crab Pot B-Non-Appr"]
[1,{"$f":"LEFT(Table_clallam_Oversight_ActiveFunds[[#This Row],[Agency]],3)","v":"103"},"103-Dept Commerce","084-1 Building Code Cncl-State",{"$f":"LEFT(Table_clallam_Oversight_ActiveFunds[[#This Row],[Fund]],5)","v":"084-1"},null,"",null,null,null,"09L-6","09L-6 Nursing Res Center-Non-Appr"]
[1,{"$f":"LEFT(Table_clallam_Oversight_ActiveFunds[[#This Row],[Agency]],3)","v":"103"},"103-Dept Commerce","09R-1 Econ Dev Strat R A-State",{"$f":"LEFT(Table_clallam_Oversight_ActiveFunds[[#This Row],[Fund]],5)","v":"09R-1"},null,"",null,null,null,"09R-1","09R-1 Econ Dev Strat R A-State"]
[1,{"$f":"LEFT(Table_clallam_Oversight_ActiveFunds[[#This Row],[Agency]],3)","v":"103"},"103-Dept Commerce","107-1 Liquor Excise-State",{"$f":"LEFT(Table_clallam_Oversight_ActiveFunds[[#This Row],[Fund]],5)","v":"107-1"},null,"",null,null,null,"102-1","102-1 Rural Arterial Trust-State"]
[1,{"$f":"LEFT(Table_clallam_Oversight_ActiveFunds[[#This Row],[Agency]],3)","v":"103"},"103-Dept Commerce","10B-1 Home Security Fund-State",{"$f":"LEFT(Table_clallam_Oversight_ActiveFunds[[#This Row],[Fund]],5)","v":"10B-1"},null,"",null,null,null,"104-1","104-1 Lim Fish & Wildlife-State"]
[1,{"$f":"LEFT(Table_clallam_Oversight_ActiveFunds[[#This Row],[Agency]],3)","v":"103"},"103-Dept Commerce","12C-1 Affordable Housing-State",{"$f":"LEFT(Table_clallam_Oversight_ActiveFunds[[#This Row],[Fund]],5)","v":"12C-1"},null,"",null,null,null,"106-1","106-1 Highway Safety Acct-State"]
[1,{"$f":"LEFT(Table_clallam_Oversight_ActiveFunds[[#This Row],[Agency]],3)","v":"103"},"103-Dept Commerce","14H-1 Comm Pres/Dev Auth-State",{"$f":"LEFT(Table_clallam_Oversight_ActiveFunds[[#This Row],[Fund]],5)","v":"14H-1"},null,"",null,null,null,"106-2","106-2 Highway Safety Acct-Federal"]
[1,{"$f":"LEFT(Table_clallam_Oversight_ActiveFunds[[#This Row],[Agency]],3)","v":"103"},"103-Dept Commerce","14M-1 Finan Frd & Id Thft-State",{"$f":"LEFT(Table_clallam_Oversight_ActiveFunds[[#This Row],[Fund]],5)","v":"14M-1"},null,"",null,null,null,"106-7","106-7 Highway Safety Acct-Local"]
[1,{"$f":"LEFT(Table_clallam_Oversight_ActiveFunds[[#This Row],[Agency]],3)","v":"103"},"103-Dept Commerce","150-1 Low-Inc Weath/Str - State",{"$f":"LEFT(Table_clallam_Oversight_ActiveFunds[[#This Row],[Fund]],5)","v":"150-1"},null,"",null,null,null,"107-1","107-1 Liquor Excise-State"]
[1,{"$f":"LEFT(Table_clallam_Oversight_ActiveFunds[[#This Row],[Agency]],3)","v":"103"},"103-Dept Commerce","17L-6 Foreclosure Fairness-Non-Appr",{"$f":"LEFT(Table_clallam_Oversight_ActiveFunds[[#This Row],[Fund]],5)","v":"17L-6"},null,"",null,null,null,"108-1","108-1 Motor Vehicle Acct-State"]
[1,{"$f":"LEFT(Table_clallam_Oversight_ActiveFunds[[#This Row],[Agency]],3)","v":"103"},"103-Dept Commerce","19V-1 Cancer Research Endo-State",{"$f":"LEFT(Table_clallam_Oversight_ActiveFunds[[#This Row],[Fund]],5)","v":"19V-1"},null,{"$f":"LEFT(I133,3)","v":""},null,null,null,{"$f":"MID(L133,1,5)","v":"108-2"},"108-2 Motor Vehicle Acct-Federal"]
[1,{"$f":"LEFT(Table_clallam_Oversight_ActiveFunds[[#This Row],[Agency]],3)","v":"103"},"103-Dept Commerce","205-6 Mobile Home Pk Reloc-Non-Appr",{"$f":"LEFT(Table_clallam_Oversight_ActiveFunds[[#This Row],[Fund]],5)","v":"205-6"},null,"",null,null,null,"108-7","108-7 Motor Vehicle Acct-Local"]
[1,{"$f":"LEFT(Table_clallam_Oversight_ActiveFunds[[#This Row],[Agency]],3)","v":"103"},"103-Dept Commerce","22S-6 Landlord Mitigation-Non-Appr",{"$f":"LEFT(Table_clallam_Oversight_ActiveFunds[[#This Row],[Fund]],5)","v":"22S-6"},null,"",null,null,null,"109-1","109-1 Puget Sd Ferry Oper-State"]
[1,{"$f":"LEFT(Table_clallam_Oversight_ActiveFunds[[#This Row],[Agency]],3)","v":"103"},"103-Dept Commerce","22T-1 SW Tourism Marketing-State",{"$f":"LEFT(Table_clallam_Oversight_ActiveFunds[[#This Row],[Fund]],5)","v":"22T-1"},null,"",null,null,null,"109-2","109-2 Puget Sd Ferry Oper-Federal"]
[1,{"$f":"LEFT(Table_clallam_Oversight_ActiveFunds[[#This Row],[Agency]],3)","v":"103"},"103-Dept Commerce","23R-1 Model Toxics Strmwtr-State",{"$f":"LEFT(Table_clallam_Oversight_ActiveFunds[[#This Row],[Fund]],5)","v":"23R-1"},null,"",null,null,null,"109-7","109-7 Puget Sd Ferry Oper-Local"]
[1,{"$f":"LEFT(Table_clallam_Oversight_ActiveFunds[[#This Row],[Agency]],3)","v":"103"},"103-Dept Commerce","263-1 Comm Economic Devel-State",{"$f":"LEFT(Table_clallam_Oversight_ActiveFunds[[#This Row],[Fund]],5)","v":"263-1"},null,"",null,null,null,"10B-1","10B-1 Home Security Fund-State"]
[1,{"$f":"LEFT(Table_clallam_Oversight_ActiveFunds[[#This Row],[Agency]],3)","v":"103"},"103-Dept Commerce","26U-1 Apple Health & Homes-State",{"$f":"LEFT(Table_clallam_Oversight_ActiveFunds[[#This Row],[Fund]],5)","v":"26U-1"},null,"",null,null,null,"10G-1","10G-1 Water Rights Track-State"]
[1,{"$f":"LEFT(Table_clallam_Oversight_ActiveFunds[[#This Row],[Agency]],3)","v":"103"},"103-Dept Commerce","27B-1 Elec Veh Incentive-State",{"$f":"LEFT(Table_clallam_Oversight_ActiveFunds[[#This Row],[Fund]],5)","v":"27B-1"},null,"",null,null,null,"110-1","110-1 Special Wildlife-State"]
[1,{"$f":"LEFT(Table_clallam_Oversight_ActiveFunds[[#This Row],[Agency]],3)","v":"103"},"103-Dept Commerce","285-1 Growth Mgmt Planning-State",{"$f":"LEFT(Table_clallam_Oversight_ActiveFunds[[#This Row],[Fund]],5)","v":"285-1"},null,"",null,null,null,"110-2","110-2 Special Wildlife-Federal"]
[1,{"$f":"LEFT(Table_clallam_Oversight_ActiveFunds[[#This Row],[Agency]],3)","v":"103"},"103-Dept Commerce","315-1 Dedicated Cannabis-State",{"$f":"LEFT(Table_clallam_Oversight_ActiveFunds[[#This Row],[Fund]],5)","v":"315-1"},null,"",null,null,null,"110-7","110-7 Special Wildlife-Local"]
[1,{"$f":"LEFT(Table_clallam_Oversight_ActiveFunds[[#This Row],[Agency]],3)","v":"103"},"103-Dept Commerce","501-1 Liquor Revolving Acc-State",{"$f":"LEFT(Table_clallam_Oversight_ActiveFunds[[#This Row],[Fund]],5)","v":"501-1"},null,"",null,null,null,"111-1","111-1 Public Srvc Revlv-State"]
[1,{"$f":"LEFT(Table_clallam_Oversight_ActiveFunds[[#This Row],[Agency]],3)","v":"103"},"103-Dept Commerce","532-1 Wa Housing Trust Acc-State",{"$f":"LEFT(Table_clallam_Oversight_ActiveFunds[[#This Row],[Fund]],5)","v":"532-1"},null,"",null,null,null,"111-2","111-2 Public Srvc Revlv-Federal"]
[1,{"$f":"LEFT(Table_clallam_Oversight_ActiveFunds[[#This Row],[Agency]],3)","v":"103"},"103-Dept Commerce","706-2 COVID Fiscal Recover-Federal",{"$f":"LEFT(Table_clallam_Oversight_ActiveFunds[[#This Row],[Fund]],5)","v":"706-2"},null,"",null,null,null,"116-6","116-6 Basic Data Account-Non-Appr"]
[1,{"$f":"LEFT(Table_clallam_Oversight_ActiveFunds[[#This Row],[Agency]],3)","v":"103"},"103-Dept Commerce","746-6 Hanford Econ Invest-Non-Appr",{"$f":"LEFT(Table_clallam_Oversight_ActiveFunds[[#This Row],[Fund]],5)","v":"746-6"},null,"",null,null,null,"119-2","119-2 Unemploy Comp Admin-Federal"]
[1,{"$f":"LEFT(Table_clallam_Oversight_ActiveFunds[[#This Row],[Agency]],3)","v":"103"},"103-Dept Commerce","759-6 Miscellaneous Pgm-Non-Appr",{"$f":"LEFT(Table_clallam_Oversight_ActiveFunds[[#This Row],[Fund]],5)","v":"759-6"},null,"",null,null,null,"11A-6","11A-6 Employment Training-Non-Appr"]
[1,{"$f":"LEFT(Table_clallam_Oversight_ActiveFunds[[#This Row],[Agency]],3)","v":"103"},"103-Dept Commerce","777-1 Prostitution Prevent-State",{"$f":"LEFT(Table_clallam_Oversight_ActiveFunds[[#This Row],[Fund]],5)","v":"777-1"},null,"",null,null,null,"11B-1","11B-1 Regnl Mob Grnt Acct-State"]
[1,{"$f":"LEFT(Table_clallam_Oversight_ActiveFunds[[#This Row],[Agency]],3)","v":"103"},"103-Dept Commerce","887-1 Pub Facil Const Loan-State",{"$f":"LEFT(Table_clallam_Oversight_ActiveFunds[[#This Row],[Fund]],5)","v":"887-1"},null,"",null,null,null,"11E-1","11E-1 Freight Mblty Multi-State"]
[1,{"$f":"LEFT(Table_clallam_Oversight_ActiveFunds[[#This Row],[Agency]],3)","v":"103"},"103-Dept Commerce","218-2 Multimodal Acct-Federal",{"$f":"LEFT(Table_clallam_Oversight_ActiveFunds[[#This Row],[Fund]],5)","v":"218-2"},null,"",null,null,null,"11H-1","11H-1 Forest & Fish Suppt-State"]
[1,{"$f":"LEFT(Table_clallam_Oversight_ActiveFunds[[#This Row],[Agency]],3)","v":"103"},"103-Dept Commerce","26Q-1 Move Ahead WA Flex-State",{"$f":"LEFT(Table_clallam_Oversight_ActiveFunds[[#This Row],[Fund]],5)","v":"26Q-1"},null,"",null,null,null,"11J-6","11J-6 Elec Product Recycle-Non-Appr"]
[1,{"$f":"LEFT(Table_clallam_Oversight_ActiveFunds[[#This Row],[Agency]],3)","v":"104"},"104-Econ & Rev Forecast","001-1 General Fund-State",{"$f":"LEFT(Table_clallam_Oversight_ActiveFunds[[#This Row],[Fund]],5)","v":"001-1"},null,"",null,null,null,"11K-1","11K-1 WA Auto Theft Prevnt-State"]
[1,{"$f":"LEFT(Table_clallam_Oversight_ActiveFunds[[#This Row],[Agency]],3)","v":"104"},"104-Econ & Rev Forecast","578-1 Lottery Admin Acct-State",{"$f":"LEFT(Table_clallam_Oversight_ActiveFunds[[#This Row],[Fund]],5)","v":"578-1"},null,"",null,null,null,"11V-7","11V-7 Veteran Estate Mgmt-Local"]
[1,{"$f":"LEFT(Table_clallam_Oversight_ActiveFunds[[#This Row],[Agency]],3)","v":"105"},"105-OFM","001-1 General Fund-State",{"$f":"LEFT(Table_clallam_Oversight_ActiveFunds[[#This Row],[Fund]],5)","v":"001-1"},null,"",null,null,null,"120-1","120-1 Admin Contingen Acct-State"]
[1,{"$f":"LEFT(Table_clallam_Oversight_ActiveFunds[[#This Row],[Agency]],3)","v":"105"},"105-OFM","001-2 General Fund-Federal",{"$f":"LEFT(Table_clallam_Oversight_ActiveFunds[[#This Row],[Fund]],5)","v":"001-2"},null,"",null,null,null,"125-1","125-1 Site Closure Account-State"]
[1,{"$f":"LEFT(Table_clallam_Oversight_ActiveFunds[[#This Row],[Agency]],3)","v":"105"},"105-OFM","001-7 General Fund-Local",{"$f":"LEFT(Table_clallam_Oversight_ActiveFunds[[#This Row],[Fund]],5)","v":"001-7"},null,"",null,null,null,"126-6","126-6 Agric Local Acct-Non-Appr"]
[1,{"$f":"LEFT(Table_clallam_Oversight_ActiveFunds[[#This Row],[Agency]],3)","v":"105"},"105-OFM","001-H General Fund-ARPA",{"$f":"LEFT(Table_clallam_Oversight_ActiveFunds[[#This Row],[Fund]],5)","v":"001-H"},null,"",null,null,null,"128-6","128-6 Grain Inspection-Non-Appr"]
[1,{"$f":"LEFT(Table_clallam_Oversight_ActiveFunds[[#This Row],[Agency]],3)","v":"105"},"105-OFM","09R-1 Econ Dev Strat R A-State",{"$f":"LEFT(Table_clallam_Oversight_ActiveFunds[[#This Row],[Fund]],5)","v":"09R-1"},null,"",null,null,null,"12C-1","12C-1 Affordable Housing-State"]
[1,{"$f":"LEFT(Table_clallam_Oversight_ActiveFunds[[#This Row],[Agency]],3)","v":"105"},"105-OFM","16R-6 Multiagency Permit T-Non-Appr",{"$f":"LEFT(Table_clallam_Oversight_ActiveFunds[[#This Row],[Fund]],5)","v":"16R-6"},null,"",null,null,null,"12F-6","12F-6 Manf/Mob Hme Disp-Non-Appr"]
[1,{"$f":"LEFT(Table_clallam_Oversight_ActiveFunds[[#This Row],[Agency]],3)","v":"105"},"105-OFM","24J-1 Workforce Ed Invest-State",{"$f":"LEFT(Table_clallam_Oversight_ActiveFunds[[#This Row],[Fund]],5)","v":"24J-1"},null,"",null,null,null,"12G-6","12G-6 Rockfish Research-Non-Appr"]
[1,{"$f":"LEFT(Table_clallam_Oversight_ActiveFunds[[#This Row],[Agency]],3)","v":"105"},"105-OFM","25N-1 988 BH Crisis Rsp Ln-State",{"$f":"LEFT(Table_clallam_Oversight_ActiveFunds[[#This Row],[Fund]],5)","v":"25N-1"},null,"",null,null,null,"12L-6","12L-6 Outdoor Ed & Rec-Non-Appr"]
[1,{"$f":"LEFT(Table_clallam_Oversight_ActiveFunds[[#This Row],[Agency]],3)","v":"105"},"105-OFM","415-1 Personnel Svc Acct-State",{"$f":"LEFT(Table_clallam_Oversight_ActiveFunds[[#This Row],[Fund]],5)","v":"415-1"},null,"",null,null,null,"12M-1","12M-1 Charitable Org Ed-State"]
[1,{"$f":"LEFT(Table_clallam_Oversight_ActiveFunds[[#This Row],[Agency]],3)","v":"105"},"105-OFM","421-6 Ed Tech Revolving-Non-Appr",{"$f":"LEFT(Table_clallam_Oversight_ActiveFunds[[#This Row],[Fund]],5)","v":"421-6"},null,"",null,null,null,"12P-1","12P-1 Geoduck Aquaculture-State"]
[1,{"$f":"LEFT(Table_clallam_Oversight_ActiveFunds[[#This Row],[Agency]],3)","v":"105"},"105-OFM","436-6 OFM Labor Relations-Non-Appr",{"$f":"LEFT(Table_clallam_Oversight_ActiveFunds[[#This Row],[Fund]],5)","v":"436-6"},null,"",null,null,null,"12T-1","12T-1 Trauma Brain Injury-State"]
[1,{"$f":"LEFT(Table_clallam_Oversight_ActiveFunds[[#This Row],[Agency]],3)","v":"105"},"105-OFM","455-1 Higher Ed Pers Svcs-State",{"$f":"LEFT(Table_clallam_Oversight_ActiveFunds[[#This Row],[Fund]],5)","v":"455-1"},null,"",null,null,null,"12T-6","12T-6 Trauma Brain Injury-Non-Appr"]
[1,{"$f":"LEFT(Table_clallam_Oversight_ActiveFunds[[#This Row],[Agency]],3)","v":"105"},"105-OFM","466-1 Statewide IT Sys Dev-State",{"$f":"LEFT(Table_clallam_Oversight_ActiveFunds[[#This Row],[Fund]],5)","v":"466-1"},null,"",null,null,null,"131-6","131-6 Fair Account-Non-Appr"]
[1,{"$f":"LEFT(Table_clallam_Oversight_ActiveFunds[[#This Row],[Agency]],3)","v":"105"},"105-OFM","468-1 OFM Central Services-State",{"$f":"LEFT(Table_clallam_Oversight_ActiveFunds[[#This Row],[Fund]],5)","v":"468-1"},null,"",null,null,null,"133-6","133-6 Childrens' Trst Acct-Non-Appr"]
[1,{"$f":"LEFT(Table_clallam_Oversight_ActiveFunds[[#This Row],[Agency]],3)","v":"105"},"105-OFM","472-1 Statewide IT Sys M&O-State",{"$f":"LEFT(Table_clallam_Oversight_ActiveFunds[[#This Row],[Fund]],5)","v":"472-1"},null,"",null,null,null,"134-1","134-1 Employment Service-State"]
[1,{"$f":"LEFT(Table_clallam_Oversight_ActiveFunds[[#This Row],[Agency]],3)","v":"105"},"105-OFM","472-6 Statewide IT Sys M&O-Non-Appr",{"$f":"LEFT(Table_clallam_Oversight_ActiveFunds[[#This Row],[Fund]],5)","v":"472-6"},null,"",null,null,null,"138-1","138-1 Insurance Comm Regul-State"]
[1,{"$f":"LEFT(Table_clallam_Oversight_ActiveFunds[[#This Row],[Agency]],3)","v":"105"},"105-OFM","553-1 Perf Audits of Govt-State",{"$f":"LEFT(Table_clallam_Oversight_ActiveFunds[[#This Row],[Fund]],5)","v":"553-1"},null,"",null,null,null,"141-6","141-6 Fed Narcotics Forfet-Non-Appr"]
[1,{"$f":"LEFT(Table_clallam_Oversight_ActiveFunds[[#This Row],[Agency]],3)","v":"105"},"105-OFM","706-2 COVID Fiscal Recover-Federal",{"$f":"LEFT(Table_clallam_Oversight_ActiveFunds[[#This Row],[Fund]],5)","v":"706-2"},null,"",null,null,null,"143-6","143-6 HE Federal Appr Acct-Non-Appr"]
[1,{"$f":"LEFT(Table_clallam_Oversight_ActiveFunds[[#This Row],[Agency]],3)","v":"105"},"105-OFM","108-1 Motor Vehicle Acct-State",{"$f":"LEFT(Table_clallam_Oversight_ActiveFunds[[#This Row],[Fund]],5)","v":"108-1"},null,"",null,null,null,"144-1","144-1 Tran Improv Account-State"]
[1,{"$f":"LEFT(Table_clallam_Oversight_ActiveFunds[[#This Row],[Agency]],3)","v":"105"},"105-OFM","109-1 Puget Sd Ferry Oper-State",{"$f":"LEFT(Table_clallam_Oversight_ActiveFunds[[#This Row],[Fund]],5)","v":"109-1"},null,"",null,null,null,"145-6","145-6 HE Grants/Contract-Non-Appr"]
[1,{"$f":"LEFT(Table_clallam_Oversight_ActiveFunds[[#This Row],[Agency]],3)","v":"105"},"105-OFM","218-1 Multimodal Acct-State",{"$f":"LEFT(Table_clallam_Oversight_ActiveFunds[[#This Row],[Fund]],5)","v":"218-1"},null,"",null,null,null,"146-1","146-1 Firearms Range Acct-State"]
[1,{"$f":"LEFT(Table_clallam_Oversight_ActiveFunds[[#This Row],[Agency]],3)","v":"107"},"107-Health Care Auth","001-1 General Fund-State",{"$f":"LEFT(Table_clallam_Oversight_ActiveFunds[[#This Row],[Fund]],5)","v":"001-1"},null,"",null,null,null,"148-6","148-6 HE Dedicated Local-Non-Appr"]
[1,{"$f":"LEFT(Table_clallam_Oversight_ActiveFunds[[#This Row],[Agency]],3)","v":"107"},"107-Health Care Auth","001-2 General Fund-Federal",{"$f":"LEFT(Table_clallam_Oversight_ActiveFunds[[#This Row],[Fund]],5)","v":"001-2"},null,"",null,null,null,"149-6","149-6 HE Operating Fees-Non-Appr"]
[1,{"$f":"LEFT(Table_clallam_Oversight_ActiveFunds[[#This Row],[Agency]],3)","v":"107"},"107-Health Care Auth","001-7 General Fund-Local",{"$f":"LEFT(Table_clallam_Oversight_ActiveFunds[[#This Row],[Fund]],5)","v":"001-7"},null,"",null,null,null,"14A-1","14A-1 Wildlife Rehab-State"]
[1,{"$f":"LEFT(Table_clallam_Oversight_ActiveFunds[[#This Row],[Agency]],3)","v":"107"},"107-Health Care Auth","001-C General Fund-Medicaid",{"$f":"LEFT(Table_clallam_Oversight_ActiveFunds[[#This Row],[Fund]],5)","v":"001-C"},null,"",null,null,null,"14E-1","14E-1 WA St Library Ops-State"]
[1,{"$f":"LEFT(Table_clallam_Oversight_ActiveFunds[[#This Row],[Agency]],3)","v":"107"},"107-Health Care Auth","001-H General Fund-ARPA",{"$f":"LEFT(Table_clallam_Oversight_ActiveFunds[[#This Row],[Fund]],5)","v":"001-H"},null,"",null,null,null,"14E-6","14E-6 WA St Library Ops-Non-Appr"]
[1,{"$f":"LEFT(Table_clallam_Oversight_ActiveFunds[[#This Row],[Agency]],3)","v":"107"},"107-Health Care Auth","001-W General Fund-Oth COVID",{"$f":"LEFT(Table_clallam_Oversight_ActiveFunds[[#This Row],[Fund]],5)","v":"001-W"},null,"",null,null,null,"14G-1","14G-1 Ballast Water Mgmt-State"]
[1,{"$f":"LEFT(Table_clallam_Oversight_ActiveFunds[[#This Row],[Agency]],3)","v":"107"},"107-Health Care Auth","001-Y General Fund-Oth UAR",{"$f":"LEFT(Table_clallam_Oversight_ActiveFunds[[#This Row],[Fund]],5)","v":"001-Y"},null,"",null,null,null,"14H-1","14H-1 Comm Pres/Dev Auth-State"]
[1,{"$f":"LEFT(Table_clallam_Oversight_ActiveFunds[[#This Row],[Agency]],3)","v":"107"},"107-Health Care Auth","001-Z General Fund-CRRSA",{"$f":"LEFT(Table_clallam_Oversight_ActiveFunds[[#This Row],[Fund]],5)","v":"001-Z"},null,"",null,null,null,"14M-1","14M-1 Finan Frd & Id Thft-State"]
[1,{"$f":"LEFT(Table_clallam_Oversight_ActiveFunds[[#This Row],[Agency]],3)","v":"107"},"107-Health Care Auth","03C-1 Emer Med/Trauma Care-State",{"$f":"LEFT(Table_clallam_Oversight_ActiveFunds[[#This Row],[Fund]],5)","v":"03C-1"},null,"",null,null,null,"14P-6","14P-6 Skeletal Human-Non-Appr"]
[1,{"$f":"LEFT(Table_clallam_Oversight_ActiveFunds[[#This Row],[Agency]],3)","v":"107"},"107-Health Care Auth","05C-1 Crim Justice Treatmt-State",{"$f":"LEFT(Table_clallam_Oversight_ActiveFunds[[#This Row],[Fund]],5)","v":"05C-1"},null,"",null,null,null,"14R-1","14R-1 Mil Dep ASSA-State"]
[1,{"$f":"LEFT(Table_clallam_Oversight_ActiveFunds[[#This Row],[Agency]],3)","v":"107"},"107-Health Care Auth","08A-1 Education Legacy T A-State",{"$f":"LEFT(Table_clallam_Oversight_ActiveFunds[[#This Row],[Fund]],5)","v":"08A-1"},null,"",null,null,null,"14V-1","14V-1 Ignition Interlock-State"]
[1,{"$f":"LEFT(Table_clallam_Oversight_ActiveFunds[[#This Row],[Agency]],3)","v":"107"},"107-Health Care Auth","08G-6 Flexible Spend Admin-Non-Appr",{"$f":"LEFT(Table_clallam_Oversight_ActiveFunds[[#This Row],[Fund]],5)","v":"08G-6"},null,"",null,null,null,"14W-6","14W-6 Reduced Cigarette Ig-Non-Appr"]
[1,{"$f":"LEFT(Table_clallam_Oversight_ActiveFunds[[#This Row],[Agency]],3)","v":"107"},"107-Health Care Auth","08J-6 Prescrip Drug Cons A-Non-Appr",{"$f":"LEFT(Table_clallam_Oversight_ActiveFunds[[#This Row],[Fund]],5)","v":"08J-6"},null,"",null,null,null,"150-1","150-1 Low-Inc Weath/Str - State"]
[1,{"$f":"LEFT(Table_clallam_Oversight_ActiveFunds[[#This Row],[Agency]],3)","v":"107"},"107-Health Care Auth","08K-1 Problem Gambling Acc-State",{"$f":"LEFT(Table_clallam_Oversight_ActiveFunds[[#This Row],[Fund]],5)","v":"08K-1"},null,"",null,null,null,"153-1","153-1 Rural Mobility-State"]
[1,{"$f":"LEFT(Table_clallam_Oversight_ActiveFunds[[#This Row],[Agency]],3)","v":"107"},"107-Health Care Auth","16W-1 Hospital Safety Net-State",{"$f":"LEFT(Table_clallam_Oversight_ActiveFunds[[#This Row],[Fund]],5)","v":"16W-1"},null,"",null,null,null,"154-1","154-1 Motor Vehcle Arbitrn-State"]
[1,{"$f":"LEFT(Table_clallam_Oversight_ActiveFunds[[#This Row],[Agency]],3)","v":"107"},"107-Health Care Auth","172-6 Basic Hlth Plan Trst-Non-Appr",{"$f":"LEFT(Table_clallam_Oversight_ActiveFunds[[#This Row],[Fund]],5)","v":"172-6"},null,"",null,null,null,"158-1","158-1 Aquatic Land Dredged-State"]
[1,{"$f":"LEFT(Table_clallam_Oversight_ActiveFunds[[#This Row],[Agency]],3)","v":"107"},"107-Health Care Auth","17T-1 Health Benefit Excha-State",{"$f":"LEFT(Table_clallam_Oversight_ActiveFunds[[#This Row],[Fund]],5)","v":"17T-1"},null,"",null,null,null,"159-6","159-6 Parks Improvement Ac-Non-Appr"]
[1,{"$f":"LEFT(Table_clallam_Oversight_ActiveFunds[[#This Row],[Agency]],3)","v":"107"},"107-Health Care Auth","23L-6 Indian Hlth Imp Rein-Non-Appr",{"$f":"LEFT(Table_clallam_Oversight_ActiveFunds[[#This Row],[Fund]],5)","v":"23L-6"},null,"",null,null,null,"15M-1","15M-1 Biotoxin Account-State"]
[1,{"$f":"LEFT(Table_clallam_Oversight_ActiveFunds[[#This Row],[Agency]],3)","v":"107"},"107-Health Care Auth","24L-1 Ambulance Transport-State",{"$f":"LEFT(Table_clallam_Oversight_ActiveFunds[[#This Row],[Fund]],5)","v":"24L-1"},null,"",null,null,null,"15V-1","15V-1 Funeral & Cemetery-State"]
[1,{"$f":"LEFT(Table_clallam_Oversight_ActiveFunds[[#This Row],[Agency]],3)","v":"107"},"107-Health Care Auth","24V-1 Telebehav Hea Acc Ac-State",{"$f":"LEFT(Table_clallam_Oversight_ActiveFunds[[#This Row],[Fund]],5)","v":"24V-1"},null,"",null,null,null,"15V-6","15V-6 Funeral & Cemetery-Non-Appr"]
[1,{"$f":"LEFT(Table_clallam_Oversight_ActiveFunds[[#This Row],[Agency]],3)","v":"107"},"107-Health Care Auth","25M-1 Hlth Care Afford-State",{"$f":"LEFT(Table_clallam_Oversight_ActiveFunds[[#This Row],[Fund]],5)","v":"25M-1"},null,"",null,null,null,"160-1","160-1 Wood Stove Education-State"]
[1,{"$f":"LEFT(Table_clallam_Oversight_ActiveFunds[[#This Row],[Agency]],3)","v":"107"},"107-Health Care Auth","25N-1 988 BH Crisis Rsp Ln-State",{"$f":"LEFT(Table_clallam_Oversight_ActiveFunds[[#This Row],[Fund]],5)","v":"25N-1"},null,"",null,null,null,"162-1","162-1 Farm Lbr Contractor-State"]
[1,{"$f":"LEFT(Table_clallam_Oversight_ActiveFunds[[#This Row],[Agency]],3)","v":"107"},"107-Health Care Auth","315-1 Dedicated Cannabis-State",{"$f":"LEFT(Table_clallam_Oversight_ActiveFunds[[#This Row],[Fund]],5)","v":"315-1"},null,{"$f":"LEFT(I197,3)","v":""},null,null,null,{"$f":"MID(L197,1,5)","v":"163-1"},"163-1 Worker & Comm Right-State"]
[1,{"$f":"LEFT(Table_clallam_Oversight_ActiveFunds[[#This Row],[Agency]],3)","v":"107"},"107-Health Care Auth","418-1 St Hlth Care Admn Ac-State",{"$f":"LEFT(Table_clallam_Oversight_ActiveFunds[[#This Row],[Fund]],5)","v":"418-1"},null,"",null,null,null,"167-1","167-1 Nat Resources Conser-State"]
[1,{"$f":"LEFT(Table_clallam_Oversight_ActiveFunds[[#This Row],[Agency]],3)","v":"107"},"107-Health Care Auth","438-6 UDP Benefits Admin-Non-Appr",{"$f":"LEFT(Table_clallam_Oversight_ActiveFunds[[#This Row],[Fund]],5)","v":"438-6"},null,"",null,null,null,"169-6","169-6 Horse Racing Commsn-Non-Appr"]
[1,{"$f":"LEFT(Table_clallam_Oversight_ActiveFunds[[#This Row],[Agency]],3)","v":"107"},"107-Health Care Auth","439-6 UMP Admin Bene Acct-Non-Appr",{"$f":"LEFT(Table_clallam_Oversight_ActiveFunds[[#This Row],[Fund]],5)","v":"439-6"},null,"",null,null,null,"16A-1","16A-1 Judicial Stabil Trst-State"]
[1,{"$f":"LEFT(Table_clallam_Oversight_ActiveFunds[[#This Row],[Agency]],3)","v":"107"},"107-Health Care Auth","474-6 SEBB Flex Spend Admn-Non-Appr",{"$f":"LEFT(Table_clallam_Oversight_ActiveFunds[[#This Row],[Fund]],5)","v":"474-6"},null,"",null,null,null,"16B-1","16B-1 Landscape Architects-State"]
[1,{"$f":"LEFT(Table_clallam_Oversight_ActiveFunds[[#This Row],[Agency]],3)","v":"107"},"107-Health Care Auth","475-6 SEBB Dntl Admn Acct-Non-Appr",{"$f":"LEFT(Table_clallam_Oversight_ActiveFunds[[#This Row],[Fund]],5)","v":"475-6"},null,"",null,null,null,"16B-6","16B-6 Landscape Architects-Non-Appr"]
[1,{"$f":"LEFT(Table_clallam_Oversight_ActiveFunds[[#This Row],[Agency]],3)","v":"107"},"107-Health Care Auth","492-1 School Employees' In-State",{"$f":"LEFT(Table_clallam_Oversight_ActiveFunds[[#This Row],[Fund]],5)","v":"492-1"},null,"",null,null,null,"16G-6","16G-6 Univ Vaccine Purch-Non-Appr"]
[1,{"$f":"LEFT(Table_clallam_Oversight_ActiveFunds[[#This Row],[Agency]],3)","v":"107"},"107-Health Care Auth","492-6 School Employees' In-Non-Appr",{"$f":"LEFT(Table_clallam_Oversight_ActiveFunds[[#This Row],[Fund]],5)","v":"492-6"},null,"",null,null,null,"16J-1","16J-1 SR 520 Corridor Acct-State"]
[1,{"$f":"LEFT(Table_clallam_Oversight_ActiveFunds[[#This Row],[Agency]],3)","v":"107"},"107-Health Care Auth","493-6 School Empl Ins Acct-Non-Appr",{"$f":"LEFT(Table_clallam_Oversight_ActiveFunds[[#This Row],[Fund]],5)","v":"493-6"},null,"",null,null,null,"16L-6","16L-6 Accessible Community-Non-Appr"]
[1,{"$f":"LEFT(Table_clallam_Oversight_ActiveFunds[[#This Row],[Agency]],3)","v":"107"},"107-Health Care Auth","494-6 SEBB Med Ben Admin-Non-Appr",{"$f":"LEFT(Table_clallam_Oversight_ActiveFunds[[#This Row],[Fund]],5)","v":"494-6"},null,"",null,null,null,"16M-1","16M-1 Appraisal Mgmt Comp-State"]
[1,{"$f":"LEFT(Table_clallam_Oversight_ActiveFunds[[#This Row],[Agency]],3)","v":"107"},"107-Health Care Auth","609-1 Medical Aid Account-State",{"$f":"LEFT(Table_clallam_Oversight_ActiveFunds[[#This Row],[Fund]],5)","v":"609-1"},null,"",null,null,null,"16M-6","16M-6 Appraisal Mgmt Comp-Non-Appr"]
[1,{"$f":"LEFT(Table_clallam_Oversight_ActiveFunds[[#This Row],[Agency]],3)","v":"107"},"107-Health Care Auth","706-2 COVID Fiscal Recover-Federal",{"$f":"LEFT(Table_clallam_Oversight_ActiveFunds[[#This Row],[Fund]],5)","v":"706-2"},null,"",null,null,null,"16R-6","16R-6 Multiagency Permit T-Non-Appr"]
[1,{"$f":"LEFT(Table_clallam_Oversight_ActiveFunds[[#This Row],[Agency]],3)","v":"107"},"107-Health Care Auth","721-6 Pub Emp/Ret Ins-Non-Appr",{"$f":"LEFT(Table_clallam_Oversight_ActiveFunds[[#This Row],[Fund]],5)","v":"721-6"},null,"",null,null,null,"16T-6","16T-6 Product Stewardship-Non-Appr"]
[1,{"$f":"LEFT(Table_clallam_Oversight_ActiveFunds[[#This Row],[Agency]],3)","v":"110"},"110-Admin Hearings","180-6 Lcl Gov Adm Hearings-Non-Appr",{"$f":"LEFT(Table_clallam_Oversight_ActiveFunds[[#This Row],[Fund]],5)","v":"180-6"},null,"",null,null,null,"16V-1","16V-1 Water Rights Process-State"]
[1,{"$f":"LEFT(Table_clallam_Oversight_ActiveFunds[[#This Row],[Agency]],3)","v":"110"},"110-Admin Hearings","484-1 Admin Hearings Revol-State",{"$f":"LEFT(Table_clallam_Oversight_ActiveFunds[[#This Row],[Fund]],5)","v":"484-1"},null,"",null,null,null,"16W-1","16W-1 Hospital Safety Net-State"]
[1,{"$f":"LEFT(Table_clallam_Oversight_ActiveFunds[[#This Row],[Agency]],3)","v":"110"},"110-Admin Hearings","484-7 Admin Hearings Revol-Local",{"$f":"LEFT(Table_clallam_Oversight_ActiveFunds[[#This Row],[Fund]],5)","v":"484-7"},null,"",null,null,null,"172-6","172-6 Basic Hlth Plan Trst-Non-Appr"]
[1,{"$f":"LEFT(Table_clallam_Oversight_ActiveFunds[[#This Row],[Agency]],3)","v":"116"},"116-State Lottery Comm","433-6 Shared Game Lottery-Non-Appr",{"$f":"LEFT(Table_clallam_Oversight_ActiveFunds[[#This Row],[Fund]],5)","v":"433-6"},null,"",null,null,null,"176-1","176-1 Water Quality Permit-State"]
[1,{"$f":"LEFT(Table_clallam_Oversight_ActiveFunds[[#This Row],[Agency]],3)","v":"116"},"116-State Lottery Comm","577-6 State Lottery Acct-Non-Appr",{"$f":"LEFT(Table_clallam_Oversight_ActiveFunds[[#This Row],[Fund]],5)","v":"577-6"},null,"",null,null,null,"17B-1","17B-1 Home Visiting Svcs-State"]
[1,{"$f":"LEFT(Table_clallam_Oversight_ActiveFunds[[#This Row],[Agency]],3)","v":"116"},"116-State Lottery Comm","578-1 Lottery Admin Acct-State",{"$f":"LEFT(Table_clallam_Oversight_ActiveFunds[[#This Row],[Fund]],5)","v":"578-1"},null,"",null,null,null,"17B-2","17B-2 Home Visiting Svcs-Federal"]
[1,{"$f":"LEFT(Table_clallam_Oversight_ActiveFunds[[#This Row],[Agency]],3)","v":"117"},"117-Gambling Commission","141-6 Fed Narcotics Forfet-Non-Appr",{"$f":"LEFT(Table_clallam_Oversight_ActiveFunds[[#This Row],[Fund]],5)","v":"141-6"},null,"",null,null,null,"17F-1","17F-1 WA Opportunity Path-State"]
[1,{"$f":"LEFT(Table_clallam_Oversight_ActiveFunds[[#This Row],[Agency]],3)","v":"117"},"117-Gambling Commission","226-6 State Seizure Acct-Non-Appr",{"$f":"LEFT(Table_clallam_Oversight_ActiveFunds[[#This Row],[Fund]],5)","v":"226-6"},null,"",null,null,null,"17L-6","17L-6 Foreclosure Fairness-Non-Appr"]
[1,{"$f":"LEFT(Table_clallam_Oversight_ActiveFunds[[#This Row],[Agency]],3)","v":"117"},"117-Gambling Commission","884-6 Gambling Revolving-Non-Appr",{"$f":"LEFT(Table_clallam_Oversight_ActiveFunds[[#This Row],[Fund]],5)","v":"884-6"},null,"",null,null,null,"17M-6","17M-6 Indivi-Based/Portabl - Non-Appr"]
[1,{"$f":"LEFT(Table_clallam_Oversight_ActiveFunds[[#This Row],[Agency]],3)","v":"118"},"118-Hispanic Affairs","001-1 General Fund-State",{"$f":"LEFT(Table_clallam_Oversight_ActiveFunds[[#This Row],[Fund]],5)","v":"001-1"},null,"",null,null,null,"17N-1","17N-1 Complete Streets Gra-State"]
[1,{"$f":"LEFT(Table_clallam_Oversight_ActiveFunds[[#This Row],[Agency]],3)","v":"119"},"119-African-Amer Affrs","001-1 General Fund-State",{"$f":"LEFT(Table_clallam_Oversight_ActiveFunds[[#This Row],[Fund]],5)","v":"001-1"},null,"",null,null,null,"17P-1","17P-1 SR 520 Civil Penalty-State"]
[1,{"$f":"LEFT(Table_clallam_Oversight_ActiveFunds[[#This Row],[Agency]],3)","v":"120"},"120-Human Rights Comm","001-1 General Fund-State",{"$f":"LEFT(Table_clallam_Oversight_ActiveFunds[[#This Row],[Fund]],5)","v":"001-1"},null,"",null,null,null,"17R-1","17R-1 Aerospace Training S-State"]
[1,{"$f":"LEFT(Table_clallam_Oversight_ActiveFunds[[#This Row],[Agency]],3)","v":"120"},"120-Human Rights Comm","001-2 General Fund-Federal",{"$f":"LEFT(Table_clallam_Oversight_ActiveFunds[[#This Row],[Fund]],5)","v":"001-2"},null,"",null,null,null,"17T-1","17T-1 Health Benefit Excha-State"]
[1,{"$f":"LEFT(Table_clallam_Oversight_ActiveFunds[[#This Row],[Agency]],3)","v":"124"},"124-Retirement Systems","001-1 General Fund-State",{"$f":"LEFT(Table_clallam_Oversight_ActiveFunds[[#This Row],[Fund]],5)","v":"001-1"},null,"",null,null,null,"17W-1","17W-1 Limousine Carrier Ac-State"]
[1,{"$f":"LEFT(Table_clallam_Oversight_ActiveFunds[[#This Row],[Agency]],3)","v":"124"},"124-Retirement Systems","600-1 Retirmnt Sys Expense-State",{"$f":"LEFT(Table_clallam_Oversight_ActiveFunds[[#This Row],[Fund]],5)","v":"600-1"},null,"",null,null,null,"180-6","180-6 Lcl Gov Adm Hearings-Non-Appr"]
[1,{"$f":"LEFT(Table_clallam_Oversight_ActiveFunds[[#This Row],[Agency]],3)","v":"124"},"124-Retirement Systems","600-6 Retirmnt Sys Expense-Non-Appr",{"$f":"LEFT(Table_clallam_Oversight_ActiveFunds[[#This Row],[Fund]],5)","v":"600-6"},null,"",null,null,null,"182-1","182-1 Underground Storage-State"]
[1,{"$f":"LEFT(Table_clallam_Oversight_ActiveFunds[[#This Row],[Agency]],3)","v":"124"},"124-Retirement Systems","874-6 OASI Revolving Acct-Non-Appr",{"$f":"LEFT(Table_clallam_Oversight_ActiveFunds[[#This Row],[Fund]],5)","v":"874-6"},null,"",null,null,null,"184-6","184-6 St Hist Museum Fund-Non-Appr"]
[1,{"$f":"LEFT(Table_clallam_Oversight_ActiveFunds[[#This Row],[Agency]],3)","v":"124"},"124-Retirement Systems","888-6 Defrd Comp Admin Acc-Non-Appr",{"$f":"LEFT(Table_clallam_Oversight_ActiveFunds[[#This Row],[Fund]],5)","v":"888-6"},null,"",null,null,null,"185-6","185-6 East Wa Museum Acct-Non-Appr"]
[1,{"$f":"LEFT(Table_clallam_Oversight_ActiveFunds[[#This Row],[Agency]],3)","v":"124"},"124-Retirement Systems","Non Budgeted Fund",{"$f":"LEFT(Table_clallam_Oversight_ActiveFunds[[#This Row],[Fund]],5)","v":"Non B"},null,"",null,null,null,"186-1","186-1 County Arterial Pres-State"]
[1,{"$f":"LEFT(Table_clallam_Oversight_ActiveFunds[[#This Row],[Agency]],3)","v":"126"},"126-Investment Board","031-1 Invest Bd Expense Ac-State",{"$f":"LEFT(Table_clallam_Oversight_ActiveFunds[[#This Row],[Fund]],5)","v":"031-1"},null,"",null,null,null,"18E-6","18E-6 Educator Certificati-Non-Appr"]
[1,{"$f":"LEFT(Table_clallam_Oversight_ActiveFunds[[#This Row],[Agency]],3)","v":"140"},"140-Revenue","001-1 General Fund-State",{"$f":"LEFT(Table_clallam_Oversight_ActiveFunds[[#This Row],[Fund]],5)","v":"001-1"},null,"",null,null,null,"18J-1","18J-1 Capital Vessel Repla-State"]
[1,{"$f":"LEFT(Table_clallam_Oversight_ActiveFunds[[#This Row],[Agency]],3)","v":"140"},"140-Revenue","02W-1 Timber Tax Distr Act-State",{"$f":"LEFT(Table_clallam_Oversight_ActiveFunds[[#This Row],[Fund]],5)","v":"02W-1"},null,"",null,null,null,"18K-1","18K-1 24/7 Sobriety Acct-State"]
[1,{"$f":"LEFT(Table_clallam_Oversight_ActiveFunds[[#This Row],[Agency]],3)","v":"140"},"140-Revenue","03N-1 Business License-State",{"$f":"LEFT(Table_clallam_Oversight_ActiveFunds[[#This Row],[Fund]],5)","v":"03N-1"},null,"",null,null,null,"190-1","190-1 Forest Assessment-State"]
[1,{"$f":"LEFT(Table_clallam_Oversight_ActiveFunds[[#This Row],[Agency]],3)","v":"140"},"140-Revenue","044-1 Waste Reduct/Recycle-State",{"$f":"LEFT(Table_clallam_Oversight_ActiveFunds[[#This Row],[Fund]],5)","v":"044-1"},null,"",null,null,null,"190-6","190-6 Forest Assessment-Non-Appr"]
[1,{"$f":"LEFT(Table_clallam_Oversight_ActiveFunds[[#This Row],[Agency]],3)","v":"140"},"140-Revenue","196-6 Unclmd Pers Prpty-Non-Appr",{"$f":"LEFT(Table_clallam_Oversight_ActiveFunds[[#This Row],[Fund]],5)","v":"196-6"},null,"",null,null,null,"193-1","193-1 ST Forest Nursery-State"]
[1,{"$f":"LEFT(Table_clallam_Oversight_ActiveFunds[[#This Row],[Agency]],3)","v":"140"},"140-Revenue","23P-1 Model Toxics Oper-State",{"$f":"LEFT(Table_clallam_Oversight_ActiveFunds[[#This Row],[Fund]],5)","v":"23P-1"},null,"",null,null,null,"193-6","193-6 ST Forest Nursery-Non-Appr"]
[1,{"$f":"LEFT(Table_clallam_Oversight_ActiveFunds[[#This Row],[Agency]],3)","v":"140"},"140-Revenue","300-1 Financial Svcs Regul-State",{"$f":"LEFT(Table_clallam_Oversight_ActiveFunds[[#This Row],[Fund]],5)","v":"300-1"},null,"",null,null,null,"196-6","196-6 Unclmd Pers Prpty-Non-Appr"]
[1,{"$f":"LEFT(Table_clallam_Oversight_ActiveFunds[[#This Row],[Agency]],3)","v":"142"},"142-Tax Appeals Board","001-1 General Fund-State",{"$f":"LEFT(Table_clallam_Oversight_ActiveFunds[[#This Row],[Fund]],5)","v":"001-1"},null,"",null,null,null,"197-6","197-6 Statute Law Comm Pub-Non-Appr"]
[1,{"$f":"LEFT(Table_clallam_Oversight_ActiveFunds[[#This Row],[Agency]],3)","v":"147"},"147-OMWBE","001-1 General Fund-State",{"$f":"LEFT(Table_clallam_Oversight_ActiveFunds[[#This Row],[Fund]],5)","v":"001-1"},null,"",null,null,null,"198-1","198-1 Access Road Rev Acct-State"]
[1,{"$f":"LEFT(Table_clallam_Oversight_ActiveFunds[[#This Row],[Agency]],3)","v":"147"},"147-OMWBE","453-1 Minority & Business-State",{"$f":"LEFT(Table_clallam_Oversight_ActiveFunds[[#This Row],[Fund]],5)","v":"453-1"},null,"",null,null,null,"198-6","198-6 Access Road Rev Acct-Non-Appr"]
[1,{"$f":"LEFT(Table_clallam_Oversight_ActiveFunds[[#This Row],[Agency]],3)","v":"147"},"147-OMWBE","108-1 Motor Vehicle Acct-State",{"$f":"LEFT(Table_clallam_Oversight_ActiveFunds[[#This Row],[Fund]],5)","v":"108-1"},null,"",null,null,null,"199-1","199-1 Biosolids Prmt Acct-State"]
[1,{"$f":"LEFT(Table_clallam_Oversight_ActiveFunds[[#This Row],[Agency]],3)","v":"160"},"160-Insurance Commission","001-2 General Fund-Federal",{"$f":"LEFT(Table_clallam_Oversight_ActiveFunds[[#This Row],[Fund]],5)","v":"001-2"},null,"",null,null,null,"19A-1","19A-1 Medicaid Fraud Pnlty-State"]
[1,{"$f":"LEFT(Table_clallam_Oversight_ActiveFunds[[#This Row],[Agency]],3)","v":"160"},"160-Insurance Commission","138-1 Insurance Comm Regul-State",{"$f":"LEFT(Table_clallam_Oversight_ActiveFunds[[#This Row],[Fund]],5)","v":"138-1"},null,"",null,null,null,"19B-6","19B-6 School for the BA-Non-Appr"]
[1,{"$f":"LEFT(Table_clallam_Oversight_ActiveFunds[[#This Row],[Agency]],3)","v":"160"},"160-Insurance Commission","24P-1 Insur Commiss Fraud-State",{"$f":"LEFT(Table_clallam_Oversight_ActiveFunds[[#This Row],[Fund]],5)","v":"24P-1"},null,"",null,null,null,"19C-1","19C-1 Forest Practices App-State"]
[1,{"$f":"LEFT(Table_clallam_Oversight_ActiveFunds[[#This Row],[Agency]],3)","v":"163"},"163-Cons Tech Services","001-1 General Fund-State",{"$f":"LEFT(Table_clallam_Oversight_ActiveFunds[[#This Row],[Fund]],5)","v":"001-1"},null,"",null,null,null,"19H-6","19H-6 Center for CDHLA-Non-Appr"]
[1,{"$f":"LEFT(Table_clallam_Oversight_ActiveFunds[[#This Row],[Agency]],3)","v":"163"},"163-Cons Tech Services","458-1 CTS Revolving Acct-State",{"$f":"LEFT(Table_clallam_Oversight_ActiveFunds[[#This Row],[Fund]],5)","v":"458-1"},null,"",null,null,null,"19J-6","19J-6 Universal Comm Svcs-Non-Appr"]
[1,{"$f":"LEFT(Table_clallam_Oversight_ActiveFunds[[#This Row],[Agency]],3)","v":"163"},"163-Cons Tech Services","458-6 CTS Revolving Acct-Non-Appr",{"$f":"LEFT(Table_clallam_Oversight_ActiveFunds[[#This Row],[Fund]],5)","v":"458-6"},null,"",null,null,null,"19L-1","19L-1 Charter Sch Ovr Acct-State"]
[1,{"$f":"LEFT(Table_clallam_Oversight_ActiveFunds[[#This Row],[Agency]],3)","v":"165"},"165-Bd of Accountancy","02J-1 CPA Account-State",{"$f":"LEFT(Table_clallam_Oversight_ActiveFunds[[#This Row],[Fund]],5)","v":"02J-1"},null,"",null,null,null,"19P-1","19P-1 Child Rescue Fund-State"]
[1,{"$f":"LEFT(Table_clallam_Oversight_ActiveFunds[[#This Row],[Agency]],3)","v":"166"},"166-Bd of Registration","024-1 Profess Engineers'-State",{"$f":"LEFT(Table_clallam_Oversight_ActiveFunds[[#This Row],[Fund]],5)","v":"024-1"},null,"",null,null,null,"19T-1","19T-1 DOL Tech Improve-State"]
[1,{"$f":"LEFT(Table_clallam_Oversight_ActiveFunds[[#This Row],[Agency]],3)","v":"167"},"167-Forensic Investigatn","02K-1 Death Investigations-State",{"$f":"LEFT(Table_clallam_Oversight_ActiveFunds[[#This Row],[Fund]],5)","v":"02K-1"},null,"",null,null,null,"19V-1","19V-1 Cancer Research Endo-State"]
[1,{"$f":"LEFT(Table_clallam_Oversight_ActiveFunds[[#This Row],[Agency]],3)","v":"179"},"179-Dept Enterprise Svcs","001-1 General Fund-State",{"$f":"LEFT(Table_clallam_Oversight_ActiveFunds[[#This Row],[Fund]],5)","v":"001-1"},null,"",null,null,null,"19W-6","19W-6 Wolf-Livestock Confl - Non-Appr"]
[1,{"$f":"LEFT(Table_clallam_Oversight_ActiveFunds[[#This Row],[Agency]],3)","v":"179"},"179-Dept Enterprise Svcs","001-7 General Fund-Local",{"$f":"LEFT(Table_clallam_Oversight_ActiveFunds[[#This Row],[Fund]],5)","v":"001-7"},null,"",null,null,null,"200-2","200-2 Reg Fish Salmonid-Federal"]
[1,{"$f":"LEFT(Table_clallam_Oversight_ActiveFunds[[#This Row],[Agency]],3)","v":"179"},"179-Dept Enterprise Svcs","045-6 State Veh Park Acct-Non-Appr",{"$f":"LEFT(Table_clallam_Oversight_ActiveFunds[[#This Row],[Fund]],5)","v":"045-6"},null,"",null,null,null,"201-1","201-1 DOL Services Account-State"]
[1,{"$f":"LEFT(Table_clallam_Oversight_ActiveFunds[[#This Row],[Agency]],3)","v":"179"},"179-Dept Enterprise Svcs","084-1 Building Code Cncl-State",{"$f":"LEFT(Table_clallam_Oversight_ActiveFunds[[#This Row],[Fund]],5)","v":"084-1"},null,"",null,null,null,"202-1","202-1 Med Test Site Licen-State"]
[1,{"$f":"LEFT(Table_clallam_Oversight_ActiveFunds[[#This Row],[Agency]],3)","v":"179"},"179-Dept Enterprise Svcs","422-6 Enterprise Svc Acct-Non-Appr",{"$f":"LEFT(Table_clallam_Oversight_ActiveFunds[[#This Row],[Fund]],5)","v":"422-6"},null,"",null,null,null,"204-1","204-1 Volun Firefighters-State"]
[1,{"$f":"LEFT(Table_clallam_Oversight_ActiveFunds[[#This Row],[Agency]],3)","v":"179"},"179-Dept Enterprise Svcs","546-6 Risk Mgmt Admin Acct-Non-Appr",{"$f":"LEFT(Table_clallam_Oversight_ActiveFunds[[#This Row],[Fund]],5)","v":"546-6"},null,"",null,null,null,"205-6","205-6 Mobile Home Pk Reloc-Non-Appr"]
[1,{"$f":"LEFT(Table_clallam_Oversight_ActiveFunds[[#This Row],[Agency]],3)","v":"179"},"179-Dept Enterprise Svcs","547-6 Liability Account-Non-Appr",{"$f":"LEFT(Table_clallam_Oversight_ActiveFunds[[#This Row],[Fund]],5)","v":"547-6"},null,"",null,null,null,"206-6","206-6 Cost of Supervision-Non-Appr"]
[1,{"$f":"LEFT(Table_clallam_Oversight_ActiveFunds[[#This Row],[Agency]],3)","v":"185"},"185-Horse Racing Comm","169-6 Horse Racing Commsn-Non-Appr",{"$f":"LEFT(Table_clallam_Oversight_ActiveFunds[[#This Row],[Fund]],5)","v":"169-6"},null,"",null,null,null,"207-1","207-1 Hazardous Waste-State"]
[1,{"$f":"LEFT(Table_clallam_Oversight_ActiveFunds[[#This Row],[Agency]],3)","v":"185"},"185-Horse Racing Comm","485-6 WA Bred Owners'-Non-Appr",{"$f":"LEFT(Table_clallam_Oversight_ActiveFunds[[#This Row],[Fund]],5)","v":"485-6"},null,"",null,null,null,"209-6","209-6 Region Fisheries Enh-Non-Appr"]
[1,{"$f":"LEFT(Table_clallam_Oversight_ActiveFunds[[#This Row],[Agency]],3)","v":"185"},"185-Horse Racing Comm","497-6 Class C Purse Acct-Non-Appr",{"$f":"LEFT(Table_clallam_Oversight_ActiveFunds[[#This Row],[Fund]],5)","v":"497-6"},null,"",null,null,null,"20E-1","20E-1 WA Internet Crimes-State"]
[1,{"$f":"LEFT(Table_clallam_Oversight_ActiveFunds[[#This Row],[Agency]],3)","v":"190"},"190-Indust Insur Appeals","163-1 Worker & Comm Right-State",{"$f":"LEFT(Table_clallam_Oversight_ActiveFunds[[#This Row],[Fund]],5)","v":"163-1"},null,"",null,null,null,"20H-1","20H-1 Connecting WA Acct-State"]
[1,{"$f":"LEFT(Table_clallam_Oversight_ActiveFunds[[#This Row],[Agency]],3)","v":"190"},"190-Indust Insur Appeals","608-1 Accident Account-State",{"$f":"LEFT(Table_clallam_Oversight_ActiveFunds[[#This Row],[Fund]],5)","v":"608-1"},null,{"$f":"LEFT(I261,3)","v":""},null,null,null,{"$f":"MID(L261,1,5)","v":"20H-T"},"20H-T Connecting WA Acct-Bonds"]
[1,{"$f":"LEFT(Table_clallam_Oversight_ActiveFunds[[#This Row],[Agency]],3)","v":"190"},"190-Indust Insur Appeals","609-1 Medical Aid Account-State",{"$f":"LEFT(Table_clallam_Oversight_ActiveFunds[[#This Row],[Fund]],5)","v":"609-1"},null,"",null,null,null,"20J-1","20J-1 Electric Vehicle-State"]
[1,{"$f":"LEFT(Table_clallam_Oversight_ActiveFunds[[#This Row],[Agency]],3)","v":"195"},"195-Liquor Cannabis Bd","001-1 General Fund-State",{"$f":"LEFT(Table_clallam_Oversight_ActiveFunds[[#This Row],[Fund]],5)","v":"001-1"},null,"",null,null,null,"20L-Y","20L-Y Early Start Account-Oth UAR"]
[1,{"$f":"LEFT(Table_clallam_Oversight_ActiveFunds[[#This Row],[Agency]],3)","v":"195"},"195-Liquor Cannabis Bd","001-2 General Fund-Federal",{"$f":"LEFT(Table_clallam_Oversight_ActiveFunds[[#This Row],[Fund]],5)","v":"001-2"},null,"",null,null,null,"20R-1","20R-1 Radioactive Mixed-State"]
[1,{"$f":"LEFT(Table_clallam_Oversight_ActiveFunds[[#This Row],[Agency]],3)","v":"195"},"195-Liquor Cannabis Bd","001-7 General Fund-Local",{"$f":"LEFT(Table_clallam_Oversight_ActiveFunds[[#This Row],[Fund]],5)","v":"001-7"},null,"",null,null,null,"20T-1","20T-1 PLIA UST Revolving-State"]
[1,{"$f":"LEFT(Table_clallam_Oversight_ActiveFunds[[#This Row],[Agency]],3)","v":"195"},"195-Liquor Cannabis Bd","141-6 Fed Narcotics Forfet-Non-Appr",{"$f":"LEFT(Table_clallam_Oversight_ActiveFunds[[#This Row],[Fund]],5)","v":"141-6"},null,"",null,null,null,"210-6","210-6 Fire Protection Cont-Non-Appr"]
[1,{"$f":"LEFT(Table_clallam_Oversight_ActiveFunds[[#This Row],[Agency]],3)","v":"195"},"195-Liquor Cannabis Bd","315-1 Dedicated Cannabis-State",{"$f":"LEFT(Table_clallam_Oversight_ActiveFunds[[#This Row],[Fund]],5)","v":"315-1"},null,"",null,null,null,"213-6","213-6 Veterans Emblem Acct-Non-Appr"]
[1,{"$f":"LEFT(Table_clallam_Oversight_ActiveFunds[[#This Row],[Agency]],3)","v":"195"},"195-Liquor Cannabis Bd","501-1 Liquor Revolving Acc-State",{"$f":"LEFT(Table_clallam_Oversight_ActiveFunds[[#This Row],[Fund]],5)","v":"501-1"},null,"",null,null,null,"214-6","214-6 Temp Worker Housing-Non-Appr"]
[1,{"$f":"LEFT(Table_clallam_Oversight_ActiveFunds[[#This Row],[Agency]],3)","v":"205"},"205-Pilotage Commiss","025-1 Pilotage Account-State",{"$f":"LEFT(Table_clallam_Oversight_ActiveFunds[[#This Row],[Fund]],5)","v":"025-1"},null,"",null,null,null,"215-1","215-1 Special Category C-State"]
[1,{"$f":"LEFT(Table_clallam_Oversight_ActiveFunds[[#This Row],[Agency]],3)","v":"215"},"215-Utilities/Transport","001-1 General Fund-State",{"$f":"LEFT(Table_clallam_Oversight_ActiveFunds[[#This Row],[Fund]],5)","v":"001-1"},null,"",null,null,null,"215-T","215-T Special Category C-Bonds"]
[1,{"$f":"LEFT(Table_clallam_Oversight_ActiveFunds[[#This Row],[Agency]],3)","v":"215"},"215-Utilities/Transport","001-7 General Fund-Local",{"$f":"LEFT(Table_clallam_Oversight_ActiveFunds[[#This Row],[Fund]],5)","v":"001-7"},null,"",null,null,null,"216-1","216-1 Air Poll Contr Acct-State"]
[1,{"$f":"LEFT(Table_clallam_Oversight_ActiveFunds[[#This Row],[Agency]],3)","v":"215"},"215-Utilities/Transport","111-1 Public Srvc Revlv-State",{"$f":"LEFT(Table_clallam_Oversight_ActiveFunds[[#This Row],[Fund]],5)","v":"111-1"},null,"",null,null,null,"217-1","217-1 Oil Spill Prevn Acct-State"]
[1,{"$f":"LEFT(Table_clallam_Oversight_ActiveFunds[[#This Row],[Agency]],3)","v":"215"},"215-Utilities/Transport","111-2 Public Srvc Revlv-Federal",{"$f":"LEFT(Table_clallam_Oversight_ActiveFunds[[#This Row],[Fund]],5)","v":"111-2"},null,"",null,null,null,"218-1","218-1 Multimodal Acct-State"]
[1,{"$f":"LEFT(Table_clallam_Oversight_ActiveFunds[[#This Row],[Agency]],3)","v":"215"},"215-Utilities/Transport","19J-6 Universal Comm Svcs-Non-Appr",{"$f":"LEFT(Table_clallam_Oversight_ActiveFunds[[#This Row],[Fund]],5)","v":"19J-6"},null,"",null,null,null,"218-2","218-2 Multimodal Acct-Federal"]
[1,{"$f":"LEFT(Table_clallam_Oversight_ActiveFunds[[#This Row],[Agency]],3)","v":"215"},"215-Utilities/Transport","297-1 Pipeline Safety-State",{"$f":"LEFT(Table_clallam_Oversight_ActiveFunds[[#This Row],[Fund]],5)","v":"297-1"},null,"",null,null,null,"218-7","218-7 Multimodal Acct-Local"]
[1,{"$f":"LEFT(Table_clallam_Oversight_ActiveFunds[[#This Row],[Agency]],3)","v":"215"},"215-Utilities/Transport","297-2 Pipeline Safety-Federal",{"$f":"LEFT(Table_clallam_Oversight_ActiveFunds[[#This Row],[Fund]],5)","v":"297-2"},null,"",null,null,null,"218-8","218-8 Multimodal Acct-Fed Stim"]
[1,{"$f":"LEFT(Table_clallam_Oversight_ActiveFunds[[#This Row],[Agency]],3)","v":"215"},"215-Utilities/Transport","025-1 Pilotage Account-State",{"$f":"LEFT(Table_clallam_Oversight_ActiveFunds[[#This Row],[Fund]],5)","v":"025-1"},null,"",null,null,null,"219-1","219-1 Air Oper Permit Acct-State"]
[1,{"$f":"LEFT(Table_clallam_Oversight_ActiveFunds[[#This Row],[Agency]],3)","v":"215"},"215-Utilities/Transport","080-1 Grade Crossing Acct-State",{"$f":"LEFT(Table_clallam_Oversight_ActiveFunds[[#This Row],[Fund]],5)","v":"080-1"},null,"",null,null,null,"21C-6","21C-6 Sexual Assault Kit-Non-Appr"]
[1,{"$f":"LEFT(Table_clallam_Oversight_ActiveFunds[[#This Row],[Agency]],3)","v":"215"},"215-Utilities/Transport","218-1 Multimodal Acct-State",{"$f":"LEFT(Table_clallam_Oversight_ActiveFunds[[#This Row],[Fund]],5)","v":"218-1"},null,"",null,null,null,"21E-1","21E-1 Con Pistol Lic Renew-State"]
[1,{"$f":"LEFT(Table_clallam_Oversight_ActiveFunds[[#This Row],[Agency]],3)","v":"220"},"220-Bd Volun Firefighter","204-1 Volun Firefighters-State",{"$f":"LEFT(Table_clallam_Oversight_ActiveFunds[[#This Row],[Fund]],5)","v":"204-1"},null,"",null,null,null,"21H-1","21H-1 WWT Plant Oper Cert-State"]
[1,{"$f":"LEFT(Table_clallam_Oversight_ActiveFunds[[#This Row],[Agency]],3)","v":"225"},"225-State Patrol","001-1 General Fund-State",{"$f":"LEFT(Table_clallam_Oversight_ActiveFunds[[#This Row],[Fund]],5)","v":"001-1"},null,"",null,null,null,"21N-1","21N-1 NE WA Wolf-Livestock - State"]
[1,{"$f":"LEFT(Table_clallam_Oversight_ActiveFunds[[#This Row],[Agency]],3)","v":"225"},"225-State Patrol","001-2 General Fund-Federal",{"$f":"LEFT(Table_clallam_Oversight_ActiveFunds[[#This Row],[Fund]],5)","v":"001-2"},null,"",null,null,null,"21Q-1","21Q-1 Forest Hlth Rev Acct-State"]
[1,{"$f":"LEFT(Table_clallam_Oversight_ActiveFunds[[#This Row],[Agency]],3)","v":"225"},"225-State Patrol","001-7 General Fund-Local",{"$f":"LEFT(Table_clallam_Oversight_ActiveFunds[[#This Row],[Fund]],5)","v":"001-7"},null,"",null,null,null,"21Q-6","21Q-6 Forest Hlth Rev Acct-Non-Appr"]
[1,{"$f":"LEFT(Table_clallam_Oversight_ActiveFunds[[#This Row],[Agency]],3)","v":"225"},"225-State Patrol","02K-1 Death Investigations-State",{"$f":"LEFT(Table_clallam_Oversight_ActiveFunds[[#This Row],[Fund]],5)","v":"02K-1"},null,"",null,null,null,"21S-1","21S-1 Aquat Invas Spec Mgt-State"]
[1,{"$f":"LEFT(Table_clallam_Oversight_ActiveFunds[[#This Row],[Agency]],3)","v":"225"},"225-State Patrol","03L-1 Cnty Criminal Justic-State",{"$f":"LEFT(Table_clallam_Oversight_ActiveFunds[[#This Row],[Fund]],5)","v":"03L-1"},null,"",null,null,null,"21V-1","21V-1 Constr Regis Inspect-State"]
[1,{"$f":"LEFT(Table_clallam_Oversight_ActiveFunds[[#This Row],[Agency]],3)","v":"225"},"225-State Patrol","03M-1 Munic Criminal Justi-State",{"$f":"LEFT(Table_clallam_Oversight_ActiveFunds[[#This Row],[Fund]],5)","v":"03M-1"},null,"",null,null,null,"223-1","223-1 Oil Spill Response-State"]
[1,{"$f":"LEFT(Table_clallam_Oversight_ActiveFunds[[#This Row],[Agency]],3)","v":"225"},"225-State Patrol","03P-1 Fire Svcs Trust Acct-State",{"$f":"LEFT(Table_clallam_Oversight_ActiveFunds[[#This Row],[Fund]],5)","v":"03P-1"},null,"",null,null,null,"225-1","225-1 Fngrprint ID Account-State"]
[1,{"$f":"LEFT(Table_clallam_Oversight_ActiveFunds[[#This Row],[Agency]],3)","v":"225"},"225-State Patrol","04V-1 Veh License Fraud-State",{"$f":"LEFT(Table_clallam_Oversight_ActiveFunds[[#This Row],[Fund]],5)","v":"04V-1"},null,"",null,null,null,"226-6","226-6 State Seizure Acct-Non-Appr"]
[1,{"$f":"LEFT(Table_clallam_Oversight_ActiveFunds[[#This Row],[Agency]],3)","v":"225"},"225-State Patrol","05H-1 Disaster Response-State",{"$f":"LEFT(Table_clallam_Oversight_ActiveFunds[[#This Row],[Fund]],5)","v":"05H-1"},null,"",null,null,null,"22F-1","22F-1 Fam Med Lv Insurance-State"]
[1,{"$f":"LEFT(Table_clallam_Oversight_ActiveFunds[[#This Row],[Agency]],3)","v":"225"},"225-State Patrol","086-1 Fire Serv Trng Acct-State",{"$f":"LEFT(Table_clallam_Oversight_ActiveFunds[[#This Row],[Fund]],5)","v":"086-1"},null,"",null,null,null,"22G-6","22G-6 Photovolt Mod Rcycl-Non-Appr"]
[1,{"$f":"LEFT(Table_clallam_Oversight_ActiveFunds[[#This Row],[Agency]],3)","v":"225"},"225-State Patrol","141-6 Fed Narcotics Forfet-Non-Appr",{"$f":"LEFT(Table_clallam_Oversight_ActiveFunds[[#This Row],[Fund]],5)","v":"141-6"},null,"",null,null,null,"22J-1","22J-1 Abandoned RV Acct-State"]
[1,{"$f":"LEFT(Table_clallam_Oversight_ActiveFunds[[#This Row],[Agency]],3)","v":"225"},"225-State Patrol","14W-6 Reduced Cigarette Ig-Non-Appr",{"$f":"LEFT(Table_clallam_Oversight_ActiveFunds[[#This Row],[Fund]],5)","v":"14W-6"},null,"",null,null,null,"22N-6","22N-6 F&W Fed Lnds Rev-Non-Appr"]
[1,{"$f":"LEFT(Table_clallam_Oversight_ActiveFunds[[#This Row],[Agency]],3)","v":"225"},"225-State Patrol","20E-1 WA Internet Crimes-State",{"$f":"LEFT(Table_clallam_Oversight_ActiveFunds[[#This Row],[Fund]],5)","v":"20E-1"},null,"",null,null,null,"22P-1","22P-1 Nat Rsrc Fed Lnds Rv-State"]
[1,{"$f":"LEFT(Table_clallam_Oversight_ActiveFunds[[#This Row],[Agency]],3)","v":"225"},"225-State Patrol","210-6 Fire Protection Cont-Non-Appr",{"$f":"LEFT(Table_clallam_Oversight_ActiveFunds[[#This Row],[Fund]],5)","v":"210-6"},null,"",null,null,null,"22P-6","22P-6 Nat Rsrc Fed Lnds Rv-Non-Appr"]
[1,{"$f":"LEFT(Table_clallam_Oversight_ActiveFunds[[#This Row],[Agency]],3)","v":"225"},"225-State Patrol","21C-6 Sexual Assault Kit-Non-Appr",{"$f":"LEFT(Table_clallam_Oversight_ActiveFunds[[#This Row],[Fund]],5)","v":"21C-6"},null,"",null,null,null,"22S-6","22S-6 Landlord Mitigation-Non-Appr"]
[1,{"$f":"LEFT(Table_clallam_Oversight_ActiveFunds[[#This Row],[Agency]],3)","v":"225"},"225-State Patrol","225-1 Fngrprint ID Account-State",{"$f":"LEFT(Table_clallam_Oversight_ActiveFunds[[#This Row],[Fund]],5)","v":"225-1"},null,"",null,null,null,"22T-1","22T-1 SW Tourism Marketing-State"]
[1,{"$f":"LEFT(Table_clallam_Oversight_ActiveFunds[[#This Row],[Agency]],3)","v":"225"},"225-State Patrol","226-6 State Seizure Acct-Non-Appr",{"$f":"LEFT(Table_clallam_Oversight_ActiveFunds[[#This Row],[Fund]],5)","v":"226-6"},null,"",null,null,null,"22U-1","22U-1 Secure Drug Takeback-State"]
[1,{"$f":"LEFT(Table_clallam_Oversight_ActiveFunds[[#This Row],[Agency]],3)","v":"225"},"225-State Patrol","23P-1 Model Toxics Oper-State",{"$f":"LEFT(Table_clallam_Oversight_ActiveFunds[[#This Row],[Fund]],5)","v":"23P-1"},null,"",null,null,null,"22V-6","22V-6 Medical Student Loan-Non-Appr"]
[1,{"$f":"LEFT(Table_clallam_Oversight_ActiveFunds[[#This Row],[Agency]],3)","v":"225"},"225-State Patrol","24T-6 Firearms Bckgrnd Chk-Non-Appr",{"$f":"LEFT(Table_clallam_Oversight_ActiveFunds[[#This Row],[Fund]],5)","v":"24T-6"},null,"",null,null,null,"22W-1","22W-1 Publc Disclsr Transp-State"]
[1,{"$f":"LEFT(Table_clallam_Oversight_ActiveFunds[[#This Row],[Agency]],3)","v":"225"},"225-State Patrol","315-1 Dedicated Cannabis-State",{"$f":"LEFT(Table_clallam_Oversight_ActiveFunds[[#This Row],[Fund]],5)","v":"315-1"},null,"",null,null,null,"234-1","234-1 Public Works Admin-State"]
[1,{"$f":"LEFT(Table_clallam_Oversight_ActiveFunds[[#This Row],[Agency]],3)","v":"225"},"225-State Patrol","515-6 DNA Data Base Acct-Non-Appr",{"$f":"LEFT(Table_clallam_Oversight_ActiveFunds[[#This Row],[Fund]],5)","v":"515-6"},null,"",null,null,null,"235-1","235-1 Youth Tobacco/Vapor-State"]
[1,{"$f":"LEFT(Table_clallam_Oversight_ActiveFunds[[#This Row],[Agency]],3)","v":"225"},"225-State Patrol","081-1 WSP Highway Account-State",{"$f":"LEFT(Table_clallam_Oversight_ActiveFunds[[#This Row],[Fund]],5)","v":"081-1"},null,"",null,null,null,"23A-6","23A-6 Student Ln Advocate-Non-Appr"]
[1,{"$f":"LEFT(Table_clallam_Oversight_ActiveFunds[[#This Row],[Agency]],3)","v":"225"},"225-State Patrol","081-2 WSP Highway Account-Federal",{"$f":"LEFT(Table_clallam_Oversight_ActiveFunds[[#This Row],[Fund]],5)","v":"081-2"},null,"",null,null,null,"23L-6","23L-6 Indian Hlth Imp Rein-Non-Appr"]
[1,{"$f":"LEFT(Table_clallam_Oversight_ActiveFunds[[#This Row],[Agency]],3)","v":"225"},"225-State Patrol","081-7 WSP Highway Account-Local",{"$f":"LEFT(Table_clallam_Oversight_ActiveFunds[[#This Row],[Fund]],5)","v":"081-7"},null,"",null,null,null,"23M-6","23M-6 CRAB Emer Loan Acct-Non-Appr"]
[1,{"$f":"LEFT(Table_clallam_Oversight_ActiveFunds[[#This Row],[Agency]],3)","v":"225"},"225-State Patrol","106-1 Highway Safety Acct-State",{"$f":"LEFT(Table_clallam_Oversight_ActiveFunds[[#This Row],[Fund]],5)","v":"106-1"},null,"",null,null,null,"23P-1","23P-1 Model Toxics Oper-State"]
[1,{"$f":"LEFT(Table_clallam_Oversight_ActiveFunds[[#This Row],[Agency]],3)","v":"225"},"225-State Patrol","14V-1 Ignition Interlock-State",{"$f":"LEFT(Table_clallam_Oversight_ActiveFunds[[#This Row],[Fund]],5)","v":"14V-1"},null,"",null,null,null,"23P-7","23P-7 Model Toxics Oper-Local"]
[1,{"$f":"LEFT(Table_clallam_Oversight_ActiveFunds[[#This Row],[Agency]],3)","v":"225"},"225-State Patrol","16J-1 SR 520 Corridor Acct-State",{"$f":"LEFT(Table_clallam_Oversight_ActiveFunds[[#This Row],[Fund]],5)","v":"16J-1"},null,"",null,null,null,"23R-1","23R-1 Model Toxics Strmwtr-State"]
[1,{"$f":"LEFT(Table_clallam_Oversight_ActiveFunds[[#This Row],[Agency]],3)","v":"225"},"225-State Patrol","218-1 Multimodal Acct-State",{"$f":"LEFT(Table_clallam_Oversight_ActiveFunds[[#This Row],[Fund]],5)","v":"218-1"},null,"",null,null,null,"23S-1","23S-1 PS Gateway Facility-State"]
[1,{"$f":"LEFT(Table_clallam_Oversight_ActiveFunds[[#This Row],[Agency]],3)","v":"225"},"225-State Patrol","471-6 St Patrol N A R Acct-Non-Appr",{"$f":"LEFT(Table_clallam_Oversight_ActiveFunds[[#This Row],[Fund]],5)","v":"471-6"},null,"",null,null,null,"23V-1","23V-1 Voluntary Cleanup Ac-State"]
[1,{"$f":"LEFT(Table_clallam_Oversight_ActiveFunds[[#This Row],[Agency]],3)","v":"225"},"225-State Patrol","511-1 Tacoma Narrows Toll-State",{"$f":"LEFT(Table_clallam_Oversight_ActiveFunds[[#This Row],[Fund]],5)","v":"511-1"},null,"",null,null,null,"23W-1","23W-1 Paint Prdct Steward-State"]
[1,{"$f":"LEFT(Table_clallam_Oversight_ActiveFunds[[#This Row],[Agency]],3)","v":"225"},"225-State Patrol","595-1 I-405/SR167 Exp Toll - State",{"$f":"LEFT(Table_clallam_Oversight_ActiveFunds[[#This Row],[Fund]],5)","v":"595-1"},null,"",null,null,null,"24A-6","24A-6 Beh He Ln Rep Pr Acc-Non-Appr"]
[1,{"$f":"LEFT(Table_clallam_Oversight_ActiveFunds[[#This Row],[Agency]],3)","v":"227"},"227-Criminal Justice Trn","001-1 General Fund-State",{"$f":"LEFT(Table_clallam_Oversight_ActiveFunds[[#This Row],[Fund]],5)","v":"001-1"},null,"",null,null,null,"24B-1","24B-1 Found Pub Hlth Svc-State"]
[1,{"$f":"LEFT(Table_clallam_Oversight_ActiveFunds[[#This Row],[Agency]],3)","v":"227"},"227-Criminal Justice Trn","001-7 General Fund-Local",{"$f":"LEFT(Table_clallam_Oversight_ActiveFunds[[#This Row],[Fund]],5)","v":"001-7"},null,"",null,null,null,"24G-6","24G-6 Hemp Regulatory Acct-Non-Appr"]
[1,{"$f":"LEFT(Table_clallam_Oversight_ActiveFunds[[#This Row],[Agency]],3)","v":"227"},"227-Criminal Justice Trn","02K-1 Death Investigations-State",{"$f":"LEFT(Table_clallam_Oversight_ActiveFunds[[#This Row],[Fund]],5)","v":"02K-1"},null,"",null,null,null,"24J-1","24J-1 Workforce Ed Invest-State"]
[1,{"$f":"LEFT(Table_clallam_Oversight_ActiveFunds[[#This Row],[Agency]],3)","v":"227"},"227-Criminal Justice Trn","03M-1 Munic Criminal Justi-State",{"$f":"LEFT(Table_clallam_Oversight_ActiveFunds[[#This Row],[Fund]],5)","v":"03M-1"},null,"",null,null,null,"24K-1","24K-1 Agy Finan Trans Acct-State"]
[1,{"$f":"LEFT(Table_clallam_Oversight_ActiveFunds[[#This Row],[Agency]],3)","v":"227"},"227-Criminal Justice Trn","11K-1 WA Auto Theft Prevnt-State",{"$f":"LEFT(Table_clallam_Oversight_ActiveFunds[[#This Row],[Fund]],5)","v":"11K-1"},null,"",null,null,null,"24L-1","24L-1 Ambulance Transport-State"]
[1,{"$f":"LEFT(Table_clallam_Oversight_ActiveFunds[[#This Row],[Agency]],3)","v":"227"},"227-Criminal Justice Trn","18K-1 24/7 Sobriety Acct-State",{"$f":"LEFT(Table_clallam_Oversight_ActiveFunds[[#This Row],[Fund]],5)","v":"18K-1"},null,"",null,null,null,"24N-1","24N-1 Fish Wildlife Consv-State"]
[1,{"$f":"LEFT(Table_clallam_Oversight_ActiveFunds[[#This Row],[Agency]],3)","v":"227"},"227-Criminal Justice Trn","20E-1 WA Internet Crimes-State",{"$f":"LEFT(Table_clallam_Oversight_ActiveFunds[[#This Row],[Fund]],5)","v":"20E-1"},null,"",null,null,null,"24P-1","24P-1 Insur Commiss Fraud-State"]
[1,{"$f":"LEFT(Table_clallam_Oversight_ActiveFunds[[#This Row],[Agency]],3)","v":"228"},"228-Traffic Safety Comm","106-1 Highway Safety Acct-State",{"$f":"LEFT(Table_clallam_Oversight_ActiveFunds[[#This Row],[Fund]],5)","v":"106-1"},null,"",null,null,null,"24Q-1","24Q-1 Cooper Jones Active-State"]
[1,{"$f":"LEFT(Table_clallam_Oversight_ActiveFunds[[#This Row],[Agency]],3)","v":"228"},"228-Traffic Safety Comm","106-2 Highway Safety Acct-Federal",{"$f":"LEFT(Table_clallam_Oversight_ActiveFunds[[#This Row],[Fund]],5)","v":"106-2"},null,"",null,null,null,"24T-6","24T-6 Firearms Bckgrnd Chk-Non-Appr"]
[1,{"$f":"LEFT(Table_clallam_Oversight_ActiveFunds[[#This Row],[Agency]],3)","v":"228"},"228-Traffic Safety Comm","106-7 Highway Safety Acct-Local",{"$f":"LEFT(Table_clallam_Oversight_ActiveFunds[[#This Row],[Fund]],5)","v":"106-7"},null,"",null,null,null,"24V-1","24V-1 Telebehav Hea Acc Ac-State"]
[1,{"$f":"LEFT(Table_clallam_Oversight_ActiveFunds[[#This Row],[Agency]],3)","v":"228"},"228-Traffic Safety Comm","24Q-1 Cooper Jones Active-State",{"$f":"LEFT(Table_clallam_Oversight_ActiveFunds[[#This Row],[Fund]],5)","v":"24Q-1"},null,"",null,null,null,"259-6","259-6 Coastal Crab-Non-Appr"]
[1,{"$f":"LEFT(Table_clallam_Oversight_ActiveFunds[[#This Row],[Agency]],3)","v":"228"},"228-Traffic Safety Comm","780-1 School Zone Safety-State",{"$f":"LEFT(Table_clallam_Oversight_ActiveFunds[[#This Row],[Fund]],5)","v":"780-1"},null,"",null,null,null,"25B-1","25B-1 Unemp Ins Relief-State"]
[1,{"$f":"LEFT(Table_clallam_Oversight_ActiveFunds[[#This Row],[Agency]],3)","v":"229"},"229-Ind Investigations","001-1 General Fund-State",{"$f":"LEFT(Table_clallam_Oversight_ActiveFunds[[#This Row],[Fund]],5)","v":"001-1"},null,"",null,null,null,"25C-2","25C-2 Elem Sec Sch Emrg Re-Federal"]
[1,{"$f":"LEFT(Table_clallam_Oversight_ActiveFunds[[#This Row],[Agency]],3)","v":"235"},"235-Dept Labor & Indust","001-1 General Fund-State",{"$f":"LEFT(Table_clallam_Oversight_ActiveFunds[[#This Row],[Fund]],5)","v":"001-1"},null,{"$f":"LEFT(I325,3)","v":""},null,null,null,{"$f":"MID(L325,1,5)","v":"25M-1"},"25M-1 Hlth Care Afford-State"]
[1,{"$f":"LEFT(Table_clallam_Oversight_ActiveFunds[[#This Row],[Agency]],3)","v":"235"},"235-Dept Labor & Indust","001-2 General Fund-Federal",{"$f":"LEFT(Table_clallam_Oversight_ActiveFunds[[#This Row],[Fund]],5)","v":"001-2"},null,"",null,null,null,"25N-1","25N-1 988 BH Crisis Rsp Ln-State"]
[1,{"$f":"LEFT(Table_clallam_Oversight_ActiveFunds[[#This Row],[Agency]],3)","v":"235"},"235-Dept Labor & Indust","01F-6 Crime Victims Compen-Non-Appr",{"$f":"LEFT(Table_clallam_Oversight_ActiveFunds[[#This Row],[Fund]],5)","v":"01F-6"},null,"",null,null,null,"25P-1","25P-1 Wildfire Forest Comm-State"]
[1,{"$f":"LEFT(Table_clallam_Oversight_ActiveFunds[[#This Row],[Agency]],3)","v":"235"},"235-Dept Labor & Indust","03B-1 Asbestos Account-State",{"$f":"LEFT(Table_clallam_Oversight_ActiveFunds[[#This Row],[Fund]],5)","v":"03B-1"},null,"",null,null,null,"25Q-1","25Q-1 Clean Fuels Pgm Acct-State"]
[1,{"$f":"LEFT(Table_clallam_Oversight_ActiveFunds[[#This Row],[Agency]],3)","v":"235"},"235-Dept Labor & Indust","095-1 Electrical License-State",{"$f":"LEFT(Table_clallam_Oversight_ActiveFunds[[#This Row],[Fund]],5)","v":"095-1"},null,"",null,null,null,"25R-6","25R-6 Recycled Content Acc-Non-Appr"]
[1,{"$f":"LEFT(Table_clallam_Oversight_ActiveFunds[[#This Row],[Agency]],3)","v":"235"},"235-Dept Labor & Indust","162-1 Farm Lbr Contractor-State",{"$f":"LEFT(Table_clallam_Oversight_ActiveFunds[[#This Row],[Fund]],5)","v":"162-1"},null,"",null,null,null,"25V-6","25V-6 Charitable Assets Pr-Non-Appr"]
[1,{"$f":"LEFT(Table_clallam_Oversight_ActiveFunds[[#This Row],[Agency]],3)","v":"235"},"235-Dept Labor & Indust","163-1 Worker & Comm Right-State",{"$f":"LEFT(Table_clallam_Oversight_ActiveFunds[[#This Row],[Fund]],5)","v":"163-1"},null,"",null,null,null,"25W-1","25W-1 Driver License Tech-State"]
[1,{"$f":"LEFT(Table_clallam_Oversight_ActiveFunds[[#This Row],[Agency]],3)","v":"235"},"235-Dept Labor & Indust","21V-1 Constr Regis Inspect-State",{"$f":"LEFT(Table_clallam_Oversight_ActiveFunds[[#This Row],[Fund]],5)","v":"21V-1"},null,"",null,null,null,"262-1","262-1 Mfr Home Install/Trn-State"]
[1,{"$f":"LEFT(Table_clallam_Oversight_ActiveFunds[[#This Row],[Agency]],3)","v":"235"},"235-Dept Labor & Indust","234-1 Public Works Admin-State",{"$f":"LEFT(Table_clallam_Oversight_ActiveFunds[[#This Row],[Fund]],5)","v":"234-1"},null,"",null,null,null,"263-1","263-1 Comm Economic Devel-State"]
[1,{"$f":"LEFT(Table_clallam_Oversight_ActiveFunds[[#This Row],[Agency]],3)","v":"235"},"235-Dept Labor & Indust","262-1 Mfr Home Install/Trn-State",{"$f":"LEFT(Table_clallam_Oversight_ActiveFunds[[#This Row],[Fund]],5)","v":"262-1"},null,"",null,null,null,"267-1","267-1 Recreation Resources-State"]
[1,{"$f":"LEFT(Table_clallam_Oversight_ActiveFunds[[#This Row],[Agency]],3)","v":"235"},"235-Dept Labor & Indust","27D-6 Drvr Rsrc Cntr Fund-Non-Appr",{"$f":"LEFT(Table_clallam_Oversight_ActiveFunds[[#This Row],[Fund]],5)","v":"27D-6"},null,"",null,null,null,"268-1","268-1 NOVA Program Account-State"]
[1,{"$f":"LEFT(Table_clallam_Oversight_ActiveFunds[[#This Row],[Agency]],3)","v":"235"},"235-Dept Labor & Indust","445-6 SI Emp ORA-Non-Appr",{"$f":"LEFT(Table_clallam_Oversight_ActiveFunds[[#This Row],[Fund]],5)","v":"445-6"},null,"",null,null,null,"269-1","269-1 Parks Renewal Acct-State"]
[1,{"$f":"LEFT(Table_clallam_Oversight_ActiveFunds[[#This Row],[Agency]],3)","v":"235"},"235-Dept Labor & Indust","608-1 Accident Account-State",{"$f":"LEFT(Table_clallam_Oversight_ActiveFunds[[#This Row],[Fund]],5)","v":"608-1"},null,"",null,null,null,"269-7","269-7 Parks Renewal Acct-Local"]
[1,{"$f":"LEFT(Table_clallam_Oversight_ActiveFunds[[#This Row],[Agency]],3)","v":"235"},"235-Dept Labor & Indust","608-2 Accident Account-Federal",{"$f":"LEFT(Table_clallam_Oversight_ActiveFunds[[#This Row],[Fund]],5)","v":"608-2"},null,"",null,null,null,"26A-1","26A-1 Carbon Emissions Red-State"]
[1,{"$f":"LEFT(Table_clallam_Oversight_ActiveFunds[[#This Row],[Agency]],3)","v":"235"},"235-Dept Labor & Indust","608-6 Accident Account-Non-Appr",{"$f":"LEFT(Table_clallam_Oversight_ActiveFunds[[#This Row],[Fund]],5)","v":"608-6"},null,"",null,null,null,"26B-1","26B-1 Climate Investment-State"]
[1,{"$f":"LEFT(Table_clallam_Oversight_ActiveFunds[[#This Row],[Agency]],3)","v":"235"},"235-Dept Labor & Indust","609-1 Medical Aid Account-State",{"$f":"LEFT(Table_clallam_Oversight_ActiveFunds[[#This Row],[Fund]],5)","v":"609-1"},null,"",null,null,null,"26G-7","26G-7 Energy Fac Site Eval-Local"]
[1,{"$f":"LEFT(Table_clallam_Oversight_ActiveFunds[[#This Row],[Agency]],3)","v":"235"},"235-Dept Labor & Indust","609-2 Medical Aid Account-Federal",{"$f":"LEFT(Table_clallam_Oversight_ActiveFunds[[#This Row],[Fund]],5)","v":"609-2"},null,"",null,null,null,"26H-1","26H-1 WA Leader Board-State"]
[1,{"$f":"LEFT(Table_clallam_Oversight_ActiveFunds[[#This Row],[Agency]],3)","v":"235"},"235-Dept Labor & Indust","609-6 Medical Aid Account-Non-Appr",{"$f":"LEFT(Table_clallam_Oversight_ActiveFunds[[#This Row],[Fund]],5)","v":"609-6"},null,"",null,null,null,"26J-6","26J-6 WA Leader Brd Sp Lic-Non-Appr"]
[1,{"$f":"LEFT(Table_clallam_Oversight_ActiveFunds[[#This Row],[Agency]],3)","v":"235"},"235-Dept Labor & Indust","885-1 Plumbing Certificate-State",{"$f":"LEFT(Table_clallam_Oversight_ActiveFunds[[#This Row],[Fund]],5)","v":"885-1"},null,"",null,null,null,"26M-1","26M-1 Climate Actv Transpo-State"]
[1,{"$f":"LEFT(Table_clallam_Oversight_ActiveFunds[[#This Row],[Agency]],3)","v":"235"},"235-Dept Labor & Indust","892-1 Pressure Systems Saf-State",{"$f":"LEFT(Table_clallam_Oversight_ActiveFunds[[#This Row],[Fund]],5)","v":"892-1"},null,"",null,null,null,"26N-1","26N-1 Climate Transit Pgms-State"]
[1,{"$f":"LEFT(Table_clallam_Oversight_ActiveFunds[[#This Row],[Agency]],3)","v":"240"},"240-Licensing","001-1 General Fund-State",{"$f":"LEFT(Table_clallam_Oversight_ActiveFunds[[#This Row],[Fund]],5)","v":"001-1"},null,"",null,null,null,"26P-1","26P-1 Move Ahead WA Acct-State"]
[1,{"$f":"LEFT(Table_clallam_Oversight_ActiveFunds[[#This Row],[Agency]],3)","v":"240"},"240-Licensing","003-1 Architects' License-State",{"$f":"LEFT(Table_clallam_Oversight_ActiveFunds[[#This Row],[Fund]],5)","v":"003-1"},null,"",null,null,null,"26P-2","26P-2 Move Ahead WA Acct-Federal"]
[1,{"$f":"LEFT(Table_clallam_Oversight_ActiveFunds[[#This Row],[Agency]],3)","v":"240"},"240-Licensing","026-1 Real Estate Cmsn-State",{"$f":"LEFT(Table_clallam_Oversight_ActiveFunds[[#This Row],[Fund]],5)","v":"026-1"},null,"",null,null,null,"26Q-1","26Q-1 Move Ahead WA Flex-State"]
[1,{"$f":"LEFT(Table_clallam_Oversight_ActiveFunds[[#This Row],[Agency]],3)","v":"240"},"240-Licensing","04E-1 Uniform Commer Code-State",{"$f":"LEFT(Table_clallam_Oversight_ActiveFunds[[#This Row],[Fund]],5)","v":"04E-1"},null,"",null,null,null,"26Q-2","26Q-2 Move Ahead WA Flex-Federal"]
[1,{"$f":"LEFT(Table_clallam_Oversight_ActiveFunds[[#This Row],[Agency]],3)","v":"240"},"240-Licensing","04F-1 Real Est Ed Pgm Acct-State",{"$f":"LEFT(Table_clallam_Oversight_ActiveFunds[[#This Row],[Fund]],5)","v":"04F-1"},null,"",null,null,null,"26T-6","26T-6 WA Student Loan-Non-Appr"]
[1,{"$f":"LEFT(Table_clallam_Oversight_ActiveFunds[[#This Row],[Agency]],3)","v":"240"},"240-Licensing","06G-1 Real Est App C Acct-State",{"$f":"LEFT(Table_clallam_Oversight_ActiveFunds[[#This Row],[Fund]],5)","v":"06G-1"},null,"",null,null,null,"26U-1","26U-1 Apple Health & Homes-State"]
[1,{"$f":"LEFT(Table_clallam_Oversight_ActiveFunds[[#This Row],[Agency]],3)","v":"240"},"240-Licensing","06L-1 Business Professions-State",{"$f":"LEFT(Table_clallam_Oversight_ActiveFunds[[#This Row],[Fund]],5)","v":"06L-1"},null,"",null,null,null,"27B-1","27B-1 Elec Veh Incentive-State"]
[1,{"$f":"LEFT(Table_clallam_Oversight_ActiveFunds[[#This Row],[Agency]],3)","v":"240"},"240-Licensing","06R-1 Real Estate Research-State",{"$f":"LEFT(Table_clallam_Oversight_ActiveFunds[[#This Row],[Fund]],5)","v":"06R-1"},null,"",null,null,null,"27D-6","27D-6 Drvr Rsrc Cntr Fund-Non-Appr"]
[1,{"$f":"LEFT(Table_clallam_Oversight_ActiveFunds[[#This Row],[Agency]],3)","v":"240"},"240-Licensing","146-1 Firearms Range Acct-State",{"$f":"LEFT(Table_clallam_Oversight_ActiveFunds[[#This Row],[Fund]],5)","v":"146-1"},null,"",null,null,null,"285-1","285-1 Growth Mgmt Planning-State"]
[1,{"$f":"LEFT(Table_clallam_Oversight_ActiveFunds[[#This Row],[Agency]],3)","v":"240"},"240-Licensing","15V-1 Funeral & Cemetery-State",{"$f":"LEFT(Table_clallam_Oversight_ActiveFunds[[#This Row],[Fund]],5)","v":"15V-1"},null,"",null,null,null,"297-1","297-1 Pipeline Safety-State"]
[1,{"$f":"LEFT(Table_clallam_Oversight_ActiveFunds[[#This Row],[Agency]],3)","v":"240"},"240-Licensing","15V-6 Funeral & Cemetery-Non-Appr",{"$f":"LEFT(Table_clallam_Oversight_ActiveFunds[[#This Row],[Fund]],5)","v":"15V-6"},null,"",null,null,null,"297-2","297-2 Pipeline Safety-Federal"]
[1,{"$f":"LEFT(Table_clallam_Oversight_ActiveFunds[[#This Row],[Agency]],3)","v":"240"},"240-Licensing","16B-1 Landscape Architects-State",{"$f":"LEFT(Table_clallam_Oversight_ActiveFunds[[#This Row],[Fund]],5)","v":"16B-1"},null,"",null,null,null,"298-1","298-1 Geologists' Account-State"]
[1,{"$f":"LEFT(Table_clallam_Oversight_ActiveFunds[[#This Row],[Agency]],3)","v":"240"},"240-Licensing","16B-6 Landscape Architects-Non-Appr",{"$f":"LEFT(Table_clallam_Oversight_ActiveFunds[[#This Row],[Fund]],5)","v":"16B-6"},null,"",null,null,null,"298-6","298-6 Geologists' Account-Non-Appr"]
[1,{"$f":"LEFT(Table_clallam_Oversight_ActiveFunds[[#This Row],[Agency]],3)","v":"240"},"240-Licensing","16M-1 Appraisal Mgmt Comp-State",{"$f":"LEFT(Table_clallam_Oversight_ActiveFunds[[#This Row],[Fund]],5)","v":"16M-1"},null,"",null,null,null,"300-1","300-1 Financial Svcs Regul-State"]
[1,{"$f":"LEFT(Table_clallam_Oversight_ActiveFunds[[#This Row],[Agency]],3)","v":"240"},"240-Licensing","16M-6 Appraisal Mgmt Comp-Non-Appr",{"$f":"LEFT(Table_clallam_Oversight_ActiveFunds[[#This Row],[Fund]],5)","v":"16M-6"},null,"",null,null,null,"300-6","300-6 Financial Svcs Regul-Non-Appr"]
[1,{"$f":"LEFT(Table_clallam_Oversight_ActiveFunds[[#This Row],[Agency]],3)","v":"240"},"240-Licensing","21E-1 Con Pistol Lic Renew-State",{"$f":"LEFT(Table_clallam_Oversight_ActiveFunds[[#This Row],[Fund]],5)","v":"21E-1"},null,"",null,null,null,"315-1","315-1 Dedicated Cannabis-State"]
[1,{"$f":"LEFT(Table_clallam_Oversight_ActiveFunds[[#This Row],[Agency]],3)","v":"240"},"240-Licensing","298-1 Geologists' Account-State",{"$f":"LEFT(Table_clallam_Oversight_ActiveFunds[[#This Row],[Fund]],5)","v":"298-1"},null,"",null,null,null,"319-7","319-7 Public Health Supp-Local"]
[1,{"$f":"LEFT(Table_clallam_Oversight_ActiveFunds[[#This Row],[Agency]],3)","v":"240"},"240-Licensing","298-6 Geologists' Account-Non-Appr",{"$f":"LEFT(Table_clallam_Oversight_ActiveFunds[[#This Row],[Fund]],5)","v":"298-6"},null,"",null,null,null,"320-6","320-6 PS Crab Pot Buoy Tag-Non-Appr"]
[1,{"$f":"LEFT(Table_clallam_Oversight_ActiveFunds[[#This Row],[Agency]],3)","v":"240"},"240-Licensing","513-1 Derelict Vessel Rmv-State",{"$f":"LEFT(Table_clallam_Oversight_ActiveFunds[[#This Row],[Fund]],5)","v":"513-1"},null,"",null,null,null,"401-6","401-6 Correctional Industr-Non-Appr"]
[1,{"$f":"LEFT(Table_clallam_Oversight_ActiveFunds[[#This Row],[Agency]],3)","v":"240"},"240-Licensing","048-1 Marine Fuel Tax Refu-State",{"$f":"LEFT(Table_clallam_Oversight_ActiveFunds[[#This Row],[Fund]],5)","v":"048-1"},null,"",null,null,null,"404-1","404-1 Treasurer's Service-State"]
[1,{"$f":"LEFT(Table_clallam_Oversight_ActiveFunds[[#This Row],[Agency]],3)","v":"240"},"240-Licensing","06T-1 License Plate T Acct-State",{"$f":"LEFT(Table_clallam_Oversight_ActiveFunds[[#This Row],[Fund]],5)","v":"06T-1"},null,"",null,null,null,"405-1","405-1 Legal Serv Rev Acct-State"]
[1,{"$f":"LEFT(Table_clallam_Oversight_ActiveFunds[[#This Row],[Agency]],3)","v":"240"},"240-Licensing","082-1 Motorcycle Safety Ed-State",{"$f":"LEFT(Table_clallam_Oversight_ActiveFunds[[#This Row],[Fund]],5)","v":"082-1"},null,"",null,null,null,"406-1","406-1 Sal & Insur Incr-Rev - State"]
[1,{"$f":"LEFT(Table_clallam_Oversight_ActiveFunds[[#This Row],[Agency]],3)","v":"240"},"240-Licensing","104-1 Lim Fish & Wildlife-State",{"$f":"LEFT(Table_clallam_Oversight_ActiveFunds[[#This Row],[Fund]],5)","v":"104-1"},null,"",null,null,null,"407-6","407-6 Secretary State Rev-Non-Appr"]
[1,{"$f":"LEFT(Table_clallam_Oversight_ActiveFunds[[#This Row],[Agency]],3)","v":"240"},"240-Licensing","106-1 Highway Safety Acct-State",{"$f":"LEFT(Table_clallam_Oversight_ActiveFunds[[#This Row],[Fund]],5)","v":"106-1"},null,"",null,null,null,"408-6","408-6 Coastal Protec Acct-Non-Appr"]
[1,{"$f":"LEFT(Table_clallam_Oversight_ActiveFunds[[#This Row],[Agency]],3)","v":"240"},"240-Licensing","106-2 Highway Safety Acct-Federal",{"$f":"LEFT(Table_clallam_Oversight_ActiveFunds[[#This Row],[Fund]],5)","v":"106-2"},null,"",null,null,null,"410-6","410-6 Transp Equipment Acc-Non-Appr"]
[1,{"$f":"LEFT(Table_clallam_Oversight_ActiveFunds[[#This Row],[Agency]],3)","v":"240"},"240-Licensing","108-1 Motor Vehicle Acct-State",{"$f":"LEFT(Table_clallam_Oversight_ActiveFunds[[#This Row],[Fund]],5)","v":"108-1"},null,"",null,null,null,"413-6","413-6 Municipal Revolving-Non-Appr"]
[1,{"$f":"LEFT(Table_clallam_Oversight_ActiveFunds[[#This Row],[Agency]],3)","v":"240"},"240-Licensing","108-2 Motor Vehicle Acct-Federal",{"$f":"LEFT(Table_clallam_Oversight_ActiveFunds[[#This Row],[Fund]],5)","v":"108-2"},null,"",null,null,null,"415-1","415-1 Personnel Svc Acct-State"]
[1,{"$f":"LEFT(Table_clallam_Oversight_ActiveFunds[[#This Row],[Agency]],3)","v":"240"},"240-Licensing","108-7 Motor Vehicle Acct-Local",{"$f":"LEFT(Table_clallam_Oversight_ActiveFunds[[#This Row],[Fund]],5)","v":"108-7"},null,"",null,null,null,"418-1","418-1 St Hlth Care Admn Ac-State"]
[1,{"$f":"LEFT(Table_clallam_Oversight_ActiveFunds[[#This Row],[Agency]],3)","v":"240"},"240-Licensing","14V-1 Ignition Interlock-State",{"$f":"LEFT(Table_clallam_Oversight_ActiveFunds[[#This Row],[Fund]],5)","v":"14V-1"},null,"",null,null,null,"421-6","421-6 Ed Tech Revolving-Non-Appr"]
[1,{"$f":"LEFT(Table_clallam_Oversight_ActiveFunds[[#This Row],[Agency]],3)","v":"240"},"240-Licensing","17W-1 Limousine Carrier Ac-State",{"$f":"LEFT(Table_clallam_Oversight_ActiveFunds[[#This Row],[Fund]],5)","v":"17W-1"},null,"",null,null,null,"422-6","422-6 Enterprise Svc Acct-Non-Appr"]
[1,{"$f":"LEFT(Table_clallam_Oversight_ActiveFunds[[#This Row],[Agency]],3)","v":"240"},"240-Licensing","19T-1 DOL Tech Improve-State",{"$f":"LEFT(Table_clallam_Oversight_ActiveFunds[[#This Row],[Fund]],5)","v":"19T-1"},null,"",null,null,null,"424-6","424-6 Anti-Trust Revolving - Non-Appr"]
[1,{"$f":"LEFT(Table_clallam_Oversight_ActiveFunds[[#This Row],[Agency]],3)","v":"240"},"240-Licensing","201-1 DOL Services Account-State",{"$f":"LEFT(Table_clallam_Oversight_ActiveFunds[[#This Row],[Fund]],5)","v":"201-1"},null,"",null,null,null,"433-6","433-6 Shared Game Lottery-Non-Appr"]
[1,{"$f":"LEFT(Table_clallam_Oversight_ActiveFunds[[#This Row],[Agency]],3)","v":"240"},"240-Licensing","20J-1 Electric Vehicle-State",{"$f":"LEFT(Table_clallam_Oversight_ActiveFunds[[#This Row],[Fund]],5)","v":"20J-1"},null,"",null,null,null,"436-6","436-6 OFM Labor Relations-Non-Appr"]
[1,{"$f":"LEFT(Table_clallam_Oversight_ActiveFunds[[#This Row],[Agency]],3)","v":"240"},"240-Licensing","22J-1 Abandoned RV Acct-State",{"$f":"LEFT(Table_clallam_Oversight_ActiveFunds[[#This Row],[Fund]],5)","v":"22J-1"},null,"",null,null,null,"438-6","438-6 UDP Benefits Admin-Non-Appr"]
[1,{"$f":"LEFT(Table_clallam_Oversight_ActiveFunds[[#This Row],[Agency]],3)","v":"240"},"240-Licensing","24K-1 Agy Finan Trans Acct-State",{"$f":"LEFT(Table_clallam_Oversight_ActiveFunds[[#This Row],[Fund]],5)","v":"24K-1"},null,"",null,null,null,"439-6","439-6 UMP Admin Bene Acct-Non-Appr"]
[1,{"$f":"LEFT(Table_clallam_Oversight_ActiveFunds[[#This Row],[Agency]],3)","v":"240"},"240-Licensing","25W-1 Driver License Tech-State",{"$f":"LEFT(Table_clallam_Oversight_ActiveFunds[[#This Row],[Fund]],5)","v":"25W-1"},null,"",null,null,null,"441-1","441-1 Local Gov Archives-State"]
[1,{"$f":"LEFT(Table_clallam_Oversight_ActiveFunds[[#This Row],[Agency]],3)","v":"240"},"240-Licensing","26Q-1 Move Ahead WA Flex-State",{"$f":"LEFT(Table_clallam_Oversight_ActiveFunds[[#This Row],[Fund]],5)","v":"26Q-1"},null,"",null,null,null,"442-6","442-6 Leg Gift Center Acct-Non-Appr"]
[1,{"$f":"LEFT(Table_clallam_Oversight_ActiveFunds[[#This Row],[Agency]],3)","v":"245"},"245-Military Dept","001-1 General Fund-State",{"$f":"LEFT(Table_clallam_Oversight_ActiveFunds[[#This Row],[Fund]],5)","v":"001-1"},null,"",null,null,null,"443-6","443-6 Data Proc-Hi Educ - Non-Appr"]
[1,{"$f":"LEFT(Table_clallam_Oversight_ActiveFunds[[#This Row],[Agency]],3)","v":"245"},"245-Military Dept","001-2 General Fund-Federal",{"$f":"LEFT(Table_clallam_Oversight_ActiveFunds[[#This Row],[Fund]],5)","v":"001-2"},null,"",null,null,null,"444-6","444-6 Fish & Wild Equip-Non-Appr"]
[1,{"$f":"LEFT(Table_clallam_Oversight_ActiveFunds[[#This Row],[Agency]],3)","v":"245"},"245-Military Dept","001-H General Fund-ARPA",{"$f":"LEFT(Table_clallam_Oversight_ActiveFunds[[#This Row],[Fund]],5)","v":"001-H"},null,"",null,null,null,"445-6","445-6 SI Emp ORA-Non-Appr"]
[1,{"$f":"LEFT(Table_clallam_Oversight_ActiveFunds[[#This Row],[Agency]],3)","v":"245"},"245-Military Dept","03F-1 911 Account-State",{"$f":"LEFT(Table_clallam_Oversight_ActiveFunds[[#This Row],[Fund]],5)","v":"03F-1"},null,"",null,null,null,"447-6","447-6 Info Tech Invest Rev-Non-Appr"]
[1,{"$f":"LEFT(Table_clallam_Oversight_ActiveFunds[[#This Row],[Agency]],3)","v":"245"},"245-Military Dept","05H-1 Disaster Response-State",{"$f":"LEFT(Table_clallam_Oversight_ActiveFunds[[#This Row],[Fund]],5)","v":"05H-1"},null,"",null,null,null,"453-1","453-1 Minority & Business-State"]
[1,{"$f":"LEFT(Table_clallam_Oversight_ActiveFunds[[#This Row],[Agency]],3)","v":"245"},"245-Military Dept","05H-2 Disaster Response-Federal",{"$f":"LEFT(Table_clallam_Oversight_ActiveFunds[[#This Row],[Fund]],5)","v":"05H-2"},null,"",null,null,null,"455-1","455-1 Higher Ed Pers Svcs-State"]
[1,{"$f":"LEFT(Table_clallam_Oversight_ActiveFunds[[#This Row],[Agency]],3)","v":"245"},"245-Military Dept","08H-1 Military Rent and L-State",{"$f":"LEFT(Table_clallam_Oversight_ActiveFunds[[#This Row],[Fund]],5)","v":"08H-1"},null,"",null,null,null,"458-1","458-1 CTS Revolving Acct-State"]
[1,{"$f":"LEFT(Table_clallam_Oversight_ActiveFunds[[#This Row],[Agency]],3)","v":"245"},"245-Military Dept","14R-1 Mil Dep ASSA-State",{"$f":"LEFT(Table_clallam_Oversight_ActiveFunds[[#This Row],[Fund]],5)","v":"14R-1"},null,{"$f":"LEFT(I389,3)","v":""},null,null,null,{"$f":"MID(L389,1,5)","v":"458-6"},"458-6 CTS Revolving Acct-Non-Appr"]
[1,{"$f":"LEFT(Table_clallam_Oversight_ActiveFunds[[#This Row],[Agency]],3)","v":"245"},"245-Military Dept","163-1 Worker & Comm Right-State",{"$f":"LEFT(Table_clallam_Oversight_ActiveFunds[[#This Row],[Fund]],5)","v":"163-1"},null,"",null,null,null,"463-6","463-6 WA College Sav Prog-Non-Appr"]
[1,{"$f":"LEFT(Table_clallam_Oversight_ActiveFunds[[#This Row],[Agency]],3)","v":"245"},"245-Military Dept","217-1 Oil Spill Prevn Acct-State",{"$f":"LEFT(Table_clallam_Oversight_ActiveFunds[[#This Row],[Fund]],5)","v":"217-1"},null,"",null,null,null,"466-1","466-1 Statewide IT Sys Dev-State"]
[1,{"$f":"LEFT(Table_clallam_Oversight_ActiveFunds[[#This Row],[Agency]],3)","v":"275"},"275-Public Empl Relation","001-1 General Fund-State",{"$f":"LEFT(Table_clallam_Oversight_ActiveFunds[[#This Row],[Fund]],5)","v":"001-1"},null,"",null,null,null,"468-1","468-1 OFM Central Services-State"]
[1,{"$f":"LEFT(Table_clallam_Oversight_ActiveFunds[[#This Row],[Agency]],3)","v":"275"},"275-Public Empl Relation","415-1 Personnel Svc Acct-State",{"$f":"LEFT(Table_clallam_Oversight_ActiveFunds[[#This Row],[Fund]],5)","v":"415-1"},null,"",null,null,null,"470-6","470-6 Imaging Account-Non-Appr"]
[1,{"$f":"LEFT(Table_clallam_Oversight_ActiveFunds[[#This Row],[Agency]],3)","v":"275"},"275-Public Empl Relation","455-1 Higher Ed Pers Svcs-State",{"$f":"LEFT(Table_clallam_Oversight_ActiveFunds[[#This Row],[Fund]],5)","v":"455-1"},null,"",null,null,null,"471-6","471-6 St Patrol N A R Acct-Non-Appr"]
[1,{"$f":"LEFT(Table_clallam_Oversight_ActiveFunds[[#This Row],[Agency]],3)","v":"300"},"300-DSHS","001-1 General Fund-State",{"$f":"LEFT(Table_clallam_Oversight_ActiveFunds[[#This Row],[Fund]],5)","v":"001-1"},null,"",null,null,null,"472-1","472-1 Statewide IT Sys M&O-State"]
[1,{"$f":"LEFT(Table_clallam_Oversight_ActiveFunds[[#This Row],[Agency]],3)","v":"300"},"300-DSHS","001-2 General Fund-Federal",{"$f":"LEFT(Table_clallam_Oversight_ActiveFunds[[#This Row],[Fund]],5)","v":"001-2"},null,"",null,null,null,"472-6","472-6 Statewide IT Sys M&O-Non-Appr"]
[1,{"$f":"LEFT(Table_clallam_Oversight_ActiveFunds[[#This Row],[Agency]],3)","v":"300"},"300-DSHS","001-7 General Fund-Local",{"$f":"LEFT(Table_clallam_Oversight_ActiveFunds[[#This Row],[Fund]],5)","v":"001-7"},null,"",null,null,null,"474-6","474-6 SEBB Flex Spend Admn-Non-Appr"]
[1,{"$f":"LEFT(Table_clallam_Oversight_ActiveFunds[[#This Row],[Agency]],3)","v":"300"},"300-DSHS","001-A General Fund-Fam Supt",{"$f":"LEFT(Table_clallam_Oversight_ActiveFunds[[#This Row],[Fund]],5)","v":"001-A"},null,"",null,null,null,"475-6","475-6 SEBB Dntl Admn Acct-Non-Appr"]
[1,{"$f":"LEFT(Table_clallam_Oversight_ActiveFunds[[#This Row],[Agency]],3)","v":"300"},"300-DSHS","001-C General Fund-Medicaid",{"$f":"LEFT(Table_clallam_Oversight_ActiveFunds[[#This Row],[Fund]],5)","v":"001-C"},null,"",null,null,null,"480-6","480-6 Financial Education-Non-Appr"]
[1,{"$f":"LEFT(Table_clallam_Oversight_ActiveFunds[[#This Row],[Agency]],3)","v":"300"},"300-DSHS","001-D General Fund-TANF",{"$f":"LEFT(Table_clallam_Oversight_ActiveFunds[[#This Row],[Fund]],5)","v":"001-D"},null,"",null,null,null,"483-1","483-1 Auditing Svcs Revolv-State"]
[1,{"$f":"LEFT(Table_clallam_Oversight_ActiveFunds[[#This Row],[Agency]],3)","v":"300"},"300-DSHS","001-H General Fund-ARPA",{"$f":"LEFT(Table_clallam_Oversight_ActiveFunds[[#This Row],[Fund]],5)","v":"001-H"},null,"",null,null,null,"484-1","484-1 Admin Hearings Revol-State"]
[1,{"$f":"LEFT(Table_clallam_Oversight_ActiveFunds[[#This Row],[Agency]],3)","v":"300"},"300-DSHS","001-W General Fund-Oth COVID",{"$f":"LEFT(Table_clallam_Oversight_ActiveFunds[[#This Row],[Fund]],5)","v":"001-W"},null,"",null,null,null,"484-7","484-7 Admin Hearings Revol-Local"]
[1,{"$f":"LEFT(Table_clallam_Oversight_ActiveFunds[[#This Row],[Agency]],3)","v":"300"},"300-DSHS","001-X General Fund-CRF App",{"$f":"LEFT(Table_clallam_Oversight_ActiveFunds[[#This Row],[Fund]],5)","v":"001-X"},null,"",null,null,null,"485-6","485-6 WA Bred Owners'-Non-Appr"]
[1,{"$f":"LEFT(Table_clallam_Oversight_ActiveFunds[[#This Row],[Agency]],3)","v":"300"},"300-DSHS","001-Y General Fund-Oth UAR",{"$f":"LEFT(Table_clallam_Oversight_ActiveFunds[[#This Row],[Fund]],5)","v":"001-Y"},null,"",null,null,null,"489-1","489-1 Pension Fund Stabilz-State"]
[1,{"$f":"LEFT(Table_clallam_Oversight_ActiveFunds[[#This Row],[Agency]],3)","v":"300"},"300-DSHS","001-Z General Fund-CRRSA",{"$f":"LEFT(Table_clallam_Oversight_ActiveFunds[[#This Row],[Fund]],5)","v":"001-Z"},null,"",null,null,null,"492-1","492-1 School Employees' In-State"]
[1,{"$f":"LEFT(Table_clallam_Oversight_ActiveFunds[[#This Row],[Agency]],3)","v":"300"},"300-DSHS","07W-1 Domestic Violence P-State",{"$f":"LEFT(Table_clallam_Oversight_ActiveFunds[[#This Row],[Fund]],5)","v":"07W-1"},null,"",null,null,null,"492-6","492-6 School Employees' In-Non-Appr"]
[1,{"$f":"LEFT(Table_clallam_Oversight_ActiveFunds[[#This Row],[Agency]],3)","v":"300"},"300-DSHS","12T-1 Trauma Brain Injury-State",{"$f":"LEFT(Table_clallam_Oversight_ActiveFunds[[#This Row],[Fund]],5)","v":"12T-1"},null,"",null,null,null,"493-6","493-6 School Empl Ins Acct-Non-Appr"]
[1,{"$f":"LEFT(Table_clallam_Oversight_ActiveFunds[[#This Row],[Agency]],3)","v":"300"},"300-DSHS","12T-6 Trauma Brain Injury-Non-Appr",{"$f":"LEFT(Table_clallam_Oversight_ActiveFunds[[#This Row],[Fund]],5)","v":"12T-6"},null,"",null,null,null,"494-6","494-6 SEBB Med Ben Admin-Non-Appr"]
[1,{"$f":"LEFT(Table_clallam_Oversight_ActiveFunds[[#This Row],[Agency]],3)","v":"300"},"300-DSHS","562-1 Skilled Nursing Fac-State",{"$f":"LEFT(Table_clallam_Oversight_ActiveFunds[[#This Row],[Fund]],5)","v":"562-1"},null,"",null,null,null,"496-6","496-6 Future Teachers-Non-Appr"]
[1,{"$f":"LEFT(Table_clallam_Oversight_ActiveFunds[[#This Row],[Agency]],3)","v":"300"},"300-DSHS","567-1 Long-Term Svcs & Spt - State",{"$f":"LEFT(Table_clallam_Oversight_ActiveFunds[[#This Row],[Fund]],5)","v":"567-1"},null,"",null,null,null,"497-6","497-6 Class C Purse Acct-Non-Appr"]
[1,{"$f":"LEFT(Table_clallam_Oversight_ActiveFunds[[#This Row],[Agency]],3)","v":"300"},"300-DSHS","706-2 COVID Fiscal Recover-Federal",{"$f":"LEFT(Table_clallam_Oversight_ActiveFunds[[#This Row],[Fund]],5)","v":"706-2"},null,"",null,null,null,"501-1","501-1 Liquor Revolving Acc-State"]
[1,{"$f":"LEFT(Table_clallam_Oversight_ActiveFunds[[#This Row],[Agency]],3)","v":"300"},"300-DSHS","851-1 Dev Dis Comm Sv Acct-State",{"$f":"LEFT(Table_clallam_Oversight_ActiveFunds[[#This Row],[Fund]],5)","v":"851-1"},null,"",null,null,null,"503-6","503-6 Tuitn Recovery Trust-Non-Appr"]
[1,{"$f":"LEFT(Table_clallam_Oversight_ActiveFunds[[#This Row],[Agency]],3)","v":"303"},"303-Dept of Health","001-1 General Fund-State",{"$f":"LEFT(Table_clallam_Oversight_ActiveFunds[[#This Row],[Fund]],5)","v":"001-1"},null,"",null,null,null,"505-6","505-6 U of W Hospital-Non-Appr"]
[1,{"$f":"LEFT(Table_clallam_Oversight_ActiveFunds[[#This Row],[Agency]],3)","v":"303"},"303-Dept of Health","001-2 General Fund-Federal",{"$f":"LEFT(Table_clallam_Oversight_ActiveFunds[[#This Row],[Fund]],5)","v":"001-2"},null,"",null,null,null,"507-1","507-1 Oyster Reserve Land-State"]
[1,{"$f":"LEFT(Table_clallam_Oversight_ActiveFunds[[#This Row],[Agency]],3)","v":"303"},"303-Dept of Health","001-7 General Fund-Local",{"$f":"LEFT(Table_clallam_Oversight_ActiveFunds[[#This Row],[Fund]],5)","v":"001-7"},null,"",null,null,null,"511-1","511-1 Tacoma Narrows Toll-State"]
[1,{"$f":"LEFT(Table_clallam_Oversight_ActiveFunds[[#This Row],[Agency]],3)","v":"303"},"303-Dept of Health","002-1 Hospital Data Collec-State",{"$f":"LEFT(Table_clallam_Oversight_ActiveFunds[[#This Row],[Fund]],5)","v":"002-1"},null,"",null,null,null,"513-1","513-1 Derelict Vessel Rmv-State"]
[1,{"$f":"LEFT(Table_clallam_Oversight_ActiveFunds[[#This Row],[Agency]],3)","v":"303"},"303-Dept of Health","02G-1 Health Prfessns Acct-State",{"$f":"LEFT(Table_clallam_Oversight_ActiveFunds[[#This Row],[Fund]],5)","v":"02G-1"},null,"",null,null,null,"515-6","515-6 DNA Data Base Acct-Non-Appr"]
[1,{"$f":"LEFT(Table_clallam_Oversight_ActiveFunds[[#This Row],[Agency]],3)","v":"303"},"303-Dept of Health","02R-1 Aquatic Lands Acct-State",{"$f":"LEFT(Table_clallam_Oversight_ActiveFunds[[#This Row],[Fund]],5)","v":"02R-1"},null,"",null,null,null,"516-6","516-6 Fruit/Vegetable Insp-Non-Appr"]
[1,{"$f":"LEFT(Table_clallam_Oversight_ActiveFunds[[#This Row],[Agency]],3)","v":"303"},"303-Dept of Health","03C-1 Emer Med/Trauma Care-State",{"$f":"LEFT(Table_clallam_Oversight_ActiveFunds[[#This Row],[Fund]],5)","v":"03C-1"},null,"",null,null,null,"532-1","532-1 Wa Housing Trust Acc-State"]
[1,{"$f":"LEFT(Table_clallam_Oversight_ActiveFunds[[#This Row],[Agency]],3)","v":"303"},"303-Dept of Health","03R-1 Safe Drink Wtr Acct-State",{"$f":"LEFT(Table_clallam_Oversight_ActiveFunds[[#This Row],[Fund]],5)","v":"03R-1"},null,"",null,null,null,"535-1","535-1 Alaskan Way Viaduct-State"]
[1,{"$f":"LEFT(Table_clallam_Oversight_ActiveFunds[[#This Row],[Agency]],3)","v":"303"},"303-Dept of Health","04R-2 Drinking Water Assis-Federal",{"$f":"LEFT(Table_clallam_Oversight_ActiveFunds[[#This Row],[Fund]],5)","v":"04R-2"},null,"",null,null,null,"536-6","536-6 Federal Food Service-Non-Appr"]
[1,{"$f":"LEFT(Table_clallam_Oversight_ActiveFunds[[#This Row],[Agency]],3)","v":"303"},"303-Dept of Health","04W-1 Water Works Op Cert-State",{"$f":"LEFT(Table_clallam_Oversight_ActiveFunds[[#This Row],[Fund]],5)","v":"04W-1"},null,"",null,null,null,"543-1","543-1 Judicial Info System-State"]
[1,{"$f":"LEFT(Table_clallam_Oversight_ActiveFunds[[#This Row],[Agency]],3)","v":"303"},"303-Dept of Health","05R-1 Drinking Water Asst-State",{"$f":"LEFT(Table_clallam_Oversight_ActiveFunds[[#This Row],[Fund]],5)","v":"05R-1"},null,"",null,null,null,"544-1","544-1 Pollution Liab Insur-State"]
[1,{"$f":"LEFT(Table_clallam_Oversight_ActiveFunds[[#This Row],[Agency]],3)","v":"303"},"303-Dept of Health","09L-6 Nursing Res Center-Non-Appr",{"$f":"LEFT(Table_clallam_Oversight_ActiveFunds[[#This Row],[Fund]],5)","v":"09L-6"},null,"",null,null,null,"545-6","545-6 Heating Oil Pollut-Non-Appr"]
[1,{"$f":"LEFT(Table_clallam_Oversight_ActiveFunds[[#This Row],[Agency]],3)","v":"303"},"303-Dept of Health","125-1 Site Closure Account-State",{"$f":"LEFT(Table_clallam_Oversight_ActiveFunds[[#This Row],[Fund]],5)","v":"125-1"},null,"",null,null,null,"546-6","546-6 Risk Mgmt Admin Acct-Non-Appr"]
[1,{"$f":"LEFT(Table_clallam_Oversight_ActiveFunds[[#This Row],[Agency]],3)","v":"303"},"303-Dept of Health","15M-1 Biotoxin Account-State",{"$f":"LEFT(Table_clallam_Oversight_ActiveFunds[[#This Row],[Fund]],5)","v":"15M-1"},null,"",null,null,null,"547-6","547-6 Liability Account-Non-Appr"]
[1,{"$f":"LEFT(Table_clallam_Oversight_ActiveFunds[[#This Row],[Agency]],3)","v":"303"},"303-Dept of Health","16G-6 Univ Vaccine Purch-Non-Appr",{"$f":"LEFT(Table_clallam_Oversight_ActiveFunds[[#This Row],[Fund]],5)","v":"16G-6"},null,"",null,null,null,"548-6","548-6 LEOFF Plan 2 Expense-Non-Appr"]
[1,{"$f":"LEFT(Table_clallam_Oversight_ActiveFunds[[#This Row],[Agency]],3)","v":"303"},"303-Dept of Health","19A-1 Medicaid Fraud Pnlty-State",{"$f":"LEFT(Table_clallam_Oversight_ActiveFunds[[#This Row],[Fund]],5)","v":"19A-1"},null,"",null,null,null,"549-2","549-2 Election Account-Federal"]
[1,{"$f":"LEFT(Table_clallam_Oversight_ActiveFunds[[#This Row],[Agency]],3)","v":"303"},"303-Dept of Health","202-1 Med Test Site Licen-State",{"$f":"LEFT(Table_clallam_Oversight_ActiveFunds[[#This Row],[Fund]],5)","v":"202-1"},null,"",null,null,null,"550-1","550-1 Transp 2003 (Nickel)-State"]
[1,{"$f":"LEFT(Table_clallam_Oversight_ActiveFunds[[#This Row],[Agency]],3)","v":"303"},"303-Dept of Health","214-6 Temp Worker Housing-Non-Appr",{"$f":"LEFT(Table_clallam_Oversight_ActiveFunds[[#This Row],[Fund]],5)","v":"214-6"},null,"",null,null,null,"553-1","553-1 Perf Audits of Govt-State"]
[1,{"$f":"LEFT(Table_clallam_Oversight_ActiveFunds[[#This Row],[Agency]],3)","v":"303"},"303-Dept of Health","22U-1 Secure Drug Takeback-State",{"$f":"LEFT(Table_clallam_Oversight_ActiveFunds[[#This Row],[Fund]],5)","v":"22U-1"},null,"",null,null,null,"553-6","553-6 Perf Audits of Govt-Non-Appr"]
[1,{"$f":"LEFT(Table_clallam_Oversight_ActiveFunds[[#This Row],[Agency]],3)","v":"303"},"303-Dept of Health","235-1 Youth Tobacco/Vapor-State",{"$f":"LEFT(Table_clallam_Oversight_ActiveFunds[[#This Row],[Fund]],5)","v":"235-1"},null,"",null,null,null,"561-6","561-6 Comm/Tech College In-Non-Appr"]
[1,{"$f":"LEFT(Table_clallam_Oversight_ActiveFunds[[#This Row],[Agency]],3)","v":"303"},"303-Dept of Health","23P-1 Model Toxics Oper-State",{"$f":"LEFT(Table_clallam_Oversight_ActiveFunds[[#This Row],[Fund]],5)","v":"23P-1"},null,"",null,null,null,"562-1","562-1 Skilled Nursing Fac-State"]
[1,{"$f":"LEFT(Table_clallam_Oversight_ActiveFunds[[#This Row],[Agency]],3)","v":"303"},"303-Dept of Health","25N-1 988 BH Crisis Rsp Ln-State",{"$f":"LEFT(Table_clallam_Oversight_ActiveFunds[[#This Row],[Fund]],5)","v":"25N-1"},null,"",null,null,null,"564-1","564-1 Water Poll Ctrl Adm-State"]
[1,{"$f":"LEFT(Table_clallam_Oversight_ActiveFunds[[#This Row],[Agency]],3)","v":"303"},"303-Dept of Health","315-1 Dedicated Cannabis-State",{"$f":"LEFT(Table_clallam_Oversight_ActiveFunds[[#This Row],[Fund]],5)","v":"315-1"},null,"",null,null,null,"566-1","566-1 Comm Forest Trust-State"]
[1,{"$f":"LEFT(Table_clallam_Oversight_ActiveFunds[[#This Row],[Agency]],3)","v":"303"},"303-Dept of Health","319-7 Public Health Supp-Local",{"$f":"LEFT(Table_clallam_Oversight_ActiveFunds[[#This Row],[Fund]],5)","v":"319-7"},null,"",null,null,null,"567-1","567-1 Long-Term Svcs & Spt - State"]
[1,{"$f":"LEFT(Table_clallam_Oversight_ActiveFunds[[#This Row],[Agency]],3)","v":"303"},"303-Dept of Health","608-1 Accident Account-State",{"$f":"LEFT(Table_clallam_Oversight_ActiveFunds[[#This Row],[Fund]],5)","v":"608-1"},null,"",null,null,null,"571-1","571-1 Multiuse Roadway Saf-State"]
[1,{"$f":"LEFT(Table_clallam_Oversight_ActiveFunds[[#This Row],[Agency]],3)","v":"303"},"303-Dept of Health","609-1 Medical Aid Account-State",{"$f":"LEFT(Table_clallam_Oversight_ActiveFunds[[#This Row],[Fund]],5)","v":"609-1"},null,"",null,null,null,"577-6","577-6 State Lottery Acct-Non-Appr"]
[1,{"$f":"LEFT(Table_clallam_Oversight_ActiveFunds[[#This Row],[Agency]],3)","v":"303"},"303-Dept of Health","704-6 Covid19PubHeaRespAcc-Non-Appr",{"$f":"LEFT(Table_clallam_Oversight_ActiveFunds[[#This Row],[Fund]],5)","v":"704-6"},null,"",null,null,null,"578-1","578-1 Lottery Admin Acct-State"]
[1,{"$f":"LEFT(Table_clallam_Oversight_ActiveFunds[[#This Row],[Agency]],3)","v":"303"},"303-Dept of Health","706-2 COVID Fiscal Recover-Federal",{"$f":"LEFT(Table_clallam_Oversight_ActiveFunds[[#This Row],[Fund]],5)","v":"706-2"},null,"",null,null,null,"595-1","595-1 I-405/SR167 Exp Toll - State"]
[1,{"$f":"LEFT(Table_clallam_Oversight_ActiveFunds[[#This Row],[Agency]],3)","v":"305"},"305-Veterans' Affairs","001-1 General Fund-State",{"$f":"LEFT(Table_clallam_Oversight_ActiveFunds[[#This Row],[Fund]],5)","v":"001-1"},null,"",null,null,null,"600-1","600-1 Retirmnt Sys Expense-State"]
[1,{"$f":"LEFT(Table_clallam_Oversight_ActiveFunds[[#This Row],[Agency]],3)","v":"305"},"305-Veterans' Affairs","001-2 General Fund-Federal",{"$f":"LEFT(Table_clallam_Oversight_ActiveFunds[[#This Row],[Fund]],5)","v":"001-2"},null,"",null,null,null,"600-6","600-6 Retirmnt Sys Expense-Non-Appr"]
[1,{"$f":"LEFT(Table_clallam_Oversight_ActiveFunds[[#This Row],[Agency]],3)","v":"305"},"305-Veterans' Affairs","001-7 General Fund-Local",{"$f":"LEFT(Table_clallam_Oversight_ActiveFunds[[#This Row],[Fund]],5)","v":"001-7"},null,"",null,null,null,"608-1","608-1 Accident Account-State"]
[1,{"$f":"LEFT(Table_clallam_Oversight_ActiveFunds[[#This Row],[Agency]],3)","v":"305"},"305-Veterans' Affairs","001-H General Fund-ARPA",{"$f":"LEFT(Table_clallam_Oversight_ActiveFunds[[#This Row],[Fund]],5)","v":"001-H"},null,"",null,null,null,"608-2","608-2 Accident Account-Federal"]
[1,{"$f":"LEFT(Table_clallam_Oversight_ActiveFunds[[#This Row],[Agency]],3)","v":"305"},"305-Veterans' Affairs","001-W General Fund-Oth COVID",{"$f":"LEFT(Table_clallam_Oversight_ActiveFunds[[#This Row],[Fund]],5)","v":"001-W"},null,"",null,null,null,"608-6","608-6 Accident Account-Non-Appr"]
[1,{"$f":"LEFT(Table_clallam_Oversight_ActiveFunds[[#This Row],[Agency]],3)","v":"305"},"305-Veterans' Affairs","042-1 C E P and R I Acct-State",{"$f":"LEFT(Table_clallam_Oversight_ActiveFunds[[#This Row],[Fund]],5)","v":"042-1"},null,"",null,null,null,"609-1","609-1 Medical Aid Account-State"]
[1,{"$f":"LEFT(Table_clallam_Oversight_ActiveFunds[[#This Row],[Agency]],3)","v":"305"},"305-Veterans' Affairs","08V-6 Veterans Stewardship-Non-Appr",{"$f":"LEFT(Table_clallam_Oversight_ActiveFunds[[#This Row],[Fund]],5)","v":"08V-6"},null,"",null,null,null,"609-2","609-2 Medical Aid Account-Federal"]
[1,{"$f":"LEFT(Table_clallam_Oversight_ActiveFunds[[#This Row],[Agency]],3)","v":"305"},"305-Veterans' Affairs","11V-7 Veteran Estate Mgmt-Local",{"$f":"LEFT(Table_clallam_Oversight_ActiveFunds[[#This Row],[Fund]],5)","v":"11V-7"},null,"",null,null,null,"609-6","609-6 Medical Aid Account-Non-Appr"]
[1,{"$f":"LEFT(Table_clallam_Oversight_ActiveFunds[[#This Row],[Agency]],3)","v":"305"},"305-Veterans' Affairs","213-6 Veterans Emblem Acct-Non-Appr",{"$f":"LEFT(Table_clallam_Oversight_ActiveFunds[[#This Row],[Fund]],5)","v":"213-6"},null,"",null,null,null,"704-6","704-6 Covid19PubHeaRespAcc-Non-Appr"]
[1,{"$f":"LEFT(Table_clallam_Oversight_ActiveFunds[[#This Row],[Agency]],3)","v":"307"},"307-Child, Youth, Family","001-0 General Fund-Fed Grnt",{"$f":"LEFT(Table_clallam_Oversight_ActiveFunds[[#This Row],[Fund]],5)","v":"001-0"},null,"",null,null,null,"706-2","706-2 COVID Fiscal Recover-Federal"]
[1,{"$f":"LEFT(Table_clallam_Oversight_ActiveFunds[[#This Row],[Agency]],3)","v":"307"},"307-Child, Youth, Family","001-1 General Fund-State",{"$f":"LEFT(Table_clallam_Oversight_ActiveFunds[[#This Row],[Fund]],5)","v":"001-1"},null,"",null,null,null,"721-6","721-6 Pub Emp/Ret Ins-Non-Appr"]
[1,{"$f":"LEFT(Table_clallam_Oversight_ActiveFunds[[#This Row],[Agency]],3)","v":"307"},"307-Child, Youth, Family","001-2 General Fund-Federal",{"$f":"LEFT(Table_clallam_Oversight_ActiveFunds[[#This Row],[Fund]],5)","v":"001-2"},null,"",null,null,null,"746-6","746-6 Hanford Econ Invest-Non-Appr"]
[1,{"$f":"LEFT(Table_clallam_Oversight_ActiveFunds[[#This Row],[Agency]],3)","v":"307"},"307-Child, Youth, Family","001-7 General Fund-Local",{"$f":"LEFT(Table_clallam_Oversight_ActiveFunds[[#This Row],[Fund]],5)","v":"001-7"},null,{"$f":"LEFT(I453,3)","v":""},null,null,null,{"$f":"MID(L453,1,5)","v":"747-1"},"747-1 Hlth Profsnl Loan/Sc-State"]
[1,{"$f":"LEFT(Table_clallam_Oversight_ActiveFunds[[#This Row],[Agency]],3)","v":"307"},"307-Child, Youth, Family","001-A General Fund-Fam Supt",{"$f":"LEFT(Table_clallam_Oversight_ActiveFunds[[#This Row],[Fund]],5)","v":"001-A"},null,"",null,null,null,"747-6","747-6 Hlth Profsnl Loan/Sc-Non-Appr"]
[1,{"$f":"LEFT(Table_clallam_Oversight_ActiveFunds[[#This Row],[Agency]],3)","v":"307"},"307-Child, Youth, Family","001-C General Fund-Medicaid",{"$f":"LEFT(Table_clallam_Oversight_ActiveFunds[[#This Row],[Fund]],5)","v":"001-C"},null,"",null,null,null,"748-6","748-6 WA Career/College In-Non-Appr"]
[1,{"$f":"LEFT(Table_clallam_Oversight_ActiveFunds[[#This Row],[Agency]],3)","v":"307"},"307-Child, Youth, Family","001-H General Fund-ARPA",{"$f":"LEFT(Table_clallam_Oversight_ActiveFunds[[#This Row],[Fund]],5)","v":"001-H"},null,"",null,null,null,"759-6","759-6 Miscellaneous Pgm-Non-Appr"]
[1,{"$f":"LEFT(Table_clallam_Oversight_ActiveFunds[[#This Row],[Agency]],3)","v":"307"},"307-Child, Youth, Family","001-Z General Fund-CRRSA",{"$f":"LEFT(Table_clallam_Oversight_ActiveFunds[[#This Row],[Fund]],5)","v":"001-Z"},null,"",null,null,null,"777-1","777-1 Prostitution Prevent-State"]
[1,{"$f":"LEFT(Table_clallam_Oversight_ActiveFunds[[#This Row],[Agency]],3)","v":"307"},"307-Child, Youth, Family","08A-1 Education Legacy T A-State",{"$f":"LEFT(Table_clallam_Oversight_ActiveFunds[[#This Row],[Fund]],5)","v":"08A-1"},null,"",null,null,null,"780-1","780-1 School Zone Safety-State"]
[1,{"$f":"LEFT(Table_clallam_Oversight_ActiveFunds[[#This Row],[Agency]],3)","v":"307"},"307-Child, Youth, Family","11K-1 WA Auto Theft Prevnt-State",{"$f":"LEFT(Table_clallam_Oversight_ActiveFunds[[#This Row],[Fund]],5)","v":"11K-1"},null,"",null,null,null,"785-6","785-6 State Ed Trust Fund-Non-Appr"]
[1,{"$f":"LEFT(Table_clallam_Oversight_ActiveFunds[[#This Row],[Agency]],3)","v":"307"},"307-Child, Youth, Family","133-6 Childrens' Trst Acct-Non-Appr",{"$f":"LEFT(Table_clallam_Oversight_ActiveFunds[[#This Row],[Fund]],5)","v":"133-6"},null,"",null,null,null,"788-6","788-6 Adv College Tuit Pay-Non-Appr"]
[1,{"$f":"LEFT(Table_clallam_Oversight_ActiveFunds[[#This Row],[Agency]],3)","v":"307"},"307-Child, Youth, Family","17B-1 Home Visiting Svcs-State",{"$f":"LEFT(Table_clallam_Oversight_ActiveFunds[[#This Row],[Fund]],5)","v":"17B-1"},null,"",null,null,null,"818-1","818-1 Youth Athletic Facil-State"]
[1,{"$f":"LEFT(Table_clallam_Oversight_ActiveFunds[[#This Row],[Agency]],3)","v":"307"},"307-Child, Youth, Family","17B-2 Home Visiting Svcs-Federal",{"$f":"LEFT(Table_clallam_Oversight_ActiveFunds[[#This Row],[Fund]],5)","v":"17B-2"},null,"",null,null,null,"823-6","823-6 Livestock Nutr Mgmt-Non-Appr"]
[1,{"$f":"LEFT(Table_clallam_Oversight_ActiveFunds[[#This Row],[Agency]],3)","v":"307"},"307-Child, Youth, Family","17F-1 WA Opportunity Path-State",{"$f":"LEFT(Table_clallam_Oversight_ActiveFunds[[#This Row],[Fund]],5)","v":"17F-1"},null,"",null,null,null,"828-1","828-1 Tobacco Prev/Ctl-State"]
[1,{"$f":"LEFT(Table_clallam_Oversight_ActiveFunds[[#This Row],[Agency]],3)","v":"307"},"307-Child, Youth, Family","17M-6 Indivi-Based/Portabl - Non-Appr",{"$f":"LEFT(Table_clallam_Oversight_ActiveFunds[[#This Row],[Fund]],5)","v":"17M-6"},null,"",null,null,null,"830-1","830-1 Agric College Trst-State"]
[1,{"$f":"LEFT(Table_clallam_Oversight_ActiveFunds[[#This Row],[Agency]],3)","v":"307"},"307-Child, Youth, Family","20L-Y Early Start Account-Oth UAR",{"$f":"LEFT(Table_clallam_Oversight_ActiveFunds[[#This Row],[Fund]],5)","v":"20L-Y"},null,"",null,null,null,"835-6","835-6 4-Yr St Child Care - Non-Appr"]
[1,{"$f":"LEFT(Table_clallam_Oversight_ActiveFunds[[#This Row],[Agency]],3)","v":"307"},"307-Child, Youth, Family","24J-1 Workforce Ed Invest-State",{"$f":"LEFT(Table_clallam_Oversight_ActiveFunds[[#This Row],[Fund]],5)","v":"24J-1"},null,"",null,null,null,"851-1","851-1 Dev Dis Comm Sv Acct-State"]
[1,{"$f":"LEFT(Table_clallam_Oversight_ActiveFunds[[#This Row],[Agency]],3)","v":"307"},"307-Child, Youth, Family","706-2 COVID Fiscal Recover-Federal",{"$f":"LEFT(Table_clallam_Oversight_ActiveFunds[[#This Row],[Fund]],5)","v":"706-2"},null,"",null,null,null,"874-6","874-6 OASI Revolving Acct-Non-Appr"]
[1,{"$f":"LEFT(Table_clallam_Oversight_ActiveFunds[[#This Row],[Agency]],3)","v":"310"},"310-Corrections","001-1 General Fund-State",{"$f":"LEFT(Table_clallam_Oversight_ActiveFunds[[#This Row],[Fund]],5)","v":"001-1"},null,"",null,null,null,"884-6","884-6 Gambling Revolving-Non-Appr"]
[1,{"$f":"LEFT(Table_clallam_Oversight_ActiveFunds[[#This Row],[Agency]],3)","v":"310"},"310-Corrections","001-2 General Fund-Federal",{"$f":"LEFT(Table_clallam_Oversight_ActiveFunds[[#This Row],[Fund]],5)","v":"001-2"},null,"",null,null,null,"885-1","885-1 Plumbing Certificate-State"]
[1,{"$f":"LEFT(Table_clallam_Oversight_ActiveFunds[[#This Row],[Agency]],3)","v":"310"},"310-Corrections","001-7 General Fund-Local",{"$f":"LEFT(Table_clallam_Oversight_ActiveFunds[[#This Row],[Fund]],5)","v":"001-7"},null,"",null,null,null,"887-1","887-1 Pub Facil Const Loan-State"]
[1,{"$f":"LEFT(Table_clallam_Oversight_ActiveFunds[[#This Row],[Agency]],3)","v":"310"},"310-Corrections","001-X General Fund-CRF App",{"$f":"LEFT(Table_clallam_Oversight_ActiveFunds[[#This Row],[Fund]],5)","v":"001-X"},null,"",null,null,null,"888-6","888-6 Defrd Comp Admin Acc-Non-Appr"]
[1,{"$f":"LEFT(Table_clallam_Oversight_ActiveFunds[[#This Row],[Agency]],3)","v":"310"},"310-Corrections","11K-1 WA Auto Theft Prevnt-State",{"$f":"LEFT(Table_clallam_Oversight_ActiveFunds[[#This Row],[Fund]],5)","v":"11K-1"},null,"",null,null,null,"892-1","892-1 Pressure Systems Saf-State"]
[1,{"$f":"LEFT(Table_clallam_Oversight_ActiveFunds[[#This Row],[Agency]],3)","v":"310"},"310-Corrections","141-6 Fed Narcotics Forfet-Non-Appr",{"$f":"LEFT(Table_clallam_Oversight_ActiveFunds[[#This Row],[Fund]],5)","v":"141-6"}]
[1,{"$f":"LEFT(Table_clallam_Oversight_ActiveFunds[[#This Row],[Agency]],3)","v":"310"},"310-Corrections","206-6 Cost of Supervision-Non-Appr",{"$f":"LEFT(Table_clallam_Oversight_ActiveFunds[[#This Row],[Fund]],5)","v":"206-6"}]
[1,{"$f":"LEFT(Table_clallam_Oversight_ActiveFunds[[#This Row],[Agency]],3)","v":"310"},"310-Corrections","226-6 State Seizure Acct-Non-Appr",{"$f":"LEFT(Table_clallam_Oversight_ActiveFunds[[#This Row],[Fund]],5)","v":"226-6"}]
[1,{"$f":"LEFT(Table_clallam_Oversight_ActiveFunds[[#This Row],[Agency]],3)","v":"310"},"310-Corrections","401-6 Correctional Industr-Non-Appr",{"$f":"LEFT(Table_clallam_Oversight_ActiveFunds[[#This Row],[Fund]],5)","v":"401-6"}]
[1,{"$f":"LEFT(Table_clallam_Oversight_ActiveFunds[[#This Row],[Agency]],3)","v":"310"},"310-Corrections","706-2 COVID Fiscal Recover-Federal",{"$f":"LEFT(Table_clallam_Oversight_ActiveFunds[[#This Row],[Fund]],5)","v":"706-2"}]
[1,{"$f":"LEFT(Table_clallam_Oversight_ActiveFunds[[#This Row],[Agency]],3)","v":"315"},"315-Svcs for the Blind","001-1 General Fund-State",{"$f":"LEFT(Table_clallam_Oversight_ActiveFunds[[#This Row],[Fund]],5)","v":"001-1"}]
[1,{"$f":"LEFT(Table_clallam_Oversight_ActiveFunds[[#This Row],[Agency]],3)","v":"315"},"315-Svcs for the Blind","001-2 General Fund-Federal",{"$f":"LEFT(Table_clallam_Oversight_ActiveFunds[[#This Row],[Fund]],5)","v":"001-2"}]
[1,{"$f":"LEFT(Table_clallam_Oversight_ActiveFunds[[#This Row],[Agency]],3)","v":"315"},"315-Svcs for the Blind","001-7 General Fund-Local",{"$f":"LEFT(Table_clallam_Oversight_ActiveFunds[[#This Row],[Fund]],5)","v":"001-7"}]
[1,{"$f":"LEFT(Table_clallam_Oversight_ActiveFunds[[#This Row],[Agency]],3)","v":"315"},"315-Svcs for the Blind","02H-6 Business Enterprises-Non-Appr",{"$f":"LEFT(Table_clallam_Oversight_ActiveFunds[[#This Row],[Fund]],5)","v":"02H-6"}]
[1,{"$f":"LEFT(Table_clallam_Oversight_ActiveFunds[[#This Row],[Agency]],3)","v":"340"},"340-Student Achievement","001-1 General Fund-State",{"$f":"LEFT(Table_clallam_Oversight_ActiveFunds[[#This Row],[Fund]],5)","v":"001-1"}]
[1,{"$f":"LEFT(Table_clallam_Oversight_ActiveFunds[[#This Row],[Agency]],3)","v":"340"},"340-Student Achievement","001-2 General Fund-Federal",{"$f":"LEFT(Table_clallam_Oversight_ActiveFunds[[#This Row],[Fund]],5)","v":"001-2"}]
[1,{"$f":"LEFT(Table_clallam_Oversight_ActiveFunds[[#This Row],[Agency]],3)","v":"340"},"340-Student Achievement","001-7 General Fund-Local",{"$f":"LEFT(Table_clallam_Oversight_ActiveFunds[[#This Row],[Fund]],5)","v":"001-7"}]
[1,{"$f":"LEFT(Table_clallam_Oversight_ActiveFunds[[#This Row],[Agency]],3)","v":"340"},"340-Student Achievement","001-H General Fund-ARPA",{"$f":"LEFT(Table_clallam_Oversight_ActiveFunds[[#This Row],[Fund]],5)","v":"001-H"}]
[1,{"$f":"LEFT(Table_clallam_Oversight_ActiveFunds[[#This Row],[Agency]],3)","v":"340"},"340-Student Achievement","08A-1 Education Legacy T A-State",{"$f":"LEFT(Table_clallam_Oversight_ActiveFunds[[#This Row],[Fund]],5)","v":"08A-1"}]
[1,{"$f":"LEFT(Table_clallam_Oversight_ActiveFunds[[#This Row],[Agency]],3)","v":"340"},"340-Student Achievement","17F-1 WA Opportunity Path-State",{"$f":"LEFT(Table_clallam_Oversight_ActiveFunds[[#This Row],[Fund]],5)","v":"17F-1"}]
[1,{"$f":"LEFT(Table_clallam_Oversight_ActiveFunds[[#This Row],[Agency]],3)","v":"340"},"340-Student Achievement","17R-1 Aerospace Training S-State",{"$f":"LEFT(Table_clallam_Oversight_ActiveFunds[[#This Row],[Fund]],5)","v":"17R-1"}]
[1,{"$f":"LEFT(Table_clallam_Oversight_ActiveFunds[[#This Row],[Agency]],3)","v":"340"},"340-Student Achievement","22V-6 Medical Student Loan-Non-Appr",{"$f":"LEFT(Table_clallam_Oversight_ActiveFunds[[#This Row],[Fund]],5)","v":"22V-6"}]
[1,{"$f":"LEFT(Table_clallam_Oversight_ActiveFunds[[#This Row],[Agency]],3)","v":"340"},"340-Student Achievement","23A-6 Student Ln Advocate-Non-Appr",{"$f":"LEFT(Table_clallam_Oversight_ActiveFunds[[#This Row],[Fund]],5)","v":"23A-6"}]
[1,{"$f":"LEFT(Table_clallam_Oversight_ActiveFunds[[#This Row],[Agency]],3)","v":"340"},"340-Student Achievement","24A-6 Beh He Ln Rep Pr Acc-Non-Appr",{"$f":"LEFT(Table_clallam_Oversight_ActiveFunds[[#This Row],[Fund]],5)","v":"24A-6"}]
[1,{"$f":"LEFT(Table_clallam_Oversight_ActiveFunds[[#This Row],[Agency]],3)","v":"340"},"340-Student Achievement","24J-1 Workforce Ed Invest-State",{"$f":"LEFT(Table_clallam_Oversight_ActiveFunds[[#This Row],[Fund]],5)","v":"24J-1"}]
[1,{"$f":"LEFT(Table_clallam_Oversight_ActiveFunds[[#This Row],[Agency]],3)","v":"340"},"340-Student Achievement","26T-6 WA Student Loan-Non-Appr",{"$f":"LEFT(Table_clallam_Oversight_ActiveFunds[[#This Row],[Fund]],5)","v":"26T-6"}]
[1,{"$f":"LEFT(Table_clallam_Oversight_ActiveFunds[[#This Row],[Agency]],3)","v":"340"},"340-Student Achievement","463-6 WA College Sav Prog-Non-Appr",{"$f":"LEFT(Table_clallam_Oversight_ActiveFunds[[#This Row],[Fund]],5)","v":"463-6"}]
[1,{"$f":"LEFT(Table_clallam_Oversight_ActiveFunds[[#This Row],[Agency]],3)","v":"340"},"340-Student Achievement","496-6 Future Teachers-Non-Appr",{"$f":"LEFT(Table_clallam_Oversight_ActiveFunds[[#This Row],[Fund]],5)","v":"496-6"}]
[1,{"$f":"LEFT(Table_clallam_Oversight_ActiveFunds[[#This Row],[Agency]],3)","v":"340"},"340-Student Achievement","747-1 Hlth Profsnl Loan/Sc-State",{"$f":"LEFT(Table_clallam_Oversight_ActiveFunds[[#This Row],[Fund]],5)","v":"747-1"}]
[1,{"$f":"LEFT(Table_clallam_Oversight_ActiveFunds[[#This Row],[Agency]],3)","v":"340"},"340-Student Achievement","747-6 Hlth Profsnl Loan/Sc-Non-Appr",{"$f":"LEFT(Table_clallam_Oversight_ActiveFunds[[#This Row],[Fund]],5)","v":"747-6"}]
[1,{"$f":"LEFT(Table_clallam_Oversight_ActiveFunds[[#This Row],[Agency]],3)","v":"340"},"340-Student Achievement","748-6 WA Career/College In-Non-Appr",{"$f":"LEFT(Table_clallam_Oversight_ActiveFunds[[#This Row],[Fund]],5)","v":"748-6"}]
[1,{"$f":"LEFT(Table_clallam_Oversight_ActiveFunds[[#This Row],[Agency]],3)","v":"340"},"340-Student Achievement","785-6 State Ed Trust Fund-Non-Appr",{"$f":"LEFT(Table_clallam_Oversight_ActiveFunds[[#This Row],[Fund]],5)","v":"785-6"}]
[1,{"$f":"LEFT(Table_clallam_Oversight_ActiveFunds[[#This Row],[Agency]],3)","v":"340"},"340-Student Achievement","788-6 Adv College Tuit Pay-Non-Appr",{"$f":"LEFT(Table_clallam_Oversight_ActiveFunds[[#This Row],[Fund]],5)","v":"788-6"}]
[1,{"$f":"LEFT(Table_clallam_Oversight_ActiveFunds[[#This Row],[Agency]],3)","v":"340"},"340-Student Achievement","835-6 4-Yr St Child Care - Non-Appr",{"$f":"LEFT(Table_clallam_Oversight_ActiveFunds[[#This Row],[Fund]],5)","v":"835-6"}]
[1,{"$f":"LEFT(Table_clallam_Oversight_ActiveFunds[[#This Row],[Agency]],3)","v":"341"},"341-LEOFF 2 Retire Bd","548-6 LEOFF Plan 2 Expense-Non-Appr",{"$f":"LEFT(Table_clallam_Oversight_ActiveFunds[[#This Row],[Fund]],5)","v":"548-6"}]
[1,{"$f":"LEFT(Table_clallam_Oversight_ActiveFunds[[#This Row],[Agency]],3)","v":"350"},"350-Public Schools","001-1 General Fund-State",{"$f":"LEFT(Table_clallam_Oversight_ActiveFunds[[#This Row],[Fund]],5)","v":"001-1"}]
[1,{"$f":"LEFT(Table_clallam_Oversight_ActiveFunds[[#This Row],[Agency]],3)","v":"350"},"350-Public Schools","001-2 General Fund-Federal",{"$f":"LEFT(Table_clallam_Oversight_ActiveFunds[[#This Row],[Fund]],5)","v":"001-2"}]
[1,{"$f":"LEFT(Table_clallam_Oversight_ActiveFunds[[#This Row],[Agency]],3)","v":"350"},"350-Public Schools","001-7 General Fund-Local",{"$f":"LEFT(Table_clallam_Oversight_ActiveFunds[[#This Row],[Fund]],5)","v":"001-7"}]
[1,{"$f":"LEFT(Table_clallam_Oversight_ActiveFunds[[#This Row],[Agency]],3)","v":"350"},"350-Public Schools","001-C General Fund-Medicaid",{"$f":"LEFT(Table_clallam_Oversight_ActiveFunds[[#This Row],[Fund]],5)","v":"001-C"}]
[1,{"$f":"LEFT(Table_clallam_Oversight_ActiveFunds[[#This Row],[Agency]],3)","v":"350"},"350-Public Schools","001-H General Fund-ARPA",{"$f":"LEFT(Table_clallam_Oversight_ActiveFunds[[#This Row],[Fund]],5)","v":"001-H"}]
[1,{"$f":"LEFT(Table_clallam_Oversight_ActiveFunds[[#This Row],[Agency]],3)","v":"350"},"350-Public Schools","001-Z General Fund-CRRSA",{"$f":"LEFT(Table_clallam_Oversight_ActiveFunds[[#This Row],[Fund]],5)","v":"001-Z"}]
[1,{"$f":"LEFT(Table_clallam_Oversight_ActiveFunds[[#This Row],[Agency]],3)","v":"350"},"350-Public Schools","08A-1 Education Legacy T A-State",{"$f":"LEFT(Table_clallam_Oversight_ActiveFunds[[#This Row],[Fund]],5)","v":"08A-1"}]
[1,{"$f":"LEFT(Table_clallam_Oversight_ActiveFunds[[#This Row],[Agency]],3)","v":"350"},"350-Public Schools","17F-1 WA Opportunity Path-State",{"$f":"LEFT(Table_clallam_Oversight_ActiveFunds[[#This Row],[Fund]],5)","v":"17F-1"}]
[1,{"$f":"LEFT(Table_clallam_Oversight_ActiveFunds[[#This Row],[Agency]],3)","v":"350"},"350-Public Schools","18E-6 Educator Certificati-Non-Appr",{"$f":"LEFT(Table_clallam_Oversight_ActiveFunds[[#This Row],[Fund]],5)","v":"18E-6"}]
[1,{"$f":"LEFT(Table_clallam_Oversight_ActiveFunds[[#This Row],[Agency]],3)","v":"350"},"350-Public Schools","19L-1 Charter Sch Ovr Acct-State",{"$f":"LEFT(Table_clallam_Oversight_ActiveFunds[[#This Row],[Fund]],5)","v":"19L-1"}]
[1,{"$f":"LEFT(Table_clallam_Oversight_ActiveFunds[[#This Row],[Agency]],3)","v":"350"},"350-Public Schools","24J-1 Workforce Ed Invest-State",{"$f":"LEFT(Table_clallam_Oversight_ActiveFunds[[#This Row],[Fund]],5)","v":"24J-1"}]
[1,{"$f":"LEFT(Table_clallam_Oversight_ActiveFunds[[#This Row],[Agency]],3)","v":"350"},"350-Public Schools","25C-2 Elem Sec Sch Emrg Re-Federal",{"$f":"LEFT(Table_clallam_Oversight_ActiveFunds[[#This Row],[Fund]],5)","v":"25C-2"}]
[1,{"$f":"LEFT(Table_clallam_Oversight_ActiveFunds[[#This Row],[Agency]],3)","v":"350"},"350-Public Schools","315-1 Dedicated Cannabis-State",{"$f":"LEFT(Table_clallam_Oversight_ActiveFunds[[#This Row],[Fund]],5)","v":"315-1"}]
[1,{"$f":"LEFT(Table_clallam_Oversight_ActiveFunds[[#This Row],[Agency]],3)","v":"350"},"350-Public Schools","480-6 Financial Education-Non-Appr",{"$f":"LEFT(Table_clallam_Oversight_ActiveFunds[[#This Row],[Fund]],5)","v":"480-6"}]
[1,{"$f":"LEFT(Table_clallam_Oversight_ActiveFunds[[#This Row],[Agency]],3)","v":"350"},"350-Public Schools","536-6 Federal Food Service-Non-Appr",{"$f":"LEFT(Table_clallam_Oversight_ActiveFunds[[#This Row],[Fund]],5)","v":"536-6"}]
[1,{"$f":"LEFT(Table_clallam_Oversight_ActiveFunds[[#This Row],[Agency]],3)","v":"350"},"350-Public Schools","553-1 Perf Audits of Govt-State",{"$f":"LEFT(Table_clallam_Oversight_ActiveFunds[[#This Row],[Fund]],5)","v":"553-1"}]
[1,{"$f":"LEFT(Table_clallam_Oversight_ActiveFunds[[#This Row],[Agency]],3)","v":"350"},"350-Public Schools","706-2 COVID Fiscal Recover-Federal",{"$f":"LEFT(Table_clallam_Oversight_ActiveFunds[[#This Row],[Fund]],5)","v":"706-2"}]
[1,{"$f":"LEFT(Table_clallam_Oversight_ActiveFunds[[#This Row],[Agency]],3)","v":"350"},"350-Public Schools","759-6 Miscellaneous Pgm-Non-Appr",{"$f":"LEFT(Table_clallam_Oversight_ActiveFunds[[#This Row],[Fund]],5)","v":"759-6"}]
[1,{"$f":"LEFT(Table_clallam_Oversight_ActiveFunds[[#This Row],[Agency]],3)","v":"351"},"351-School for the Blind","001-1 General Fund-State",{"$f":"LEFT(Table_clallam_Oversight_ActiveFunds[[#This Row],[Fund]],5)","v":"001-1"}]
[1,{"$f":"LEFT(Table_clallam_Oversight_ActiveFunds[[#This Row],[Agency]],3)","v":"351"},"351-School for the Blind","001-7 General Fund-Local",{"$f":"LEFT(Table_clallam_Oversight_ActiveFunds[[#This Row],[Fund]],5)","v":"001-7"}]
[1,{"$f":"LEFT(Table_clallam_Oversight_ActiveFunds[[#This Row],[Agency]],3)","v":"351"},"351-School for the Blind","19B-6 School for the BA-Non-Appr",{"$f":"LEFT(Table_clallam_Oversight_ActiveFunds[[#This Row],[Fund]],5)","v":"19B-6"}]
[1,{"$f":"LEFT(Table_clallam_Oversight_ActiveFunds[[#This Row],[Agency]],3)","v":"353"},"353-Child Deaf Hrng Loss","001-1 General Fund-State",{"$f":"LEFT(Table_clallam_Oversight_ActiveFunds[[#This Row],[Fund]],5)","v":"001-1"}]
[1,{"$f":"LEFT(Table_clallam_Oversight_ActiveFunds[[#This Row],[Agency]],3)","v":"353"},"353-Child Deaf Hrng Loss","19H-6 Center for CDHLA-Non-Appr",{"$f":"LEFT(Table_clallam_Oversight_ActiveFunds[[#This Row],[Fund]],5)","v":"19H-6"}]
[1,{"$f":"LEFT(Table_clallam_Oversight_ActiveFunds[[#This Row],[Agency]],3)","v":"354"},"354-Workforce Trng/Ed Bd","001-1 General Fund-State",{"$f":"LEFT(Table_clallam_Oversight_ActiveFunds[[#This Row],[Fund]],5)","v":"001-1"}]
[1,{"$f":"LEFT(Table_clallam_Oversight_ActiveFunds[[#This Row],[Agency]],3)","v":"354"},"354-Workforce Trng/Ed Bd","001-2 General Fund-Federal",{"$f":"LEFT(Table_clallam_Oversight_ActiveFunds[[#This Row],[Fund]],5)","v":"001-2"}]
[1,{"$f":"LEFT(Table_clallam_Oversight_ActiveFunds[[#This Row],[Agency]],3)","v":"354"},"354-Workforce Trng/Ed Bd","001-7 General Fund-Local",{"$f":"LEFT(Table_clallam_Oversight_ActiveFunds[[#This Row],[Fund]],5)","v":"001-7"}]
[1,{"$f":"LEFT(Table_clallam_Oversight_ActiveFunds[[#This Row],[Agency]],3)","v":"354"},"354-Workforce Trng/Ed Bd","24J-1 Workforce Ed Invest-State",{"$f":"LEFT(Table_clallam_Oversight_ActiveFunds[[#This Row],[Fund]],5)","v":"24J-1"}]
[1,{"$f":"LEFT(Table_clallam_Oversight_ActiveFunds[[#This Row],[Agency]],3)","v":"354"},"354-Workforce Trng/Ed Bd","503-6 Tuitn Recovery Trust-Non-Appr",{"$f":"LEFT(Table_clallam_Oversight_ActiveFunds[[#This Row],[Fund]],5)","v":"503-6"}]
[1,{"$f":"LEFT(Table_clallam_Oversight_ActiveFunds[[#This Row],[Agency]],3)","v":"354"},"354-Workforce Trng/Ed Bd","706-2 COVID Fiscal Recover-Federal",{"$f":"LEFT(Table_clallam_Oversight_ActiveFunds[[#This Row],[Fund]],5)","v":"706-2"}]
[1,{"$f":"LEFT(Table_clallam_Oversight_ActiveFunds[[#This Row],[Agency]],3)","v":"355"},"355-Arch/Historic Preser","001-1 General Fund-State",{"$f":"LEFT(Table_clallam_Oversight_ActiveFunds[[#This Row],[Fund]],5)","v":"001-1"}]
[1,{"$f":"LEFT(Table_clallam_Oversight_ActiveFunds[[#This Row],[Agency]],3)","v":"355"},"355-Arch/Historic Preser","001-2 General Fund-Federal",{"$f":"LEFT(Table_clallam_Oversight_ActiveFunds[[#This Row],[Fund]],5)","v":"001-2"}]
[1,{"$f":"LEFT(Table_clallam_Oversight_ActiveFunds[[#This Row],[Agency]],3)","v":"355"},"355-Arch/Historic Preser","001-7 General Fund-Local",{"$f":"LEFT(Table_clallam_Oversight_ActiveFunds[[#This Row],[Fund]],5)","v":"001-7"}]
[1,{"$f":"LEFT(Table_clallam_Oversight_ActiveFunds[[#This Row],[Agency]],3)","v":"355"},"355-Arch/Historic Preser","14P-6 Skeletal Human-Non-Appr",{"$f":"LEFT(Table_clallam_Oversight_ActiveFunds[[#This Row],[Fund]],5)","v":"14P-6"}]
[1,{"$f":"LEFT(Table_clallam_Oversight_ActiveFunds[[#This Row],[Agency]],3)","v":"355"},"355-Arch/Historic Preser","108-1 Motor Vehicle Acct-State",{"$f":"LEFT(Table_clallam_Oversight_ActiveFunds[[#This Row],[Fund]],5)","v":"108-1"}]
[1,{"$f":"LEFT(Table_clallam_Oversight_ActiveFunds[[#This Row],[Agency]],3)","v":"360"},"360-U W","001-1 General Fund-State",{"$f":"LEFT(Table_clallam_Oversight_ActiveFunds[[#This Row],[Fund]],5)","v":"001-1"}]
[1,{"$f":"LEFT(Table_clallam_Oversight_ActiveFunds[[#This Row],[Agency]],3)","v":"360"},"360-U W","02R-1 Aquatic Lands Acct-State",{"$f":"LEFT(Table_clallam_Oversight_ActiveFunds[[#This Row],[Fund]],5)","v":"02R-1"}]
[1,{"$f":"LEFT(Table_clallam_Oversight_ActiveFunds[[#This Row],[Agency]],3)","v":"360"},"360-U W","064-1 UW Building Account-State",{"$f":"LEFT(Table_clallam_Oversight_ActiveFunds[[#This Row],[Fund]],5)","v":"064-1"}]
[1,{"$f":"LEFT(Table_clallam_Oversight_ActiveFunds[[#This Row],[Agency]],3)","v":"360"},"360-U W","08A-1 Education Legacy T A-State",{"$f":"LEFT(Table_clallam_Oversight_ActiveFunds[[#This Row],[Fund]],5)","v":"08A-1"}]
[1,{"$f":"LEFT(Table_clallam_Oversight_ActiveFunds[[#This Row],[Agency]],3)","v":"360"},"360-U W","09R-1 Econ Dev Strat R A-State",{"$f":"LEFT(Table_clallam_Oversight_ActiveFunds[[#This Row],[Fund]],5)","v":"09R-1"}]
[1,{"$f":"LEFT(Table_clallam_Oversight_ActiveFunds[[#This Row],[Agency]],3)","v":"360"},"360-U W","12P-1 Geoduck Aquaculture-State",{"$f":"LEFT(Table_clallam_Oversight_ActiveFunds[[#This Row],[Fund]],5)","v":"12P-1"}]
[1,{"$f":"LEFT(Table_clallam_Oversight_ActiveFunds[[#This Row],[Agency]],3)","v":"360"},"360-U W","145-6 HE Grants/Contract-Non-Appr",{"$f":"LEFT(Table_clallam_Oversight_ActiveFunds[[#This Row],[Fund]],5)","v":"145-6"}]
[1,{"$f":"LEFT(Table_clallam_Oversight_ActiveFunds[[#This Row],[Agency]],3)","v":"360"},"360-U W","148-6 HE Dedicated Local-Non-Appr",{"$f":"LEFT(Table_clallam_Oversight_ActiveFunds[[#This Row],[Fund]],5)","v":"148-6"}]
[1,{"$f":"LEFT(Table_clallam_Oversight_ActiveFunds[[#This Row],[Agency]],3)","v":"360"},"360-U W","149-6 HE Operating Fees-Non-Appr",{"$f":"LEFT(Table_clallam_Oversight_ActiveFunds[[#This Row],[Fund]],5)","v":"149-6"}]
[1,{"$f":"LEFT(Table_clallam_Oversight_ActiveFunds[[#This Row],[Agency]],3)","v":"360"},"360-U W","15M-1 Biotoxin Account-State",{"$f":"LEFT(Table_clallam_Oversight_ActiveFunds[[#This Row],[Fund]],5)","v":"15M-1"}]
[1,{"$f":"LEFT(Table_clallam_Oversight_ActiveFunds[[#This Row],[Agency]],3)","v":"360"},"360-U W","24J-1 Workforce Ed Invest-State",{"$f":"LEFT(Table_clallam_Oversight_ActiveFunds[[#This Row],[Fund]],5)","v":"24J-1"}]
[1,{"$f":"LEFT(Table_clallam_Oversight_ActiveFunds[[#This Row],[Agency]],3)","v":"360"},"360-U W","315-1 Dedicated Cannabis-State",{"$f":"LEFT(Table_clallam_Oversight_ActiveFunds[[#This Row],[Fund]],5)","v":"315-1"}]
[1,{"$f":"LEFT(Table_clallam_Oversight_ActiveFunds[[#This Row],[Agency]],3)","v":"360"},"360-U W","505-6 U of W Hospital-Non-Appr",{"$f":"LEFT(Table_clallam_Oversight_ActiveFunds[[#This Row],[Fund]],5)","v":"505-6"}]
[1,{"$f":"LEFT(Table_clallam_Oversight_ActiveFunds[[#This Row],[Agency]],3)","v":"360"},"360-U W","608-1 Accident Account-State",{"$f":"LEFT(Table_clallam_Oversight_ActiveFunds[[#This Row],[Fund]],5)","v":"608-1"}]
[1,{"$f":"LEFT(Table_clallam_Oversight_ActiveFunds[[#This Row],[Agency]],3)","v":"360"},"360-U W","609-1 Medical Aid Account-State",{"$f":"LEFT(Table_clallam_Oversight_ActiveFunds[[#This Row],[Fund]],5)","v":"609-1"}]
[1,{"$f":"LEFT(Table_clallam_Oversight_ActiveFunds[[#This Row],[Agency]],3)","v":"365"},"365-W S U","001-1 General Fund-State",{"$f":"LEFT(Table_clallam_Oversight_ActiveFunds[[#This Row],[Fund]],5)","v":"001-1"}]
[1,{"$f":"LEFT(Table_clallam_Oversight_ActiveFunds[[#This Row],[Agency]],3)","v":"365"},"365-W S U","001-Z General Fund-CRRSA",{"$f":"LEFT(Table_clallam_Oversight_ActiveFunds[[#This Row],[Fund]],5)","v":"001-Z"}]
[1,{"$f":"LEFT(Table_clallam_Oversight_ActiveFunds[[#This Row],[Agency]],3)","v":"365"},"365-W S U","044-1 Waste Reduct/Recycle-State",{"$f":"LEFT(Table_clallam_Oversight_ActiveFunds[[#This Row],[Fund]],5)","v":"044-1"}]
[1,{"$f":"LEFT(Table_clallam_Oversight_ActiveFunds[[#This Row],[Agency]],3)","v":"365"},"365-W S U","062-1 WSU Building Account-State",{"$f":"LEFT(Table_clallam_Oversight_ActiveFunds[[#This Row],[Fund]],5)","v":"062-1"}]
[1,{"$f":"LEFT(Table_clallam_Oversight_ActiveFunds[[#This Row],[Agency]],3)","v":"365"},"365-W S U","08A-1 Education Legacy T A-State",{"$f":"LEFT(Table_clallam_Oversight_ActiveFunds[[#This Row],[Fund]],5)","v":"08A-1"}]
[1,{"$f":"LEFT(Table_clallam_Oversight_ActiveFunds[[#This Row],[Agency]],3)","v":"365"},"365-W S U","143-6 HE Federal Appr Acct-Non-Appr",{"$f":"LEFT(Table_clallam_Oversight_ActiveFunds[[#This Row],[Fund]],5)","v":"143-6"}]
[1,{"$f":"LEFT(Table_clallam_Oversight_ActiveFunds[[#This Row],[Agency]],3)","v":"365"},"365-W S U","145-6 HE Grants/Contract-Non-Appr",{"$f":"LEFT(Table_clallam_Oversight_ActiveFunds[[#This Row],[Fund]],5)","v":"145-6"}]
[1,{"$f":"LEFT(Table_clallam_Oversight_ActiveFunds[[#This Row],[Agency]],3)","v":"365"},"365-W S U","148-6 HE Dedicated Local-Non-Appr",{"$f":"LEFT(Table_clallam_Oversight_ActiveFunds[[#This Row],[Fund]],5)","v":"148-6"}]
[1,{"$f":"LEFT(Table_clallam_Oversight_ActiveFunds[[#This Row],[Agency]],3)","v":"365"},"365-W S U","149-6 HE Operating Fees-Non-Appr",{"$f":"LEFT(Table_clallam_Oversight_ActiveFunds[[#This Row],[Fund]],5)","v":"149-6"}]
[1,{"$f":"LEFT(Table_clallam_Oversight_ActiveFunds[[#This Row],[Agency]],3)","v":"365"},"365-W S U","23P-1 Model Toxics Oper-State",{"$f":"LEFT(Table_clallam_Oversight_ActiveFunds[[#This Row],[Fund]],5)","v":"23P-1"}]
[1,{"$f":"LEFT(Table_clallam_Oversight_ActiveFunds[[#This Row],[Agency]],3)","v":"365"},"365-W S U","24J-1 Workforce Ed Invest-State",{"$f":"LEFT(Table_clallam_Oversight_ActiveFunds[[#This Row],[Fund]],5)","v":"24J-1"}]
[1,{"$f":"LEFT(Table_clallam_Oversight_ActiveFunds[[#This Row],[Agency]],3)","v":"365"},"365-W S U","315-1 Dedicated Cannabis-State",{"$f":"LEFT(Table_clallam_Oversight_ActiveFunds[[#This Row],[Fund]],5)","v":"315-1"}]
[1,{"$f":"LEFT(Table_clallam_Oversight_ActiveFunds[[#This Row],[Agency]],3)","v":"365"},"365-W S U","108-1 Motor Vehicle Acct-State",{"$f":"LEFT(Table_clallam_Oversight_ActiveFunds[[#This Row],[Fund]],5)","v":"108-1"}]
[1,{"$f":"LEFT(Table_clallam_Oversight_ActiveFunds[[#This Row],[Agency]],3)","v":"365"},"365-W S U","218-1 Multimodal Acct-State",{"$f":"LEFT(Table_clallam_Oversight_ActiveFunds[[#This Row],[Fund]],5)","v":"218-1"}]
[1,{"$f":"LEFT(Table_clallam_Oversight_ActiveFunds[[#This Row],[Agency]],3)","v":"370"},"370-E W U","001-1 General Fund-State",{"$f":"LEFT(Table_clallam_Oversight_ActiveFunds[[#This Row],[Fund]],5)","v":"001-1"}]
[1,{"$f":"LEFT(Table_clallam_Oversight_ActiveFunds[[#This Row],[Agency]],3)","v":"370"},"370-E W U","08A-1 Education Legacy T A-State",{"$f":"LEFT(Table_clallam_Oversight_ActiveFunds[[#This Row],[Fund]],5)","v":"08A-1"}]
[1,{"$f":"LEFT(Table_clallam_Oversight_ActiveFunds[[#This Row],[Agency]],3)","v":"370"},"370-E W U","145-6 HE Grants/Contract-Non-Appr",{"$f":"LEFT(Table_clallam_Oversight_ActiveFunds[[#This Row],[Fund]],5)","v":"145-6"}]
[1,{"$f":"LEFT(Table_clallam_Oversight_ActiveFunds[[#This Row],[Agency]],3)","v":"370"},"370-E W U","148-6 HE Dedicated Local-Non-Appr",{"$f":"LEFT(Table_clallam_Oversight_ActiveFunds[[#This Row],[Fund]],5)","v":"148-6"}]
[1,{"$f":"LEFT(Table_clallam_Oversight_ActiveFunds[[#This Row],[Agency]],3)","v":"370"},"370-E W U","149-6 HE Operating Fees-Non-Appr",{"$f":"LEFT(Table_clallam_Oversight_ActiveFunds[[#This Row],[Fund]],5)","v":"149-6"}]
[1,{"$f":"LEFT(Table_clallam_Oversight_ActiveFunds[[#This Row],[Agency]],3)","v":"370"},"370-E W U","24J-1 Workforce Ed Invest-State",{"$f":"LEFT(Table_clallam_Oversight_ActiveFunds[[#This Row],[Fund]],5)","v":"24J-1"}]
[1,{"$f":"LEFT(Table_clallam_Oversight_ActiveFunds[[#This Row],[Agency]],3)","v":"375"},"375-C W U","001-1 General Fund-State",{"$f":"LEFT(Table_clallam_Oversight_ActiveFunds[[#This Row],[Fund]],5)","v":"001-1"}]
[1,{"$f":"LEFT(Table_clallam_Oversight_ActiveFunds[[#This Row],[Agency]],3)","v":"375"},"375-C W U","063-1 CWU Capital Projects-State",{"$f":"LEFT(Table_clallam_Oversight_ActiveFunds[[#This Row],[Fund]],5)","v":"063-1"}]
[1,{"$f":"LEFT(Table_clallam_Oversight_ActiveFunds[[#This Row],[Agency]],3)","v":"375"},"375-C W U","08A-1 Education Legacy T A-State",{"$f":"LEFT(Table_clallam_Oversight_ActiveFunds[[#This Row],[Fund]],5)","v":"08A-1"}]
[1,{"$f":"LEFT(Table_clallam_Oversight_ActiveFunds[[#This Row],[Agency]],3)","v":"375"},"375-C W U","145-6 HE Grants/Contract-Non-Appr",{"$f":"LEFT(Table_clallam_Oversight_ActiveFunds[[#This Row],[Fund]],5)","v":"145-6"}]
[1,{"$f":"LEFT(Table_clallam_Oversight_ActiveFunds[[#This Row],[Agency]],3)","v":"375"},"375-C W U","148-6 HE Dedicated Local-Non-Appr",{"$f":"LEFT(Table_clallam_Oversight_ActiveFunds[[#This Row],[Fund]],5)","v":"148-6"}]
[1,{"$f":"LEFT(Table_clallam_Oversight_ActiveFunds[[#This Row],[Agency]],3)","v":"375"},"375-C W U","149-6 HE Operating Fees-Non-Appr",{"$f":"LEFT(Table_clallam_Oversight_ActiveFunds[[#This Row],[Fund]],5)","v":"149-6"}]
[1,{"$f":"LEFT(Table_clallam_Oversight_ActiveFunds[[#This Row],[Agency]],3)","v":"375"},"375-C W U","24J-1 Workforce Ed Invest-State",{"$f":"LEFT(Table_clallam_Oversight_ActiveFunds[[#This Row],[Fund]],5)","v":"24J-1"}]
[1,{"$f":"LEFT(Table_clallam_Oversight_ActiveFunds[[#This Row],[Agency]],3)","v":"376"},"376-T E S C","001-1 General Fund-State",{"$f":"LEFT(Table_clallam_Oversight_ActiveFunds[[#This Row],[Fund]],5)","v":"001-1"}]
[1,{"$f":"LEFT(Table_clallam_Oversight_ActiveFunds[[#This Row],[Agency]],3)","v":"376"},"376-T E S C","066-1 TESC Capital Project-State",{"$f":"LEFT(Table_clallam_Oversight_ActiveFunds[[#This Row],[Fund]],5)","v":"066-1"}]
[1,{"$f":"LEFT(Table_clallam_Oversight_ActiveFunds[[#This Row],[Agency]],3)","v":"376"},"376-T E S C","08A-1 Education Legacy T A-State",{"$f":"LEFT(Table_clallam_Oversight_ActiveFunds[[#This Row],[Fund]],5)","v":"08A-1"}]
[1,{"$f":"LEFT(Table_clallam_Oversight_ActiveFunds[[#This Row],[Agency]],3)","v":"376"},"376-T E S C","145-6 HE Grants/Contract-Non-Appr",{"$f":"LEFT(Table_clallam_Oversight_ActiveFunds[[#This Row],[Fund]],5)","v":"145-6"}]
[1,{"$f":"LEFT(Table_clallam_Oversight_ActiveFunds[[#This Row],[Agency]],3)","v":"376"},"376-T E S C","148-6 HE Dedicated Local-Non-Appr",{"$f":"LEFT(Table_clallam_Oversight_ActiveFunds[[#This Row],[Fund]],5)","v":"148-6"}]
[1,{"$f":"LEFT(Table_clallam_Oversight_ActiveFunds[[#This Row],[Agency]],3)","v":"376"},"376-T E S C","149-6 HE Operating Fees-Non-Appr",{"$f":"LEFT(Table_clallam_Oversight_ActiveFunds[[#This Row],[Fund]],5)","v":"149-6"}]
[1,{"$f":"LEFT(Table_clallam_Oversight_ActiveFunds[[#This Row],[Agency]],3)","v":"376"},"376-T E S C","24J-1 Workforce Ed Invest-State",{"$f":"LEFT(Table_clallam_Oversight_ActiveFunds[[#This Row],[Fund]],5)","v":"24J-1"}]
[1,{"$f":"LEFT(Table_clallam_Oversight_ActiveFunds[[#This Row],[Agency]],3)","v":"376"},"376-T E S C","108-1 Motor Vehicle Acct-State",{"$f":"LEFT(Table_clallam_Oversight_ActiveFunds[[#This Row],[Fund]],5)","v":"108-1"}]
[1,{"$f":"LEFT(Table_clallam_Oversight_ActiveFunds[[#This Row],[Agency]],3)","v":"380"},"380-W W U","001-1 General Fund-State",{"$f":"LEFT(Table_clallam_Oversight_ActiveFunds[[#This Row],[Fund]],5)","v":"001-1"}]
[1,{"$f":"LEFT(Table_clallam_Oversight_ActiveFunds[[#This Row],[Agency]],3)","v":"380"},"380-W W U","065-1 WWU Capital Projects-State",{"$f":"LEFT(Table_clallam_Oversight_ActiveFunds[[#This Row],[Fund]],5)","v":"065-1"}]
[1,{"$f":"LEFT(Table_clallam_Oversight_ActiveFunds[[#This Row],[Agency]],3)","v":"380"},"380-W W U","08A-1 Education Legacy T A-State",{"$f":"LEFT(Table_clallam_Oversight_ActiveFunds[[#This Row],[Fund]],5)","v":"08A-1"}]
[1,{"$f":"LEFT(Table_clallam_Oversight_ActiveFunds[[#This Row],[Agency]],3)","v":"380"},"380-W W U","145-6 HE Grants/Contract-Non-Appr",{"$f":"LEFT(Table_clallam_Oversight_ActiveFunds[[#This Row],[Fund]],5)","v":"145-6"}]
[1,{"$f":"LEFT(Table_clallam_Oversight_ActiveFunds[[#This Row],[Agency]],3)","v":"380"},"380-W W U","148-6 HE Dedicated Local-Non-Appr",{"$f":"LEFT(Table_clallam_Oversight_ActiveFunds[[#This Row],[Fund]],5)","v":"148-6"}]
[1,{"$f":"LEFT(Table_clallam_Oversight_ActiveFunds[[#This Row],[Agency]],3)","v":"380"},"380-W W U","149-6 HE Operating Fees-Non-Appr",{"$f":"LEFT(Table_clallam_Oversight_ActiveFunds[[#This Row],[Fund]],5)","v":"149-6"}]
[1,{"$f":"LEFT(Table_clallam_Oversight_ActiveFunds[[#This Row],[Agency]],3)","v":"380"},"380-W W U","24J-1 Workforce Ed Invest-State",{"$f":"LEFT(Table_clallam_Oversight_ActiveFunds[[#This Row],[Fund]],5)","v":"24J-1"}]
[1,{"$f":"LEFT(Table_clallam_Oversight_ActiveFunds[[#This Row],[Agency]],3)","v":"387"},"387-Arts Commission","001-1 General Fund-State",{"$f":"LEFT(Table_clallam_Oversight_ActiveFunds[[#This Row],[Fund]],5)","v":"001-1"}]
[1,{"$f":"LEFT(Table_clallam_Oversight_ActiveFunds[[#This Row],[Agency]],3)","v":"387"},"387-Arts Commission","001-2 General Fund-Federal",{"$f":"LEFT(Table_clallam_Oversight_ActiveFunds[[#This Row],[Fund]],5)","v":"001-2"}]
[1,{"$f":"LEFT(Table_clallam_Oversight_ActiveFunds[[#This Row],[Agency]],3)","v":"387"},"387-Arts Commission","001-7 General Fund-Local",{"$f":"LEFT(Table_clallam_Oversight_ActiveFunds[[#This Row],[Fund]],5)","v":"001-7"}]
[1,{"$f":"LEFT(Table_clallam_Oversight_ActiveFunds[[#This Row],[Agency]],3)","v":"387"},"387-Arts Commission","001-H General Fund-ARPA",{"$f":"LEFT(Table_clallam_Oversight_ActiveFunds[[#This Row],[Fund]],5)","v":"001-H"}]
[1,{"$f":"LEFT(Table_clallam_Oversight_ActiveFunds[[#This Row],[Agency]],3)","v":"387"},"387-Arts Commission","001-Y General Fund-Oth UAR",{"$f":"LEFT(Table_clallam_Oversight_ActiveFunds[[#This Row],[Fund]],5)","v":"001-Y"}]
[1,{"$f":"LEFT(Table_clallam_Oversight_ActiveFunds[[#This Row],[Agency]],3)","v":"387"},"387-Arts Commission","706-2 COVID Fiscal Recover-Federal",{"$f":"LEFT(Table_clallam_Oversight_ActiveFunds[[#This Row],[Fund]],5)","v":"706-2"}]
[1,{"$f":"LEFT(Table_clallam_Oversight_ActiveFunds[[#This Row],[Agency]],3)","v":"390"},"390-Historical Society","001-1 General Fund-State",{"$f":"LEFT(Table_clallam_Oversight_ActiveFunds[[#This Row],[Fund]],5)","v":"001-1"}]
[1,{"$f":"LEFT(Table_clallam_Oversight_ActiveFunds[[#This Row],[Agency]],3)","v":"390"},"390-Historical Society","184-6 St Hist Museum Fund-Non-Appr",{"$f":"LEFT(Table_clallam_Oversight_ActiveFunds[[#This Row],[Fund]],5)","v":"184-6"}]
[1,{"$f":"LEFT(Table_clallam_Oversight_ActiveFunds[[#This Row],[Agency]],3)","v":"395"},"395-East WA St Hist","001-1 General Fund-State",{"$f":"LEFT(Table_clallam_Oversight_ActiveFunds[[#This Row],[Fund]],5)","v":"001-1"}]
[1,{"$f":"LEFT(Table_clallam_Oversight_ActiveFunds[[#This Row],[Agency]],3)","v":"395"},"395-East WA St Hist","185-6 East Wa Museum Acct-Non-Appr",{"$f":"LEFT(Table_clallam_Oversight_ActiveFunds[[#This Row],[Fund]],5)","v":"185-6"}]
[1,{"$f":"LEFT(Table_clallam_Oversight_ActiveFunds[[#This Row],[Agency]],3)","v":"405"},"405-Dept Transportation","02M-1 Essential Rail Asst-State",{"$f":"LEFT(Table_clallam_Oversight_ActiveFunds[[#This Row],[Fund]],5)","v":"02M-1"}]
[1,{"$f":"LEFT(Table_clallam_Oversight_ActiveFunds[[#This Row],[Agency]],3)","v":"405"},"405-Dept Transportation","039-1 Aeronautics-State",{"$f":"LEFT(Table_clallam_Oversight_ActiveFunds[[#This Row],[Fund]],5)","v":"039-1"}]
[1,{"$f":"LEFT(Table_clallam_Oversight_ActiveFunds[[#This Row],[Agency]],3)","v":"405"},"405-Dept Transportation","039-2 Aeronautics-Federal",{"$f":"LEFT(Table_clallam_Oversight_ActiveFunds[[#This Row],[Fund]],5)","v":"039-2"}]
[1,{"$f":"LEFT(Table_clallam_Oversight_ActiveFunds[[#This Row],[Agency]],3)","v":"405"},"405-Dept Transportation","039-7 Aeronautics-Local",{"$f":"LEFT(Table_clallam_Oversight_ActiveFunds[[#This Row],[Fund]],5)","v":"039-7"}]
[1,{"$f":"LEFT(Table_clallam_Oversight_ActiveFunds[[#This Row],[Agency]],3)","v":"405"},"405-Dept Transportation","045-1 State Veh Park Acct-State",{"$f":"LEFT(Table_clallam_Oversight_ActiveFunds[[#This Row],[Fund]],5)","v":"045-1"}]
[1,{"$f":"LEFT(Table_clallam_Oversight_ActiveFunds[[#This Row],[Agency]],3)","v":"405"},"405-Dept Transportation","08R-1 Waste Tire Removal A-State",{"$f":"LEFT(Table_clallam_Oversight_ActiveFunds[[#This Row],[Fund]],5)","v":"08R-1"}]
[1,{"$f":"LEFT(Table_clallam_Oversight_ActiveFunds[[#This Row],[Agency]],3)","v":"405"},"405-Dept Transportation","094-1 Trans Infrastructure-State",{"$f":"LEFT(Table_clallam_Oversight_ActiveFunds[[#This Row],[Fund]],5)","v":"094-1"}]
[1,{"$f":"LEFT(Table_clallam_Oversight_ActiveFunds[[#This Row],[Agency]],3)","v":"405"},"405-Dept Transportation","096-1 Hwy Infrastructure-State",{"$f":"LEFT(Table_clallam_Oversight_ActiveFunds[[#This Row],[Fund]],5)","v":"096-1"}]
[1,{"$f":"LEFT(Table_clallam_Oversight_ActiveFunds[[#This Row],[Agency]],3)","v":"405"},"405-Dept Transportation","096-2 Hwy Infrastructure-Federal",{"$f":"LEFT(Table_clallam_Oversight_ActiveFunds[[#This Row],[Fund]],5)","v":"096-2"}]
[1,{"$f":"LEFT(Table_clallam_Oversight_ActiveFunds[[#This Row],[Agency]],3)","v":"405"},"405-Dept Transportation","097-1 R V Account-State",{"$f":"LEFT(Table_clallam_Oversight_ActiveFunds[[#This Row],[Fund]],5)","v":"097-1"}]
[1,{"$f":"LEFT(Table_clallam_Oversight_ActiveFunds[[#This Row],[Agency]],3)","v":"405"},"405-Dept Transportation","099-1 PS Cap Construction-State",{"$f":"LEFT(Table_clallam_Oversight_ActiveFunds[[#This Row],[Fund]],5)","v":"099-1"}]
[1,{"$f":"LEFT(Table_clallam_Oversight_ActiveFunds[[#This Row],[Agency]],3)","v":"405"},"405-Dept Transportation","099-2 PS Cap Construction-Federal",{"$f":"LEFT(Table_clallam_Oversight_ActiveFunds[[#This Row],[Fund]],5)","v":"099-2"}]
[1,{"$f":"LEFT(Table_clallam_Oversight_ActiveFunds[[#This Row],[Agency]],3)","v":"405"},"405-Dept Transportation","099-7 PS Cap Construction-Local",{"$f":"LEFT(Table_clallam_Oversight_ActiveFunds[[#This Row],[Fund]],5)","v":"099-7"}]
[1,{"$f":"LEFT(Table_clallam_Oversight_ActiveFunds[[#This Row],[Agency]],3)","v":"405"},"405-Dept Transportation","09H-1 Transpo Partner Acct-State",{"$f":"LEFT(Table_clallam_Oversight_ActiveFunds[[#This Row],[Fund]],5)","v":"09H-1"}]
[1,{"$f":"LEFT(Table_clallam_Oversight_ActiveFunds[[#This Row],[Agency]],3)","v":"405"},"405-Dept Transportation","09H-T Transpo Partner Acct-Bonds",{"$f":"LEFT(Table_clallam_Oversight_ActiveFunds[[#This Row],[Fund]],5)","v":"09H-T"}]
[1,{"$f":"LEFT(Table_clallam_Oversight_ActiveFunds[[#This Row],[Agency]],3)","v":"405"},"405-Dept Transportation","108-1 Motor Vehicle Acct-State",{"$f":"LEFT(Table_clallam_Oversight_ActiveFunds[[#This Row],[Fund]],5)","v":"108-1"}]
[1,{"$f":"LEFT(Table_clallam_Oversight_ActiveFunds[[#This Row],[Agency]],3)","v":"405"},"405-Dept Transportation","108-2 Motor Vehicle Acct-Federal",{"$f":"LEFT(Table_clallam_Oversight_ActiveFunds[[#This Row],[Fund]],5)","v":"108-2"}]
[1,{"$f":"LEFT(Table_clallam_Oversight_ActiveFunds[[#This Row],[Agency]],3)","v":"405"},"405-Dept Transportation","108-7 Motor Vehicle Acct-Local",{"$f":"LEFT(Table_clallam_Oversight_ActiveFunds[[#This Row],[Fund]],5)","v":"108-7"}]
[1,{"$f":"LEFT(Table_clallam_Oversight_ActiveFunds[[#This Row],[Agency]],3)","v":"405"},"405-Dept Transportation","109-1 Puget Sd Ferry Oper-State",{"$f":"LEFT(Table_clallam_Oversight_ActiveFunds[[#This Row],[Fund]],5)","v":"109-1"}]
[1,{"$f":"LEFT(Table_clallam_Oversight_ActiveFunds[[#This Row],[Agency]],3)","v":"405"},"405-Dept Transportation","109-2 Puget Sd Ferry Oper-Federal",{"$f":"LEFT(Table_clallam_Oversight_ActiveFunds[[#This Row],[Fund]],5)","v":"109-2"}]
[1,{"$f":"LEFT(Table_clallam_Oversight_ActiveFunds[[#This Row],[Agency]],3)","v":"405"},"405-Dept Transportation","109-7 Puget Sd Ferry Oper-Local",{"$f":"LEFT(Table_clallam_Oversight_ActiveFunds[[#This Row],[Fund]],5)","v":"109-7"}]
[1,{"$f":"LEFT(Table_clallam_Oversight_ActiveFunds[[#This Row],[Agency]],3)","v":"405"},"405-Dept Transportation","11B-1 Regnl Mob Grnt Acct-State",{"$f":"LEFT(Table_clallam_Oversight_ActiveFunds[[#This Row],[Fund]],5)","v":"11B-1"}]
[1,{"$f":"LEFT(Table_clallam_Oversight_ActiveFunds[[#This Row],[Agency]],3)","v":"405"},"405-Dept Transportation","153-1 Rural Mobility-State",{"$f":"LEFT(Table_clallam_Oversight_ActiveFunds[[#This Row],[Fund]],5)","v":"153-1"}]
[1,{"$f":"LEFT(Table_clallam_Oversight_ActiveFunds[[#This Row],[Agency]],3)","v":"405"},"405-Dept Transportation","16J-1 SR 520 Corridor Acct-State",{"$f":"LEFT(Table_clallam_Oversight_ActiveFunds[[#This Row],[Fund]],5)","v":"16J-1"}]
[1,{"$f":"LEFT(Table_clallam_Oversight_ActiveFunds[[#This Row],[Agency]],3)","v":"405"},"405-Dept Transportation","17P-1 SR 520 Civil Penalty-State",{"$f":"LEFT(Table_clallam_Oversight_ActiveFunds[[#This Row],[Fund]],5)","v":"17P-1"}]
[1,{"$f":"LEFT(Table_clallam_Oversight_ActiveFunds[[#This Row],[Agency]],3)","v":"405"},"405-Dept Transportation","18J-1 Capital Vessel Repla-State",{"$f":"LEFT(Table_clallam_Oversight_ActiveFunds[[#This Row],[Fund]],5)","v":"18J-1"}]
[1,{"$f":"LEFT(Table_clallam_Oversight_ActiveFunds[[#This Row],[Agency]],3)","v":"405"},"405-Dept Transportation","20H-1 Connecting WA Acct-State",{"$f":"LEFT(Table_clallam_Oversight_ActiveFunds[[#This Row],[Fund]],5)","v":"20H-1"}]
[1,{"$f":"LEFT(Table_clallam_Oversight_ActiveFunds[[#This Row],[Agency]],3)","v":"405"},"405-Dept Transportation","20H-T Connecting WA Acct-Bonds",{"$f":"LEFT(Table_clallam_Oversight_ActiveFunds[[#This Row],[Fund]],5)","v":"20H-T"}]
[1,{"$f":"LEFT(Table_clallam_Oversight_ActiveFunds[[#This Row],[Agency]],3)","v":"405"},"405-Dept Transportation","20J-1 Electric Vehicle-State",{"$f":"LEFT(Table_clallam_Oversight_ActiveFunds[[#This Row],[Fund]],5)","v":"20J-1"}]
[1,{"$f":"LEFT(Table_clallam_Oversight_ActiveFunds[[#This Row],[Agency]],3)","v":"405"},"405-Dept Transportation","215-1 Special Category C-State",{"$f":"LEFT(Table_clallam_Oversight_ActiveFunds[[#This Row],[Fund]],5)","v":"215-1"}]
[1,{"$f":"LEFT(Table_clallam_Oversight_ActiveFunds[[#This Row],[Agency]],3)","v":"405"},"405-Dept Transportation","215-T Special Category C-Bonds",{"$f":"LEFT(Table_clallam_Oversight_ActiveFunds[[#This Row],[Fund]],5)","v":"215-T"}]
[1,{"$f":"LEFT(Table_clallam_Oversight_ActiveFunds[[#This Row],[Agency]],3)","v":"405"},"405-Dept Transportation","218-1 Multimodal Acct-State",{"$f":"LEFT(Table_clallam_Oversight_ActiveFunds[[#This Row],[Fund]],5)","v":"218-1"}]
[1,{"$f":"LEFT(Table_clallam_Oversight_ActiveFunds[[#This Row],[Agency]],3)","v":"405"},"405-Dept Transportation","218-2 Multimodal Acct-Federal",{"$f":"LEFT(Table_clallam_Oversight_ActiveFunds[[#This Row],[Fund]],5)","v":"218-2"}]
[1,{"$f":"LEFT(Table_clallam_Oversight_ActiveFunds[[#This Row],[Agency]],3)","v":"405"},"405-Dept Transportation","218-7 Multimodal Acct-Local",{"$f":"LEFT(Table_clallam_Oversight_ActiveFunds[[#This Row],[Fund]],5)","v":"218-7"}]
[1,{"$f":"LEFT(Table_clallam_Oversight_ActiveFunds[[#This Row],[Agency]],3)","v":"405"},"405-Dept Transportation","218-8 Multimodal Acct-Fed Stim",{"$f":"LEFT(Table_clallam_Oversight_ActiveFunds[[#This Row],[Fund]],5)","v":"218-8"}]
[1,{"$f":"LEFT(Table_clallam_Oversight_ActiveFunds[[#This Row],[Agency]],3)","v":"405"},"405-Dept Transportation","23S-1 PS Gateway Facility-State",{"$f":"LEFT(Table_clallam_Oversight_ActiveFunds[[#This Row],[Fund]],5)","v":"23S-1"}]
[1,{"$f":"LEFT(Table_clallam_Oversight_ActiveFunds[[#This Row],[Agency]],3)","v":"405"},"405-Dept Transportation","24K-1 Agy Finan Trans Acct-State",{"$f":"LEFT(Table_clallam_Oversight_ActiveFunds[[#This Row],[Fund]],5)","v":"24K-1"}]
[1,{"$f":"LEFT(Table_clallam_Oversight_ActiveFunds[[#This Row],[Agency]],3)","v":"405"},"405-Dept Transportation","26A-1 Carbon Emissions Red-State",{"$f":"LEFT(Table_clallam_Oversight_ActiveFunds[[#This Row],[Fund]],5)","v":"26A-1"}]
[1,{"$f":"LEFT(Table_clallam_Oversight_ActiveFunds[[#This Row],[Agency]],3)","v":"405"},"405-Dept Transportation","26M-1 Climate Actv Transpo-State",{"$f":"LEFT(Table_clallam_Oversight_ActiveFunds[[#This Row],[Fund]],5)","v":"26M-1"}]
[1,{"$f":"LEFT(Table_clallam_Oversight_ActiveFunds[[#This Row],[Agency]],3)","v":"405"},"405-Dept Transportation","26N-1 Climate Transit Pgms-State",{"$f":"LEFT(Table_clallam_Oversight_ActiveFunds[[#This Row],[Fund]],5)","v":"26N-1"}]
[1,{"$f":"LEFT(Table_clallam_Oversight_ActiveFunds[[#This Row],[Agency]],3)","v":"405"},"405-Dept Transportation","26P-1 Move Ahead WA Acct-State",{"$f":"LEFT(Table_clallam_Oversight_ActiveFunds[[#This Row],[Fund]],5)","v":"26P-1"}]
[1,{"$f":"LEFT(Table_clallam_Oversight_ActiveFunds[[#This Row],[Agency]],3)","v":"405"},"405-Dept Transportation","26P-2 Move Ahead WA Acct-Federal",{"$f":"LEFT(Table_clallam_Oversight_ActiveFunds[[#This Row],[Fund]],5)","v":"26P-2"}]
[1,{"$f":"LEFT(Table_clallam_Oversight_ActiveFunds[[#This Row],[Agency]],3)","v":"405"},"405-Dept Transportation","26Q-1 Move Ahead WA Flex-State",{"$f":"LEFT(Table_clallam_Oversight_ActiveFunds[[#This Row],[Fund]],5)","v":"26Q-1"}]
[1,{"$f":"LEFT(Table_clallam_Oversight_ActiveFunds[[#This Row],[Agency]],3)","v":"405"},"405-Dept Transportation","26Q-2 Move Ahead WA Flex-Federal",{"$f":"LEFT(Table_clallam_Oversight_ActiveFunds[[#This Row],[Fund]],5)","v":"26Q-2"}]
[1,{"$f":"LEFT(Table_clallam_Oversight_ActiveFunds[[#This Row],[Agency]],3)","v":"405"},"405-Dept Transportation","410-6 Transp Equipment Acc-Non-Appr",{"$f":"LEFT(Table_clallam_Oversight_ActiveFunds[[#This Row],[Fund]],5)","v":"410-6"}]
[1,{"$f":"LEFT(Table_clallam_Oversight_ActiveFunds[[#This Row],[Agency]],3)","v":"405"},"405-Dept Transportation","511-1 Tacoma Narrows Toll-State",{"$f":"LEFT(Table_clallam_Oversight_ActiveFunds[[#This Row],[Fund]],5)","v":"511-1"}]
[1,{"$f":"LEFT(Table_clallam_Oversight_ActiveFunds[[#This Row],[Agency]],3)","v":"405"},"405-Dept Transportation","535-1 Alaskan Way Viaduct-State",{"$f":"LEFT(Table_clallam_Oversight_ActiveFunds[[#This Row],[Fund]],5)","v":"535-1"}]
[1,{"$f":"LEFT(Table_clallam_Oversight_ActiveFunds[[#This Row],[Agency]],3)","v":"405"},"405-Dept Transportation","550-1 Transp 2003 (Nickel)-State",{"$f":"LEFT(Table_clallam_Oversight_ActiveFunds[[#This Row],[Fund]],5)","v":"550-1"}]
[1,{"$f":"LEFT(Table_clallam_Oversight_ActiveFunds[[#This Row],[Agency]],3)","v":"405"},"405-Dept Transportation","571-1 Multiuse Roadway Saf-State",{"$f":"LEFT(Table_clallam_Oversight_ActiveFunds[[#This Row],[Fund]],5)","v":"571-1"}]
[1,{"$f":"LEFT(Table_clallam_Oversight_ActiveFunds[[#This Row],[Agency]],3)","v":"405"},"405-Dept Transportation","595-1 I-405/SR167 Exp Toll - State",{"$f":"LEFT(Table_clallam_Oversight_ActiveFunds[[#This Row],[Fund]],5)","v":"595-1"}]
[1,{"$f":"LEFT(Table_clallam_Oversight_ActiveFunds[[#This Row],[Agency]],3)","v":"405"},"405-Dept Transportation","706-2 COVID Fiscal Recover-Federal",{"$f":"LEFT(Table_clallam_Oversight_ActiveFunds[[#This Row],[Fund]],5)","v":"706-2"}]
[1,{"$f":"LEFT(Table_clallam_Oversight_ActiveFunds[[#This Row],[Agency]],3)","v":"406"},"406-County Road Admin Bd","102-1 Rural Arterial Trust-State",{"$f":"LEFT(Table_clallam_Oversight_ActiveFunds[[#This Row],[Fund]],5)","v":"102-1"}]
[1,{"$f":"LEFT(Table_clallam_Oversight_ActiveFunds[[#This Row],[Agency]],3)","v":"406"},"406-County Road Admin Bd","108-1 Motor Vehicle Acct-State",{"$f":"LEFT(Table_clallam_Oversight_ActiveFunds[[#This Row],[Fund]],5)","v":"108-1"}]
[1,{"$f":"LEFT(Table_clallam_Oversight_ActiveFunds[[#This Row],[Agency]],3)","v":"406"},"406-County Road Admin Bd","186-1 County Arterial Pres-State",{"$f":"LEFT(Table_clallam_Oversight_ActiveFunds[[#This Row],[Fund]],5)","v":"186-1"}]
[1,{"$f":"LEFT(Table_clallam_Oversight_ActiveFunds[[#This Row],[Agency]],3)","v":"406"},"406-County Road Admin Bd","23M-6 CRAB Emer Loan Acct-Non-Appr",{"$f":"LEFT(Table_clallam_Oversight_ActiveFunds[[#This Row],[Fund]],5)","v":"23M-6"}]
[1,{"$f":"LEFT(Table_clallam_Oversight_ActiveFunds[[#This Row],[Agency]],3)","v":"406"},"406-County Road Admin Bd","26P-1 Move Ahead WA Acct-State",{"$f":"LEFT(Table_clallam_Oversight_ActiveFunds[[#This Row],[Fund]],5)","v":"26P-1"}]
[1,{"$f":"LEFT(Table_clallam_Oversight_ActiveFunds[[#This Row],[Agency]],3)","v":"407"},"407-Transpo Improve Bd","08M-1 Small City Pave/Side-State",{"$f":"LEFT(Table_clallam_Oversight_ActiveFunds[[#This Row],[Fund]],5)","v":"08M-1"}]
[1,{"$f":"LEFT(Table_clallam_Oversight_ActiveFunds[[#This Row],[Agency]],3)","v":"407"},"407-Transpo Improve Bd","144-1 Tran Improv Account-State",{"$f":"LEFT(Table_clallam_Oversight_ActiveFunds[[#This Row],[Fund]],5)","v":"144-1"}]
[1,{"$f":"LEFT(Table_clallam_Oversight_ActiveFunds[[#This Row],[Agency]],3)","v":"407"},"407-Transpo Improve Bd","17N-1 Complete Streets Gra-State",{"$f":"LEFT(Table_clallam_Oversight_ActiveFunds[[#This Row],[Fund]],5)","v":"17N-1"}]
[1,{"$f":"LEFT(Table_clallam_Oversight_ActiveFunds[[#This Row],[Agency]],3)","v":"407"},"407-Transpo Improve Bd","26M-1 Climate Actv Transpo-State",{"$f":"LEFT(Table_clallam_Oversight_ActiveFunds[[#This Row],[Fund]],5)","v":"26M-1"}]
[1,{"$f":"LEFT(Table_clallam_Oversight_ActiveFunds[[#This Row],[Agency]],3)","v":"407"},"407-Transpo Improve Bd","26P-1 Move Ahead WA Acct-State",{"$f":"LEFT(Table_clallam_Oversight_ActiveFunds[[#This Row],[Fund]],5)","v":"26P-1"}]
[1,{"$f":"LEFT(Table_clallam_Oversight_ActiveFunds[[#This Row],[Agency]],3)","v":"410"},"410-Transportation Comm","108-1 Motor Vehicle Acct-State",{"$f":"LEFT(Table_clallam_Oversight_ActiveFunds[[#This Row],[Fund]],5)","v":"108-1"}]
[1,{"$f":"LEFT(Table_clallam_Oversight_ActiveFunds[[#This Row],[Agency]],3)","v":"410"},"410-Transportation Comm","16J-1 SR 520 Corridor Acct-State",{"$f":"LEFT(Table_clallam_Oversight_ActiveFunds[[#This Row],[Fund]],5)","v":"16J-1"}]
[1,{"$f":"LEFT(Table_clallam_Oversight_ActiveFunds[[#This Row],[Agency]],3)","v":"410"},"410-Transportation Comm","511-1 Tacoma Narrows Toll-State",{"$f":"LEFT(Table_clallam_Oversight_ActiveFunds[[#This Row],[Fund]],5)","v":"511-1"}]
[1,{"$f":"LEFT(Table_clallam_Oversight_ActiveFunds[[#This Row],[Agency]],3)","v":"410"},"410-Transportation Comm","535-1 Alaskan Way Viaduct-State",{"$f":"LEFT(Table_clallam_Oversight_ActiveFunds[[#This Row],[Fund]],5)","v":"535-1"}]
[1,{"$f":"LEFT(Table_clallam_Oversight_ActiveFunds[[#This Row],[Agency]],3)","v":"410"},"410-Transportation Comm","595-1 I-405/SR167 Exp Toll - State",{"$f":"LEFT(Table_clallam_Oversight_ActiveFunds[[#This Row],[Fund]],5)","v":"595-1"}]
[1,{"$f":"LEFT(Table_clallam_Oversight_ActiveFunds[[#This Row],[Agency]],3)","v":"411"},"411-FMSIB","09E-1 Freight Mobil Inv A-State",{"$f":"LEFT(Table_clallam_Oversight_ActiveFunds[[#This Row],[Fund]],5)","v":"09E-1"}]
[1,{"$f":"LEFT(Table_clallam_Oversight_ActiveFunds[[#This Row],[Agency]],3)","v":"411"},"411-FMSIB","11E-1 Freight Mblty Multi-State",{"$f":"LEFT(Table_clallam_Oversight_ActiveFunds[[#This Row],[Fund]],5)","v":"11E-1"}]
[1,{"$f":"LEFT(Table_clallam_Oversight_ActiveFunds[[#This Row],[Agency]],3)","v":"460"},"460-Columbia River Gorge","001-1 General Fund-State",{"$f":"LEFT(Table_clallam_Oversight_ActiveFunds[[#This Row],[Fund]],5)","v":"001-1"}]
[1,{"$f":"LEFT(Table_clallam_Oversight_ActiveFunds[[#This Row],[Agency]],3)","v":"460"},"460-Columbia River Gorge","001-2 General Fund-Federal",{"$f":"LEFT(Table_clallam_Oversight_ActiveFunds[[#This Row],[Fund]],5)","v":"001-2"}]
[1,{"$f":"LEFT(Table_clallam_Oversight_ActiveFunds[[#This Row],[Agency]],3)","v":"460"},"460-Columbia River Gorge","001-7 General Fund-Local",{"$f":"LEFT(Table_clallam_Oversight_ActiveFunds[[#This Row],[Fund]],5)","v":"001-7"}]
[1,{"$f":"LEFT(Table_clallam_Oversight_ActiveFunds[[#This Row],[Agency]],3)","v":"461"},"461-Dept of Ecology","001-1 General Fund-State",{"$f":"LEFT(Table_clallam_Oversight_ActiveFunds[[#This Row],[Fund]],5)","v":"001-1"}]
[1,{"$f":"LEFT(Table_clallam_Oversight_ActiveFunds[[#This Row],[Agency]],3)","v":"461"},"461-Dept of Ecology","001-2 General Fund-Federal",{"$f":"LEFT(Table_clallam_Oversight_ActiveFunds[[#This Row],[Fund]],5)","v":"001-2"}]
[1,{"$f":"LEFT(Table_clallam_Oversight_ActiveFunds[[#This Row],[Agency]],3)","v":"461"},"461-Dept of Ecology","001-7 General Fund-Local",{"$f":"LEFT(Table_clallam_Oversight_ActiveFunds[[#This Row],[Fund]],5)","v":"001-7"}]
[1,{"$f":"LEFT(Table_clallam_Oversight_ActiveFunds[[#This Row],[Agency]],3)","v":"461"},"461-Dept of Ecology","027-1 Reclamation Acct-State",{"$f":"LEFT(Table_clallam_Oversight_ActiveFunds[[#This Row],[Fund]],5)","v":"027-1"}]
[1,{"$f":"LEFT(Table_clallam_Oversight_ActiveFunds[[#This Row],[Agency]],3)","v":"461"},"461-Dept of Ecology","02P-1 Flood Control Assist-State",{"$f":"LEFT(Table_clallam_Oversight_ActiveFunds[[#This Row],[Fund]],5)","v":"02P-1"}]
[1,{"$f":"LEFT(Table_clallam_Oversight_ActiveFunds[[#This Row],[Agency]],3)","v":"461"},"461-Dept of Ecology","02R-1 Aquatic Lands Acct-State",{"$f":"LEFT(Table_clallam_Oversight_ActiveFunds[[#This Row],[Fund]],5)","v":"02R-1"}]
[1,{"$f":"LEFT(Table_clallam_Oversight_ActiveFunds[[#This Row],[Agency]],3)","v":"461"},"461-Dept of Ecology","032-1 Emergency Water Proj-State",{"$f":"LEFT(Table_clallam_Oversight_ActiveFunds[[#This Row],[Fund]],5)","v":"032-1"}]
[1,{"$f":"LEFT(Table_clallam_Oversight_ActiveFunds[[#This Row],[Agency]],3)","v":"461"},"461-Dept of Ecology","044-1 Waste Reduct/Recycle-State",{"$f":"LEFT(Table_clallam_Oversight_ActiveFunds[[#This Row],[Fund]],5)","v":"044-1"}]
[1,{"$f":"LEFT(Table_clallam_Oversight_ActiveFunds[[#This Row],[Agency]],3)","v":"461"},"461-Dept of Ecology","05W-1 St Drought Prepare-State",{"$f":"LEFT(Table_clallam_Oversight_ActiveFunds[[#This Row],[Fund]],5)","v":"05W-1"}]
[1,{"$f":"LEFT(Table_clallam_Oversight_ActiveFunds[[#This Row],[Agency]],3)","v":"461"},"461-Dept of Ecology","072-1 Improv-Water Supply - State",{"$f":"LEFT(Table_clallam_Oversight_ActiveFunds[[#This Row],[Fund]],5)","v":"072-1"}]
[1,{"$f":"LEFT(Table_clallam_Oversight_ActiveFunds[[#This Row],[Agency]],3)","v":"461"},"461-Dept of Ecology","10G-1 Water Rights Track-State",{"$f":"LEFT(Table_clallam_Oversight_ActiveFunds[[#This Row],[Fund]],5)","v":"10G-1"}]
[1,{"$f":"LEFT(Table_clallam_Oversight_ActiveFunds[[#This Row],[Agency]],3)","v":"461"},"461-Dept of Ecology","116-6 Basic Data Account-Non-Appr",{"$f":"LEFT(Table_clallam_Oversight_ActiveFunds[[#This Row],[Fund]],5)","v":"116-6"}]
[1,{"$f":"LEFT(Table_clallam_Oversight_ActiveFunds[[#This Row],[Agency]],3)","v":"461"},"461-Dept of Ecology","11J-6 Elec Product Recycle-Non-Appr",{"$f":"LEFT(Table_clallam_Oversight_ActiveFunds[[#This Row],[Fund]],5)","v":"11J-6"}]
[1,{"$f":"LEFT(Table_clallam_Oversight_ActiveFunds[[#This Row],[Agency]],3)","v":"461"},"461-Dept of Ecology","125-1 Site Closure Account-State",{"$f":"LEFT(Table_clallam_Oversight_ActiveFunds[[#This Row],[Fund]],5)","v":"125-1"}]
[1,{"$f":"LEFT(Table_clallam_Oversight_ActiveFunds[[#This Row],[Agency]],3)","v":"461"},"461-Dept of Ecology","160-1 Wood Stove Education-State",{"$f":"LEFT(Table_clallam_Oversight_ActiveFunds[[#This Row],[Fund]],5)","v":"160-1"}]
[1,{"$f":"LEFT(Table_clallam_Oversight_ActiveFunds[[#This Row],[Agency]],3)","v":"461"},"461-Dept of Ecology","163-1 Worker & Comm Right-State",{"$f":"LEFT(Table_clallam_Oversight_ActiveFunds[[#This Row],[Fund]],5)","v":"163-1"}]
[1,{"$f":"LEFT(Table_clallam_Oversight_ActiveFunds[[#This Row],[Agency]],3)","v":"461"},"461-Dept of Ecology","16T-6 Product Stewardship-Non-Appr",{"$f":"LEFT(Table_clallam_Oversight_ActiveFunds[[#This Row],[Fund]],5)","v":"16T-6"}]
[1,{"$f":"LEFT(Table_clallam_Oversight_ActiveFunds[[#This Row],[Agency]],3)","v":"461"},"461-Dept of Ecology","16V-1 Water Rights Process-State",{"$f":"LEFT(Table_clallam_Oversight_ActiveFunds[[#This Row],[Fund]],5)","v":"16V-1"}]
[1,{"$f":"LEFT(Table_clallam_Oversight_ActiveFunds[[#This Row],[Agency]],3)","v":"461"},"461-Dept of Ecology","176-1 Water Quality Permit-State",{"$f":"LEFT(Table_clallam_Oversight_ActiveFunds[[#This Row],[Fund]],5)","v":"176-1"}]
[1,{"$f":"LEFT(Table_clallam_Oversight_ActiveFunds[[#This Row],[Agency]],3)","v":"461"},"461-Dept of Ecology","182-1 Underground Storage-State",{"$f":"LEFT(Table_clallam_Oversight_ActiveFunds[[#This Row],[Fund]],5)","v":"182-1"}]
[1,{"$f":"LEFT(Table_clallam_Oversight_ActiveFunds[[#This Row],[Agency]],3)","v":"461"},"461-Dept of Ecology","199-1 Biosolids Prmt Acct-State",{"$f":"LEFT(Table_clallam_Oversight_ActiveFunds[[#This Row],[Fund]],5)","v":"199-1"}]
[1,{"$f":"LEFT(Table_clallam_Oversight_ActiveFunds[[#This Row],[Agency]],3)","v":"461"},"461-Dept of Ecology","207-1 Hazardous Waste-State",{"$f":"LEFT(Table_clallam_Oversight_ActiveFunds[[#This Row],[Fund]],5)","v":"207-1"}]
[1,{"$f":"LEFT(Table_clallam_Oversight_ActiveFunds[[#This Row],[Agency]],3)","v":"461"},"461-Dept of Ecology","20R-1 Radioactive Mixed-State",{"$f":"LEFT(Table_clallam_Oversight_ActiveFunds[[#This Row],[Fund]],5)","v":"20R-1"}]
[1,{"$f":"LEFT(Table_clallam_Oversight_ActiveFunds[[#This Row],[Agency]],3)","v":"461"},"461-Dept of Ecology","216-1 Air Poll Contr Acct-State",{"$f":"LEFT(Table_clallam_Oversight_ActiveFunds[[#This Row],[Fund]],5)","v":"216-1"}]
[1,{"$f":"LEFT(Table_clallam_Oversight_ActiveFunds[[#This Row],[Agency]],3)","v":"461"},"461-Dept of Ecology","217-1 Oil Spill Prevn Acct-State",{"$f":"LEFT(Table_clallam_Oversight_ActiveFunds[[#This Row],[Fund]],5)","v":"217-1"}]
[1,{"$f":"LEFT(Table_clallam_Oversight_ActiveFunds[[#This Row],[Agency]],3)","v":"461"},"461-Dept of Ecology","219-1 Air Oper Permit Acct-State",{"$f":"LEFT(Table_clallam_Oversight_ActiveFunds[[#This Row],[Fund]],5)","v":"219-1"}]
[1,{"$f":"LEFT(Table_clallam_Oversight_ActiveFunds[[#This Row],[Agency]],3)","v":"461"},"461-Dept of Ecology","21H-1 WWT Plant Oper Cert-State",{"$f":"LEFT(Table_clallam_Oversight_ActiveFunds[[#This Row],[Fund]],5)","v":"21H-1"}]
[1,{"$f":"LEFT(Table_clallam_Oversight_ActiveFunds[[#This Row],[Agency]],3)","v":"461"},"461-Dept of Ecology","223-1 Oil Spill Response-State",{"$f":"LEFT(Table_clallam_Oversight_ActiveFunds[[#This Row],[Fund]],5)","v":"223-1"}]
[1,{"$f":"LEFT(Table_clallam_Oversight_ActiveFunds[[#This Row],[Agency]],3)","v":"461"},"461-Dept of Ecology","22G-6 Photovolt Mod Rcycl-Non-Appr",{"$f":"LEFT(Table_clallam_Oversight_ActiveFunds[[#This Row],[Fund]],5)","v":"22G-6"}]
[1,{"$f":"LEFT(Table_clallam_Oversight_ActiveFunds[[#This Row],[Agency]],3)","v":"461"},"461-Dept of Ecology","23P-1 Model Toxics Oper-State",{"$f":"LEFT(Table_clallam_Oversight_ActiveFunds[[#This Row],[Fund]],5)","v":"23P-1"}]
[1,{"$f":"LEFT(Table_clallam_Oversight_ActiveFunds[[#This Row],[Agency]],3)","v":"461"},"461-Dept of Ecology","23P-7 Model Toxics Oper-Local",{"$f":"LEFT(Table_clallam_Oversight_ActiveFunds[[#This Row],[Fund]],5)","v":"23P-7"}]
[1,{"$f":"LEFT(Table_clallam_Oversight_ActiveFunds[[#This Row],[Agency]],3)","v":"461"},"461-Dept of Ecology","23R-1 Model Toxics Strmwtr-State",{"$f":"LEFT(Table_clallam_Oversight_ActiveFunds[[#This Row],[Fund]],5)","v":"23R-1"}]
[1,{"$f":"LEFT(Table_clallam_Oversight_ActiveFunds[[#This Row],[Agency]],3)","v":"461"},"461-Dept of Ecology","23V-1 Voluntary Cleanup Ac-State",{"$f":"LEFT(Table_clallam_Oversight_ActiveFunds[[#This Row],[Fund]],5)","v":"23V-1"}]
[1,{"$f":"LEFT(Table_clallam_Oversight_ActiveFunds[[#This Row],[Agency]],3)","v":"461"},"461-Dept of Ecology","23W-1 Paint Prdct Steward-State",{"$f":"LEFT(Table_clallam_Oversight_ActiveFunds[[#This Row],[Fund]],5)","v":"23W-1"}]
[1,{"$f":"LEFT(Table_clallam_Oversight_ActiveFunds[[#This Row],[Agency]],3)","v":"461"},"461-Dept of Ecology","25Q-1 Clean Fuels Pgm Acct-State",{"$f":"LEFT(Table_clallam_Oversight_ActiveFunds[[#This Row],[Fund]],5)","v":"25Q-1"}]
[1,{"$f":"LEFT(Table_clallam_Oversight_ActiveFunds[[#This Row],[Agency]],3)","v":"461"},"461-Dept of Ecology","25R-6 Recycled Content Acc-Non-Appr",{"$f":"LEFT(Table_clallam_Oversight_ActiveFunds[[#This Row],[Fund]],5)","v":"25R-6"}]
[1,{"$f":"LEFT(Table_clallam_Oversight_ActiveFunds[[#This Row],[Agency]],3)","v":"461"},"461-Dept of Ecology","26B-1 Climate Investment-State",{"$f":"LEFT(Table_clallam_Oversight_ActiveFunds[[#This Row],[Fund]],5)","v":"26B-1"}]
[1,{"$f":"LEFT(Table_clallam_Oversight_ActiveFunds[[#This Row],[Agency]],3)","v":"461"},"461-Dept of Ecology","315-1 Dedicated Cannabis-State",{"$f":"LEFT(Table_clallam_Oversight_ActiveFunds[[#This Row],[Fund]],5)","v":"315-1"}]
[1,{"$f":"LEFT(Table_clallam_Oversight_ActiveFunds[[#This Row],[Agency]],3)","v":"461"},"461-Dept of Ecology","408-6 Coastal Protec Acct-Non-Appr",{"$f":"LEFT(Table_clallam_Oversight_ActiveFunds[[#This Row],[Fund]],5)","v":"408-6"}]
[1,{"$f":"LEFT(Table_clallam_Oversight_ActiveFunds[[#This Row],[Agency]],3)","v":"461"},"461-Dept of Ecology","564-1 Water Poll Ctrl Adm-State",{"$f":"LEFT(Table_clallam_Oversight_ActiveFunds[[#This Row],[Fund]],5)","v":"564-1"}]
[1,{"$f":"LEFT(Table_clallam_Oversight_ActiveFunds[[#This Row],[Agency]],3)","v":"461"},"461-Dept of Ecology","08R-1 Waste Tire Removal A-State",{"$f":"LEFT(Table_clallam_Oversight_ActiveFunds[[#This Row],[Fund]],5)","v":"08R-1"}]
[1,{"$f":"LEFT(Table_clallam_Oversight_ActiveFunds[[#This Row],[Agency]],3)","v":"462"},"462-Pollution Liab Insur","001-2 General Fund-Federal",{"$f":"LEFT(Table_clallam_Oversight_ActiveFunds[[#This Row],[Fund]],5)","v":"001-2"}]
[1,{"$f":"LEFT(Table_clallam_Oversight_ActiveFunds[[#This Row],[Agency]],3)","v":"462"},"462-Pollution Liab Insur","20T-1 PLIA UST Revolving-State",{"$f":"LEFT(Table_clallam_Oversight_ActiveFunds[[#This Row],[Fund]],5)","v":"20T-1"}]
[1,{"$f":"LEFT(Table_clallam_Oversight_ActiveFunds[[#This Row],[Agency]],3)","v":"462"},"462-Pollution Liab Insur","544-1 Pollution Liab Insur-State",{"$f":"LEFT(Table_clallam_Oversight_ActiveFunds[[#This Row],[Fund]],5)","v":"544-1"}]
[1,{"$f":"LEFT(Table_clallam_Oversight_ActiveFunds[[#This Row],[Agency]],3)","v":"462"},"462-Pollution Liab Insur","545-6 Heating Oil Pollut-Non-Appr",{"$f":"LEFT(Table_clallam_Oversight_ActiveFunds[[#This Row],[Fund]],5)","v":"545-6"}]
[1,{"$f":"LEFT(Table_clallam_Oversight_ActiveFunds[[#This Row],[Agency]],3)","v":"463"},"463-Energy Fac Site Eval","001-1 General Fund-State",{"$f":"LEFT(Table_clallam_Oversight_ActiveFunds[[#This Row],[Fund]],5)","v":"001-1"}]
[1,{"$f":"LEFT(Table_clallam_Oversight_ActiveFunds[[#This Row],[Agency]],3)","v":"463"},"463-Energy Fac Site Eval","26G-7 Energy Fac Site Eval-Local",{"$f":"LEFT(Table_clallam_Oversight_ActiveFunds[[#This Row],[Fund]],5)","v":"26G-7"}]
[1,{"$f":"LEFT(Table_clallam_Oversight_ActiveFunds[[#This Row],[Agency]],3)","v":"465"},"465-Parks & Rec Comm","001-1 General Fund-State",{"$f":"LEFT(Table_clallam_Oversight_ActiveFunds[[#This Row],[Fund]],5)","v":"001-1"}]
[1,{"$f":"LEFT(Table_clallam_Oversight_ActiveFunds[[#This Row],[Agency]],3)","v":"465"},"465-Parks & Rec Comm","001-2 General Fund-Federal",{"$f":"LEFT(Table_clallam_Oversight_ActiveFunds[[#This Row],[Fund]],5)","v":"001-2"}]
[1,{"$f":"LEFT(Table_clallam_Oversight_ActiveFunds[[#This Row],[Agency]],3)","v":"465"},"465-Parks & Rec Comm","007-1 Winter Recreation-State",{"$f":"LEFT(Table_clallam_Oversight_ActiveFunds[[#This Row],[Fund]],5)","v":"007-1"}]
[1,{"$f":"LEFT(Table_clallam_Oversight_ActiveFunds[[#This Row],[Agency]],3)","v":"465"},"465-Parks & Rec Comm","018-1 Millersylvania Park-State",{"$f":"LEFT(Table_clallam_Oversight_ActiveFunds[[#This Row],[Fund]],5)","v":"018-1"}]
[1,{"$f":"LEFT(Table_clallam_Oversight_ActiveFunds[[#This Row],[Agency]],3)","v":"465"},"465-Parks & Rec Comm","01B-1 ORV/NonHiwy Veh Acct-State",{"$f":"LEFT(Table_clallam_Oversight_ActiveFunds[[#This Row],[Fund]],5)","v":"01B-1"}]
[1,{"$f":"LEFT(Table_clallam_Oversight_ActiveFunds[[#This Row],[Agency]],3)","v":"465"},"465-Parks & Rec Comm","01M-1 Snowmobile Account-State",{"$f":"LEFT(Table_clallam_Oversight_ActiveFunds[[#This Row],[Fund]],5)","v":"01M-1"}]
[1,{"$f":"LEFT(Table_clallam_Oversight_ActiveFunds[[#This Row],[Agency]],3)","v":"465"},"465-Parks & Rec Comm","02R-1 Aquatic Lands Acct-State",{"$f":"LEFT(Table_clallam_Oversight_ActiveFunds[[#This Row],[Fund]],5)","v":"02R-1"}]
[1,{"$f":"LEFT(Table_clallam_Oversight_ActiveFunds[[#This Row],[Agency]],3)","v":"465"},"465-Parks & Rec Comm","08P-6 State Parks Ed Enh-Non-Appr",{"$f":"LEFT(Table_clallam_Oversight_ActiveFunds[[#This Row],[Fund]],5)","v":"08P-6"}]
[1,{"$f":"LEFT(Table_clallam_Oversight_ActiveFunds[[#This Row],[Agency]],3)","v":"465"},"465-Parks & Rec Comm","09B-6 Boating Safety Ed C-Non-Appr",{"$f":"LEFT(Table_clallam_Oversight_ActiveFunds[[#This Row],[Fund]],5)","v":"09B-6"}]
[1,{"$f":"LEFT(Table_clallam_Oversight_ActiveFunds[[#This Row],[Agency]],3)","v":"465"},"465-Parks & Rec Comm","12L-6 Outdoor Ed & Rec-Non-Appr",{"$f":"LEFT(Table_clallam_Oversight_ActiveFunds[[#This Row],[Fund]],5)","v":"12L-6"}]
[1,{"$f":"LEFT(Table_clallam_Oversight_ActiveFunds[[#This Row],[Agency]],3)","v":"465"},"465-Parks & Rec Comm","159-6 Parks Improvement Ac-Non-Appr",{"$f":"LEFT(Table_clallam_Oversight_ActiveFunds[[#This Row],[Fund]],5)","v":"159-6"}]
[1,{"$f":"LEFT(Table_clallam_Oversight_ActiveFunds[[#This Row],[Agency]],3)","v":"465"},"465-Parks & Rec Comm","269-1 Parks Renewal Acct-State",{"$f":"LEFT(Table_clallam_Oversight_ActiveFunds[[#This Row],[Fund]],5)","v":"269-1"}]
[1,{"$f":"LEFT(Table_clallam_Oversight_ActiveFunds[[#This Row],[Agency]],3)","v":"465"},"465-Parks & Rec Comm","269-7 Parks Renewal Acct-Local",{"$f":"LEFT(Table_clallam_Oversight_ActiveFunds[[#This Row],[Fund]],5)","v":"269-7"}]
[1,{"$f":"LEFT(Table_clallam_Oversight_ActiveFunds[[#This Row],[Agency]],3)","v":"465"},"465-Parks & Rec Comm","108-1 Motor Vehicle Acct-State",{"$f":"LEFT(Table_clallam_Oversight_ActiveFunds[[#This Row],[Fund]],5)","v":"108-1"}]
[1,{"$f":"LEFT(Table_clallam_Oversight_ActiveFunds[[#This Row],[Agency]],3)","v":"467"},"467-Rec & Conservation","001-1 General Fund-State",{"$f":"LEFT(Table_clallam_Oversight_ActiveFunds[[#This Row],[Fund]],5)","v":"001-1"}]
[1,{"$f":"LEFT(Table_clallam_Oversight_ActiveFunds[[#This Row],[Agency]],3)","v":"467"},"467-Rec & Conservation","001-2 General Fund-Federal",{"$f":"LEFT(Table_clallam_Oversight_ActiveFunds[[#This Row],[Fund]],5)","v":"001-2"}]
[1,{"$f":"LEFT(Table_clallam_Oversight_ActiveFunds[[#This Row],[Agency]],3)","v":"467"},"467-Rec & Conservation","001-7 General Fund-Local",{"$f":"LEFT(Table_clallam_Oversight_ActiveFunds[[#This Row],[Fund]],5)","v":"001-7"}]
[1,{"$f":"LEFT(Table_clallam_Oversight_ActiveFunds[[#This Row],[Agency]],3)","v":"467"},"467-Rec & Conservation","02R-1 Aquatic Lands Acct-State",{"$f":"LEFT(Table_clallam_Oversight_ActiveFunds[[#This Row],[Fund]],5)","v":"02R-1"}]
[1,{"$f":"LEFT(Table_clallam_Oversight_ActiveFunds[[#This Row],[Agency]],3)","v":"467"},"467-Rec & Conservation","06A-1 Salmon Recovery Acct-State",{"$f":"LEFT(Table_clallam_Oversight_ActiveFunds[[#This Row],[Fund]],5)","v":"06A-1"}]
[1,{"$f":"LEFT(Table_clallam_Oversight_ActiveFunds[[#This Row],[Agency]],3)","v":"467"},"467-Rec & Conservation","146-1 Firearms Range Acct-State",{"$f":"LEFT(Table_clallam_Oversight_ActiveFunds[[#This Row],[Fund]],5)","v":"146-1"}]
[1,{"$f":"LEFT(Table_clallam_Oversight_ActiveFunds[[#This Row],[Agency]],3)","v":"467"},"467-Rec & Conservation","267-1 Recreation Resources-State",{"$f":"LEFT(Table_clallam_Oversight_ActiveFunds[[#This Row],[Fund]],5)","v":"267-1"}]
[1,{"$f":"LEFT(Table_clallam_Oversight_ActiveFunds[[#This Row],[Agency]],3)","v":"467"},"467-Rec & Conservation","268-1 NOVA Program Account-State",{"$f":"LEFT(Table_clallam_Oversight_ActiveFunds[[#This Row],[Fund]],5)","v":"268-1"}]
[1,{"$f":"LEFT(Table_clallam_Oversight_ActiveFunds[[#This Row],[Agency]],3)","v":"467"},"467-Rec & Conservation","818-1 Youth Athletic Facil-State",{"$f":"LEFT(Table_clallam_Oversight_ActiveFunds[[#This Row],[Fund]],5)","v":"818-1"}]
[1,{"$f":"LEFT(Table_clallam_Oversight_ActiveFunds[[#This Row],[Agency]],3)","v":"468"},"468-Env & Land Use Hrg","001-1 General Fund-State",{"$f":"LEFT(Table_clallam_Oversight_ActiveFunds[[#This Row],[Fund]],5)","v":"001-1"}]
[1,{"$f":"LEFT(Table_clallam_Oversight_ActiveFunds[[#This Row],[Agency]],3)","v":"471"},"471-Conservation Comm","001-1 General Fund-State",{"$f":"LEFT(Table_clallam_Oversight_ActiveFunds[[#This Row],[Fund]],5)","v":"001-1"}]
[1,{"$f":"LEFT(Table_clallam_Oversight_ActiveFunds[[#This Row],[Agency]],3)","v":"471"},"471-Conservation Comm","001-2 General Fund-Federal",{"$f":"LEFT(Table_clallam_Oversight_ActiveFunds[[#This Row],[Fund]],5)","v":"001-2"}]
[1,{"$f":"LEFT(Table_clallam_Oversight_ActiveFunds[[#This Row],[Agency]],3)","v":"471"},"471-Conservation Comm","001-7 General Fund-Local",{"$f":"LEFT(Table_clallam_Oversight_ActiveFunds[[#This Row],[Fund]],5)","v":"001-7"}]
[1,{"$f":"LEFT(Table_clallam_Oversight_ActiveFunds[[#This Row],[Agency]],3)","v":"471"},"471-Conservation Comm","058-1 Public Works Assist-State",{"$f":"LEFT(Table_clallam_Oversight_ActiveFunds[[#This Row],[Fund]],5)","v":"058-1"}]
[1,{"$f":"LEFT(Table_clallam_Oversight_ActiveFunds[[#This Row],[Agency]],3)","v":"471"},"471-Conservation Comm","06A-1 Salmon Recovery Acct-State",{"$f":"LEFT(Table_clallam_Oversight_ActiveFunds[[#This Row],[Fund]],5)","v":"06A-1"}]
[1,{"$f":"LEFT(Table_clallam_Oversight_ActiveFunds[[#This Row],[Agency]],3)","v":"471"},"471-Conservation Comm","23P-1 Model Toxics Oper-State",{"$f":"LEFT(Table_clallam_Oversight_ActiveFunds[[#This Row],[Fund]],5)","v":"23P-1"}]
[1,{"$f":"LEFT(Table_clallam_Oversight_ActiveFunds[[#This Row],[Agency]],3)","v":"477"},"477-Fish & Wildlife","001-1 General Fund-State",{"$f":"LEFT(Table_clallam_Oversight_ActiveFunds[[#This Row],[Fund]],5)","v":"001-1"}]
[1,{"$f":"LEFT(Table_clallam_Oversight_ActiveFunds[[#This Row],[Agency]],3)","v":"477"},"477-Fish & Wildlife","001-2 General Fund-Federal",{"$f":"LEFT(Table_clallam_Oversight_ActiveFunds[[#This Row],[Fund]],5)","v":"001-2"}]
[1,{"$f":"LEFT(Table_clallam_Oversight_ActiveFunds[[#This Row],[Agency]],3)","v":"477"},"477-Fish & Wildlife","001-7 General Fund-Local",{"$f":"LEFT(Table_clallam_Oversight_ActiveFunds[[#This Row],[Fund]],5)","v":"001-7"}]
[1,{"$f":"LEFT(Table_clallam_Oversight_ActiveFunds[[#This Row],[Agency]],3)","v":"477"},"477-Fish & Wildlife","01B-1 ORV/NonHiwy Veh Acct-State",{"$f":"LEFT(Table_clallam_Oversight_ActiveFunds[[#This Row],[Fund]],5)","v":"01B-1"}]
[1,{"$f":"LEFT(Table_clallam_Oversight_ActiveFunds[[#This Row],[Agency]],3)","v":"477"},"477-Fish & Wildlife","02R-1 Aquatic Lands Acct-State",{"$f":"LEFT(Table_clallam_Oversight_ActiveFunds[[#This Row],[Fund]],5)","v":"02R-1"}]
[1,{"$f":"LEFT(Table_clallam_Oversight_ActiveFunds[[#This Row],[Agency]],3)","v":"477"},"477-Fish & Wildlife","04M-1 Recreatnl Fish Enhan-State",{"$f":"LEFT(Table_clallam_Oversight_ActiveFunds[[#This Row],[Fund]],5)","v":"04M-1"}]
[1,{"$f":"LEFT(Table_clallam_Oversight_ActiveFunds[[#This Row],[Agency]],3)","v":"477"},"477-Fish & Wildlife","06A-1 Salmon Recovery Acct-State",{"$f":"LEFT(Table_clallam_Oversight_ActiveFunds[[#This Row],[Fund]],5)","v":"06A-1"}]
[1,{"$f":"LEFT(Table_clallam_Oversight_ActiveFunds[[#This Row],[Agency]],3)","v":"477"},"477-Fish & Wildlife","071-1 Warm Water Game Fish-State",{"$f":"LEFT(Table_clallam_Oversight_ActiveFunds[[#This Row],[Fund]],5)","v":"071-1"}]
[1,{"$f":"LEFT(Table_clallam_Oversight_ActiveFunds[[#This Row],[Agency]],3)","v":"477"},"477-Fish & Wildlife","07V-6 Fish & Wild E Reward-Non-Appr",{"$f":"LEFT(Table_clallam_Oversight_ActiveFunds[[#This Row],[Fund]],5)","v":"07V-6"}]
[1,{"$f":"LEFT(Table_clallam_Oversight_ActiveFunds[[#This Row],[Agency]],3)","v":"477"},"477-Fish & Wildlife","098-1 EW Pheas Enh Acct-State",{"$f":"LEFT(Table_clallam_Oversight_ActiveFunds[[#This Row],[Fund]],5)","v":"098-1"}]
[1,{"$f":"LEFT(Table_clallam_Oversight_ActiveFunds[[#This Row],[Agency]],3)","v":"477"},"477-Fish & Wildlife","09J-6 WA Coast Crab Pot B-Non-Appr",{"$f":"LEFT(Table_clallam_Oversight_ActiveFunds[[#This Row],[Fund]],5)","v":"09J-6"}]
[1,{"$f":"LEFT(Table_clallam_Oversight_ActiveFunds[[#This Row],[Agency]],3)","v":"477"},"477-Fish & Wildlife","104-1 Lim Fish & Wildlife-State",{"$f":"LEFT(Table_clallam_Oversight_ActiveFunds[[#This Row],[Fund]],5)","v":"104-1"}]
[1,{"$f":"LEFT(Table_clallam_Oversight_ActiveFunds[[#This Row],[Agency]],3)","v":"477"},"477-Fish & Wildlife","110-1 Special Wildlife-State",{"$f":"LEFT(Table_clallam_Oversight_ActiveFunds[[#This Row],[Fund]],5)","v":"110-1"}]
[1,{"$f":"LEFT(Table_clallam_Oversight_ActiveFunds[[#This Row],[Agency]],3)","v":"477"},"477-Fish & Wildlife","110-2 Special Wildlife-Federal",{"$f":"LEFT(Table_clallam_Oversight_ActiveFunds[[#This Row],[Fund]],5)","v":"110-2"}]
[1,{"$f":"LEFT(Table_clallam_Oversight_ActiveFunds[[#This Row],[Agency]],3)","v":"477"},"477-Fish & Wildlife","110-7 Special Wildlife-Local",{"$f":"LEFT(Table_clallam_Oversight_ActiveFunds[[#This Row],[Fund]],5)","v":"110-7"}]
[1,{"$f":"LEFT(Table_clallam_Oversight_ActiveFunds[[#This Row],[Agency]],3)","v":"477"},"477-Fish & Wildlife","12G-6 Rockfish Research-Non-Appr",{"$f":"LEFT(Table_clallam_Oversight_ActiveFunds[[#This Row],[Fund]],5)","v":"12G-6"}]
[1,{"$f":"LEFT(Table_clallam_Oversight_ActiveFunds[[#This Row],[Agency]],3)","v":"477"},"477-Fish & Wildlife","14A-1 Wildlife Rehab-State",{"$f":"LEFT(Table_clallam_Oversight_ActiveFunds[[#This Row],[Fund]],5)","v":"14A-1"}]
[1,{"$f":"LEFT(Table_clallam_Oversight_ActiveFunds[[#This Row],[Agency]],3)","v":"477"},"477-Fish & Wildlife","14G-1 Ballast Water Mgmt-State",{"$f":"LEFT(Table_clallam_Oversight_ActiveFunds[[#This Row],[Fund]],5)","v":"14G-1"}]
[1,{"$f":"LEFT(Table_clallam_Oversight_ActiveFunds[[#This Row],[Agency]],3)","v":"477"},"477-Fish & Wildlife","19W-6 Wolf-Livestock Confl - Non-Appr",{"$f":"LEFT(Table_clallam_Oversight_ActiveFunds[[#This Row],[Fund]],5)","v":"19W-6"}]
[1,{"$f":"LEFT(Table_clallam_Oversight_ActiveFunds[[#This Row],[Agency]],3)","v":"477"},"477-Fish & Wildlife","200-2 Reg Fish Salmonid-Federal",{"$f":"LEFT(Table_clallam_Oversight_ActiveFunds[[#This Row],[Fund]],5)","v":"200-2"}]
[1,{"$f":"LEFT(Table_clallam_Oversight_ActiveFunds[[#This Row],[Agency]],3)","v":"477"},"477-Fish & Wildlife","209-6 Region Fisheries Enh-Non-Appr",{"$f":"LEFT(Table_clallam_Oversight_ActiveFunds[[#This Row],[Fund]],5)","v":"209-6"}]
[1,{"$f":"LEFT(Table_clallam_Oversight_ActiveFunds[[#This Row],[Agency]],3)","v":"477"},"477-Fish & Wildlife","217-1 Oil Spill Prevn Acct-State",{"$f":"LEFT(Table_clallam_Oversight_ActiveFunds[[#This Row],[Fund]],5)","v":"217-1"}]
[1,{"$f":"LEFT(Table_clallam_Oversight_ActiveFunds[[#This Row],[Agency]],3)","v":"477"},"477-Fish & Wildlife","21S-1 Aquat Invas Spec Mgt-State",{"$f":"LEFT(Table_clallam_Oversight_ActiveFunds[[#This Row],[Fund]],5)","v":"21S-1"}]
[1,{"$f":"LEFT(Table_clallam_Oversight_ActiveFunds[[#This Row],[Agency]],3)","v":"477"},"477-Fish & Wildlife","22N-6 F&W Fed Lnds Rev-Non-Appr",{"$f":"LEFT(Table_clallam_Oversight_ActiveFunds[[#This Row],[Fund]],5)","v":"22N-6"}]
[1,{"$f":"LEFT(Table_clallam_Oversight_ActiveFunds[[#This Row],[Agency]],3)","v":"477"},"477-Fish & Wildlife","23P-1 Model Toxics Oper-State",{"$f":"LEFT(Table_clallam_Oversight_ActiveFunds[[#This Row],[Fund]],5)","v":"23P-1"}]
[1,{"$f":"LEFT(Table_clallam_Oversight_ActiveFunds[[#This Row],[Agency]],3)","v":"477"},"477-Fish & Wildlife","24N-1 Fish Wildlife Consv-State",{"$f":"LEFT(Table_clallam_Oversight_ActiveFunds[[#This Row],[Fund]],5)","v":"24N-1"}]
[1,{"$f":"LEFT(Table_clallam_Oversight_ActiveFunds[[#This Row],[Agency]],3)","v":"477"},"477-Fish & Wildlife","259-6 Coastal Crab-Non-Appr",{"$f":"LEFT(Table_clallam_Oversight_ActiveFunds[[#This Row],[Fund]],5)","v":"259-6"}]
[1,{"$f":"LEFT(Table_clallam_Oversight_ActiveFunds[[#This Row],[Agency]],3)","v":"477"},"477-Fish & Wildlife","320-6 PS Crab Pot Buoy Tag-Non-Appr",{"$f":"LEFT(Table_clallam_Oversight_ActiveFunds[[#This Row],[Fund]],5)","v":"320-6"}]
[1,{"$f":"LEFT(Table_clallam_Oversight_ActiveFunds[[#This Row],[Agency]],3)","v":"477"},"477-Fish & Wildlife","444-6 Fish & Wild Equip-Non-Appr",{"$f":"LEFT(Table_clallam_Oversight_ActiveFunds[[#This Row],[Fund]],5)","v":"444-6"}]
[1,{"$f":"LEFT(Table_clallam_Oversight_ActiveFunds[[#This Row],[Agency]],3)","v":"477"},"477-Fish & Wildlife","507-1 Oyster Reserve Land-State",{"$f":"LEFT(Table_clallam_Oversight_ActiveFunds[[#This Row],[Fund]],5)","v":"507-1"}]
[1,{"$f":"LEFT(Table_clallam_Oversight_ActiveFunds[[#This Row],[Agency]],3)","v":"477"},"477-Fish & Wildlife","108-1 Motor Vehicle Acct-State",{"$f":"LEFT(Table_clallam_Oversight_ActiveFunds[[#This Row],[Fund]],5)","v":"108-1"}]
[1,{"$f":"LEFT(Table_clallam_Oversight_ActiveFunds[[#This Row],[Agency]],3)","v":"478"},"478-Puget Sound Partner","001-1 General Fund-State",{"$f":"LEFT(Table_clallam_Oversight_ActiveFunds[[#This Row],[Fund]],5)","v":"001-1"}]
[1,{"$f":"LEFT(Table_clallam_Oversight_ActiveFunds[[#This Row],[Agency]],3)","v":"478"},"478-Puget Sound Partner","001-2 General Fund-Federal",{"$f":"LEFT(Table_clallam_Oversight_ActiveFunds[[#This Row],[Fund]],5)","v":"001-2"}]
[1,{"$f":"LEFT(Table_clallam_Oversight_ActiveFunds[[#This Row],[Agency]],3)","v":"478"},"478-Puget Sound Partner","02R-1 Aquatic Lands Acct-State",{"$f":"LEFT(Table_clallam_Oversight_ActiveFunds[[#This Row],[Fund]],5)","v":"02R-1"}]
[1,{"$f":"LEFT(Table_clallam_Oversight_ActiveFunds[[#This Row],[Agency]],3)","v":"478"},"478-Puget Sound Partner","23P-1 Model Toxics Oper-State",{"$f":"LEFT(Table_clallam_Oversight_ActiveFunds[[#This Row],[Fund]],5)","v":"23P-1"}]
[1,{"$f":"LEFT(Table_clallam_Oversight_ActiveFunds[[#This Row],[Agency]],3)","v":"490"},"490-DNR","001-1 General Fund-State",{"$f":"LEFT(Table_clallam_Oversight_ActiveFunds[[#This Row],[Fund]],5)","v":"001-1"}]
[1,{"$f":"LEFT(Table_clallam_Oversight_ActiveFunds[[#This Row],[Agency]],3)","v":"490"},"490-DNR","001-2 General Fund-Federal",{"$f":"LEFT(Table_clallam_Oversight_ActiveFunds[[#This Row],[Fund]],5)","v":"001-2"}]
[1,{"$f":"LEFT(Table_clallam_Oversight_ActiveFunds[[#This Row],[Agency]],3)","v":"490"},"490-DNR","001-7 General Fund-Local",{"$f":"LEFT(Table_clallam_Oversight_ActiveFunds[[#This Row],[Fund]],5)","v":"001-7"}]
[1,{"$f":"LEFT(Table_clallam_Oversight_ActiveFunds[[#This Row],[Agency]],3)","v":"490"},"490-DNR","014-1 Forest Development-State",{"$f":"LEFT(Table_clallam_Oversight_ActiveFunds[[#This Row],[Fund]],5)","v":"014-1"}]
[1,{"$f":"LEFT(Table_clallam_Oversight_ActiveFunds[[#This Row],[Agency]],3)","v":"490"},"490-DNR","01B-1 ORV/NonHiwy Veh Acct-State",{"$f":"LEFT(Table_clallam_Oversight_ActiveFunds[[#This Row],[Fund]],5)","v":"01B-1"}]
[1,{"$f":"LEFT(Table_clallam_Oversight_ActiveFunds[[#This Row],[Agency]],3)","v":"490"},"490-DNR","02A-1 Surveys & Maps Acct-State",{"$f":"LEFT(Table_clallam_Oversight_ActiveFunds[[#This Row],[Fund]],5)","v":"02A-1"}]
[1,{"$f":"LEFT(Table_clallam_Oversight_ActiveFunds[[#This Row],[Agency]],3)","v":"490"},"490-DNR","02R-1 Aquatic Lands Acct-State",{"$f":"LEFT(Table_clallam_Oversight_ActiveFunds[[#This Row],[Fund]],5)","v":"02R-1"}]
[1,{"$f":"LEFT(Table_clallam_Oversight_ActiveFunds[[#This Row],[Agency]],3)","v":"490"},"490-DNR","030-6 Land Cont Forst Fire-Non-Appr",{"$f":"LEFT(Table_clallam_Oversight_ActiveFunds[[#This Row],[Fund]],5)","v":"030-6"}]
[1,{"$f":"LEFT(Table_clallam_Oversight_ActiveFunds[[#This Row],[Agency]],3)","v":"490"},"490-DNR","041-1 Res Mgmt Cost Acct-State",{"$f":"LEFT(Table_clallam_Oversight_ActiveFunds[[#This Row],[Fund]],5)","v":"041-1"}]
[1,{"$f":"LEFT(Table_clallam_Oversight_ActiveFunds[[#This Row],[Agency]],3)","v":"490"},"490-DNR","04H-1 Surface Mining Recl-State",{"$f":"LEFT(Table_clallam_Oversight_ActiveFunds[[#This Row],[Fund]],5)","v":"04H-1"}]
[1,{"$f":"LEFT(Table_clallam_Oversight_ActiveFunds[[#This Row],[Agency]],3)","v":"490"},"490-DNR","05H-1 Disaster Response-State",{"$f":"LEFT(Table_clallam_Oversight_ActiveFunds[[#This Row],[Fund]],5)","v":"05H-1"}]
[1,{"$f":"LEFT(Table_clallam_Oversight_ActiveFunds[[#This Row],[Agency]],3)","v":"490"},"490-DNR","06A-1 Salmon Recovery Acct-State",{"$f":"LEFT(Table_clallam_Oversight_ActiveFunds[[#This Row],[Fund]],5)","v":"06A-1"}]
[1,{"$f":"LEFT(Table_clallam_Oversight_ActiveFunds[[#This Row],[Agency]],3)","v":"490"},"490-DNR","07E-1 Con Harv Rev Account-State",{"$f":"LEFT(Table_clallam_Oversight_ActiveFunds[[#This Row],[Fund]],5)","v":"07E-1"}]
[1,{"$f":"LEFT(Table_clallam_Oversight_ActiveFunds[[#This Row],[Agency]],3)","v":"490"},"490-DNR","07E-6 Con Harv Rev Account-Non-Appr",{"$f":"LEFT(Table_clallam_Oversight_ActiveFunds[[#This Row],[Fund]],5)","v":"07E-6"}]
[1,{"$f":"LEFT(Table_clallam_Oversight_ActiveFunds[[#This Row],[Agency]],3)","v":"490"},"490-DNR","087-6 Park Land Trust Rvlg-Non-Appr",{"$f":"LEFT(Table_clallam_Oversight_ActiveFunds[[#This Row],[Fund]],5)","v":"087-6"}]
[1,{"$f":"LEFT(Table_clallam_Oversight_ActiveFunds[[#This Row],[Agency]],3)","v":"490"},"490-DNR","11H-1 Forest & Fish Suppt-State",{"$f":"LEFT(Table_clallam_Oversight_ActiveFunds[[#This Row],[Fund]],5)","v":"11H-1"}]
[1,{"$f":"LEFT(Table_clallam_Oversight_ActiveFunds[[#This Row],[Agency]],3)","v":"490"},"490-DNR","158-1 Aquatic Land Dredged-State",{"$f":"LEFT(Table_clallam_Oversight_ActiveFunds[[#This Row],[Fund]],5)","v":"158-1"}]
[1,{"$f":"LEFT(Table_clallam_Oversight_ActiveFunds[[#This Row],[Agency]],3)","v":"490"},"490-DNR","167-1 Nat Resources Conser-State",{"$f":"LEFT(Table_clallam_Oversight_ActiveFunds[[#This Row],[Fund]],5)","v":"167-1"}]
[1,{"$f":"LEFT(Table_clallam_Oversight_ActiveFunds[[#This Row],[Agency]],3)","v":"490"},"490-DNR","190-1 Forest Assessment-State",{"$f":"LEFT(Table_clallam_Oversight_ActiveFunds[[#This Row],[Fund]],5)","v":"190-1"}]
[1,{"$f":"LEFT(Table_clallam_Oversight_ActiveFunds[[#This Row],[Agency]],3)","v":"490"},"490-DNR","190-6 Forest Assessment-Non-Appr",{"$f":"LEFT(Table_clallam_Oversight_ActiveFunds[[#This Row],[Fund]],5)","v":"190-6"}]
[1,{"$f":"LEFT(Table_clallam_Oversight_ActiveFunds[[#This Row],[Agency]],3)","v":"490"},"490-DNR","193-1 ST Forest Nursery-State",{"$f":"LEFT(Table_clallam_Oversight_ActiveFunds[[#This Row],[Fund]],5)","v":"193-1"}]
[1,{"$f":"LEFT(Table_clallam_Oversight_ActiveFunds[[#This Row],[Agency]],3)","v":"490"},"490-DNR","193-6 ST Forest Nursery-Non-Appr",{"$f":"LEFT(Table_clallam_Oversight_ActiveFunds[[#This Row],[Fund]],5)","v":"193-6"}]
[1,{"$f":"LEFT(Table_clallam_Oversight_ActiveFunds[[#This Row],[Agency]],3)","v":"490"},"490-DNR","198-1 Access Road Rev Acct-State",{"$f":"LEFT(Table_clallam_Oversight_ActiveFunds[[#This Row],[Fund]],5)","v":"198-1"}]
[1,{"$f":"LEFT(Table_clallam_Oversight_ActiveFunds[[#This Row],[Agency]],3)","v":"490"},"490-DNR","198-6 Access Road Rev Acct-Non-Appr",{"$f":"LEFT(Table_clallam_Oversight_ActiveFunds[[#This Row],[Fund]],5)","v":"198-6"}]
[1,{"$f":"LEFT(Table_clallam_Oversight_ActiveFunds[[#This Row],[Agency]],3)","v":"490"},"490-DNR","19C-1 Forest Practices App-State",{"$f":"LEFT(Table_clallam_Oversight_ActiveFunds[[#This Row],[Fund]],5)","v":"19C-1"}]
[1,{"$f":"LEFT(Table_clallam_Oversight_ActiveFunds[[#This Row],[Agency]],3)","v":"490"},"490-DNR","216-1 Air Poll Contr Acct-State",{"$f":"LEFT(Table_clallam_Oversight_ActiveFunds[[#This Row],[Fund]],5)","v":"216-1"}]
[1,{"$f":"LEFT(Table_clallam_Oversight_ActiveFunds[[#This Row],[Agency]],3)","v":"490"},"490-DNR","21Q-1 Forest Hlth Rev Acct-State",{"$f":"LEFT(Table_clallam_Oversight_ActiveFunds[[#This Row],[Fund]],5)","v":"21Q-1"}]
[1,{"$f":"LEFT(Table_clallam_Oversight_ActiveFunds[[#This Row],[Agency]],3)","v":"490"},"490-DNR","21Q-6 Forest Hlth Rev Acct-Non-Appr",{"$f":"LEFT(Table_clallam_Oversight_ActiveFunds[[#This Row],[Fund]],5)","v":"21Q-6"}]
[1,{"$f":"LEFT(Table_clallam_Oversight_ActiveFunds[[#This Row],[Agency]],3)","v":"490"},"490-DNR","22P-1 Nat Rsrc Fed Lnds Rv-State",{"$f":"LEFT(Table_clallam_Oversight_ActiveFunds[[#This Row],[Fund]],5)","v":"22P-1"}]
[1,{"$f":"LEFT(Table_clallam_Oversight_ActiveFunds[[#This Row],[Agency]],3)","v":"490"},"490-DNR","22P-6 Nat Rsrc Fed Lnds Rv-Non-Appr",{"$f":"LEFT(Table_clallam_Oversight_ActiveFunds[[#This Row],[Fund]],5)","v":"22P-6"}]
[1,{"$f":"LEFT(Table_clallam_Oversight_ActiveFunds[[#This Row],[Agency]],3)","v":"490"},"490-DNR","23P-1 Model Toxics Oper-State",{"$f":"LEFT(Table_clallam_Oversight_ActiveFunds[[#This Row],[Fund]],5)","v":"23P-1"}]
[1,{"$f":"LEFT(Table_clallam_Oversight_ActiveFunds[[#This Row],[Agency]],3)","v":"490"},"490-DNR","25P-1 Wildfire Forest Comm-State",{"$f":"LEFT(Table_clallam_Oversight_ActiveFunds[[#This Row],[Fund]],5)","v":"25P-1"}]
[1,{"$f":"LEFT(Table_clallam_Oversight_ActiveFunds[[#This Row],[Agency]],3)","v":"490"},"490-DNR","268-1 NOVA Program Account-State",{"$f":"LEFT(Table_clallam_Oversight_ActiveFunds[[#This Row],[Fund]],5)","v":"268-1"}]
[1,{"$f":"LEFT(Table_clallam_Oversight_ActiveFunds[[#This Row],[Agency]],3)","v":"490"},"490-DNR","513-1 Derelict Vessel Rmv-State",{"$f":"LEFT(Table_clallam_Oversight_ActiveFunds[[#This Row],[Fund]],5)","v":"513-1"}]
[1,{"$f":"LEFT(Table_clallam_Oversight_ActiveFunds[[#This Row],[Agency]],3)","v":"490"},"490-DNR","566-1 Comm Forest Trust-State",{"$f":"LEFT(Table_clallam_Oversight_ActiveFunds[[#This Row],[Fund]],5)","v":"566-1"}]
[1,{"$f":"LEFT(Table_clallam_Oversight_ActiveFunds[[#This Row],[Agency]],3)","v":"490"},"490-DNR","830-1 Agric College Trst-State",{"$f":"LEFT(Table_clallam_Oversight_ActiveFunds[[#This Row],[Fund]],5)","v":"830-1"}]
[1,{"$f":"LEFT(Table_clallam_Oversight_ActiveFunds[[#This Row],[Agency]],3)","v":"495"},"495-Agriculture","001-1 General Fund-State",{"$f":"LEFT(Table_clallam_Oversight_ActiveFunds[[#This Row],[Fund]],5)","v":"001-1"}]
[1,{"$f":"LEFT(Table_clallam_Oversight_ActiveFunds[[#This Row],[Agency]],3)","v":"495"},"495-Agriculture","001-2 General Fund-Federal",{"$f":"LEFT(Table_clallam_Oversight_ActiveFunds[[#This Row],[Fund]],5)","v":"001-2"}]
[1,{"$f":"LEFT(Table_clallam_Oversight_ActiveFunds[[#This Row],[Agency]],3)","v":"495"},"495-Agriculture","001-7 General Fund-Local",{"$f":"LEFT(Table_clallam_Oversight_ActiveFunds[[#This Row],[Fund]],5)","v":"001-7"}]
[1,{"$f":"LEFT(Table_clallam_Oversight_ActiveFunds[[#This Row],[Agency]],3)","v":"495"},"495-Agriculture","001-X General Fund-CRF App",{"$f":"LEFT(Table_clallam_Oversight_ActiveFunds[[#This Row],[Fund]],5)","v":"001-X"}]
[1,{"$f":"LEFT(Table_clallam_Oversight_ActiveFunds[[#This Row],[Agency]],3)","v":"495"},"495-Agriculture","02R-1 Aquatic Lands Acct-State",{"$f":"LEFT(Table_clallam_Oversight_ActiveFunds[[#This Row],[Fund]],5)","v":"02R-1"}]
[1,{"$f":"LEFT(Table_clallam_Oversight_ActiveFunds[[#This Row],[Agency]],3)","v":"495"},"495-Agriculture","126-6 Agric Local Acct-Non-Appr",{"$f":"LEFT(Table_clallam_Oversight_ActiveFunds[[#This Row],[Fund]],5)","v":"126-6"}]
[1,{"$f":"LEFT(Table_clallam_Oversight_ActiveFunds[[#This Row],[Agency]],3)","v":"495"},"495-Agriculture","128-6 Grain Inspection-Non-Appr",{"$f":"LEFT(Table_clallam_Oversight_ActiveFunds[[#This Row],[Fund]],5)","v":"128-6"}]
[1,{"$f":"LEFT(Table_clallam_Oversight_ActiveFunds[[#This Row],[Agency]],3)","v":"495"},"495-Agriculture","131-6 Fair Account-Non-Appr",{"$f":"LEFT(Table_clallam_Oversight_ActiveFunds[[#This Row],[Fund]],5)","v":"131-6"}]
[1,{"$f":"LEFT(Table_clallam_Oversight_ActiveFunds[[#This Row],[Agency]],3)","v":"495"},"495-Agriculture","176-1 Water Quality Permit-State",{"$f":"LEFT(Table_clallam_Oversight_ActiveFunds[[#This Row],[Fund]],5)","v":"176-1"}]
[1,{"$f":"LEFT(Table_clallam_Oversight_ActiveFunds[[#This Row],[Agency]],3)","v":"495"},"495-Agriculture","21N-1 NE WA Wolf-Livestock - State",{"$f":"LEFT(Table_clallam_Oversight_ActiveFunds[[#This Row],[Fund]],5)","v":"21N-1"}]
[1,{"$f":"LEFT(Table_clallam_Oversight_ActiveFunds[[#This Row],[Agency]],3)","v":"495"},"495-Agriculture","23P-1 Model Toxics Oper-State",{"$f":"LEFT(Table_clallam_Oversight_ActiveFunds[[#This Row],[Fund]],5)","v":"23P-1"}]
[1,{"$f":"LEFT(Table_clallam_Oversight_ActiveFunds[[#This Row],[Agency]],3)","v":"495"},"495-Agriculture","24G-6 Hemp Regulatory Acct-Non-Appr",{"$f":"LEFT(Table_clallam_Oversight_ActiveFunds[[#This Row],[Fund]],5)","v":"24G-6"}]
[1,{"$f":"LEFT(Table_clallam_Oversight_ActiveFunds[[#This Row],[Agency]],3)","v":"495"},"495-Agriculture","315-1 Dedicated Cannabis-State",{"$f":"LEFT(Table_clallam_Oversight_ActiveFunds[[#This Row],[Fund]],5)","v":"315-1"}]
[1,{"$f":"LEFT(Table_clallam_Oversight_ActiveFunds[[#This Row],[Agency]],3)","v":"495"},"495-Agriculture","516-6 Fruit/Vegetable Insp-Non-Appr",{"$f":"LEFT(Table_clallam_Oversight_ActiveFunds[[#This Row],[Fund]],5)","v":"516-6"}]
[1,{"$f":"LEFT(Table_clallam_Oversight_ActiveFunds[[#This Row],[Agency]],3)","v":"495"},"495-Agriculture","706-2 COVID Fiscal Recover-Federal",{"$f":"LEFT(Table_clallam_Oversight_ActiveFunds[[#This Row],[Fund]],5)","v":"706-2"}]
[1,{"$f":"LEFT(Table_clallam_Oversight_ActiveFunds[[#This Row],[Agency]],3)","v":"495"},"495-Agriculture","823-6 Livestock Nutr Mgmt-Non-Appr",{"$f":"LEFT(Table_clallam_Oversight_ActiveFunds[[#This Row],[Fund]],5)","v":"823-6"}]
[1,{"$f":"LEFT(Table_clallam_Oversight_ActiveFunds[[#This Row],[Agency]],3)","v":"495"},"495-Agriculture","108-1 Motor Vehicle Acct-State",{"$f":"LEFT(Table_clallam_Oversight_ActiveFunds[[#This Row],[Fund]],5)","v":"108-1"}]
[1,{"$f":"LEFT(Table_clallam_Oversight_ActiveFunds[[#This Row],[Agency]],3)","v":"540"},"540-Employment Security","001-1 General Fund-State",{"$f":"LEFT(Table_clallam_Oversight_ActiveFunds[[#This Row],[Fund]],5)","v":"001-1"}]
[1,{"$f":"LEFT(Table_clallam_Oversight_ActiveFunds[[#This Row],[Agency]],3)","v":"540"},"540-Employment Security","001-2 General Fund-Federal",{"$f":"LEFT(Table_clallam_Oversight_ActiveFunds[[#This Row],[Fund]],5)","v":"001-2"}]
[1,{"$f":"LEFT(Table_clallam_Oversight_ActiveFunds[[#This Row],[Agency]],3)","v":"540"},"540-Employment Security","001-7 General Fund-Local",{"$f":"LEFT(Table_clallam_Oversight_ActiveFunds[[#This Row],[Fund]],5)","v":"001-7"}]
[1,{"$f":"LEFT(Table_clallam_Oversight_ActiveFunds[[#This Row],[Agency]],3)","v":"540"},"540-Employment Security","001-H General Fund-ARPA",{"$f":"LEFT(Table_clallam_Oversight_ActiveFunds[[#This Row],[Fund]],5)","v":"001-H"}]
[1,{"$f":"LEFT(Table_clallam_Oversight_ActiveFunds[[#This Row],[Agency]],3)","v":"540"},"540-Employment Security","001-X General Fund-CRF App",{"$f":"LEFT(Table_clallam_Oversight_ActiveFunds[[#This Row],[Fund]],5)","v":"001-X"}]
[1,{"$f":"LEFT(Table_clallam_Oversight_ActiveFunds[[#This Row],[Agency]],3)","v":"540"},"540-Employment Security","119-2 Unemploy Comp Admin-Federal",{"$f":"LEFT(Table_clallam_Oversight_ActiveFunds[[#This Row],[Fund]],5)","v":"119-2"}]
[1,{"$f":"LEFT(Table_clallam_Oversight_ActiveFunds[[#This Row],[Agency]],3)","v":"540"},"540-Employment Security","120-1 Admin Contingen Acct-State",{"$f":"LEFT(Table_clallam_Oversight_ActiveFunds[[#This Row],[Fund]],5)","v":"120-1"}]
[1,{"$f":"LEFT(Table_clallam_Oversight_ActiveFunds[[#This Row],[Agency]],3)","v":"540"},"540-Employment Security","134-1 Employment Service-State",{"$f":"LEFT(Table_clallam_Oversight_ActiveFunds[[#This Row],[Fund]],5)","v":"134-1"}]
[1,{"$f":"LEFT(Table_clallam_Oversight_ActiveFunds[[#This Row],[Agency]],3)","v":"540"},"540-Employment Security","16L-6 Accessible Community-Non-Appr",{"$f":"LEFT(Table_clallam_Oversight_ActiveFunds[[#This Row],[Fund]],5)","v":"16L-6"}]
[1,{"$f":"LEFT(Table_clallam_Oversight_ActiveFunds[[#This Row],[Agency]],3)","v":"540"},"540-Employment Security","22F-1 Fam Med Lv Insurance-State",{"$f":"LEFT(Table_clallam_Oversight_ActiveFunds[[#This Row],[Fund]],5)","v":"22F-1"}]
[1,{"$f":"LEFT(Table_clallam_Oversight_ActiveFunds[[#This Row],[Agency]],3)","v":"540"},"540-Employment Security","24J-1 Workforce Ed Invest-State",{"$f":"LEFT(Table_clallam_Oversight_ActiveFunds[[#This Row],[Fund]],5)","v":"24J-1"}]
[1,{"$f":"LEFT(Table_clallam_Oversight_ActiveFunds[[#This Row],[Agency]],3)","v":"540"},"540-Employment Security","25B-1 Unemp Ins Relief-State",{"$f":"LEFT(Table_clallam_Oversight_ActiveFunds[[#This Row],[Fund]],5)","v":"25B-1"}]
[1,{"$f":"LEFT(Table_clallam_Oversight_ActiveFunds[[#This Row],[Agency]],3)","v":"540"},"540-Employment Security","567-1 Long-Term Svcs & Spt - State",{"$f":"LEFT(Table_clallam_Oversight_ActiveFunds[[#This Row],[Fund]],5)","v":"567-1"}]
[1,{"$f":"LEFT(Table_clallam_Oversight_ActiveFunds[[#This Row],[Agency]],3)","v":"540"},"540-Employment Security","706-2 COVID Fiscal Recover-Federal",{"$f":"LEFT(Table_clallam_Oversight_ActiveFunds[[#This Row],[Fund]],5)","v":"706-2"}]
[1,{"$f":"LEFT(Table_clallam_Oversight_ActiveFunds[[#This Row],[Agency]],3)","v":"699"},"699-C T C S","001-1 General Fund-State",{"$f":"LEFT(Table_clallam_Oversight_ActiveFunds[[#This Row],[Fund]],5)","v":"001-1"}]
[1,{"$f":"LEFT(Table_clallam_Oversight_ActiveFunds[[#This Row],[Agency]],3)","v":"699"},"699-C T C S","060-1 Comm/Tech Cap Proj A-State",{"$f":"LEFT(Table_clallam_Oversight_ActiveFunds[[#This Row],[Fund]],5)","v":"060-1"}]
[1,{"$f":"LEFT(Table_clallam_Oversight_ActiveFunds[[#This Row],[Agency]],3)","v":"699"},"699-C T C S","08A-1 Education Legacy T A-State",{"$f":"LEFT(Table_clallam_Oversight_ActiveFunds[[#This Row],[Fund]],5)","v":"08A-1"}]
[1,{"$f":"LEFT(Table_clallam_Oversight_ActiveFunds[[#This Row],[Agency]],3)","v":"699"},"699-C T C S","11A-6 Employment Training-Non-Appr",{"$f":"LEFT(Table_clallam_Oversight_ActiveFunds[[#This Row],[Fund]],5)","v":"11A-6"}]
[1,{"$f":"LEFT(Table_clallam_Oversight_ActiveFunds[[#This Row],[Agency]],3)","v":"699"},"699-C T C S","145-6 HE Grants/Contract-Non-Appr",{"$f":"LEFT(Table_clallam_Oversight_ActiveFunds[[#This Row],[Fund]],5)","v":"145-6"}]
[1,{"$f":"LEFT(Table_clallam_Oversight_ActiveFunds[[#This Row],[Agency]],3)","v":"699"},"699-C T C S","148-6 HE Dedicated Local-Non-Appr",{"$f":"LEFT(Table_clallam_Oversight_ActiveFunds[[#This Row],[Fund]],5)","v":"148-6"}]
[1,{"$f":"LEFT(Table_clallam_Oversight_ActiveFunds[[#This Row],[Agency]],3)","v":"699"},"699-C T C S","149-6 HE Operating Fees-Non-Appr",{"$f":"LEFT(Table_clallam_Oversight_ActiveFunds[[#This Row],[Fund]],5)","v":"149-6"}]
[1,{"$f":"LEFT(Table_clallam_Oversight_ActiveFunds[[#This Row],[Agency]],3)","v":"699"},"699-C T C S","24J-1 Workforce Ed Invest-State",{"$f":"LEFT(Table_clallam_Oversight_ActiveFunds[[#This Row],[Fund]],5)","v":"24J-1"}]
[1,{"$f":"LEFT(Table_clallam_Oversight_ActiveFunds[[#This Row],[Agency]],3)","v":"699"},"699-C T C S","443-6 Data Proc-Hi Educ - Non-Appr",{"$f":"LEFT(Table_clallam_Oversight_ActiveFunds[[#This Row],[Fund]],5)","v":"443-6"}]
[1,{"$f":"LEFT(Table_clallam_Oversight_ActiveFunds[[#This Row],[Agency]],3)","v":"699"},"699-C T C S","561-6 Comm/Tech College In-Non-Appr",{"$f":"LEFT(Table_clallam_Oversight_ActiveFunds[[#This Row],[Fund]],5)","v":"561-6"}]